Workbook

Sheet Contents
A1: 80 | M1: ESC USE ONLY
D2: ESSENTIAL SERVICES COMMISSION
D3: Water Price Review - 2023
D4: Financial Model Template
B7: Table of Contents | F7: Water Business: | H7: =+N24 -> South East Water | I7: =+O24 -> SEW
B8: Section & Sheet Titles | F8: Regulatory Period: | H8: 2023-24 to 2027-28 (Fifth) | N8: [Decision] | O8: [Month] | P8: [Year] | Q8: [Version]
F9: Model Name: | H9: =I7&"_Price Review Template_"&O9&P9&Q9 -> SEW_Price Review Template_Oct2021 - v1 | N9: Draft | O9: Oct | P9: 2021 | Q9: - v1 | R9: << Select
B10: 1 | C10: Model Quality Check | F10: Decision type: | H10: =+N9&" Decision" -> Draft Decision | N10: Draft | O10: Jan | P10: 2016 | Q10: - v1
B11: 2 | C11: =+KeyAssumptionsPriceControl_FO!B1 -> Key Assumptions Price Control | N11: Final | O11: Feb | P11: 2017
B12: 3 | C12: =+Expenditure_Detail!B1 -> Expenditure - Detail | F12: Model Key: | O12: Mar | P12: 2018
B13: 4 | C13: =Opex_FO!B1 -> Operating Expenditure - Forecast | O13: Apr | P13: 2019
B14: 5 | C14: =Opex_Breakdown!B1 -> Operating Expenditure - Breakdown | G14: BLUE | H14: =+I7&" - DATA INPUT CELL" -> SEW - DATA INPUT CELL | O14: May | P14: 2020
B15: 6 | C15: =+'Capex_FO input'!B1 -> Capital Expenditure - Forecast Input | O15: Jun | P15: 2021
B16: 7 | C16: =Capex_FO_AC!B1 -> Capital Expenditure - Asset Category Breakdown | G16: PURPLE | H16: NOTES / INSTRUCTIONS | O16: Jul | P16: 2022
B17: 8 | C17: =ExpSummary_FO!B1 -> Expenditure Summary | O17: Aug | P17: 2023
B18: 9 | C18: =RollForward_FO!B1 -> Rolled forward regulatory asset base (RAB) | G18: GREY | H18: MODEL PARAMETERS / ASSUMPTIONS | O18: Sep
B19: 10 | C19: =PrevPerAdj_FO!B1 -> Previous period adjustments | O19: Oct
B20: 11 | C20: =RevenuePriceCap_FO!C1 -> Revenue forecast (price caps) | G20: WHITE | H20: FORMULA / HARDCODED VALUES | O20: Nov
B21: 12 | C21: Revenue forecast (tariff basket) | O21: Dec
B22: 13 | C22: =NotPres_FO!B1 -> Non Prescribed Services | G22: ORANGE | H22: FORMULA DIFFERENT TO ADJACENT CELL
B23: 14 | C23: ='Finance&Tax_FO'!B1 -> Cash, debt and tax assumptions | N23: [Business]
B24: 15 | C24: ='Rev&RAV_FO'!B1 -> Revenue requirement detail | G24: GREEN | H24: DATA FROM 2018 DECISION OR PERFORMANCE REPORT | N24: South East Water | O24: =+VLOOKUP(N24,N25:O42,2,FALSE) -> SEW
B25: 16 | C25: =Indicators_FO!B1 -> Financial indicators | N25: Barwon Water | O25: BW
B26: 17 | C26: =Outcomes!B1 -> Outcomes | G26: RED | H26: ERROR CHECK | N26: Central Highlands Water | O26: CHW
B27: 18 | C27: =GSL!B1 -> Guaranteed Service Levels (GSL) | N27: Greater Western Water | O27: GWW
B28: 19 | C28: Dashboard - Pricing | N28: Coliban Water | O28: CW
B29: 20 | C29: Dashboard - Opex | N29: East Gippsland Water | O29: EGW
B30: 21 | C30: Dashboard - Capex | N30: Gippsland Water | O30: CGW
B31: 22 | C31: Dashboard - Data | N31: Goulburn Valley Water | O31: GVW
B32: 23 | C32: Household Bill | N32: GWM Water | O32: GWMW | P32: diff model
N33: Lower Murray Water - Urban | O33: LMW-U | P33: diff model
N34: Lower Murray Water - Rural | O34: LMW-R
N35: North East Water | O35: NEW
N36: South East Water | O36: SEW
N37: South Gippsland Water | O37: SGW
N38: Southern Rural Water | O38: SRW | P38: diff model
N39: Wannon Water | O39: WNW
N40: Westernport Water | O40: WPW
N41: Yarra Valley Water | O41: YVW

Sheet Adjustments log (hidden)
A3: 1 | B3: Operating expenditure
B4: $m 2022-23
C6: 2023-24 | D6: 2024-25 | E6: 2025-26 | F6: 2026-27 | G6: 2027-28 | H6: Total
B7: Proposed - controllable operating expenditure | H7: =SUM(C7:G7) -> 0
B8: DD adjustments
B9: xx | H9: =SUM(C9:G9) -> 0
B10: xx | H10: =SUM(C10:G10) -> 0
B11: xx | H11: =SUM(C11:G11) -> 0
B12: xx | H12: =SUM(C12:G12) -> 0
B13: xx | H13: =SUM(C13:G13) -> 0
B14: FD adjustments
B15: xx | H15: =SUM(C15:G15) -> 0
B16: xx | H16: =SUM(C16:G16) -> 0
B17: xx | H17: =SUM(C17:G17) -> 0
B18: xx | H18: =SUM(C18:G18) -> 0
B19: xx | H19: 0
B20: Total adjustments | C20: =SUM(C8:C19) -> 0 | D20: 0 | E20: 0 | F20: 0 | G20: 0 | H20: 0
B21: Final decision - controllable operating expenditure | C21: =C7+C20 -> 0 | D21: 0 | E21: 0 | F21: 0 | G21: 0 | H21: 0
B23: Proposed - non-controllable operating expenditure | H23: =SUM(C23:G23) -> 0
B24: DD adjustments
B25: xx | H25: =SUM(C25:G25) -> 0
B26: xx | H26: =SUM(C26:G26) -> 0
B27: xx | H27: =SUM(C27:G27) -> 0
B28: xx | H28: =SUM(C28:G28) -> 0
B29: FD adjustments
B30: xx | H30: =SUM(C30:G30) -> 0
B31: xx | H31: =SUM(C31:G31) -> 0
B32: Total adjustments | C32: =SUM(C24:C31) -> 0 | D32: 0 | E32: 0 | F32: 0 | G32: 0 | H32: 0
B33: Final decision - non-controllable operating expenditure | C33: =C23+C32 -> 0 | D33: 0 | E33: 0 | F33: 0 | G33: 0 | H33: 0
B35: Proposed - total operating expenditure | C35: =C7+C23 -> 0 | D35: 0 | E35: 0 | F35: 0 | G35: 0 | H35: 0
B36: Total adjustments | C36: =C20+C32 -> 0 | D36: 0 | E36: 0 | F36: 0 | G36: 0 | H36: 0
B37: Final decision - total operating expenditure | C37: =SUM(C35:C36) -> 0 | D37: 0 | E37: 0 | F37: 0 | G37: 0 | H37: 0
B39: Check
A42: 2 | B42: Capital expenditure
B43: $m 2022-23
C45: 2023-24 | D45: 2024-25 | E45: 2025-26 | F45: 2026-27 | G45: 2027-28 | H45: Total
B46: Proposed - capital expenditure | H46: =SUM(C46:G46) -> 0
B47: DD adjustments
B48: xx | H48: =SUM(C48:G48) -> 0
B49: xx | H49: =SUM(C49:G49) -> 0
B50: xx | H50: =SUM(C50:G50) -> 0
B51: xx | H51: =SUM(C51:G51) -> 0
B52: FD adjustments
B53: xx | H53: =SUM(C53:G53) -> 0
B54: xx
B55: Total adjustments | C55: =SUM(C47:C54) -> 0 | D55: 0 | E55: 0 | F55: 0 | G55: 0 | H55: 0
B56: Draft decision - capital expenditure | C56: =C46+C55 -> 0 | D56: 0 | E56: 0 | F56: 0 | G56: 0 | H56: 0
B58: Check

Sheet Model Quality Check
A1: 80 | B1: Model Quality Check
B2: =+Contents!H7 -> South East Water
B3: Go to Table of Contents
K4: FIRST REG PERIOD | O4: SECOND REG PERIOD | T4: THIRD REG PERIOD | Y4: FOURTH REG PERIOD | AD4: FIFTH REG PERIOD | AI4: SIXTH REG PERIOD
F6: Straight Line | J6: 2006 | K6: 2007 | L6: 2008 | M6: 2009 | N6: 2010 | O6: 2011 | P6: 2012 | Q6: 2013 | R6: 2014 | S6: 2015 | T6: 2016 | U6: 2017 | V6: 2018 | W6: 2019 | X6: 2020 | Y6: 2021 | Z6: 2022 | AA6: 2023 | AB6: 2024 | AC6: 2025 | AD6: 2026 | AE6: 2027 | AF6: 2028 | AG6: 2029 | AH6: 2030 | AI6: 2031 | AJ6: 2032 | AK6: 2033
F7: Declining Balance | J7: =+CONCATENATE(J6-1,"-",RIGHT(J6,2)) -> 2005-06 | K7: 2006-07 | L7: 2007-08 | M7: 2008-09 | N7: 2009-10 | O7: 2010-11 | P7: 2011-12 | Q7: 2012-13 | R7: 2013-14 | S7: 2014-15 | T7: 2015-16 | U7: 2016-17 | V7: 2017-18 | W7: =+CONCATENATE(W6-1,"-",RIGHT(W6,2)) -> 2018-19 | X7: 2019-20 | Y7: 2020-21 | Z7: 2021-22 | AA7: 2022-23 | AB7: 2023-24 | AC7: 2024-25 | AD7: 2025-26 | AE7: 2026-27 | AF7: =+CONCATENATE(AF6-1,"-",RIGHT(AF6,2)) -> 2027-28 | AG7: 2028-29 | AH7: 2029-30 | AI7: 2030-31 | AJ7: 2031-32 | AK7: 2032-33
D9: Model ready for submission: | I9: =SUM(AA15:AK49) -> 5 | R9: (If No, please ensure that the error check is corrected at the source)
D11: All financial indicators satisfied: | I11: =SUM(AB54:AK59) -> 13
E14: 1. | F14: Opex_FO
G15: Reconciliation to 'Opex_Breakdown' tab row 37 | AB15: =Opex_FO!AC100 -> 0 | AC15: =Opex_FO!AD100 -> 0 | AD15: =Opex_FO!AE100 -> 0 | AE15: =Opex_FO!AF100 -> 0 | AF15: =Opex_FO!AG100 -> 0 | AG15: =Opex_FO!AH100 -> 0 | AH15: =Opex_FO!AI100 -> 0 | AI15: =Opex_FO!AJ100 -> 0 | AJ15: =Opex_FO!AK100 -> 0 | AK15: =Opex_FO!AL100 -> 0
E17: 2. | F17: Opex_Breakdown
G18: Reconciliation to 'Opex_FO' tab row 95 | AB18: =Opex_Breakdown!AC42 -> 0 | AC18: =Opex_Breakdown!AD42 -> 0 | AD18: =Opex_Breakdown!AE42 -> 0 | AE18: =Opex_Breakdown!AF42 -> 0 | AF18: =Opex_Breakdown!AG42 -> 0 | AG18: =Opex_Breakdown!AH42 -> 0 | AH18: =Opex_Breakdown!AI42 -> 0 | AI18: =Opex_Breakdown!AJ42 -> 0 | AJ18: =Opex_Breakdown!AK42 -> 0 | AK18: =Opex_Breakdown!AL42 -> 0
G20: Reconciliation of Opex by service and function | AB20: =Opex_Breakdown!AC27 -> 0 | AC20: =Opex_Breakdown!AD27 -> 0 | AD20: =Opex_Breakdown!AE27 -> 0 | AE20: =Opex_Breakdown!AF27 -> 0 | AF20: =Opex_Breakdown!AG27 -> 0 | AG20: =Opex_Breakdown!AH27 -> 0 | AH20: =Opex_Breakdown!AI27 -> 0 | AI20: =Opex_Breakdown!AJ27 -> 0 | AJ20: =Opex_Breakdown!AK27 -> 0 | AK20: =Opex_Breakdown!AL27 -> 0
E22: 3. | F22: Capex_FO input
G23: Reconciliation of total prescribed capex between cost driver and capital type | AB23: ='Capex_FO input'!D26 -> 0 | AC23: ='Capex_FO input'!E26 -> 0 | AD23: ='Capex_FO input'!F26 -> 0 | AE23: ='Capex_FO input'!G26 -> 0 | AF23: ='Capex_FO input'!H26 -> 0 | AG23: ='Capex_FO input'!I26 -> 0 | AH23: ='Capex_FO input'!J26 -> 0 | AI23: ='Capex_FO input'!K26 -> 0 | AJ23: ='Capex_FO input'!L26 -> 0 | AK23: ='Capex_FO input'!M26 -> 0
E25: 4. | F25: Capex_FO_AC
G26: Reconciliation to 'Capex_FO input' tab row 29 | AA26: =Capex_FO_AC!AB30 -> 0 | AB26: =Capex_FO_AC!AC30 -> 0 | AC26: =Capex_FO_AC!AD30 -> 0 | AD26: =Capex_FO_AC!AE30 -> 0 | AE26: =Capex_FO_AC!AF30 -> 0 | AF26: =Capex_FO_AC!AG30 -> 0 | AG26: =Capex_FO_AC!AH30 -> 0 | AH26: =Capex_FO_AC!AI30 -> 0 | AI26: =Capex_FO_AC!AJ30 -> 0 | AJ26: =Capex_FO_AC!AK30 -> 0 | AK26: =Capex_FO_AC!AL30 -> 0
E28: 5. | F28: RollForward_FO
G29: Reconciliation of existing assets book value to RAB | AB29: =IF(ROUND(RollForward_FO!G84,2)=ROUND(RollForward_FO!G82,2),0,1) -> 0
E31: 6. | F31: RevenuePriceCap_FO
G32: Price control - Fifth period | AB32: =IF(KeyAssumptionsPriceControl_FO!I48=1,IF(RevenuePriceCap_FO!AD34="PRICE CONTROL OK",0,1),0) -> 0 | AC32: =IF(KeyAssumptionsPriceControl_FO!I48=1,RevenuePriceCap_FO!AD34,"") -> PRICE CONTROL OK
G34: Price control - Sixth period | AB34: =IF(KeyAssumptionsPriceControl_FO!I48=1,IF(RevenuePriceCap_FO!AI34="PRICE CONTROL OK",0,1),0) -> 0 | AC34: =IF(KeyAssumptionsPriceControl_FO!I48=1,RevenuePriceCap_FO!AI34,"") -> PRICE CONTROL OK
G36: Tariff revenue reconciliation | AB36: =RevenuePriceCap_FO!AC458 -> 0 | AC36: =RevenuePriceCap_FO!AD458 -> 0 | AD36: =RevenuePriceCap_FO!AE458 -> 0 | AE36: =RevenuePriceCap_FO!AF458 -> 0 | AF36: =RevenuePriceCap_FO!AG458 -> 0 | AG36: =RevenuePriceCap_FO!AH458 -> 0 | AH36: =RevenuePriceCap_FO!AI458 -> 0 | AI36: =RevenuePriceCap_FO!AJ458 -> 0 | AJ36: =RevenuePriceCap_FO!AK458 -> 0 | AK36: =RevenuePriceCap_FO!AL458 -> 0
E38: 7. | F38: RevenueTariffBasket_FO
G39: Price control - Fifth period | AB39: =IF(KeyAssumptionsPriceControl_FO!I48=2,IF(RevenueTariffBasket_FO!AD34="PRICE CONTROL OK",0,1),0) -> 0 | AC39: =IF(KeyAssumptionsPriceControl_FO!I48=2,RevenueTariffBasket_FO!AD34,"") -> 
G41: Price control - Sixth period | AB41: =IF(KeyAssumptionsPriceControl_FO!I48=2,IF(RevenueTariffBasket_FO!AI41="PRICE CONTROL OK",0,1),0) -> 0 | AC41: =IF(KeyAssumptionsPriceControl_FO!I48=2,RevenueTariffBasket_FO!AI34,"") -> 
G43: Tariff revenue reconciliation | AB43: =RevenueTariffBasket_FO!AC458 -> 0 | AC43: =RevenueTariffBasket_FO!AD458 -> 0 | AD43: =RevenueTariffBasket_FO!AE458 -> 0 | AE43: =RevenueTariffBasket_FO!AF458 -> 0 | AF43: =RevenueTariffBasket_FO!AG458 -> 0 | AG43: =RevenueTariffBasket_FO!AH458 -> 0 | AH43: =RevenueTariffBasket_FO!AI458 -> 0 | AI43: =RevenueTariffBasket_FO!AJ458 -> 0 | AJ43: =RevenueTariffBasket_FO!AK458 -> 0 | AK43: =RevenueTariffBasket_FO!AL458 -> 0
E45: 8. | F45: Rev&RAV_FO
G46: Rolled forward RAV reconciliation | AB46: ='Rev&RAV_FO'!AC80 -> 0 | AC46: ='Rev&RAV_FO'!AD80 -> 0 | AD46: ='Rev&RAV_FO'!AE80 -> 0 | AE46: ='Rev&RAV_FO'!AF80 -> 0 | AF46: ='Rev&RAV_FO'!AG80 -> 0 | AG46: ='Rev&RAV_FO'!AH80 -> 0 | AH46: ='Rev&RAV_FO'!AI80 -> 0 | AI46: ='Rev&RAV_FO'!AJ80 -> 0 | AJ46: ='Rev&RAV_FO'!AK80 -> 0 | AK46: ='Rev&RAV_FO'!AL80 -> 0
E48: 9. | F48: GSL
G49: Reconciliation to 'Opex_Breakdown' tab row 23 | AB49: =IF(ROUND(GSL!AC40,2)=ROUND(GSL!AC39,2),0,1) -> 1 | AC49: =IF(ROUND(GSL!AD40,2)=ROUND(GSL!AD39,2),0,1) -> 1 | AD49: =IF(ROUND(GSL!AE40,2)=ROUND(GSL!AE39,2),0,1) -> 1 | AE49: =IF(ROUND(GSL!AF40,2)=ROUND(GSL!AF39,2),0,1) -> 1 | AF49: =IF(ROUND(GSL!AG40,2)=ROUND(GSL!AG39,2),0,1) -> 1 | AG49: =IF(ROUND(GSL!AH40,2)=ROUND(GSL!AH39,2),0,1) -> 0 | AH49: =IF(ROUND(GSL!AI40,2)=ROUND(GSL!AI39,2),0,1) -> 0 | AI49: =IF(ROUND(GSL!AJ40,2)=ROUND(GSL!AJ39,2),0,1) -> 0 | AJ49: =IF(ROUND(GSL!AK40,2)=ROUND(GSL!AK39,2),0,1) -> 0 | AK49: =IF(ROUND(GSL!AL40,2)=ROUND(GSL!AL39,2),0,1) -> 0
E53: 1. | F53: Primary Indicator
G54: FFO interest cover | AB54: =Indicators_FO!AC$226 -> 0 | AC54: =Indicators_FO!AD$226 -> 0 | AD54: =Indicators_FO!AE$226 -> 0 | AE54: =Indicators_FO!AF$226 -> 0 | AF54: =Indicators_FO!AG$226 -> 0 | AG54: =Indicators_FO!AH$226 -> 0 | AH54: =Indicators_FO!AI$226 -> 0 | AI54: =Indicators_FO!AJ$226 -> 0 | AJ54: =Indicators_FO!AK$226 -> 0 | AK54: =Indicators_FO!AL$226 -> 0
E56: 2. | F56: Secondary indicators
G57: Net debt / RAV | AB57: =Indicators_FO!AC$235 -> 0 | AC57: =Indicators_FO!AD$235 -> 0 | AD57: =Indicators_FO!AE$235 -> 0 | AE57: =Indicators_FO!AF$235 -> 0 | AF57: =Indicators_FO!AG$235 -> 0 | AG57: =Indicators_FO!AH$235 -> 0 | AH57: =Indicators_FO!AI$235 -> 0 | AI57: =Indicators_FO!AJ$235 -> 0 | AJ57: =Indicators_FO!AK$235 -> 0 | AK57: =Indicators_FO!AL$235 -> 0
G58: FFO / Net debt | AB58: =Indicators_FO!AC$243 -> 1 | AC58: =Indicators_FO!AD$243 -> 1 | AD58: =Indicators_FO!AE$243 -> 1 | AE58: =Indicators_FO!AF$243 -> 1 | AF58: =Indicators_FO!AG$243 -> 1 | AG58: =Indicators_FO!AH$243 -> 1 | AH58: =Indicators_FO!AI$243 -> 1 | AI58: =Indicators_FO!AJ$243 -> 1 | AJ58: =Indicators_FO!AK$243 -> 1 | AK58: =Indicators_FO!AL$243 -> 1
G59: Internal financing ratio | AB59: =Indicators_FO!AC$252 -> 1 | AC59: =Indicators_FO!AD$252 -> 1 | AD59: =Indicators_FO!AE$252 -> 1 | AE59: =Indicators_FO!AF$252 -> 0 | AF59: =Indicators_FO!AG$252 -> 0 | AG59: =Indicators_FO!AH$252 -> 0 | AH59: =Indicators_FO!AI$252 -> 0 | AI59: =Indicators_FO!AJ$252 -> 0 | AJ59: =Indicators_FO!AK$252 -> 0 | AK59: =Indicators_FO!AL$252 -> 0

Sheet KeyAssumptionsPriceControl_FO
A1: 80 | B1: Key Assumptions Price Control
B2: =+Contents!H7 -> South East Water
B3: Go to Table of Contents
L4: FIRST REG PERIOD | P4: SECOND REG PERIOD | U4: THIRD REG PERIOD | Z4: FOURTH REG PERIOD | AE4: FIFTH REG PERIOD | AJ4: SIXTH REG PERIOD
F6: Straight Line | K6: 2006 | L6: 2007 | M6: 2008 | N6: 2009 | O6: 2010 | P6: 2011 | Q6: 2012 | R6: 2013 | S6: 2014 | T6: 2015 | U6: 2016 | V6: 2017 | W6: 2018 | X6: 2019 | Y6: 2020 | Z6: 2021 | AA6: 2022 | AB6: 2023 | AC6: 2024 | AD6: 2025 | AE6: 2026 | AF6: 2027 | AG6: 2028 | AH6: 2029 | AI6: 2030 | AJ6: 2031 | AK6: 2032 | AL6: 2033
F7: Declining Balance | I7: 2003-04 | J7: 2004-05 | K7: =+CONCATENATE(K6-1,"-",RIGHT(K6,2)) -> 2005-06 | L7: =+CONCATENATE(L6-1,"-",RIGHT(L6,2)) -> 2006-07 | M7: 2007-08 | N7: 2008-09 | O7: 2009-10 | P7: 2010-11 | Q7: 2011-12 | R7: 2012-13 | S7: 2013-14 | T7: 2014-15 | U7: 2015-16 | V7: 2016-17 | W7: 2017-18 | X7: 2018-19 | Y7: 2019-20 | Z7: 2020-21 | AA7: 2021-22 | AB7: 2022-23 | AC7: 2023-24 | AD7: 2024-25 | AE7: 2025-26 | AF7: 2026-27 | AG7: 2027-28 | AH7: =+CONCATENATE(AH6-1,"-",RIGHT(AH6,2)) -> 2028-29 | AI7: =+CONCATENATE(AI6-1,"-",RIGHT(AI6,2)) -> 2029-30 | AJ7: =+CONCATENATE(AJ6-1,"-",RIGHT(AJ6,2)) -> 2030-31 | AK7: =+CONCATENATE(AK6-1,"-",RIGHT(AK6,2)) -> 2031-32 | AL7: =+CONCATENATE(AL6-1,"-",RIGHT(AL6,2)) -> 2032-33
E11: Inflation assumptions
AB12: Estimate
F13: March quarter annual CPI | I13: 141.3 | J13: 144.1 | K13: 147.5 | L13: 151.9 | M13: 155.6 | N13: 162.2 | O13: 166.2 | P13: 171 | Q13: 176.7 | R13: 99.9 | S13: 102.4 | T13: 105.4 | U13: 106.8 | V13: 108.2 | W13: 110.5 | X13: 112.6 | Y13: 114.1 | Z13: 116.6 | AA13: 117.9 | AB13: 123.9
F14: Inflation | J14: =+J13/I13-1 -> 0.01981599434 | K14: 0.02359472588 | L14: 0.02983050847 | M14: 0.02435813035 | N14: 0.04241645244 | O14: 0.02466091245 | P14: 0.02888086643 | Q14: 0.03333333333 | R14: 0.01584606678 | S14: =+IF(S13=0,$Z$44,S13/R13-1) -> 0.02502502503 | T14: 0.029296875 | U14: 0.01328273245 | V14: 0.01310861423 | W14: 0.02125693161 | X14: 0.01900452489 | Y14: 0.01332149201 | Z14: 0.02191060473 | AA14: 0.01114922813 | AB14: 0.05089058524 | AC14: =+IF(AC13=0,$AC$44,AC13/AB13-1) -> 0.03 | AD14: 0.03 | AE14: 0.03 | AF14: 0.03 | AG14: 0.03 | AH14: 0.03 | AI14: 0.03 | AJ14: 0.03 | AK14: 0.03 | AL14: 0.03
F15: Inflation factor | I15: 0.7871866295 | J15: 0.8027855153 | K15: 0.8217270195 | L15: 0.8462395543 | M15: 0.8668523677 | N15: 0.9036211699 | O15: 0.9259052925 | P15: 0.9526462396 | Q15: 0.9844011142 | R15: =+R13/$AB$13 -> 0.8062953995 | S15: 0.8264729621 | T15: 0.8506860371 | U15: 0.8619854722 | V15: 0.8732849072 | W15: 0.8918482647 | X15: 0.9087974173 | Y15: 0.9209039548 | Z15: 0.9410815174 | AA15: 0.9515738499 | AB15: 1 | AC15: =+AB15*(1+AC14) -> 1.03 | AD15: 1.0609 | AE15: 1.092727 | AF15: 1.12550881 | AG15: 1.159274074 | AH15: 1.194052297 | AI15: 1.229873865 | AJ15: 1.266770081 | AK15: 1.304773184 | AL15: 1.343916379
I16: CPI index re-referenced in 2012-13, shaded values have been hardcoded to lock in RAB value.
E21: Cost of debt - 10 year trailing average (Nominal)
AA22: Estimate | AB22: Estimate | AC22: Estimate | AD22: Estimate | AE22: Estimate | AF22: Estimate | AG22: Estimate | AH22: Estimate | AI22: Estimate | AJ22: Estimate | AK22: Estimate | AL22: Estimate
E23: Cost of debt | L23: 0.06981666667 | M23: 0.07414 | N23: 0.0691525788 | O23: 0.07361870984 | P23: 0.07046784142 | Q23: 0.06308887941 | R23: 0.0526945046 | S23: 0.070525 | T23: 0.05360833333 | U23: 0.05270138413 | V23: 0.04908333333 | W23: 0.045283 | X23: 0.046133 | Y23: 0.03305833333 | Z23: 0.03045 | AA23: 0.037533 | AB23: =AA23 -> 0.037533 | AC23: =AB23 -> 0.037533 | AD23: =AC23 -> 0.037533 | AE23: =AD23 -> 0.037533 | AF23: =AE23 -> 0.037533 | AG23: =AF23 -> 0.037533 | AH23: =AG23 -> 0.037533 | AI23: =AH23 -> 0.037533 | AJ23: =AI23 -> 0.037533 | AK23: =AJ23 -> 0.037533 | AL23: =AK23 -> 0.037533
E24: Re-financing weightings - average 10 yrs | L24: =1/10 -> 0.1 | M24: =1/10 -> 0.1 | N24: =1/10 -> 0.1 | O24: =1/10 -> 0.1 | P24: =1/10 -> 0.1 | Q24: 0.1 | R24: 0.1 | S24: 0.1 | T24: 0.1 | U24: 0.1 | V24: 0.1 | W24: 0.1 | X24: 0.1 | Y24: 0.1 | Z24: 0.1 | AA24: 0.1 | AB24: 0.1 | AC24: 0.1 | AD24: 0.1 | AE24: 0.1 | AF24: 0.1 | AG24: 0.1 | AH24: 0.1 | AI24: 0.1 | AJ24: 0.1 | AK24: 0.1 | AL24: 0.1
E26: Cost of debt - 10 year trailing average | V26: =IF(U23<>"",SUMPRODUCT(L23:U23,L24:U24),"") -> 0.06498138982 | W26: 0.06290805649 | X26: 0.06002235649 | Y26: 0.05772039861 | Z26: 0.05366436096 | AA26: 0.04966257681 | AB26: =IF(AA23<>"",SUMPRODUCT(R23:AA23,R24:AA24),"") -> 0.04710698887 | AC26: =IF(AB23<>"",SUMPRODUCT(S23:AB23,S24:AB24),"") -> 0.04559083841 | AD26: =IF(AC23<>"",SUMPRODUCT(T23:AC23,T24:AC24),"") -> 0.04229163841 | AE26: 0.04068410508 | AF26: 0.03916726667 | AG26: 0.03801223333 | AH26: 0.03723723333 | AI26: 0.03637723333 | AJ26: 0.0368247 | AK26: 0.037533 | AL26: 0.037533
E30: WACC assumptions (retained for historical purposes only) | Z30: Regulatory Rate of Return (RRR) - Nominal
K32: 1st period | M32: 2nd period | O32: 3rd period | Z32: Cost of Debt | AC32: =+AC26 -> 0.04559083841 | AD32: =+AD26 -> 0.04229163841 | AE32: 0.04068410508 | AF32: 0.03916726667 | AG32: 0.03801223333 | AH32: 0.03723723333 | AI32: 0.03637723333 | AJ32: 0.0368247 | AK32: 0.037533 | AL32: 0.037533
E33: Parameters
F34: Risk Free Rate (Real) | K34: =Determination_Lookup!W8 -> 0.0267 | M34: =Determination_Lookup!X8 -> 0.022185 | O34: =Determination_Lookup!Y8 -> 0.005959
F35: Debt Premium | K35: =Determination_Lookup!W9 -> 0.0116 | M35: =Determination_Lookup!X9 -> 0.0225 | O35: =Determination_Lookup!Y9 -> 0.0399
F36: Equity Premium | K36: =Determination_Lookup!W10 -> 0.06 | M36: =Determination_Lookup!X10 -> 0.06 | O36: =Determination_Lookup!Y10 -> 0.06 | Z36: Regulatory Rate of Return (RRR) - Real
F37: Equity Beta | K37: =Determination_Lookup!W11 -> 0.75 | M37: =Determination_Lookup!X11 -> 0.65 | O37: =Determination_Lookup!Y11 -> 0.65
F38: Gearing (Debt/Assets) | K38: =Determination_Lookup!W12 -> 0.6 | M38: =Determination_Lookup!X12 -> 0.6 | O38: =Determination_Lookup!Y12 -> 0.6 | Z38: Cost of Debt | AC38: =(1+AC32)/(1+AC44)-1 -> 0.01513673632 | AD38: =(1+AD32)/(1+AD44)-1 -> 0.01193362953 | AE38: 0.01037291755 | AF38: 0.0089002589 | AG38: 0.007778867314 | AH38: 0.007026440129 | AI38: 0.006191488673 | AJ38: 0.00662592233 | AK38: 0.007313592233 | AL38: 0.007313592233
F39: Forecast Inflation | K39: =Determination_Lookup!W13 -> 0.0255 | M39: =Determination_Lookup!X13 -> 0.025 | O39: =Determination_Lookup!Y13 -> 0.0275
F40: Franking credit value | K40: =Determination_Lookup!W14 -> 0.5 | M40: =Determination_Lookup!X14 -> 0.5 | O40: =Determination_Lookup!Y14 -> 0.5 | Z40: Return on Equity | AC40: =IF(AE64<>0,(AE64/100),IF(AE62<>0,(AE62/100),(AE60/100))) -> 0.041 | AD40: =+$AC$40 -> 0.041 | AE40: 0.041 | AF40: 0.041 | AG40: 0.041 | AH40: 0.041 | AI40: 0.041 | AJ40: 0.041 | AK40: 0.041 | AL40: 0.041
E42: 'Vanilla' After Tax WACC (Real) | K42: =ROUND(((K34+K36*K37)*(1-K38))+((K34+K35)*K38),3) -> 0.052 | M42: =ROUND(((M34+M36*M37)*(1-M38))+((M34+M35)*M38),3) -> 0.051 | O42: =ROUND(((O34+O36*O37)*(1-O38))+((O34+O35)*O38),3) -> 0.045 | Z42: RRR (real) | AC42: =ROUND((AC40*(1-AC43)+AC38*AC43),4) -> 0.0255 | AD42: 0.0236 | AE42: 0.0226 | AF42: 0.0217 | AG42: 0.0211 | AH42: 0.0206 | AI42: 0.0201 | AJ42: 0.0204 | AK42: 0.0208 | AL42: 0.0208
Z43: Gearing | AC43: 0.6 | AD43: =+AC43 -> 0.6 | AE43: 0.6 | AF43: 0.6 | AG43: 0.6 | AH43: 0.6 | AI43: 0.6 | AJ43: 0.6 | AK43: 0.6 | AL43: 0.6
Z44: Forecast Inflation | AC44: 0.03 | AD44: =+AC44 -> 0.03 | AE44: 0.03 | AF44: 0.03 | AG44: 0.03 | AH44: 0.03 | AI44: 0.03 | AJ44: 0.03 | AK44: 0.03 | AL44: 0.03
L45: Regulatory Rate of Return (RRR) [retained for historical purposes only]
E46: Form of price control selected
O47: 4th period
E48: Price caps | I48: 1 | L48: Cost of Debt | O48: =Determination_Lookup!W25 -> 0.03619164857 | Z48: PREMO Assessment Matrix (linked to Regulatory Rate of Return calculation above)
L49: Return on Equity | O49: =Determination_Lookup!W26 -> 0.049 | U49: PREMO Graded Scoring System (for reference only)
E50: Revenue cap / Hybrid Tariff Basket | L50: Gearing | O50: =Determination_Lookup!W27 -> 0.6
L51: Forecast Inflation | O51: =Determination_Lookup!W28 -> 0.023 | AB51: Water business self-assessment
L52: RRR (real) | O52: =Determination_Lookup!W29 -> 0.0413
AB53: Leading | AC53: Advanced | AD53: Standard | AE53: Basic
Z54: ESC assessment of submission | AA54: Leading | AB54: 4.9
U55: Risk | AA55: Advanced | AB55: 4.3 | AC55: 4.5
U56: Engagement | V56: [Select] | AA56: Standard | AB56: 3.7 | AC56: 3.9 | AD56: 4.1
U57: Management | V57: [Select] | AA57: Basic | AD57: 3.5 | AE57: 3.7
U58: Outcomes | V58: [Select]
U60: Total Score | Z60: Water business self-assessment (Maximum allowable ROE) | AD60: Advanced | AE60: =+VLOOKUP(AD60,$AD$71:$AE$75,2,FALSE) -> 4.5
Z62: ROE Override (Must be less than Maximum allowable ROE) | AD62: 4.1 | AE62: =+IF(AD62<=AE60,AD62,"CHECK") -> 4.1
U64: Rating | Z64: ESC assessment of submission | AD64: [Select] | AE64: =IFERROR(IF(AD64=AD60,AE60,VLOOKUP(AD60&AD64,AD78:AE82,2,FALSE)),0) -> 0
AD66: Difference | AE66: =IFERROR(IF(AE64=0,"",AE64-AE60),"") -> 
U70: ESC USE ONLY | AD70: Business self assessment
AD71: [Select]
AD72: Leading | AE72: =+AB54 -> 4.9
AD73: Advanced | AE73: =+AC55 -> 4.5
AD74: Standard | AE74: =+AD56 -> 4.1
AD75: Basic | AE75: =+AE57 -> 3.7
AD77: downgrading
AD78: =AD53&AA57 -> StandardBasic | AE78: =+AD57 -> 3.5
AD79: =+AC53&AA56 -> AdvancedStandard | AE79: =+AC56 -> 3.9
AD80: =+AB53&AA55 -> LeadingAdvanced | AE80: =+AB55 -> 4.3
AD81: =+AB53&AA56 -> LeadingStandard | AE81: =+AB56 -> 3.7
AD82: =+AD60&"Basic" -> AdvancedBasic | AE82: CHECK

Sheet Expenditure_Detail
A1: 80 | B1: Expenditure - Detail
B2: =Model_Name -> South East Water
B3: Go to Table of Contents
L4: FIRST REG PERIOD | P4: SECOND REG PERIOD | U4: THIRD REG PERIOD | Z4: FOURTH REG PERIOD | AE4: FIFTH REG PERIOD | AJ4: SIXTH REG PERIOD
K5: 2006 | L5: 2007 | M5: 2008 | N5: 2009 | O5: 2010 | P5: 2011 | Q5: 2012 | R5: 2013 | S5: 2014 | T5: 2015 | U5: 2016 | V5: 2017 | W5: 2018 | X5: 2019 | Y5: 2020 | Z5: 2021 | AA5: 2022 | AB5: 2023 | AC5: 2024 | AD5: 2025 | AE5: 2026 | AF5: 2027 | AG5: 2028 | AH5: 2029 | AI5: 2030 | AJ5: 2031 | AK5: 2032 | AL5: 2033
B6: $m, 01/01/23 | K6: =+CONCATENATE(K5-1,"-",RIGHT(K5,2)) -> 2005-06 | L6: =+CONCATENATE(L5-1,"-",RIGHT(L5,2)) -> 2006-07 | M6: 2007-08 | N6: 2008-09 | O6: 2009-10 | P6: 2010-11 | Q6: 2011-12 | R6: 2012-13 | S6: 2013-14 | T6: 2014-15 | U6: 2015-16 | V6: 2016-17 | W6: 2017-18 | X6: 2018-19 | Y6: 2019-20 | Z6: 2020-21 | AA6: 2021-22 | AB6: 2022-23 | AC6: 2023-24 | AD6: 2024-25 | AE6: 2025-26 | AF6: 2026-27 | AG6: 2027-28 | AH6: =+CONCATENATE(AH5-1,"-",RIGHT(AH5,2)) -> 2028-29 | AI6: =+CONCATENATE(AI5-1,"-",RIGHT(AI5,2)) -> 2029-30 | AJ6: =+CONCATENATE(AJ5-1,"-",RIGHT(AJ5,2)) -> 2030-31 | AK6: =+CONCATENATE(AK5-1,"-",RIGHT(AK5,2)) -> 2031-32 | AL6: =+CONCATENATE(AL5-1,"-",RIGHT(AL5,2)) -> 2032-33
B8: This worksheet outlines the key cost drivers of operating expenditure - capitalised costs are excluded. This tab does not link to the Rev&RAV_FO worksheet
C11: Expenditure Summary
D13: Total Labour costs | W13: =W34 -> 55.98436214 | X13: 51.63189137 | Y13: 55.52442156 | Z13: 52.20318965 | AA13: 54.40608024 | AB13: 54.40608024 | AC13: 55.50622303 | AD13: 55.07184791 | AE13: 54.91737628 | AF13: 54.7065 | AG13: 54.31110697 | AH13: =AH34 -> 54.31110697 | AI13: =AI34 -> 54.31110697 | AJ13: =AJ34 -> 54.31110697 | AK13: =AK34 -> 54.31110697 | AL13: =AL34 -> 54.31110697
D14: Total Energy costs | W14: =W92 -> 3.96071545 | X14: 5.73686517 | Y14: 6.00691587 | Z14: 5.3389711 | AA14: 4.27144724 | AB14: 5.079068476 | AC14: 5.542005934 | AD14: 5.968276643 | AE14: 6.397228406 | AF14: =AF92 -> 6.820744022 | AG14: 6.729679787 | AH14: =AH92 -> 6.708749367 | AI14: =AI92 -> 6.844621523 | AJ14: =AJ92 -> 6.700099526 | AK14: =AK92 -> 6.479721487 | AL14: =AL92 -> 6.309523427
D15: Total IT costs | W15: =W103 -> 5.9339489 | X15: 3.769773718 | Y15: 2.681213949 | Z15: 9.503521741 | AA15: 8.750290165 | AB15: 8.3265473 | AC15: 11.38029017 | AD15: 12.43029017 | AE15: 13.27029017 | AF15: 13.27029017 | AG15: 13.37029017 | AH15: =AH103 -> 13.37029017 | AI15: =AI103 -> 13.37029017 | AJ15: =AJ103 -> 13.37029017 | AK15: =AK103 -> 13.37029017 | AL15: =AL103 -> 13.37029017
D16: Total Chemical costs | W16: =W114 -> 1.206123051 | X16: 1.040210637 | Y16: 0.477791411 | Z16: 1.196333951 | AA16: 1.14610804 | AB16: 1.460737913 | AC16: 1.492264631 | AD16: 1.540605598 | AE16: 1.606811705 | AF16: 1.747631043 | AG16: 1.779157761 | AH16: =AH114 -> 1.779157761 | AI16: =AI114 -> 1.779157761 | AJ16: =AJ114 -> 1.779157761 | AK16: =AK114 -> 1.779157761 | AL16: =AL114 -> 1.779157761
C21: Labour assumptions
D23: Current FTEs (at 30 June) | W23: 463.2469623 | X23: 447.7224128 | Y23: 469.8076089 | Z23: 470.4936842 | AA23: 475.7
D24: Actual and forecast labour costs for current FTEs ($m) | W24: 55.98436214 | X24: 51.63189137 | Y24: 55.52442156 | Z24: 52.20318965 | AA24: 54.40608024 | AB24: 54.40608024 | AC24: 55.50622303 | AD24: 55.07184791 | AE24: 54.91737628 | AF24: 54.7065 | AG24: 54.31110697 | AH24: 54.31110697 | AI24: 54.31110697 | AJ24: 54.31110697 | AK24: 54.31110697 | AL24: 54.31110697
D25: Cost per FTE ($000) | W25: =+W24/W23*10^3 -> 120.8520869 | X25: =+X24/X23*10^3 -> 115.3212122 | Y25: =+Y24/Y23*10^3 -> 118.1854455 | Z25: =+Z24/Z23*10^3 -> 110.954071 | AA25: =+AA24/AA23*10^3 -> 114.3705702 | AB25: =+AB24/$AA$23*10^3 -> 114.3705702 | AC25: 116.6832521 | AD25: 115.7701238 | AE25: 115.4453989 | AF25: 115.0021022 | AG25: 114.1709207 | AH25: 114.1709207 | AI25: 114.1709207 | AJ25: 114.1709207 | AK25: 114.1709207 | AL25: 114.1709207
D26: Annual growth in labour costs for current FTEs | X26: =+X25/W25-1 -> -0.04576565333 | Y26: 0.02483700318 | Z26: -0.06118667529 | AA26: 0.03079201265 | AB26: 0 | AC26: 0.02022095298 | AD26: -0.007825701224 | AE26: -0.002804910963 | AF26: -0.003839882643 | AG26: -0.007227532834 | AH26: =+AH25/AG25-1 -> 0 | AI26: =+AI25/AH25-1 -> 0 | AJ26: =+AJ25/AI25-1 -> 0 | AK26: =+AK25/AJ25-1 -> 0 | AL26: =+AL25/AK25-1 -> 0
D28: Change in FTEs in future periods (net no. annual change) | AB28: 0 | AC28: 5.2 | AD28: 2.1 | AE28: 0.5 | AF28: -1.1 | AG28: -4.1 | AH28: -4.1 | AI28: -4.1 | AJ28: -4.1 | AK28: -4.1 | AL28: -4.1
D29: Increase or decrease in labour costs ($m) | AB29: 0
D33: Total FTEs | W33: =+W23 -> 463.2469623 | X33: 447.7224128 | Y33: 469.8076089 | Z33: 470.4936842 | AA33: 475.7 | AB33: =+$AA$23+SUM($AB28:AB28) -> 475.7 | AC33: =+$AA$23+SUM($AB28:AC28) -> 480.9 | AD33: =+$AA$23+SUM($AB28:AD28) -> 483 | AE33: =+$AA$23+SUM($AB28:AE28) -> 483.5 | AF33: =+$AA$23+SUM($AB28:AF28) -> 482.4 | AG33: =+$AA$23+SUM($AB28:AG28) -> 478.3 | AH33: =+$AA$23+SUM($AB28:AH28) -> 474.2 | AI33: =+$AA$23+SUM($AB28:AI28) -> 470.1 | AJ33: =+$AA$23+SUM($AB28:AJ28) -> 466 | AK33: =+$AA$23+SUM($AB28:AK28) -> 461.9 | AL33: =+$AA$23+SUM($AB28:AL28) -> 457.8
D34: Total labour costs ($m) | W34: 55.98436214 | X34: 51.63189137 | Y34: 55.52442156 | Z34: 52.20318965 | AA34: 54.40608024 | AB34: =+AB29+AB24 -> 54.40608024 | AC34: 55.50622303 | AD34: 55.07184791 | AE34: 54.91737628 | AF34: 54.7065 | AG34: 54.31110697 | AH34: 54.31110697 | AI34: 54.31110697 | AJ34: 54.31110697 | AK34: 54.31110697 | AL34: 54.31110697
D35: Cost per FTE | W35: =+W34/W33 -> 0.1208520869 | X35: 0.1153212122 | Y35: 0.1181854455 | Z35: 0.110954071 | AA35: 0.1143705702 | AB35: 0.1143705702 | AC35: 0.1154215492 | AD35: 0.114020389 | AE35: 0.1135829913 | AF35: 0.1134048507 | AG35: 0.1135502968 | AH35: =+AH34/AH33 -> 0.1145320687 | AI35: =+AI34/AI33 -> 0.1155309657 | AJ35: =+AJ34/AJ33 -> 0.1165474399 | AK35: =+AK34/AK33 -> 0.1175819592 | AL35: =+AL34/AL33 -> 0.1186350087
D36: Annual growth in total labour costs | X36: =+X34/W34-1 -> -0.07774440227 | Y36: 0.07539003673 | Z36: -0.0598156957 | AA36: 0.04219839049 | AB36: 0 | AC36: 0.02022095298 | AD36: -0.007825701224 | AE36: -0.002804910963 | AF36: -0.003839882643 | AG36: -0.007227532834 | AH36: =+AH34/AG34-1 -> 0 | AI36: 0 | AJ36: 0 | AK36: 0 | AL36: 0
D37: Annual growth in total labour costs per FTE | X37: =+X35/W35-1 -> -0.04576565333 | Y37: 0.02483700318 | Z37: -0.06118667529 | AA37: 0.03079201265 | AB37: 0 | AC37: 0.009189243773 | AD37: -0.01213950252 | AE37: -0.003836136495 | AF37: -0.001568373255 | AG37: 0.001282538492 | AH37: 0.008646140869 | AI37: 0.008721548607 | AJ37: 0.008798283262 | AK37: 0.008876380169 | AL37: 0.008955875928
C42: Energy assumptions
D44: Electricity - traditional sources
D46: BASE LOAD
D48: Large sites
D49: Total kWh | W49: 22167340 | X49: 22809374 | Y49: 23081075.87 | Z49: 22972492.27 | AA49: 20988691.02 | AB49: 21099282.81 | AC49: 22655105.65 | AD49: 23425863.41 | AE49: 23928088.6 | AF49: 23716718.42 | AG49: 24133934.16 | AH49: 24881118.74 | AI49: 24629646.74 | AJ49: 23702025.03 | AK49: 22774403.31 | AL49: 21846781.6
D50: Total electricity costs ($m) | W50: 2.91505066 | X50: 4.12277837 | Y50: 4.375849432 | Z50: 3.66529078 | AA50: 2.90079808 | AB50: 3.250444584 | AC50: 3.677728266 | AD50: 3.881300763 | AE50: 4.104408682 | AF50: 4.272502973 | AG50: 4.296103528 | AH50: 4.424800973 | AI50: 4.380107409 | AJ50: 4.213109349 | AK50: 4.046111289 | AL50: 3.87911323
D51: Average c/kWh | W51: =+W50/W49*100*10^6 -> 13.15020503 | X51: 18.07492994 | Y51: 18.95860252 | Z51: 15.95512902 | AA51: 13.82076699 | AB51: 15.40547427 | AC51: =+AC50/AC49*100*10^6 -> 16.2335516 | AD51: 16.56844273 | AE51: 17.15309881 | AF51: 18.01473078 | AG51: 17.80109078 | AH51: 17.78377018 | AI51: 17.78388239 | AJ51: 17.7753139 | AK51: 17.76604741 | AL51: 17.755994
D52: % increase p.a. | X52: =+X51/W51-1 -> 0.3744979562 | Y52: =+Y51/X51-1 -> 0.04888940588 | Z52: =+Z51/Y51-1 -> -0.1584227268 | AA52: =+AA51/Z51-1 -> -0.1337727838 | AB52: =+AB51/AA51-1 -> 0.1146613119 | AC52: =+AC51/AB51-1 -> 0.05375214835 | AD52: 0.02062956596 | AE52: 0.03528732886 | AF52: 0.05023185452 | AG52: -0.0118591837 | AH52: -0.0009730077989 | AI52: 6.30982717e-06 | AJ52: -0.0004818120662 | AK52: -0.0005213125093 | AL52: -0.0005658777182
D54: Medium sites
D55: Total kWh
D56: Total electricity costs ($m)
D57: Average c/kWh | W57: =+W56/W55*100*10^6 ->  | AC57: =+AC56/AC55*100*10^6 -> 
D58: % increase p.a. | X58: =+X57/W57-1 ->  | Y58: =+Y57/X57-1 ->  | Z58: =+Z57/Y57-1 ->  | AA58: =+AA57/Z57-1 ->  | AB58: =+AB57/AA57-1 ->  | AC58: =+AC57/AB57-1 -> 
D60: Small sites
D61: Total kWh | W61: 4874480.748 | X61: 6271304.224 | Y61: 6557563.509 | Z61: 6619627.096 | AA61: 6733107.526 | AB61: 6822605.279 | AC61: 7104752.107 | AD61: 7240878.324 | AE61: 7359964.719 | AF61: 7439871.945 | AG61: 7548060.888 | AH61: 7793404.745 | AI61: 7918160.334 | AJ61: 8091574.057 | AK61: 8264987.78 | AL61: 8438401.503
D62: Total electricity costs ($m) | W62: 1.042729046 | X62: 1.604302554 | Y62: 1.606918901 | Z62: 1.638517104 | AA62: 1.327853137 | AB62: 1.704914678 | AC62: 1.796751688 | AD62: 1.88739859 | AE62: 2.008911504 | AF62: 2.13789933 | AG62: 2.076045859 | AH62: 2.142918583 | AI62: 2.177222084 | AJ62: 2.224610197 | AK62: 2.221410197 | AL62: 2.218210197
D63: Average c/kWh | W63: =+W62/W61*100*10^6 -> 21.39159226 | X63: 25.58164133 | Y63: 24.50481644 | Z63: 24.75240796 | AA63: 19.72125252 | AB63: 24.98920292 | AC63: =+AC62/AC61*100*10^6 -> 25.2894353 | AD63: 26.06587911 | AE63: 27.2951241 | AF63: 28.73570063 | AG63: 27.50436025 | AH63: 27.49656476 | AI63: 27.49656476 | AJ63: 27.49292266 | AK63: 26.8773561 | AL63: 26.28709
D64: % increase p.a. | X64: =+X63/W63-1 -> 0.1958736417 | Y64: =+Y63/X63-1 -> -0.04209365937 | Z64: =+Z63/Y63-1 -> 0.01010379009 | AA64: =+AA63/Z63-1 -> -0.2032592324 | AB64: =+AB63/AA63-1 -> 0.2671204781 | AC64: =+AC63/AB63-1 -> 0.01201448428 | AD64: 0.03070229889 | AE64: 0.04715916131 | AF64: 0.05277779737 | AG64: -0.04285054312 | AH64: -0.0002834273685 | AI64: 0 | AJ64: -0.0001324568215 | AK64: -0.02239000067 | AL64: -0.02196146459
D67: NEW PROJECTS
D69: Large sites
D70: Total kWh | W70: 0 | X70: 0 | Y70: 2275.134831 | Z70: 24412.72916 | AA70: 59682.98337 | AB70: 88473.26582 | AC70: 0 | AD70: 0 | AE70: 0 | AF70: 679474.4247 | AG70: 679474.4247 | AH70: 433071 | AI70: 1175478 | AJ70: 1175478 | AK70: 1175478 | AL70: 1175478
D71: Total electricity costs ($m) | W71: 0 | X71: 0 | Y71: 0.006809488238 | Z71: 0.01119122 | AA71: 0.0160462 | AB71: 0.02739516941 | AC71: 0 | AD71: 0 | AE71: 0 | AF71: 0.11664 | AG71: 0.11664 | AH71: 0.077 | AI71: 0.209 | AJ71: 0.209 | AK71: 0.209 | AL71: 0.209
D72: Average c/kWh | W72: =+W71/W70*100*10^6 ->  | Y72: 299.3004258 | Z72: 45.84174071 | AA72: 26.88572034 | AB72: 30.96434743 | AC72: =+AC71/AC70*100*10^6 ->  | AF72: 17.16620902 | AG72: 17.16620902 | AH72: 17.7799945 | AI72: 17.78000099 | AJ72: 17.78000099 | AK72: 17.78000099 | AL72: 17.78000099
D73: % increase p.a. | X73: =+X72/W72-1 ->  | Y73: =+Y72/X72-1 ->  | Z73: =+Z72/Y72-1 -> -0.8468370348 | AA73: =+AA72/Z72-1 -> -0.4135100473 | AB73: =+AB72/AA72-1 -> 0.1517023549 | AC73: =+AC72/AB72-1 ->  | AG73: 0 | AH73: 0.03575544735 | AI73: 3.645933218e-07 | AJ73: 0 | AK73: 0 | AL73: 0
D75: Medium sites
D76: Total kWh
D77: Total electricity costs ($m)
D78: Average c/kWh | W78: =+W77/W76*100*10^6 ->  | AC78: =+AC77/AC76*100*10^6 -> 
D79: % increase p.a. | X79: =+X78/W78-1 ->  | Y79: =+Y78/X78-1 ->  | Z79: =+Z78/Y78-1 ->  | AA79: =+AA78/Z78-1 ->  | AB79: =+AB78/AA78-1 ->  | AC79: =+AC78/AB78-1 -> 
D81: Small sites
D82: Total kWh | W82: 9637.252367 | X82: 30551.77599 | Y82: 57107.49109 | Z82: 90680.90411 | AA82: 108344.4738 | AB82: 193722.0968 | AC82: 42815.87615 | AD82: 42815.87615 | AE82: 58779.23482 | AF82: 102372.908 | AG82: 118336.2667 | AH82: 0 | AI82: 0 | AJ82: 11636 | AK82: 11636 | AL82: 11636
D83: Total electricity costs ($m) | W83: 0.002935743835 | X83: 0.009784246431 | Y83: 0.01733804935 | Z83: 0.02397199584 | AA83: 0.02674982254 | AB83: 0.04943644512 | AC83: 0.01156 | AD83: 0.01156 | AE83: 0.01587 | AF83: 0.02764 | AG83: 0.03195 | AH83: 0 | AI83: 0 | AJ83: 0.0032 | AK83: 0.0032 | AL83: 0.0032
D84: Average c/kWh | W84: =+W83/W82*100*10^6 -> 30.46245676 | X84: =+X83/X82*100*10^6 -> 32.02513148 | Y84: 30.36037658 | Z84: 26.43555011 | AA84: 24.68960493 | AB84: 25.51925977 | AC84: 26.99933071 | AD84: 26.99933071 | AE84: 26.99933071 | AF84: 26.99933071 | AG84: 26.99933071 | AH84: =+AH83/AH82*100*10^6 ->  | AI84: =+AI83/AI82*100*10^6 ->  | AJ84: =+AJ83/AJ82*100*10^6 -> 27.5008594 | AK84: =+AK83/AK82*100*10^6 -> 27.5008594 | AL84: =+AL83/AL82*100*10^6 -> 27.5008594
D85: % increase p.a. | X85: =+X84/W84-1 -> 0.05129838145 | Y85: =+Y84/X84-1 -> -0.05198276571 | Z85: =+Z84/Y84-1 -> -0.1292746307 | AA85: =+AA84/Z84-1 -> -0.06604535067 | AB85: =+AB84/AA84-1 -> 0.03360340708 | AC85: =+AC84/AB84-1 -> 0.0579981924 | AD85: 0 | AE85: 0 | AF85: 0 | AG85: 0 | AK85: 0 | AL85: 0
D88: Greenhouse Gas Offsets | W88: 0 | X88: 0 | Y88: 0 | Z88: 0 | AA88: 0 | AB88: 0.0468776 | AC88: 0.05596598 | AD88: 0.18801729 | AE88: 0.26803822 | AF88: 0.26606172 | AG88: 0.2089404 | AH88: 0.06402981 | AI88: 0.07829203 | AJ88: 0.05017998 | AK88: 0 | AL88: 0
D89: % increase p.a. | X89: =X88/W88-1 ->  | AC89: 0.1938746864 | AD89: 2.359492499 | AE89: 0.4256041027 | AF89: -0.007373948387 | AG89: -0.2146919895 | AH89: =AH88/AG88-1 -> -0.6935498831 | AI89: =AI88/AH88-1 -> 0.2227434378 | AJ89: =AJ88/AI88-1 -> -0.3590665614 | AK89: =AK88/AJ88-1 -> -1 | AL89: =AL88/AK88-1 -> 
D92: TOTAL ENERGY COSTS | W92: =+SUM(W50,W56,W62,W71,W77,W83,W88) -> 3.96071545 | X92: 5.73686517 | Y92: 6.00691587 | Z92: 5.3389711 | AA92: 4.27144724 | AB92: 5.079068476 | AC92: 5.542005934 | AD92: 5.968276643 | AE92: 6.397228406 | AF92: 6.820744022 | AG92: =+SUM(AG50,AG56,AG62,AG71,AG77,AG83,AG88) -> 6.729679787 | AH92: 6.708749367 | AI92: 6.844621523 | AJ92: 6.700099526 | AK92: 6.479721487 | AL92: 6.309523427
D93: % increase p.a. | W93: =W92/V92-1 ->  | X93: 0.448441637 | Y93: 0.04707286854 | Z93: -0.1111959589 | AA93: -0.199949361 | AB93: 0.1890743795 | AC93: 0.09114613434 | AD93: 0.07691632132 | AE93: 0.07187196381 | AF93: 0.066202985 | AG93: -0.01335107061 | AH93: =AH92/AG92-1 -> -0.003110165932 | AI93: =AI92/AH92-1 -> 0.02025297852 | AJ93: =AJ92/AI92-1 -> -0.02111468056 | AK93: =AK92/AJ92-1 -> -0.03289175615 | AL93: =AL92/AK92-1 -> -0.02626626162
C98: IT cost assumptions
D100: Water related IT costs | W100: 2.96697445 | X100: 1.884886859 | Y100: 1.340606974 | Z100: 4.75176087 | AA100: 4.375145083 | AB100: 4.16327365 | AC100: 5.690145083 | AD100: 6.215145083 | AE100: 6.635145083 | AF100: 6.635145083 | AG100: 6.685145083 | AH100: 6.685145083 | AI100: 6.685145083 | AJ100: 6.685145083 | AK100: 6.685145083 | AL100: 6.685145083
D101: Sewerage and trade waste related IT costs | W101: 2.96697445 | X101: 1.884886859 | Y101: 1.340606974 | Z101: 4.75176087 | AA101: 4.375145083 | AB101: 4.16327365 | AC101: 5.690145083 | AD101: 6.215145083 | AE101: 6.635145083 | AF101: 6.635145083 | AG101: 6.685145083 | AH101: 6.685145083 | AI101: 6.685145083 | AJ101: 6.685145083 | AK101: 6.685145083 | AL101: 6.685145083
D102: Other IT costs
D103: Total IT costs | W103: =SUM(W100:W102) -> 5.9339489 | X103: 3.769773718 | Y103: 2.681213949 | Z103: 9.503521741 | AA103: 8.750290165 | AB103: 8.3265473 | AC103: =SUM(AC100:AC102) -> 11.38029017 | AD103: 12.43029017 | AE103: 13.27029017 | AF103: 13.27029017 | AG103: 13.37029017 | AH103: 13.37029017 | AI103: 13.37029017 | AJ103: 13.37029017 | AK103: 13.37029017 | AL103: 13.37029017
D104: % increase p.a. | X104: =X103/W103-1 -> -0.3647107884 | Y104: -0.2887599764 | Z104: 2.544484671 | AA104: -0.07925815252 | AB104: -0.04842615012 | AC104: 0.3667477953 | AD104: 0.09226478277 | AE104: 0.06757686175 | AF104: 0 | AG104: 0.00753563025 | AH104: =AH103/AG103-1 -> 0 | AI104: =AI103/AH103-1 -> 0 | AJ104: =AJ103/AI103-1 -> 0 | AK104: =AK103/AJ103-1 -> 0 | AL104: =AL103/AK103-1 -> 0
C109: Chemical cost assumptions
D111: Water related chemical costs | W111: 0.615122756 | X111: 0.5305074247 | Y111: 0.2436736196 | Z111: 0.6101303151 | AA111: 0.5845151004 | AB111: 0.2059745547 | AC111: 0.2375012723 | AD111: 0.2858422392 | AE111: 0.3173689567 | AF111: 0.3488956743 | AG111: 0.3804223919 | AH111: 0.3804223919 | AI111: 0.3804223919 | AJ111: 0.3804223919 | AK111: 0.3804223919 | AL111: 0.3804223919
D112: Sewerage and trade waste related chemical costs | W112: 0.5910002949 | X112: 0.509703212 | Y112: 0.2341177914 | Z112: 0.5862036361 | AA112: 0.5615929396 | AB112: 1.254763359 | AC112: 1.254763359 | AD112: 1.254763359 | AE112: 1.289442748 | AF112: 1.398735369 | AG112: 1.398735369 | AH112: 1.398735369 | AI112: 1.398735369 | AJ112: 1.398735369 | AK112: 1.398735369 | AL112: 1.398735369
D113: Other chemical costs
D114: Total chemical costs | W114: =SUM(W111:W113) -> 1.206123051 | X114: 1.040210637 | Y114: 0.477791411 | Z114: 1.196333951 | AA114: 1.14610804 | AB114: 1.460737913 | AC114: =SUM(AC111:AC113) -> 1.492264631 | AD114: 1.540605598 | AE114: 1.606811705 | AF114: 1.747631043 | AG114: 1.779157761 | AH114: 1.779157761 | AI114: 1.779157761 | AJ114: 1.779157761 | AK114: 1.779157761 | AL114: 1.779157761
D115: % increase p.a. | X115: =X114/W114-1 -> -0.1375584474 | Y115: -0.5406782105 | Z115: 1.503883334 | AA115: -0.04198318629 | AB115: 0.2745202568 | AC115: 0.02158273381 | AD115: 0.0323943662 | AE115: 0.04297407913 | AF115: 0.08763897973 | AG115: 0.01803968731 | AH115: =AH114/AG114-1 -> 0 | AI115: =AI114/AH114-1 -> 0 | AJ115: =AJ114/AI114-1 -> 0 | AK115: =AK114/AJ114-1 -> 0 | AL115: =AL114/AK114-1 -> 0

Sheet Opex_FO
A1: 80 | B1: Operating Expenditure - Forecast
B2: =Model_Name -> South East Water
B3: Go to Table of Contents
L4: FIRST REG PERIOD | P4: SECOND REG PERIOD | U4: THIRD REG PERIOD | Z4: FOURTH REG PERIOD | AE4: FIFTH REG PERIOD | AJ4: SIXTH REG PERIOD
K5: 2006 | L5: 2007 | M5: 2008 | N5: 2009 | O5: 2010 | P5: 2011 | Q5: 2012 | R5: 2013 | S5: 2014 | T5: 2015 | U5: 2016 | V5: 2017 | W5: 2018 | X5: 2019 | Y5: 2020 | Z5: 2021 | AA5: 2022 | AB5: 2023 | AC5: 2024 | AD5: 2025 | AE5: 2026 | AF5: 2027 | AG5: 2028 | AH5: 2029 | AI5: 2030 | AJ5: 2031 | AK5: 2032 | AL5: 2033
B6: =Expenditure_Detail!$B$6 -> $m, 01/01/23 | K6: =+CONCATENATE(K5-1,"-",RIGHT(K5,2)) -> 2005-06 | L6: =+CONCATENATE(L5-1,"-",RIGHT(L5,2)) -> 2006-07 | M6: 2007-08 | N6: 2008-09 | O6: 2009-10 | P6: 2010-11 | Q6: 2011-12 | R6: 2012-13 | S6: 2013-14 | T6: 2014-15 | U6: 2015-16 | V6: 2016-17 | W6: 2017-18 | X6: 2018-19 | Y6: 2019-20 | Z6: 2020-21 | AA6: 2021-22 | AB6: 2022-23 | AC6: 2023-24 | AD6: 2024-25 | AE6: 2025-26 | AF6: 2026-27 | AG6: 2027-28 | AH6: =+CONCATENATE(AH5-1,"-",RIGHT(AH5,2)) -> 2028-29 | AI6: =+CONCATENATE(AI5-1,"-",RIGHT(AI5,2)) -> 2029-30 | AJ6: =+CONCATENATE(AJ5-1,"-",RIGHT(AJ5,2)) -> 2030-31 | AK6: =+CONCATENATE(AK5-1,"-",RIGHT(AK5,2)) -> 2031-32 | AL6: =+CONCATENATE(AL5-1,"-",RIGHT(AL5,2)) -> 2032-33
C9: Parameters | G9: 4th period | I9: 5th period
D11: Cost efficiency improvement rate (% per annum) | G11: =Determination_Lookup!X33 -> 0.02295392811 | I11: =IFERROR(AVERAGE(AC11:AG11),"-") -> 0.02 | AC11: 0.02 | AD11: 0.02 | AE11: 0.02 | AF11: 0.02 | AG11: 0.02 | AH11: 0.02 | AI11: 0.02 | AJ11: 0.02 | AK11: 0.02 | AL11: 0.02
D13: Opex growth forecast (% per annum) | G13: =Determination_Lookup!X34 -> 0.02295392811 | I13: =IFERROR(AVERAGE(AC13:AG13),"-") -> 0.0113 | Y13: =IF(Y15="","",Y15/X15-1) -> 0.01867308983 | Z13: =IF(Z15="","",Z15/Y15-1) -> 0.01332414775 | AA13: =IF(AA15="","",AA15/Z15-1) -> 0.0132796916 | AB13: 0.02295392811 | AC13: 0.006 | AD13: 0.0088 | AE13: 0.0097 | AF13: 0.0161 | AG13: 0.0159 | AH13: 0.0159 | AI13: 0.0159 | AJ13: 0.0159 | AK13: 0.0159 | AL13: 0.0159
F14: Net baseline opex growth | G14: =IFERROR(G13-G11,"-") -> 0 | I14: =IFERROR(I13-I11,"-") -> -0.0087
D15: Water customers (No.) - Residential & Non-Residential - [BED 1] | W15: =+Determination_Lookup!M20 -> 762245 | X15: =+Determination_Lookup!N20 -> 778018 | Y15: =+Determination_Lookup!O20 -> 792546 | Z15: 803106 | AA15: 813771 | AB15: 823132.1692 | AC15: 832491.3273 | AD15: 841848.5063 | AE15: 851203.7373 | AF15: 864887.2469 | AG15: 878566.7367 | AH15: 892242.2955 | AI15: 905914.0087 | AJ15: 919581.9587 | AK15: 932855.1401 | AL15: 946124.9162
D16: Water customer change (% per annum) | X16: =X15/W15-1 -> 0.02069282186 | Y16: 0.01867308983 | Z16: 0.01332414775 | AA16: 0.0132796916 | AB16: 0.01150344414 | AC16: 0.01137017651 | AD16: 0.0112399717 | AE16: 0.01111272517 | AF16: 0.01607548108 | AG16: 0.01581650074 | AH16: 0.01556575978 | AI16: 0.01532287059 | AJ16: 0.01508746952 | AK16: 0.0144339298 | AL16: 0.01422490534
D17: Sewer customers (No.) - Residential & Non-Residential - [BED 2] | W17: =+Determination_Lookup!M21 -> 734766 | X17: =+Determination_Lookup!N21 -> 751488 | Y17: =+Determination_Lookup!O21 -> 766516 | Z17: 777355 | AA17: 788747 | AB17: 798108.1692 | AC17: 807467.3273 | AD17: 816824.5063 | AE17: 826179.7373 | AF17: 839863.2469 | AG17: 853542.7367 | AH17: 867218.2955 | AI17: 880890.0087 | AJ17: 894557.9587 | AK17: 907831.1401 | AL17: 921100.9162
D18: Sewer customer change (% per annum) | X18: =X17/W17-1 -> 0.0227582659 | Y18: 0.01999765798 | Z18: 0.01414060502 | AA18: 0.01465482309 | AB18: 0.01186840551 | AC18: 0.01172667868 | AD18: 0.0115883066 | AE18: 0.01145317142 | AF18: 0.01656238825 | AG18: 0.01628775855 | AH18: 0.0160221137 | AI18: 0.01576501937 | AJ18: 0.01551606881 | AK18: 0.01483769868 | AL18: 0.01461700913
D19: Total metered volume of water delivered to customers (ML) - [BED 10] | W19: =+Determination_Lookup!M22 -> 140358 | X19: =+Determination_Lookup!N22 -> 140418 | Y19: =+Determination_Lookup!O22 -> 136326.7 | Z19: 137670 | AA19: 141652 | AB19: 142207.3634 | AC19: 144023.5485 | AD19: 145353.4731 | AE19: 146615.2902 | AF19: 148041.8583 | AG19: 149434.6848 | AH19: 150372.4345 | AI19: 151638.1545 | AJ19: 153294.4245 | AK19: 154892.1179 | AL19: 156486.3602
D20: Residential, Non-Residential & Recycled (Residential & Non-Residential)
D21: Total metered volume change (% per annum) | X21: =X19/W19-1 -> 0.0004274783055 | Y21: -0.02913657793 | Z21: 0.009853535661 | AA21: 0.02892423912 | AB21: 0.0039206181 | AC21: 0.01277138609 | AD21: 0.009234077184 | AE21: 0.00868102453 | AF21: 0.009730009375 | AG21: 0.009408328967 | AH21: 0.006275314449 | AI21: 0.008417234212 | AJ21: 0.01092251527 | AK21: 0.0104223844 | AL21: 0.01029259759
C24: Baseline Forecast
D26: Baseline year - total prescribed operating expenditure in 2021-22: | AA26: =+Opex_Breakdown!AA37 -> 728.8043146
D28: Less non-controllable expenditure items incurred in 2021-22:
E29: External bulk water charges (excl. temporary purchases) | AA29: =+Opex_Breakdown!AA29 -> 535.0016611
E30: External temporary water purchases | AA30: =+Opex_Breakdown!AA30 -> 0 | AC30: Comparison with approved 2021-22 total controllable opex
E31: Licence fees | AA31: =+Opex_Breakdown!AA31 -> 1.235847328 | AC31: per 2018 determination model
E32: Environment Contribution | AA32: =+Opex_Breakdown!AA32 -> 45.67254559
E33: Other non-controllable | AA33: =+Opex_Breakdown!AA33 -> 0
AA34: =SUM(AA29:AA33) -> 581.9100541 | AD34: 2021-22 | AE34: Difference | AF34: %
D36: Baseline year - total controllable operating expenditure in 2021-22: | AA36: =+AA26-AA34 -> 146.8942606 | AD36: =Determination_Lookup!Q18 -> 140.586194 | AE36: =+AA52-AD36 -> 3.826913853 | AF36: =+AE36/AD36 -> 0.02722112138
D38: Adjustments for non-recurring expenditure items incurred in 2021-22 and any efficiency savings to be realised from 2021-22: | AC38: ($, 2022-23)
D40: 1 | E40: Price Submission Costs | AA40: 1.261068702
D41: 2 | E41: Urban Water strategy | AA41: 0.3530992366
D42: 3 | E42: Job volumes - FY21/22 (water) | AA42: -1.069806616
D43: 4 | E43: Job volumes - FY21/22 (sewer) | AA43: 0.4455776081
D44: 5 | E44: Maintenance model transition costs | AA44: 1.49121374
D45: 6
D46: 7
D47: 8
D48: 9
D49: 10
AA50: =SUM(AA40:AA49) -> 2.481152672
D52: Adjusted baseline controllable operating expenditure (2021-22) | AA52: =+AA36-AA50 -> 144.4131079
D54: Adjusted baseline controllable operating expenditure (Forecast) | AB54: =+AA52*(1+$AB$13-$G$11) -> 144.4131079 | AC54: =+AB$54*(1+AC$13-AC$11) -> 142.3913244 | AD54: 140.7965415 | AE54: 139.3463372 | AF54: 138.8028865 | AG54: 138.2337946 | AH54: 137.6670361 | AI54: 137.1026012 | AJ54: 136.5404805 | AK54: 135.9806646 | AL54: 135.4231439
C58: Operating expenditure - reconciliation
D61: Adjusted baseline controllable operating expenditure (Forecast) | AC61: =+AC54 -> 142.3913244 | AD61: 140.7965415 | AE61: 139.3463372 | AF61: 138.8028865 | AG61: 138.2337946 | AH61: 137.6670361 | AI61: 137.1026012 | AJ61: 136.5404805 | AK61: 135.9806646 | AL61: 135.4231439
H62: Controllable
D63: Forecast variations to baseline operating expenditure (above or below baseline) | H63: only
D65: 1 | E65: Aquarevo water recycling plant operating costs | H65: Sewerage | AC65: 0.1324122137 | AD65: 0.2269923664 | AE65: 0.2269923664 | AF65: 0.2269923664 | AG65: 0.2269923664 | AH65: 0.2269923664 | AI65: 0.2269923664 | AJ65: 0.2269923664 | AK65: 0.2269923664 | AL65: 0.2269923664
D66: 2 | E66: Superannuation / Taxation | H66: Sewerage | AC66: 1.06 | AD66: 1.44 | AE66: 1.83 | AF66: 1.83 | AG66: 1.83 | AH66: 1.83 | AI66: 1.83 | AJ66: 1.83 | AK66: 1.83 | AL66: 1.83
D67: 3 | E67: Removal of GSL's | H67: Sewerage | AC67: -0.1465992366 | AD67: -0.1465992366 | AE67: -0.1465992366 | AF67: -0.1465992366 | AG67: -0.1465992366 | AH67: -0.1465992366 | AI67: -0.1465992366 | AJ67: -0.1465992366 | AK67: -0.1465992366 | AL67: -0.1465992366
D68: 4 | E68: Digital Metering | H68: Water | AC68: 3.1693019 | AD68: 2.671347115 | AE68: 2.06295388 | AF68: 1.482532312 | AG68: 0.5580033946 | AH68: -0.4529464158 | AI68: -1.718337426 | AJ68: -1.706464427 | AK68: -1.639779261 | AL68: -1.699727248
D69: 5 | E69: Revised maintenance model | H69: Water | AC69: 4.47 | AD69: 4.47 | AE69: 4.47 | AF69: 4.47 | AG69: 4.47 | AH69: 4.47 | AI69: 4.47 | AJ69: 4.47 | AK69: 4.47 | AL69: 4.47
D70: 6 | E70: New Assets | H70: Sewerage | AC70: 0.03 | AD70: 0.05 | AE70: 0.05 | AF70: 0.18 | AG70: 0.32 | AH70: 0.32 | AI70: 0.32 | AJ70: 0.32 | AK70: 0.32 | AL70: 0.32
D71: 7 | E71: Water Quality | H71: Water | AC71: 3.13 | AD71: 3.18 | AE71: 3.21 | AF71: 3.24 | AG71: 3.27 | AH71: 3.27 | AI71: 3.27 | AJ71: 3.27 | AK71: 3.27 | AL71: 3.27
D72: 8 | E72: Climate Adapt | H72: Sewerage | AC72: 0.59 | AD72: 0.29 | AE72: 0.29 | AF72: 0.29 | AG72: 0.29 | AH72: 0.29 | AI72: 0.29 | AJ72: 0.29 | AK72: 0.29 | AL72: 0.29
D73: 9 | E73: IWM - Dingley | H73: Recycled Water | AC73: 0 | AD73: 0 | AE73: 0.3152671756 | AF73: 0.3152671756 | AG73: 0.3152671756 | AH73: 0.3152671756 | AI73: 0.3152671756 | AJ73: 0.3152671756 | AK73: 0.3152671756 | AL73: 0.3152671756
D74: 10 | E74: GED | H74: Sewerage | AC74: 0.18 | AD74: 0.18 | AE74: 0.18 | AF74: 0.18 | AG74: 0.18 | AH74: 0.18 | AI74: 0.18 | AJ74: 0.18 | AK74: 0.18 | AL74: 0.18
D75: 11 | E75: Traditional Owner | H75: Sewerage | AC75: 0.43 | AD75: 0.43 | AE75: 0.495 | AF75: 0.495 | AG75: 0.495 | AH75: 0.495 | AI75: 0.495 | AJ75: 0.495 | AK75: 0.495 | AL75: 0.495
D76: 12 | E76: Water Recycling Plants | H76: Sewerage | AC76: 1.34 | AD76: 1.78 | AE76: 2.95 | AF76: 2.42 | AG76: 2.69 | AH76: 2.69 | AI76: 2.69 | AJ76: 2.69 | AK76: 2.69 | AL76: 2.69
D77: 13 | E77: Water Literacy | H77: Water | AC77: 0.3362849873 | AD77: 0.3362849873 | AE77: 0.3362849873 | AF77: 0.3362849873 | AG77: 0.3362849873 | AH77: 0.3362849873 | AI77: 0.3362849873 | AJ77: 0.3362849873 | AK77: 0.3362849873 | AL77: 0.3362849873
D78: 14 | E78: IT | H78: Water | AC78: 2.63 | AD78: 3.68 | AE78: 4.52 | AF78: 4.52 | AG78: 4.62 | AH78: 4.62 | AI78: 4.62 | AJ78: 4.62 | AK78: 4.62 | AL78: 4.62
D79: 15 | H79: [Service]
D81: Total changes required to baseline operating expenditure | AC81: =SUM(AC65:AC80) -> 17.35139986 | AD81: 18.58802523 | AE81: 20.78989917 | AF81: 19.8394776 | AG81: 19.45494869 | AH81: 18.44399888 | AI81: 17.17860787 | AJ81: 17.19048087 | AK81: 17.25716603 | AL81: 17.19721805
D84: Total controllable operating expenditure | AC84: =+AC81+AC61 -> 159.7427242 | AD84: 159.3845668 | AE84: 160.1362363 | AF84: 158.6423641 | AG84: 157.6887433 | AH84: 156.1110349 | AI84: 154.2812091 | AJ84: 153.7309614 | AK84: 153.2378306 | AL84: 152.6203619
D86: Non-controllable operating expenditure
D87: External bulk water charges (excl. temporary purchases) | AC87: =+Opex_Breakdown!AC29 -> 494.5602102 | AD87: =+Opex_Breakdown!AD29 -> 491.4017982 | AE87: =+Opex_Breakdown!AE29 -> 494.8841964 | AF87: =+Opex_Breakdown!AF29 -> 483.7382145 | AG87: =+Opex_Breakdown!AG29 -> 480.8689031 | AH87: =+Opex_Breakdown!AH29 -> 481.1531041 | AI87: =+Opex_Breakdown!AI29 -> 481.5512375 | AJ87: =+Opex_Breakdown!AJ29 -> 481.8220258 | AK87: =+Opex_Breakdown!AK29 -> 482.3943178 | AL87: =+Opex_Breakdown!AL29 -> 482.9653735
D88: External temporary water purchases | AC88: =+Opex_Breakdown!AC30 -> 0 | AD88: =+Opex_Breakdown!AD30 -> 0 | AE88: =+Opex_Breakdown!AE30 -> 0 | AF88: =+Opex_Breakdown!AF30 -> 0 | AG88: =+Opex_Breakdown!AG30 -> 0 | AH88: =+Opex_Breakdown!AH30 -> 0 | AI88: =+Opex_Breakdown!AI30 -> 0 | AJ88: =+Opex_Breakdown!AJ30 -> 0 | AK88: =+Opex_Breakdown!AK30 -> 0 | AL88: =+Opex_Breakdown!AL30 -> 0
D89: Licence fees | AC89: =+Opex_Breakdown!AC31 -> 0.769956077 | AD89: =+Opex_Breakdown!AD31 -> 0.7465256323 | AE89: =+Opex_Breakdown!AE31 -> 0.945160342 | AF89: =+Opex_Breakdown!AF31 -> 1.235847328 | AG89: =+Opex_Breakdown!AG31 -> 1.236898219 | AH89: =+Opex_Breakdown!AH31 -> 0.769956077 | AI89: =+Opex_Breakdown!AI31 -> 0.7465256323 | AJ89: =+Opex_Breakdown!AJ31 -> 0.945160342 | AK89: =+Opex_Breakdown!AK31 -> 1.235847328 | AL89: =+Opex_Breakdown!AL31 -> 1.236898219
D90: Environment Contribution | AC90: =+Opex_Breakdown!AC32 -> 42.19417476 | AD90: =+Opex_Breakdown!AD32 -> 40.96521821 | AE90: =+Opex_Breakdown!AE32 -> 39.77205652 | AF90: =+Opex_Breakdown!AF32 -> 38.6136471 | AG90: =+Opex_Breakdown!AG32 -> 37.48897777 | AH90: =+Opex_Breakdown!AH32 -> 36.3970658 | AI90: =+Opex_Breakdown!AI32 -> 35.33695708 | AJ90: =+Opex_Breakdown!AJ32 -> 34.30772532 | AK90: =+Opex_Breakdown!AK32 -> 33.30847119 | AL90: =+Opex_Breakdown!AL32 -> 32.33832154
D91: Other non-controllable | AC91: =+Opex_Breakdown!AC33 -> 0 | AD91: =+Opex_Breakdown!AD33 -> 0 | AE91: =+Opex_Breakdown!AE33 -> 0 | AF91: =+Opex_Breakdown!AF33 -> 0 | AG91: =+Opex_Breakdown!AG33 -> 0 | AH91: =+Opex_Breakdown!AH33 -> 0 | AI91: =+Opex_Breakdown!AI33 -> 0 | AJ91: =+Opex_Breakdown!AJ33 -> 0 | AK91: =+Opex_Breakdown!AK33 -> 0 | AL91: =+Opex_Breakdown!AL33 -> 0
D92: Total non-controllable operating expenditure | AC92: =SUM(AC87:AC91) -> 537.524341 | AD92: 533.1135421 | AE92: 535.6014132 | AF92: 523.587709 | AG92: 519.5947791 | AH92: =SUM(AH87:AH91) -> 518.320126 | AI92: =SUM(AI87:AI91) -> 517.6347202 | AJ92: =SUM(AJ87:AJ91) -> 517.0749115 | AK92: =SUM(AK87:AK91) -> 516.9386363 | AL92: =SUM(AL87:AL91) -> 516.5405933
D95: Total prescribed operating expenditure | AC95: =+AC92+AC84 -> 697.2670653 | AD95: 692.4981088 | AE95: 695.7376496 | AF95: 682.230073 | AG95: 677.2835224 | AH95: 674.4311609 | AI95: 671.9159293 | AJ95: 670.8058729 | AK95: 670.1764669 | AL95: 669.1609552
AB98: To reconcile to 'Opex_Breakdown' tab row 37 >> | AC98: =+Opex_Breakdown!AC37 -> 697.2670653 | AD98: =+Opex_Breakdown!AD37 -> 692.4981088 | AE98: =+Opex_Breakdown!AE37 -> 695.7376496 | AF98: =+Opex_Breakdown!AF37 -> 682.230073 | AG98: =+Opex_Breakdown!AG37 -> 677.2835224 | AH98: =+Opex_Breakdown!AH37 -> 674.4311609 | AI98: =+Opex_Breakdown!AI37 -> 671.9159293 | AJ98: =+Opex_Breakdown!AJ37 -> 670.8058729 | AK98: =+Opex_Breakdown!AK37 -> 670.1765555 | AL98: =+Opex_Breakdown!AL37 -> 669.1609552
AB99: Difference | AC99: =+AC98-AC95 -> 0 | AD99: 0 | AE99: 0 | AF99: 0 | AG99: 0 | AH99: 0 | AI99: 0 | AJ99: 0 | AK99: 8.856382544e-05 | AL99: 0
AB100: Test | AC100: =IF(ROUND(AC98,2)=ROUND(AC95,2),0,1) -> 0 | AD100: =IF(ROUND(AD98,2)=ROUND(AD95,2),0,1) -> 0 | AE100: 0 | AF100: 0 | AG100: 0 | AH100: 0 | AI100: 0 | AJ100: 0 | AK100: 0 | AL100: 0
AC139: =+AC$160 -> 2023-24 | AD139: 2024-25 | AE139: 2025-26 | AF139: 2026-27 | AG139: 2027-28 | AH139: 2028-29 | AI139: 2029-30 | AJ139: 2030-31 | AK139: 2031-32 | AL139: 2032-33
AB140: Total controllable opex | AC140: =+AC84 -> 159.7427242 | AD140: 159.3845668 | AE140: 160.1362363 | AF140: 158.6423641 | AG140: 157.6887433 | AH140: 156.1110349 | AI140: 154.2812091 | AJ140: 153.7309614 | AK140: 153.2378306 | AL140: 152.6203619
AB141: Change - $ | AD141: =+AD140-AC140 -> -0.3581574649 | AE141: 0.7516695627 | AF141: -1.493872283 | AG141: -0.9536207521 | AH141: -1.577708368 | AI141: -1.829825858 | AJ141: -0.5502476659 | AK141: -0.4931308042 | AL141: -0.6174687116
AB142: Change - % | AC142: =IFERROR(AC141/AB140,"") ->  | AD142: -0.002242089376 | AE142: 0.004716074949 | AF142: -0.009328758543 | AG142: -0.006011135536 | AH142: -0.01000520605 | AI142: -0.01172131015 | AJ142: -0.003566524201 | AK142: -0.003207752034 | AL142: -0.004029479595
AC144: =+AC$160 -> 2023-24 | AD144: 2024-25 | AE144: 2025-26 | AF144: 2026-27 | AG144: 2027-28 | AH144: 2028-29 | AI144: 2029-30 | AJ144: 2030-31 | AK144: 2031-32 | AL144: 2032-33
AB145: Total non-controllable opex | AC145: =+AC92 -> 537.524341 | AD145: 533.1135421 | AE145: 535.6014132 | AF145: 523.587709 | AG145: 519.5947791 | AH145: 518.320126 | AI145: 517.6347202 | AJ145: 517.0749115 | AK145: 516.9386363 | AL145: 516.5405933
AB146: Change - $ | AD146: =+AD145-AC145 -> -4.410798948 | AE146: 2.487871169 | AF146: -12.01370426 | AG146: -3.992929921 | AH146: -1.274653087 | AI146: -0.6854057724 | AJ146: -0.5598086999 | AK146: -0.1362751561 | AL146: -0.3980430503
AB147: Change - % | AC147: =IFERROR(AC146/AB145,"") ->  | AD147: -0.008205765974 | AE147: 0.004666681622 | AF147: -0.02243030724 | AG147: -0.007626095595 | AH147: -0.00245316762 | AI147: -0.001322359943 | AJ147: -0.001081474403 | AK147: -0.0002635501221 | AL147: -0.0007700005809
AC149: =+AC$160 -> 2023-24 | AD149: 2024-25 | AE149: 2025-26 | AF149: 2026-27 | AG149: 2027-28 | AH149: 2028-29 | AI149: 2029-30 | AJ149: 2030-31 | AK149: 2031-32 | AL149: 2032-33
AB150: Total prescribed opex | AC150: =+AC140+AC145 -> 697.2670653 | AD150: 692.4981088 | AE150: 695.7376496 | AF150: 682.230073 | AG150: 677.2835224 | AH150: 674.4311609 | AI150: 671.9159293 | AJ150: 670.8058729 | AK150: 670.1764669 | AL150: 669.1609552
AB151: Change - $ | AD151: =+AD150-AC150 -> -4.768956413 | AE151: 3.239540732 | AF151: -13.50757654 | AG151: -4.946550673 | AH151: -2.852361456 | AI151: -2.51523163 | AJ151: -1.110056366 | AK151: -0.6294059603 | AL151: -1.015511762
AB152: Change - % | AC152: =IFERROR(AC151/AB150,"") ->  | AD152: -0.006839497591 | AE152: 0.004678049933 | AF152: -0.01941475576 | AG152: -0.007250560872 | AH152: -0.004211473277 | AI152: -0.003729411949 | AJ152: -0.001652076275 | AK152: -0.0009382833182 | AL152: -0.001515290094
AB155: Controllable vs. Non-controllable opex - % | AC155: =+AC$160 -> 2023-24 | AD155: 2024-25 | AE155: 2025-26 | AF155: 2026-27 | AG155: 2027-28 | AH155: 2028-29 | AI155: 2029-30 | AJ155: 2030-31 | AK155: 2031-32 | AL155: 2032-33
AB156: Controllable opex - % | AC156: =+AC84/AC95 -> 0.2290983358 | AD156: 0.2301588477 | AE156: 0.2301675588 | AF156: 0.2325349912 | AG156: 0.2328253059 | AH156: 0.2314706733 | AI156: 0.2296138585 | AJ156: 0.2291735473 | AK156: 0.2286529566 | AL156: 0.2280772073
AB157: Non-controllable opex - % | AC157: =+AC92/AC95 -> 0.7709016642 | AD157: 0.7698411523 | AE157: 0.7698324412 | AF157: 0.7674650088 | AG157: 0.7671746941 | AH157: 0.7685293267 | AI157: 0.7703861415 | AJ157: 0.7708264527 | AK157: 0.7713470434 | AL157: 0.7719227927
AC158: =SUM(AC156:AC157) -> 1 | AD158: 1 | AE158: 1 | AF158: 1 | AG158: 1 | AH158: 1 | AI158: 1 | AJ158: 1 | AK158: 1 | AL158: 1
AA160: =+AA6 -> 2021-22 | AB160: 2022-23 | AC160: 2023-24 | AD160: 2024-25 | AE160: 2025-26 | AF160: 2026-27 | AG160: 2027-28 | AH160: =+AH6 -> 2028-29 | AI160: =+AI6 -> 2029-30 | AJ160: =+AJ6 -> 2030-31 | AK160: =+AK6 -> 2031-32 | AL160: =+AL6 -> 2032-33
Y161: Fourth reg period opex | Z161: Third Reg period Opex | AA161: =+AA169-SUM(AA162:AA168) -> 728.8043146 | AB161: =+AB169-SUM(AB162:AB168) -> 698.0323416
Z162: Adjusted baseline opex | AC162: =+AC61 -> 142.3913244 | AD162: 140.7965415 | AE162: 139.3463372 | AF162: 138.8028865 | AG162: 138.2337946 | AH162: 137.6670361 | AI162: 137.1026012 | AJ162: 136.5404805 | AK162: 135.9806646 | AL162: 135.4231439
Z163: Forecast variations to baseline operating expenditure | AC163: =+AC81 -> 17.35139986 | AD163: 18.58802523 | AE163: 20.78989917 | AF163: 19.8394776 | AG163: 19.45494869 | AH163: 18.44399888 | AI163: 17.17860787 | AJ163: 17.19048087 | AK163: 17.25716603 | AL163: 17.19721805
Z164: Licence fees | AA164: =+AA193 -> 0 | AB164: =+AB193 -> 0 | AC164: =+AC89 -> 0.769956077 | AD164: 0.7465256323 | AE164: 0.945160342 | AF164: 1.235847328 | AG164: 1.236898219 | AH164: =+AH89 -> 0.769956077 | AI164: 0.7465256323 | AJ164: 0.945160342 | AK164: 1.235847328 | AL164: 1.236898219
Z165: Environment Contribution | AA165: =+AA194 -> 0 | AB165: =+AB194 -> 0 | AC165: =+AC90 -> 42.19417476 | AD165: 40.96521821 | AE165: 39.77205652 | AF165: 38.6136471 | AG165: 37.48897777 | AH165: 36.3970658 | AI165: 35.33695708 | AJ165: 34.30772532 | AK165: 33.30847119 | AL165: 32.33832154
Z166: External bulk water charges | AA166: =+AA191 -> 0 | AB166: =+AB191 -> 0 | AC166: =+AC87 -> 494.5602102 | AD166: 491.4017982 | AE166: 494.8841964 | AF166: 483.7382145 | AG166: 480.8689031 | AH166: =+AH87 -> 481.1531041 | AI166: 481.5512375 | AJ166: 481.8220258 | AK166: 482.3943178 | AL166: 482.9653735
Z167: External temporary water purchases | AA167: =+AA192 -> 0 | AB167: =+AB192 -> 0 | AC167: =+AC88 -> 0 | AD167: 0 | AE167: 0 | AF167: 0 | AG167: 0 | AH167: 0 | AI167: 0 | AJ167: 0 | AK167: 0 | AL167: 0
Z168: Other non-controllable | AA168: =+AA195 -> 0 | AB168: =+AB195 -> 0 | AC168: =+AC91 -> 0 | AD168: 0 | AE168: 0 | AF168: 0 | AG168: 0 | AH168: =+AH91 -> 0 | AI168: =+AI91 -> 0 | AJ168: =+AJ91 -> 0 | AK168: =+AK91 -> 0 | AL168: =+AL91 -> 0
Z169: Total prescribed opex | AA169: =+Opex_Breakdown!AA37 -> 728.8043146 | AB169: =+Opex_Breakdown!AB37 -> 698.0323416 | AC169: =SUM(AC162:AC168) -> 697.2670653 | AD169: 692.4981088 | AE169: 695.7376496 | AF169: 682.230073 | AG169: 677.2835224 | AH169: =SUM(AH162:AH168) -> 674.4311609 | AI169: =SUM(AI162:AI168) -> 671.9159293 | AJ169: =SUM(AJ162:AJ168) -> 670.8058729 | AK169: =SUM(AK162:AK168) -> 670.1764669 | AL169: =SUM(AL162:AL168) -> 669.1609552
AC171: =+AC$160 -> 2023-24 | AD171: 2024-25 | AE171: 2025-26 | AF171: 2026-27 | AG171: 2027-28 | AH171: 2028-29 | AI171: 2029-30 | AJ171: 2030-31 | AK171: 2031-32 | AL171: 2032-33
AB172: Adjusted baseline opex | AC172: =+AC162/AC$169 -> 0.2042134664 | AD172: 0.2033168607 | AE172: 0.2002857503 | AF172: 0.2034546584 | AG172: 0.2041003362 | AH172: 0.2041231842 | AI172: 0.2040472554 | AJ172: 0.2035469367 | AK172: 0.2029027745 | AL172: 0.2023775338
AB173: Forecast variations to baseline operating expenditure | AC173: =+AC163/AC$169 -> 0.02488486941 | AD173: 0.026841987 | AE173: 0.02988180845 | AF173: 0.02908033285 | AG173: 0.02872496974 | AH173: 0.02734748918 | AI173: 0.02556660308 | AJ173: 0.02562661056 | AK173: 0.02575018205 | AL173: 0.02569967347
AB174: Licence fees | AC174: =+AC164/AC$169 -> 0.001104248451 | AD174: 0.001078018297 | AE174: 0.001358501071 | AF174: 0.001811481752 | AG174: 0.001826263563 | AH174: 0.001141637756 | AI174: 0.001111040235 | AJ174: 0.001408992348 | AK174: 0.001844062555 | AL174: 0.001848431546
AB175: Environment Contribution | AC175: =+AC165/AC$169 -> 0.06051364945 | AD175: 0.05915571131 | AE175: 0.05716530727 | AF175: 0.05659915713 | AG175: 0.05535197082 | AH175: 0.05396705832 | AI175: 0.05259133702 | AJ175: 0.05114404436 | AK175: 0.04970104567 | AL175: 0.04832667132
AB176: External bulk water charges (excl. temporary purchases) | AC176: =+AC166/AC$169 -> 0.7092837663 | AD176: 0.7096074227 | AE176: 0.7113086329 | AF176: 0.7090543699 | AG176: 0.7099964597 | AH176: 0.7134206306 | AI176: 0.7166837643 | AJ176: 0.718273416 | AK176: 0.7198019352 | AL176: 0.7217476898
AB177: External temporary water purchases | AC177: =+AC167/AC$169 -> 0 | AD177: 0 | AE177: 0 | AF177: 0 | AG177: 0 | AH177: 0 | AI177: 0 | AJ177: 0 | AK177: 0 | AL177: 0
AB178: Other non-controllable | AC178: =+AC168/AC$169 -> 0 | AD178: 0 | AE178: 0 | AF178: 0 | AG178: 0 | AH178: 0 | AI178: 0 | AJ178: 0 | AK178: 0 | AL178: 0
AB179: Total prescribed opex | AC179: =+AC169/AC$169 -> 1 | AD179: 1 | AE179: 1 | AF179: 1 | AG179: 1 | AH179: 1 | AI179: 1 | AJ179: 1 | AK179: 1 | AL179: 1
AC181: =+AC$160 -> 2023-24 | AD181: 2024-25 | AE181: 2025-26 | AF181: 2026-27 | AG181: 2027-28 | AH181: 2028-29 | AI181: 2029-30 | AJ181: 2030-31 | AK181: 2031-32 | AL181: 2032-33
AB182: Water | AC182: =+SUMIF($H$65:$H$80,$AB182,AC$65:AC$80) -> 13.73558689 | AD182: =+SUMIF($H$65:$H$80,$AB182,AD$65:AD$80) -> 14.3376321 | AE182: 14.59923887 | AF182: 14.0488173 | AG182: 13.25428838 | AH182: 12.24333857 | AI182: 10.97794756 | AJ182: 10.98982056 | AK182: 11.05650573 | AL182: 10.99655774
AB183: Sewerage | AC183: 3.615812977 | AD183: 4.25039313 | AE183: 5.87539313 | AF183: 5.47539313 | AG183: 5.88539313 | AH183: 5.88539313 | AI183: 5.88539313 | AJ183: 5.88539313 | AK183: 5.88539313 | AL183: 5.88539313
AB184: Recycled Water | AC184: 0 | AD184: 0 | AE184: 0.3152671756 | AF184: 0.3152671756 | AG184: 0.3152671756 | AH184: 0.3152671756 | AI184: 0.3152671756 | AJ184: 0.3152671756 | AK184: 0.3152671756 | AL184: 0.3152671756
AB185: Rural water | AC185: 0 | AD185: 0 | AE185: 0 | AF185: 0 | AG185: 0 | AH185: 0 | AI185: 0 | AJ185: 0 | AK185: 0 | AL185: 0
AB186: Bulk Water | AC186: 0 | AD186: 0 | AE186: 0 | AF186: 0 | AG186: 0 | AH186: 0 | AI186: 0 | AJ186: 0 | AK186: 0 | AL186: 0
AB187: Forecast variations to baseline operating expenditure | AC187: =SUM(AC182:AC186) -> 17.35139986 | AD187: 18.58802523 | AE187: 20.78989917 | AF187: 19.8394776 | AG187: 19.45494869 | AH187: 18.44399888 | AI187: 17.17860787 | AJ187: 17.19048087 | AK187: 17.25716603 | AL187: 17.19721805
AA190: =+AA6 -> 2021-22 | AB190: 2022-23 | AC190: 2023-24 | AD190: 2024-25 | AE190: 2025-26 | AF190: 2026-27 | AG190: 2027-28 | AH190: =+AH6 -> 2028-29 | AI190: =+AI6 -> 2029-30 | AJ190: =+AJ6 -> 2030-31 | AK190: =+AK6 -> 2031-32 | AL190: =+AL6 -> 2032-33
Z191: External bulk water charges (excl. temporary purchases) | AA191: =+AA87 -> 0 | AB191: 0 | AC191: 494.5602102 | AD191: 491.4017982 | AE191: 494.8841964 | AF191: 483.7382145 | AG191: 480.8689031 | AH191: =+AH87 -> 481.1531041 | AI191: 481.5512375 | AJ191: 481.8220258 | AK191: 482.3943178 | AL191: 482.9653735
Z192: External temporary water purchases | AA192: =+AA88 -> 0 | AB192: 0 | AC192: 0 | AD192: 0 | AE192: 0 | AF192: 0 | AG192: 0 | AH192: 0 | AI192: 0 | AJ192: 0 | AK192: 0 | AL192: 0
Z193: Licence fees | AA193: =+AA89 -> 0 | AB193: 0 | AC193: 0.769956077 | AD193: 0.7465256323 | AE193: 0.945160342 | AF193: 1.235847328 | AG193: 1.236898219 | AH193: 0.769956077 | AI193: 0.7465256323 | AJ193: 0.945160342 | AK193: 1.235847328 | AL193: 1.236898219
Z194: Environment Contribution | AA194: =+AA90 -> 0 | AB194: 0 | AC194: 42.19417476 | AD194: 40.96521821 | AE194: 39.77205652 | AF194: 38.6136471 | AG194: 37.48897777 | AH194: 36.3970658 | AI194: 35.33695708 | AJ194: 34.30772532 | AK194: 33.30847119 | AL194: 32.33832154
Z195: Other non-controllable | AA195: =+AA91 -> 0 | AB195: 0 | AC195: 0 | AD195: 0 | AE195: 0 | AF195: 0 | AG195: 0 | AH195: 0 | AI195: 0 | AJ195: 0 | AK195: 0 | AL195: 0
Z196: Total Non-controllable operating expenditure | AA196: =SUM(AA191:AA195) -> 0 | AB196: 0 | AC196: 537.524341 | AD196: 533.1135421 | AE196: 535.6014132 | AF196: 523.587709 | AG196: 519.5947791 | AH196: =SUM(AH191:AH195) -> 518.320126 | AI196: =SUM(AI191:AI195) -> 517.6347202 | AJ196: =SUM(AJ191:AJ195) -> 517.0749115 | AK196: =SUM(AK191:AK195) -> 516.9386363 | AL196: =SUM(AL191:AL195) -> 516.5405933
AB198: Check | AC198: =IF(ROUND(AC169,2)=ROUND(AC95,2),0,1) -> 0 | AD198: =IF(ROUND(AD169,2)=ROUND(AD95,2),0,1) -> 0 | AE198: 0 | AF198: 0 | AG198: 0 | AH198: 0 | AI198: 0 | AJ198: 0 | AK198: 0 | AL198: 0
AC199: =IF(ROUND(AC187,2)=ROUND(AC163,2),0,1) -> 0 | AD199: =IF(ROUND(AD187,2)=ROUND(AD163,2),0,1) -> 0 | AE199: 0 | AF199: 0 | AG199: 0 | AH199: 0 | AI199: 0 | AJ199: 0 | AK199: 0 | AL199: 0
AC200: =IF(ROUND(AC150,2)=ROUND(AC169,2),0,1) -> 0 | AD200: =IF(ROUND(AD150,2)=ROUND(AD169,2),0,1) -> 0 | AE200: 0 | AF200: 0 | AG200: 0 | AH200: 0 | AI200: 0 | AJ200: 0 | AK200: 0 | AL200: 0
AC201: =IF(ROUND(AC196,2)=ROUND(AC145,2),0,1) -> 0 | AD201: =IF(ROUND(AD196,2)=ROUND(AD145,2),0,1) -> 0 | AE201: 0 | AF201: 0 | AG201: 0 | AH201: 0 | AI201: 0 | AJ201: 0 | AK201: 0 | AL201: 0

Sheet Opex_Breakdown
A1: 80 | B1: Operating Expenditure - Breakdown
B2: =+Contents!H7 -> South East Water
B3: Go to Table of Contents
L4: FIRST REG PERIOD | P4: SECOND REG PERIOD | U4: THIRD REG PERIOD | Z4: FOURTH REG PERIOD | AE4: FIFTH REG PERIOD | AJ4: SIXTH REG PERIOD
K6: 2006 | L6: 2007 | M6: 2008 | N6: 2009 | O6: 2010 | P6: 2011 | Q6: 2012 | R6: 2013 | S6: 2014 | T6: 2015 | U6: 2016 | V6: 2017 | W6: 2018 | X6: 2019 | Y6: 2020 | Z6: 2021 | AA6: 2022 | AB6: 2023 | AC6: 2024 | AD6: 2025 | AE6: 2026 | AF6: 2027 | AG6: 2028 | AH6: 2029 | AI6: 2030 | AJ6: 2031 | AK6: 2032 | AL6: 2033
B7: =Expenditure_Detail!$B$6 -> $m, 01/01/23 | K7: =+CONCATENATE(K6-1,"-",RIGHT(K6,2)) -> 2005-06 | L7: =+CONCATENATE(L6-1,"-",RIGHT(L6,2)) -> 2006-07 | M7: 2007-08 | N7: 2008-09 | O7: 2009-10 | P7: 2010-11 | Q7: 2011-12 | R7: 2012-13 | S7: 2013-14 | T7: 2014-15 | U7: 2015-16 | V7: 2016-17 | W7: 2017-18 | X7: =+CONCATENATE(X6-1,"-",RIGHT(X6,2)) -> 2018-19 | Y7: 2019-20 | Z7: 2020-21 | AA7: 2021-22 | AB7: 2022-23 | AC7: 2023-24 | AD7: 2024-25 | AE7: 2025-26 | AF7: 2026-27 | AG7: 2027-28 | AH7: =+CONCATENATE(AH6-1,"-",RIGHT(AH6,2)) -> 2028-29 | AI7: =+CONCATENATE(AI6-1,"-",RIGHT(AI6,2)) -> 2029-30 | AJ7: =+CONCATENATE(AJ6-1,"-",RIGHT(AJ6,2)) -> 2030-31 | AK7: =+CONCATENATE(AK6-1,"-",RIGHT(AK6,2)) -> 2031-32 | AL7: =+CONCATENATE(AL6-1,"-",RIGHT(AL6,2)) -> 2032-33
D10: Operating Expenditure Summary
E12: =C48 -> Water | W12: =+W57-W50-W54 -> 57.05529164 | X12: 60.07392768 | Y12: 56.16655215 | Z12: 53.91881475 | AA12: 57.65609964 | AB12: 61.62412184 | AC12: =+AC57-AC50-AC54 -> 67.30933625 | AD12: 66.74327657 | AE12: 66.10450411 | AF12: 65.32557713 | AG12: 64.25803868 | AH12: 63.03669685 | AI12: 61.57717106 | AJ12: 61.36427982 | AK12: 61.2054609 | AL12: 60.92469895
E13: =C59 -> Sewerage | W13: =W68-W61-W65 -> 75.35647868 | X13: 72.96567341 | Y13: 79.18741104 | Z13: 80.3586072 | AA13: 81.55214936 | AB13: 83.53464673 | AC13: =AC68-AC61-AC65 -> 84.51720424 | AD13: 84.75612608 | AE13: 85.84477943 | AF13: 85.14069114 | AG13: 85.27900634 | AH13: 84.95464129 | AI13: 84.61670539 | AJ13: 84.30878415 | AK13: 84.00371913 | AL13: 83.69630627
E14: =C70 -> Recycled Water | W14: =W79-W72-W76 -> 8.558828829 | X14: 7.790418136 | Y14: 7.10497546 | Z14: 6.31454331 | AA14: 7.686011556 | AB14: 7.96540803 | AC14: =AC79-AC72-AC76 -> 7.916183756 | AD14: 7.885164129 | AE14: 8.186952805 | AF14: 8.176095791 | AG14: 8.151698286 | AH14: 8.119696797 | AI14: 8.087332633 | AJ14: 8.05789745 | AK14: 8.028739144 | AL14: 7.999356682
E15: =C81 -> Rural Water | W15: =W90-W83-W87 -> 0 | X15: 0 | Y15: 0 | Z15: 0 | AA15: 0 | AB15: 0 | AC15: =AC90-AC83-AC87 -> 0 | AD15: 0 | AE15: 0 | AF15: 0 | AG15: 0 | AH15: 0 | AI15: 0 | AJ15: 0 | AK15: 0 | AL15: 0
E16: Bulk Water | W16: =W100-W97 -> 0 | X16: 0 | Y16: 0 | Z16: 0 | AA16: 0 | AB16: 0 | AC16: =AC100-AC97 -> 0 | AD16: 0 | AE16: 0 | AF16: 0 | AG16: 0 | AH16: 0 | AI16: 0 | AJ16: 0 | AK16: 0 | AL16: 0
E17: Total controllable operating expenditure | W17: =SUM(W12:W16) -> 140.9705992 | X17: 140.8300192 | Y17: 142.4589387 | Z17: 140.5919653 | AA17: 146.8942606 | AB17: 153.1241766 | AC17: 159.7427242 | AD17: 159.3845668 | AE17: 160.1362363 | AF17: 158.6423641 | AG17: 157.6887433 | AH17: =SUM(AH12:AH16) -> 156.1110349 | AI17: =SUM(AI12:AI16) -> 154.2812091 | AJ17: =SUM(AJ12:AJ16) -> 153.7309614 | AK17: =SUM(AK12:AK16) -> 153.2379192 | AL17: =SUM(AL12:AL16) -> 152.6203619
E20: Operations & Maintenance | W20: =W49+W60+W71+W82+W93 -> 59.66346941 | X20: 58.31135083 | Y20: 58.44909202 | Z20: 58.77280446 | AA20: 61.61064596 | AB20: 65.94366123 | AC20: 67.51726682 | AD20: 66.92290335 | AE20: 66.67426762 | AF20: 66.59427596 | AG20: 66.51308946 | AH20: =AH49+AH60+AH71+AH82+AH93 -> 66.25644398 | AI20: =AI49+AI60+AI71+AI82+AI93 -> 65.99267808 | AJ20: =AJ49+AJ60+AJ71+AJ82+AJ93 -> 65.75254102 | AK20: =AK49+AK60+AK71+AK82+AK93 -> 65.51464576 | AL20: =AL49+AL60+AL71+AL82+AL93 -> 65.27492057
E21: Treatment | W21: =W51+W62+W73+W84+W94 -> 16.14510781 | X21: 18.21370704 | Y21: 19.88915337 | Z21: 19.58544468 | AA21: 19.86738632 | AB21: 19.86738632 | AC21: 21.07254009 | AD21: 21.38826582 | AE21: 22.33600804 | AF21: 21.74594457 | AG21: 21.92575786 | AH21: =AH51+AH62+AH73+AH84+AH94 -> 21.84119348 | AI21: 21.75428293 | AJ21: 21.67515806 | AK21: 21.59686042 | AL21: 21.51778269
E22: Customer Service and billing | W22: =W52+W63+W74+W85+W95 -> 28.8670181 | X22: 26.56578761 | Y22: 26.50113497 | Z22: 26.73200943 | AA22: 26.9694416 | AB22: 27.3694416 | AC22: 29.7615827 | AD22: 28.98269041 | AE22: 28.14064224 | AF22: 27.48112007 | AG22: 26.49047884 | AH22: 25.41923313 | AI22: 24.10992134 | AJ22: 24.03355872 | AK22: 24.00988901 | AL22: 23.86549258
E23: GSL Payments | W23: =W53+W64+W75+W86+W96 -> 0.2520608145 | X23: 0.3272016341 | Y23: 0.4017791411 | Z23: 0.1700171527 | AA23: 0.1465992366 | AB23: 0.1465992366 | AC23: 0 | AD23: 0 | AE23: 0 | AF23: 0 | AG23: 0 | AH23: 0 | AI23: 0 | AJ23: 0 | AK23: 0 | AL23: 0
E24: Corporate | W24: =W55+W66+W77+W88+W98 -> 36.04294303 | X24: 37.41197212 | Y24: 36.73998773 | Z24: 35.30512436 | AA24: 38.041 | AB24: 39.53790076 | AC24: 40.80331402 | AD24: 41.50845571 | AE24: 42.40813641 | AF24: 42.24587005 | AG24: 42.18637631 | AH24: =AH55+AH66+AH77+AH88+AH98 -> 42.02333276 | AI24: 41.8557657 | AJ24: 41.70320974 | AK24: 41.55207796 | AL24: 41.39978365
E25: Other operating expenditure | W25: =W56+W67+W78+W89+W99 -> 0 | X25: 0 | Y25: 0.477791411 | Z25: 0.0265651801 | AA25: 0.2591874504 | AB25: 0.2591874504 | AC25: 0.5880206056 | AD25: 0.5822514872 | AE25: 0.5771820257 | AF25: 0.575153401 | AG25: 0.5730408331 | AH25: 0.5708315754 | AI25: 0.5685610235 | AJ25: 0.5664938737 | AK25: 0.5644460217 | AL25: 0.5623824173
E26: Total controllable operating expenditure | W26: =SUM(W20:W25) -> 140.9705992 | X26: 140.8300192 | Y26: 142.4589387 | Z26: 140.5919653 | AA26: 146.8942606 | AB26: 153.1241766 | AC26: 159.7427242 | AD26: 159.3845668 | AE26: 160.1362363 | AF26: 158.6423641 | AG26: 157.6887433 | AH26: =SUM(AH20:AH25) -> 156.1110349 | AI26: =SUM(AI20:AI25) -> 154.2812091 | AJ26: =SUM(AJ20:AJ25) -> 153.7309614 | AK26: =SUM(AK20:AK25) -> 153.2379192 | AL26: =SUM(AL20:AL25) -> 152.6203619
AC27: =IF(ROUND(AC26,2)=ROUND(AC17,2),0,1) -> 0 | AD27: =IF(ROUND(AD26,2)=ROUND(AD17,2),0,1) -> 0 | AE27: 0 | AF27: 0 | AG27: 0 | AH27: 0 | AI27: 0 | AJ27: 0 | AK27: 0 | AL27: 0
E29: External bulk water charges (excl. temporary purchases) | W29: =W50+W61+W72+W83 -> 558.5698941 | X29: =X50+X61+X72+X83 -> 564.0123599 | Y29: =Y50+Y61+Y72+Y83 -> 577.77207 | Z29: 554.0626682 | AA29: 535.0016611 | AB29: 500.2112668 | AC29: 494.5602102 | AD29: 491.4017982 | AE29: 494.8841964 | AF29: 483.7382145 | AG29: 480.8689031 | AH29: =AH50+AH61+AH72+AH83 -> 481.1531041 | AI29: =AI50+AI61+AI72+AI83 -> 481.5512375 | AJ29: =AJ50+AJ61+AJ72+AJ83 -> 481.8220258 | AK29: =AK50+AK61+AK72+AK83 -> 482.3943178 | AL29: =AL50+AL61+AL72+AL83 -> 482.9653735
E30: External temporary water purchases | W30: =+W102 -> 0 | X30: 0 | Y30: 0 | Z30: 0 | AA30: 0 | AB30: 0 | AC30: 0 | AD30: 0 | AE30: 0 | AF30: 0 | AG30: 0 | AH30: =+AH102 -> 0 | AI30: =+AI102 -> 0 | AJ30: =+AJ102 -> 0 | AK30: =+AK102 -> 0 | AL30: =+AL102 -> 0
E31: Licence fees | W31: =+W109 -> 1.19895395 | X31: 0.7880663351 | Y31: 0.7664816687 | Z31: 0.9574441569 | AA31: 1.235847328 | AB31: 1.236898219 | AC31: 0.769956077 | AD31: 0.7465256323 | AE31: 0.945160342 | AF31: 1.235847328 | AG31: 1.236898219 | AH31: =+AH109 -> 0.769956077 | AI31: =+AI109 -> 0.7465256323 | AJ31: =+AJ109 -> 0.945160342 | AK31: =+AK109 -> 1.235847328 | AL31: =+AL109 -> 1.236898219
E32: Environment Contribution | W32: =W111 -> 31.23849774 | X32: 44.77675577 | Y32: 44.18810429 | Z32: 46.1819717 | AA32: 45.67254559 | AB32: 43.46 | AC32: 42.19417476 | AD32: 40.96521821 | AE32: 39.77205652 | AF32: 38.6136471 | AG32: 37.48897777 | AH32: =AH111 -> 36.3970658 | AI32: =AI111 -> 35.33695708 | AJ32: =AJ111 -> 34.30772532 | AK32: =AK111 -> 33.30847119 | AL32: =AL111 -> 32.33832154
E33: Other non-controllable | W33: =+W124 -> 0 | X33: 0 | Y33: 0 | Z33: 0 | AA33: 0 | AB33: 0 | AC33: 0 | AD33: 0 | AE33: 0 | AF33: 0 | AG33: =+AG124 -> 0 | AH33: 0 | AI33: 0 | AJ33: 0 | AK33: 0 | AL33: 0
E34: Total non-controllable operating expenditure | W34: =SUM(W29:W33) -> 591.0073458 | X34: 609.577182 | Y34: 622.726656 | Z34: 601.2020841 | AA34: 581.9100541 | AB34: 544.908165 | AC34: 537.524341 | AD34: 533.1135421 | AE34: 535.6014132 | AF34: 523.587709 | AG34: 519.5947791 | AH34: =SUM(AH29:AH33) -> 518.320126 | AI34: =SUM(AI29:AI33) -> 517.6347202 | AJ34: =SUM(AJ29:AJ33) -> 517.0749115 | AK34: =SUM(AK29:AK33) -> 516.9386363 | AL34: =SUM(AL29:AL33) -> 516.5405933
E37: Total prescribed operating expenditure | W37: =+W34+W17 -> 731.9779449 | X37: 750.4072013 | Y37: 765.1855946 | Z37: 741.7940493 | AA37: 728.8043146 | AB37: 698.0323416 | AC37: 697.2670653 | AD37: 692.4981088 | AE37: 695.7376496 | AF37: 682.230073 | AG37: 677.2835224 | AH37: =+AH34+AH17 -> 674.4311609 | AI37: =+AI34+AI17 -> 671.9159293 | AJ37: =+AJ34+AJ17 -> 670.8058729 | AK37: =+AK34+AK17 -> 670.1765555 | AL37: =+AL34+AL17 -> 669.1609552
AB40: To reconcile to 'Opex_FO' tab row 95>> | AC40: =+Opex_FO!AC95 -> 697.2670653 | AD40: =+Opex_FO!AD95 -> 692.4981088 | AE40: =+Opex_FO!AE95 -> 695.7376496 | AF40: =+Opex_FO!AF95 -> 682.230073 | AG40: =+Opex_FO!AG95 -> 677.2835224 | AH40: =+Opex_FO!AH95 -> 674.4311609 | AI40: =+Opex_FO!AI95 -> 671.9159293 | AJ40: =+Opex_FO!AJ95 -> 670.8058729 | AK40: =+Opex_FO!AK95 -> 670.1764669 | AL40: =+Opex_FO!AL95 -> 669.1609552
AB41: Difference | AC41: =+AC40-AC37 -> 0 | AD41: 0 | AE41: 0 | AF41: 0 | AG41: 0 | AH41: =+AH40-AH37 -> 0 | AI41: =+AI40-AI37 -> 0 | AJ41: =+AJ40-AJ37 -> 0 | AK41: =+AK40-AK37 -> -8.856382544e-05 | AL41: =+AL40-AL37 -> 0
AB42: Test | AC42: =IF(ROUND(AC40,2)=ROUND(AC37,2),0,1) -> 0 | AD42: 0 | AE42: 0 | AF42: 0 | AG42: 0 | AH42: 0 | AI42: 0 | AJ42: 0 | AK42: 0 | AL42: 0
B46: Total operating expenditure
C48: Water
D49: Operations & Maintenance | W49: 30.30646177 | X49: 31.68849835 | Y49: 29.59809202 | Z49: 29.89539108 | AA49: 31.71508626 | AB49: 34.69405117 | AC49: 37.02926291 | AD49: 36.81216166 | AE49: 36.52743724 | AF49: 36.41828108 | AG49: 36.30897147 | AH49: 36.16465664 | AI49: 36.02038434 | AJ49: 35.88926514 | AK49: 35.75938629 | AL49: 35.62850948
D50: External bulk charges (excl. temporary purchases) | W50: =+W131 -> 364.6268563 | X50: 368.8508654 | Y50: 381.700894 | Z50: 358.9594125 | AA50: 351.3168313 | AB50: 320.6474475 | AC50: 314.8660986 | AD50: 307.6659333 | AE50: 305.1722585 | AF50: 298.3971406 | AG50: 296.7304654 | AH50: =+AH131 -> 296.9757584 | AI50: 297.3193861 | AJ50: 297.5531026 | AK50: 298.047046 | AL50: 298.5399223 | AM50: see reconciliation below
D51: Treatment | W51: 0.06751280726 | X51: 0.8308097224 | Y51: 0.8676257669 | Z51: 0.05525557461 | AA51: 0.02575250466 | AB51: 0.02575250466 | AC51: 0.02543023392 | AD51: 0.02518073581 | AE51: 0.02496149589 | AF51: 0.02487376359 | AG51: 0.02478240098 | AH51: 0.02468685681 | AI51: 0.02458866184 | AJ51: 0.02449926344 | AK51: 0.02449926344 | AL51: 0.02432145454
D52: Customer Service and billing | W52: 11.68360181 | X52: 11.32518181 | Y52: 10.44191411 | Z52: 10.27966209 | AA52: 10.61295859 | AB52: 11.01295859 | AC52: 13.60978719 | AD52: 12.98936149 | AE52: 12.28656168 | AF52: 11.68276193 | AG52: 10.75014888 | AH52: 9.739587235 | AI52: 8.492643136 | AJ52: 8.47306115 | AK52: 8.505641995 | AL52: 8.417928806
D53: GSL Payments | W53: 0.1020155414 | X53: 0.1394883544 | Y53: 0.1585398773 | Z53: 0.08500857633 | AA53: 0.07329961832 | AB53: 0.07329961832 | AC53: 0 | AD53: 0 | AE53: 0 | AF53: 0 | AG53: 0 | AH53: 0 | AI53: 0 | AJ53: 0 | AK53: 0 | AL53: 0
D54: Licence Fees | W54: 0.4851554193 | X54: 0.301498113 | Y54: 0.2710319055 | Z54: 0.3358149071 | AA54: 0.6358427004 | AB54: 0.6358427004 | AC54: 0.6358427004 | AD54: 0.6358427004 | AE54: 0.6358427004 | AF54: 0.6358427004 | AG54: 0.6358427004 | AH54: 0.6358427004 | AI54: 0.6358427004 | AJ54: 0.6358427004 | AK54: 0.6358427004 | AL54: 0.6358427004
D55: Corporate | W55: 14.89569971 | X55: 16.08994944 | Y55: 14.62258896 | Z55: 13.57693225 | AA55: 14.96981523 | AB55: 15.5588725 | AC55: 16.0568353 | AD55: 16.33432119 | AE55: 16.68836167 | AF55: 16.62450695 | AG55: 16.6010951 | AH55: 16.53693454 | AI55: 16.4709939 | AJ55: 16.41096039 | AK55: 16.35148733 | AL55: 16.29155679
D56: Other operating expenditure | Y56: 0.477791411 | Z56: 0.0265651801 | AA56: 0.2591874504 | AB56: 0.2591874504 | AC56: 0.5880206056 | AD56: 0.5822514872 | AE56: 0.5771820257 | AF56: 0.575153401 | AG56: 0.5730408331 | AH56: 0.5708315754 | AI56: 0.5685610235 | AJ56: 0.5664938737 | AK56: 0.5644460217 | AL56: 0.5623824173
C57: =+CONCATENATE("Total ",C48) -> Total Water | K57: =+SUM(K49:K56) -> 0 | L57: =+SUM(L49:L56) -> 0 | M57: 0 | N57: 0 | O57: 0 | P57: 0 | Q57: 0 | R57: 0 | S57: 0 | T57: 0 | U57: 0 | V57: 0 | W57: =+SUM(W49:W56) -> 422.1673034 | X57: 429.2262912 | Y57: 438.138478 | Z57: 413.2140422 | AA57: 409.6087736 | AB57: 382.9074121 | AC57: 382.8112776 | AD57: 375.0450526 | AE57: 371.9126053 | AF57: 364.3585604 | AG57: 361.6243468 | AH57: =+SUM(AH49:AH56) -> 360.648298 | AI57: =+SUM(AI49:AI56) -> 359.5323998 | AJ57: =+SUM(AJ49:AJ56) -> 359.5532251 | AK57: =+SUM(AK49:AK56) -> 359.8883496 | AL57: =+SUM(AL49:AL56) -> 360.100464
C59: Sewerage
D60: =+D49 -> Operations & Maintenance | W60: 25.71213783 | X60: 23.24197418 | Y60: 25.5922454 | Z60: 26.02537564 | AA60: 26.55211534 | AB60: 27.70489982 | AC60: 27.02906997 | AD60: 26.69679664 | AE60: 26.45798929 | AF60: 26.48151155 | AG60: 26.52256485 | AH60: 26.42498088 | AI60: 26.32011792 | AJ60: 26.22439033 | AK60: 26.12953803 | AL60: 26.03395489
D61: =+D50 -> External bulk charges (excl. temporary purchases) | W61: =+W132 -> 193.0567579 | X61: 194.2720542 | Y61: 195.1755083 | Z61: 194.2059356 | AA61: 182.7129922 | AB61: 178.5919816 | AC61: 178.7222739 | AD61: 182.7640272 | AE61: 188.7401003 | AF61: 184.3692363 | AG61: 183.1666 | AH61: =+AH132 -> 183.205508 | AI61: 183.2600138 | AJ61: 183.2970855 | AK61: 183.3754342 | AL61: 183.4536135 | AM61: see reconciliation below
D62: Treatment | W62: 15.08767875 | X62: 16.51479086 | Y62: 18.3352454 | Z62: 18.84640137 | AA62: 18.89228072 | AB62: 18.89228072 | AC62: 20.10963711 | AD62: 20.43480996 | AE62: 21.39085359 | AF62: 20.80411206 | AG62: 20.98738475 | AH62: 20.9064381 | AI62: 20.82324565 | AJ62: 20.7475058 | AK62: 20.67247302 | AL62: 20.59686308
D63: Customer Service and billing | W63: 15.43087602 | X63: 13.77195033 | Y63: 14.73769325 | Z63: 15.25478902 | AA63: 14.94881545 | AB63: 14.94881545 | AC63: 14.76174372 | AD63: 14.61691504 | AE63: 14.48965064 | AF63: 14.43872379 | AG63: 14.38568961 | AH63: 14.33022813 | AI63: 14.27322791 | AJ63: 14.22133392 | AK63: 14.16992438 | AL63: 14.11811939
D64: GSL Payments | W64: 0.1347391473 | X64: 0.1696243575 | Y64: 0.2236932515 | Z64: 0.08500857633 | AA64: 0.07329961832 | AB64: 0.07329961832 | AC64: 0 | AD64: 0 | AE64: 0 | AF64: 0 | AG64: 0 | AH64: 0 | AI64: 0 | AJ64: 0 | AK64: 0 | AL64: 0
D65: Licence Fees | W65: 0.6407791069 | X65: 0.4480668671 | Y65: 0.4617268282 | Z65: 0.5825144384 | AA65: 0.5545960377 | AB65: 0.5545960377 | AC65: 0.5545960377 | AD65: 0.5545960377 | AE65: 0.5545960377 | AF65: 0.5545960377 | AG65: 0.5545960377 | AH65: 0.5545960377 | AI65: 0.5545960377 | AJ65: 0.5545960377 | AK65: 0.5545960377 | AL65: 0.5545960377
D66: Corporate | W66: 18.99104694 | X66: 19.26733368 | Y66: 20.29853374 | Z66: 20.14703259 | AA66: 21.08563822 | AB66: 21.91535111 | AC66: 22.61675345 | AD66: 23.00760444 | AE66: 23.50628591 | AF66: 23.41634374 | AG66: 23.38336713 | AH66: 23.29299418 | AI66: 23.20011391 | AJ66: 23.1155541 | AK66: 23.03178369 | AL66: 22.94736891
D67: Other operating expenditure | W67: 0 | X67: 0 | Y67: 0 | Z67: 0 | AA67: 0 | AB67: 0 | AC67: 0 | AD67: 0 | AE67: 0 | AF67: 0 | AG67: 0 | AH67: 0 | AI67: 0 | AJ67: 0 | AK67: 0 | AL67: 0
C68: =+CONCATENATE("Total ",C59) -> Total Sewerage | W68: =+SUM(W60:W67) -> 269.0540157 | X68: 267.6857944 | Y68: 274.8246462 | Z68: 275.1470573 | AA68: 264.8197376 | AB68: 262.6812243 | AC68: 263.7940742 | AD68: 268.0747494 | AE68: 275.1394757 | AF68: 270.0645234 | AG68: 269.0002024 | AH68: =+SUM(AH60:AH67) -> 268.7147453 | AI68: =+SUM(AI60:AI67) -> 268.4313152 | AJ68: =+SUM(AJ60:AJ67) -> 268.1604657 | AK68: =+SUM(AK60:AK67) -> 267.9337493 | AL68: =+SUM(AL60:AL67) -> 267.7045158
C70: Recycled Water
D71: =+D60 -> Operations & Maintenance | W71: 3.644869802 | X71: 3.380878299 | Y71: 3.258754601 | Z71: 2.852037736 | AA71: 3.34344436 | AB71: 3.544710234 | AC71: 3.458933942 | AD71: 3.413945043 | AE71: 3.688841093 | AF71: 3.694483334 | AG71: 3.681553141 | AH71: 3.66680646 | AI71: 3.652175824 | AJ71: 3.638885554 | AK71: 3.625721439 | AL71: 3.612456199
D72: =+D61 -> External bulk charges (excl. temporary purchases) | W72: =+W133 -> 0.8862798958 | X72: 0.8894404284 | Y72: 0.895667723 | Z72: 0.8973200562 | AA72: 0.9718376688 | AB72: 0.9718376688 | AC72: 0.9718376688 | AD72: 0.9718376688 | AE72: 0.9718376688 | AF72: 0.9718376688 | AG72: 0.9718376688 | AH72: =+AH133 -> 0.9718376688 | AI72: 0.9718376688 | AJ72: 0.9718376688 | AK72: 0.9718376688 | AL72: 0.9718376688 | AM72: see reconciliation below
D73: Treatment | W73: 0.9899162502 | X73: 0.8681064614 | Y73: 0.6862822086 | Z73: 0.6837877358 | AA73: 0.9493530955 | AB73: 0.9493530955 | AC73: 0.9374727474 | AD73: 0.9282751254 | AE73: 0.9201929562 | AF73: 0.9169587493 | AG73: 0.9135907128 | AH73: 0.9100685251 | AI73: 0.9064486172 | AJ73: 0.9031529901 | AK73: 0.8998881293 | AL73: 0.8965981546
D74: Customer Service and billing | W74: 1.752540271 | X74: 1.468655458 | Y74: 1.321527607 | Z74: 1.197558319 | AA74: 1.407667557 | AB74: 1.407667557 | AC74: 1.390051793 | AD74: 1.376413881 | AE74: 1.364429923 | AF74: 1.359634354 | AG74: 1.354640347 | AH74: 1.349417771 | AI74: 1.344050298 | AJ74: 1.339163657 | AK74: 1.334322636 | AL74: 1.329444377
D75: GSL Payments | W75: 0.01530612569 | X75: 0.01808892223 | Y75: 0.01954601227 | Z75: 0 | AA75: 0 | AB75: 0 | AC75: 0 | AD75: 0 | AE75: 0 | AF75: 0 | AG75: 0 | AH75: 0 | AI75: 0 | AJ75: 0 | AK75: 0 | AL75: 0
D76: Licence Fees | W76: 0.07279135829 | X76: 0.03850135496 | Y76: 0.03372293497 | Z76: 0.0391148115 | AA76: 0.04563795753 | AB76: 0.04563795753 | AC76: 0.04563795753 | AD76: 0.04563795753 | AE76: 0.04563795753 | AF76: 0.04563795753 | AG76: 0.04563795753 | AH76: 0.04563795753 | AI76: 0.04563795753 | AJ76: 0.04563795753 | AK76: 0.04563795753 | AL76: 0.04563795753
D77: Corporate | W77: 2.15619638 | X77: 2.054688995 | Y77: 1.818865031 | Z77: 1.58115952 | AA77: 1.985546543 | AB77: 2.063677143 | AC77: 2.129725273 | AD77: 2.16653008 | AE77: 2.213488832 | AF77: 2.205019354 | AG77: 2.201914084 | AH77: 2.193404041 | AI77: 2.184657893 | AJ77: 2.176695249 | AK77: 2.168806939 | AL77: 2.160857951
D78: Other operating expenditure | W78: 0 | X78: 0 | Y78: 0 | Z78: 0 | AA78: 0 | AB78: 0 | AC78: 0 | AD78: 0 | AE78: 0 | AF78: 0 | AG78: 0 | AH78: 0 | AI78: 0 | AJ78: 0 | AK78: 0 | AL78: 0
C79: =+CONCATENATE("Total ",C70) -> Total Recycled Water | W79: =+SUM(W71:W78) -> 9.517900083 | X79: 8.718359919 | Y79: 8.034366118 | Z79: 7.250978178 | AA79: 8.703487183 | AB79: 8.982883656 | AC79: 8.933659382 | AD79: 8.902639756 | AE79: 9.204428431 | AF79: 9.193571418 | AG79: 9.169173912 | AH79: =+SUM(AH71:AH78) -> 9.137172423 | AI79: =+SUM(AI71:AI78) -> 9.104808259 | AJ79: =+SUM(AJ71:AJ78) -> 9.075373076 | AK79: =+SUM(AK71:AK78) -> 9.04621477 | AL79: =+SUM(AL71:AL78) -> 9.016832308
C81: Rural Water
D82: =+D60 -> Operations & Maintenance
D83: =+D61 -> External bulk charges (excl. temporary purchases) | W83: =+W134 -> 0 | X83: 0 | Y83: 0 | Z83: 0 | AA83: 0 | AB83: 0 | AC83: 0 | AD83: 0 | AE83: 0 | AF83: 0 | AG83: 0 | AH83: =+AH134 -> 0 | AI83: 0 | AJ83: 0 | AK83: 0 | AL83: 0 | AM83: see reconciliation below
D84: Treatment
D85: Customer Service and billing
D86: GSL Payments
D87: Licence Fees
D88: Corporate
D89: Other operating expenditure
C90: =+CONCATENATE("Total ",C81) -> Total Rural Water | W90: =+SUM(W82:W89) -> 0 | X90: 0 | Y90: 0 | Z90: 0 | AA90: 0 | AB90: 0 | AC90: 0 | AD90: 0 | AE90: 0 | AF90: 0 | AG90: 0 | AH90: =+SUM(AH82:AH89) -> 0 | AI90: =+SUM(AI82:AI89) -> 0 | AJ90: =+SUM(AJ82:AJ89) -> 0 | AK90: =+SUM(AK82:AK89) -> 0 | AL90: =+SUM(AL82:AL89) -> 0
C92: Bulk Water
D93: Operations & Maintenance
D94: Treatment
D95: Customer Service and billing
D96: GSL Payments
D97: Licence Fees
D98: Corporate
D99: Other operating expenditure
C100: Total Bulk water | W100: =+SUM(W93:W99) -> 0 | X100: 0 | Y100: 0 | Z100: 0 | AA100: 0 | AB100: 0 | AC100: 0 | AD100: 0 | AE100: 0 | AF100: 0 | AG100: 0 | AH100: =+SUM(AH93:AH99) -> 0 | AI100: =+SUM(AI93:AI99) -> 0 | AJ100: =+SUM(AJ93:AJ99) -> 0 | AK100: =+SUM(AK93:AK99) -> 0 | AL100: =+SUM(AL93:AL99) -> 0
C102: External temporary water purchases
C105: Licence fees
D106: Essential Services Commission | W106: 0.8287934498 | X106: 0.407398825 | Y106: 0.3839683804 | Z106: 0.5826030901 | AA106: 0.8732900763 | AB106: 0.8743409669 | AC106: 0.407398825 | AD106: 0.3839683804 | AE106: 0.5826030901 | AF106: 0.8732900763 | AG106: 0.8743409669 | AH106: 0.407398825 | AI106: 0.3839683804 | AJ106: 0.5826030901 | AK106: 0.8732900763 | AL106: 0.8743409669
D107: Department of Human Services | W107: 0.07624615385 | X107: 0.08703001186 | Y107: 0.08549208589 | Z107: 0.08418824357 | AA107: 0.07040966921 | AB107: 0.07040966921 | AC107: 0.07040966921 | AD107: 0.07040966921 | AE107: 0.07040966921 | AF107: 0.07040966921 | AG107: 0.07040966921 | AH107: 0.07040966921 | AI107: 0.07040966921 | AJ107: 0.07040966921 | AK107: 0.07040966921 | AL107: 0.07040966921
D108: Environment Protection Authority | W108: 0.2939143466 | X108: 0.2936374982 | Y108: 0.2970212025 | Z108: 0.2906528233 | AA108: 0.2921475827 | AB108: 0.2921475827 | AC108: 0.2921475827 | AD108: 0.2921475827 | AE108: 0.2921475827 | AF108: 0.2921475827 | AG108: 0.2921475827 | AH108: 0.2921475827 | AI108: 0.2921475827 | AJ108: 0.2921475827 | AK108: 0.2921475827 | AL108: 0.2921475827
C109: =+CONCATENATE("Total ",C105) -> Total Licence fees | W109: =+SUM(W106:W108) -> 1.19895395 | X109: 0.7880663351 | Y109: 0.7664816687 | Z109: 0.9574441569 | AA109: 1.235847328 | AB109: 1.236898219 | AC109: 0.769956077 | AD109: 0.7465256323 | AE109: 0.945160342 | AF109: 1.235847328 | AG109: 1.236898219 | AH109: =+SUM(AH106:AH108) -> 0.769956077 | AI109: =+SUM(AI106:AI108) -> 0.7465256323 | AJ109: =+SUM(AJ106:AJ108) -> 0.945160342 | AK109: =+SUM(AK106:AK108) -> 1.235847328 | AL109: =+SUM(AL106:AL108) -> 1.236898219
C111: Environment Contribution | W111: 31.23849774 | X111: 44.77675577 | Y111: 44.18810429 | Z111: 46.1819717 | AA111: 45.67254559 | AB111: 43.46 | AC111: 42.19417476 | AD111: 40.96521821 | AE111: 39.77205652 | AF111: 38.6136471 | AG111: 37.48897777 | AH111: 36.3970658 | AI111: 35.33695708 | AJ111: 34.30772532 | AK111: 33.30847119 | AL111: 32.33832154
C113: Other non-controllable
D114: [Non-controllable 1]
D115: [Non-controllable 2]
D116: [Non-controllable 3]
D117: [Non-controllable 4]
D118: [Non-controllable 5]
D119: [Non-controllable 6]
D120: [Non-controllable 7]
D121: [Non-controllable 8]
D122: [Non-controllable 9]
D123: [Non-controllable 10]
W124: =SUM(W114:W123) -> 0 | X124: 0 | Y124: 0 | Z124: 0 | AA124: 0 | AB124: 0 | AC124: 0 | AD124: 0 | AE124: 0 | AF124: 0 | AG124: 0 | AH124: =SUM(AH114:AH123) -> 0 | AI124: =SUM(AI114:AI123) -> 0 | AJ124: =SUM(AJ114:AJ123) -> 0 | AK124: =SUM(AK114:AK123) -> 0 | AL124: =SUM(AL114:AL123) -> 0
C127: External bulk charges (excl. temporary purchases)
C128: Reconciliation
C130: Service | W130: =+W7 -> 2017-18 | X130: =+X7 -> 2018-19 | Y130: 2019-20 | Z130: 2020-21 | AA130: 2021-22 | AB130: 2022-23 | AC130: 2023-24 | AD130: 2024-25 | AE130: 2025-26 | AF130: 2026-27 | AG130: 2027-28 | AH130: =+AH7 -> 2028-29 | AI130: =+AI7 -> 2029-30 | AJ130: =+AJ7 -> 2030-31 | AK130: =+AK7 -> 2031-32 | AL130: =+AL7 -> 2032-33
D131: Water | W131: =+SUMIF($I$138:$I$179,$D$131,W$138:W$179) -> 364.6268563 | X131: 368.8508654 | Y131: 381.700894 | Z131: 358.9594125 | AA131: 351.3168313 | AB131: 320.6474475 | AC131: 314.8660986 | AD131: 307.6659333 | AE131: 305.1722585 | AF131: 298.3971406 | AG131: 296.7304654 | AH131: 296.9757584 | AI131: 297.3193861 | AJ131: 297.5531026 | AK131: 298.047046 | AL131: 298.5399223
D132: Sewerage | W132: =+SUMIF($I$138:$I$179,$D$132,W$138:W$179) -> 193.0567579 | X132: 194.2720542 | Y132: 195.1755083 | Z132: 194.2059356 | AA132: 182.7129922 | AB132: 178.5919816 | AC132: 178.7222739 | AD132: 182.7640272 | AE132: 188.7401003 | AF132: 184.3692363 | AG132: 183.1666 | AH132: 183.205508 | AI132: 183.2600138 | AJ132: 183.2970855 | AK132: 183.3754342 | AL132: 183.4536135
D133: Recycled Water | W133: =+SUMIF($I$138:$I$179,$D$133,W$138:W$179) -> 0.8862798958 | X133: 0.8894404284 | Y133: 0.895667723 | Z133: 0.8973200562 | AA133: 0.9718376688 | AB133: 0.9718376688 | AC133: 0.9718376688 | AD133: 0.9718376688 | AE133: 0.9718376688 | AF133: 0.9718376688 | AG133: 0.9718376688 | AH133: 0.9718376688 | AI133: 0.9718376688 | AJ133: 0.9718376688 | AK133: 0.9718376688 | AL133: 0.9718376688
D134: Rural Water | W134: =+SUMIF($I$138:$I$179,$D$134,W$138:W$179) -> 0 | X134: 0 | Y134: 0 | Z134: 0 | AA134: 0 | AB134: 0 | AC134: 0 | AD134: 0 | AE134: 0 | AF134: 0 | AG134: 0 | AH134: 0 | AI134: 0 | AJ134: 0 | AK134: 0 | AL134: 0
C135: Total External Bulk Charges | W135: =SUM(W131:W134) -> 558.5698941 | X135: 564.0123599 | Y135: 577.77207 | Z135: 554.0626682 | AA135: 535.0016611 | AB135: 500.2112668 | AC135: 494.5602102 | AD135: 491.4017982 | AE135: 494.8841964 | AF135: 483.7382145 | AG135: 480.8689031 | AH135: =SUM(AH131:AH134) -> 481.1531041 | AI135: =SUM(AI131:AI134) -> 481.5512375 | AJ135: =SUM(AJ131:AJ134) -> 481.8220258 | AK135: =SUM(AK131:AK134) -> 482.3943178 | AL135: =SUM(AL131:AL134) -> 482.9653735
C137: Description | H137: Source | I137: Service | J137: Price
B138: 1 | C138: Trility/TopAq Recycled Water Class A Supply | H138: Other Sources | I138: Recycled Water | J138: Fixed | W138: 0.5371712892 | X138: 0.5403318219 | Y138: 0.5465591343 | Z138: 0.5482114679 | AA138: 0.6227290421 | AB138: 0.6227290421 | AC138: 0.6227290421 | AD138: 0.6227290421 | AE138: 0.6227290421 | AF138: 0.6227290421 | AG138: 0.6227290421 | AH138: 0.6227290421 | AI138: 0.6227290421 | AJ138: 0.6227290421 | AK138: 0.6227290421 | AL138: 0.6227290421 | AO138: ESC USE ONLY
B139: 2 | C139: Recycled Water Class A Supply | H139: Melbourne Water | I139: Recycled Water | J139: Fixed | W139: 0.3491086066 | X139: 0.3491086066 | Y139: 0.3491085887 | Z139: 0.3491085883 | AA139: 0.3491086268 | AB139: 0.3491086268 | AC139: 0.3491086268 | AD139: 0.3491086268 | AE139: 0.3491086268 | AF139: 0.3491086268 | AG139: 0.3491086268 | AH139: 0.3491086268 | AI139: 0.3491086268 | AJ139: 0.3491086268 | AK139: 0.3491086268 | AL139: 0.3491086268
B140: 3 | C140: Transfer | H140: Melbourne Water | I140: Water | J140: Variable | W140: 42.86852102 | X140: 43.34471791 | Y140: 41.7337175 | Z140: 41.82169395 | AA140: 41.71083629 | AB140: 43.70449042 | AC140: 45.76961612 | AD140: 46.43985458 | AE140: 47.24473839 | AF140: 46.51769117 | AG140: 46.57073498 | AH140: 46.81602798 | AI140: 47.15965563 | AJ140: 47.39337218 | AK140: 47.88731556 | AL140: 48.38019191 | AO140: [Service]
B141: 4 | C141: Greater Yarra System - Thomson River | H141: Melbourne Water | I141: Water | J141: Fixed | W141: 80.38232373 | X141: 80.62187127 | Y141: 80.09958303 | Z141: 79.44966497 | AA141: 69.6250024 | AB141: 70.8987797 | AC141: 72.60444678 | AD141: 73.45008646 | AE141: 75.09850524 | AF141: 73.33367544 | AG141: 72.83303986 | AH141: 72.83303986 | AI141: 72.83303986 | AJ141: 72.83303986 | AK141: 72.83303986 | AL141: 72.83303986 | AO141: Water
B142: 5 | C142: Victorian Desalination Plant | H142: Melbourne Water | I142: Water | J142: Fixed | W142: 226.6211868 | X142: 230.6239623 | Y142: 222.0952212 | Z142: 195.687742 | AA142: 199.7917814 | AB142: 188.6316824 | AC142: 183.8953722 | AD142: 175.4231387 | AE142: 170.5910878 | AF142: 166.5850469 | AG142: 165.4447744 | AH142: 165.4447744 | AI142: 165.4447744 | AJ142: 165.4447744 | AK142: 165.4447744 | AL142: 165.4447744 | AO142: Sewerage
B143: 6 | C143: North South Pipeline | H143: Melbourne Water | I143: Water | J143: Fixed | W143: 14.33119344 | X143: 13.84742052 | Y143: 13.5798635 | Z143: 13.04058126 | AA143: 12.42783206 | AB143: 12.258 | AC143: 12.15915769 | AD143: 11.91434335 | AE143: 11.79941684 | AF143: 11.52221692 | AG143: 11.443406 | AH143: 11.443406 | AI143: 11.443406 | AJ143: 11.443406 | AK143: 11.443406 | AL143: 11.443406 | AO143: Recycled Water
B144: 7 | C144: Wastewater treatment - WTP | H144: Melbourne Water | I144: Sewerage | J144: Variable | W144: 8.667261744 | X144: 7.808646218 | Y144: 7.942805888 | Z144: 8.558489332 | AA144: 1.720237532 | AB144: 1.718426458 | AC144: 1.739750675 | AD144: 1.753116442 | AE144: 1.76556537 | AF144: 1.73842044 | AG144: 1.740244928 | AH144: 1.749410983 | AI144: 1.762251585 | AJ144: 1.770985053 | AK144: 1.78944262 | AL144: 1.807860314 | AO144: Rural Water
B145: 8 | C145: Wastewater treatment - ETP | H145: Melbourne Water | I145: Sewerage | J145: Variable | W145: 6.941770408 | X145: 6.932738877 | Y145: 8.044924606 | Z145: 8.006949257 | AA145: 4.06364201 | AB145: 3.86430189 | AC145: 3.912016283 | AD145: 3.942180608 | AE145: 3.970001532 | AF145: 3.909070724 | AG145: 3.913461432 | AH145: 3.934074048 | AI145: 3.962949983 | AJ145: 3.982589801 | AK145: 4.024097163 | AL145: 4.06551486
B146: 9 | C146: Trade Waste - BOD WTP | H146: Melbourne Water | I146: Sewerage | J146: Variable | W146: 0.282649944 | X146: 0.3285459096 | Y146: 0.272365202 | Z146: 0.3084975584 | AA146: 0.4943646266 | AB146: 0.5138316305 | AC146: 0.5138231911 | AD146: 0.5138237987 | AE146: 0.5138284347 | AF146: 0.5017689952 | AG146: 0.4983253239 | AH146: 0.4983253239 | AI146: 0.4983253239 | AJ146: 0.4983253239 | AK146: 0.4983253239 | AL146: 0.4983253239 | AO146: [Source]
B147: 10 | C147: Trade Waste - BOD ETP | H147: Melbourne Water | I147: Sewerage | J147: Variable | W147: 3.256929796 | X147: 3.740302628 | Y147: 3.604297328 | Z147: 3.685163376 | AA147: 2.338843424 | AB147: 2.045560395 | AC147: 2.045581709 | AD147: 2.045556882 | AE147: 2.045616979 | AF147: 1.99753496 | AG147: 1.983908461 | AH147: 1.983908461 | AI147: 1.983908461 | AJ147: 1.983908461 | AK147: 1.983908461 | AL147: 1.983908461 | AO147: Melbourne Water
B148: 11 | C148: Trade Waste - SS Western | H148: Melbourne Water | I148: Sewerage | J148: Variable | W148: 0.03664674817 | X148: 0.02618729972 | Y148: 0.02788436051 | Z148: 0.04680387425 | AA148: 0.154050051 | AB148: 0.198548108 | AC148: 0.1985478119 | AD148: 0.1985468554 | AE148: 0.1985468162 | AF148: 0.1938843987 | AG148: 0.1925582917 | AH148: 0.1925582917 | AI148: 0.1925582917 | AJ148: 0.1925582917 | AK148: 0.1925582917 | AL148: 0.1925582917 | AO148: Goulburn-Murray Water
B149: 12 | C149: Trade Waste - SS Eastern | H149: Melbourne Water | I149: Sewerage | J149: Variable | W149: 2.053981001 | X149: 2.180092896 | Y149: 2.185707981 | Z149: 2.460674563 | AA149: 2.850775939 | AB149: 1.938835351 | AC149: 1.938843453 | AD149: 1.938824531 | AE149: 1.938823156 | AF149: 1.893324004 | AG149: 1.880361912 | AH149: 1.880361912 | AI149: 1.880361912 | AJ149: 1.880361912 | AK149: 1.880361912 | AL149: 1.880361912 | AO149: Other Sources
B150: 13 | C150: Trade Waste - TN/TKN Western | H150: Melbourne Water | I150: Sewerage | J150: Variable | W150: 0.01274694286 | X150: 0.01555734542 | Y150: 0.01406838461 | Z150: 0.01647532529 | AA150: 0.06027245159 | AB150: 0.05971851905 | AC150: 0.05971829706 | AD150: 0.0597183713 | AE150: 0.05971867633 | AF150: 0.05831603011 | AG150: 0.05791694509 | AH150: 0.05791694509 | AI150: 0.05791694509 | AJ150: 0.05791694509 | AK150: 0.05791694509 | AL150: 0.05791694509
B151: 14 | C151: Trade waste - TN/TKN Eastern | H151: Melbourne Water | I151: Sewerage | J151: Variable | W151: 0.09958954896 | X151: 0.1250195604 | Y151: 0.1338421895 | Z151: 0.1233384137 | AA151: 0.04216956733 | AB151: 0.03062784744 | AC151: 0.03062929928 | AD151: 0.03062955137 | AE151: 0.03062840941 | AF151: 0.02990775531 | AG151: 0.02970341021 | AH151: 0.02970341021 | AI151: 0.02970341021 | AJ151: 0.02970341021 | AK151: 0.02970341021 | AL151: 0.02970341021
B152: 15 | C152: Trade waste - TDS/inorganic TDS Western | H152: Melbourne Water | I152: Sewerage | J152: Variable | W152: 0.005661773058 | X152: 0.006973435062 | Y152: 0.006275793404 | Z152: 0.005489240352 | AA152: 0.005991924544 | AB152: 0.00572823696 | AC152: 0.005727714907 | AD152: 0.005728027198 | AE152: 0.005727488364 | AF152: 0.005592610675 | AG152: 0.005555115923 | AH152: 0.005555115923 | AI152: 0.005555115923 | AJ152: 0.005555115923 | AK152: 0.005555115923 | AL152: 0.005555115923
B153: 16 | C153: Trade waste - TDS//inorganic TDS Eastern | H153: Melbourne Water | I153: Sewerage | J153: Variable | W153: 0 | X153: 0 | Y153: 0 | Z153: 0 | AA153: 0 | AB153: 0 | AC153: 0 | AD153: 0 | AE153: 0 | AF153: 0 | AG153: 0 | AH153: 0 | AI153: 0 | AJ153: 0 | AK153: 0 | AL153: 0
B154: 17 | C154: Service Charge | H154: Melbourne Water | I154: Sewerage | J154: Fixed | W154: 170.0431384 | X154: 171.5673365 | Y154: 171.3054475 | Z154: 169.2410087 | AA154: 169.2410087 | AB154: 166.5059424 | AC154: 166.5453673 | AD154: 170.5305512 | AE154: 176.4541141 | AF154: 172.3108945 | AG154: 171.1312853 | AH154: 171.1312853 | AI154: 171.1312853 | AJ154: 171.1312853 | AK154: 171.1312853 | AL154: 171.1312853
B155: 18 | C155: Western Transfer | H155: Melbourne Water | I155: Sewerage | J155: Variable | W155: 1.161716578 | X155: 1.046632031 | Y155: 1.064614125 | Z155: 1.170740878 | AA155: 1.150181173 | AB155: 1.148767412 | AC155: 1.163314356 | AD155: 1.172091113 | AE155: 1.180431881 | AF155: 1.162378843 | AG155: 1.163636321 | AH155: 1.169765317 | AI155: 1.178351344 | AJ155: 1.184191086 | AK155: 1.196532967 | AL155: 1.208848186
B156: 19 | C156: Eastern Transfer | H156: Melbourne Water | I156: Sewerage | J156: Variable | W156: 0.4946650098 | X156: 0.4940214301 | Y156: 0.573274896 | Z156: 0.5823051052 | AA156: 0.5914548671 | AB156: 0.5616933063 | AC156: 0.5689538108 | AD156: 0.5732598954 | AE156: 0.5770974324 | AF156: 0.5681429804 | AG156: 0.5696425053 | AH156: 0.5726428728 | AI156: 0.576846047 | AJ156: 0.5797048141 | AK156: 0.5857466158 | AL156: 0.5917753657
B157: 20 | C157: Desalination Water Order | H157: Melbourne Water | I157: Water | J157: Fixed | W157: 0 | X157: 0 | Y157: 23.769212 | Z157: 28.57440481 | AA157: 27.34029556 | AB157: 4.734260418 | AC157: 0 | AD157: 0 | AE157: 0 | AF157: 0 | AG157: 0 | AH157: 0 | AI157: 0 | AJ157: 0 | AK157: 0 | AL157: 0
B158: 21 | C158: Northern Victoria Goulburn Water Entitlements | H158: Goulburn-Murray Water | I158: Water | J158: Fixed | W158: 0.2305543646 | X158: 0.226030616 | Y158: 0.2271466301 | Z158: 0.2035821302 | AA158: 0.2239140347 | AB158: 0.1403169255 | AC158: 0.1575881994 | AD158: 0.1585925408 | AE158: 0.1585925408 | AF158: 0.1585925408 | AG158: 0.1585925408 | AH158: 0.1585925408 | AI158: 0.1585925408 | AJ158: 0.1585925408 | AK158: 0.1585925408 | AL158: 0.1585925408
B159: 22 | C159: Northern Victoria Murray Water Entitlements | H159: Goulburn-Murray Water | I159: Water | J159: Fixed | W159: 0.1930769805 | X159: 0.186862745 | Y159: 0.1961501621 | Z159: 0.1817433844 | AA159: 0.1971695523 | AB159: 0.279917648 | AC159: 0.279917648 | AD159: 0.279917648 | AE159: 0.279917648 | AF159: 0.279917648 | AG159: 0.279917648 | AH159: 0.279917648 | AI159: 0.279917648 | AJ159: 0.279917648 | AK159: 0.279917648 | AL159: 0.279917648
B160: 23 | H160: [Source] | I160: [Service] | J160: [Price]
B161: 24 | H161: [Source] | I161: [Service] | J161: [Price]
B162: 25 | H162: [Source] | I162: [Service] | J162: [Price]
B163: 26 | H163: [Source] | I163: [Service] | J163: [Price]
B164: 27 | H164: [Source] | I164: [Service] | J164: [Price]
B165: 28 | H165: [Source] | I165: [Service] | J165: [Price]
B166: 29 | H166: [Source] | I166: [Service] | J166: [Price]
B167: 30 | H167: [Source] | I167: [Service] | J167: [Price]
B168: 31 | H168: [Source] | I168: [Service] | J168: [Price]
B169: 32 | H169: [Source] | I169: [Service] | J169: [Price]
B170: 33 | H170: [Source] | I170: [Service] | J170: [Price]
B171: 34 | H171: [Source] | I171: [Service] | J171: [Price]
B172: 35 | H172: [Source] | I172: [Service] | J172: [Price]
B173: 36 | H173: [Source] | I173: [Service] | J173: [Price]
B174: 37 | H174: [Source] | I174: [Service] | J174: [Price]
B175: 38 | H175: [Source] | I175: [Service] | J175: [Price]
B176: 39 | H176: [Source] | I176: [Service] | J176: [Price]
B177: 40 | H177: [Source] | I177: [Service] | J177: [Price]

Sheet Capex_FO input
B1: Capital Expenditure - Forecast Input | Q1: =Q36 -> Gross capital expenditure | AB1: =AB36 -> Government contributions | AM1: =AM36 -> Customer contributions | AX1: =AX36 -> Net capital expenditure | BI1: =BI36 -> Regulatory Depreciation | BT1: =BT36 -> Accumulated capex | CE1: =CE36 -> Gross capital expenditure | CP1: =CP36 -> Tax Depreciation
B2: =+Contents!H7 -> South East Water | Q2: =Q37 -> $m, 01/01/23 | AB2: =AB37 -> $m, 01/01/23 | AM2: =AM37 -> $m, 01/01/23 | AX2: =AX37 -> $m, 01/01/23 | BI2: =BI37 -> $m, 01/01/23 | BT2: =BT37 -> $m, 01/01/23 | CE2: =CE37 -> Nominal,$ | CP2: =CP37 -> Nominal,$
B3: Go to Table of Contents | Q3: =Q39 -> 2023-24 | R3: =R39 -> 2024-25 | S3: 2025-26 | T3: 2026-27 | U3: 2027-28 | V3: 2028-29 | W3: 2029-30 | X3: 2030-31 | Y3: =Y39 -> 2031-32 | Z3: =Z39 -> 2032-33 | AB3: 2023-24 | AC3: 2024-25 | AD3: 2025-26 | AE3: 2026-27 | AF3: 2027-28 | AG3: 2028-29 | AH3: 2029-30 | AI3: 2030-31 | AJ3: 2031-32 | AK3: 2032-33 | AM3: 2023-24 | AN3: 2024-25 | AO3: 2025-26 | AP3: 2026-27 | AQ3: 2027-28 | AR3: 2028-29 | AS3: 2029-30 | AT3: 2030-31 | AU3: 2031-32 | AV3: 2032-33 | AX3: 2023-24 | AY3: 2024-25 | AZ3: 2025-26 | BA3: 2026-27 | BB3: 2027-28 | BC3: 2028-29 | BD3: 2029-30 | BE3: 2030-31 | BF3: 2031-32 | BG3: 2032-33 | BI3: 2023-24 | BJ3: 2024-25 | BK3: 2025-26 | BL3: 2026-27 | BM3: 2027-28 | BN3: 2028-29 | BO3: 2029-30 | BP3: 2030-31 | BQ3: 2031-32 | BR3: 2032-33 | BT3: 2023-24 | BU3: 2024-25 | BV3: 2025-26 | BW3: 2026-27 | BX3: 2027-28 | BY3: 2028-29 | BZ3: 2029-30 | CA3: 2030-31 | CB3: =CB39 -> 2031-32 | CC3: =CC39 -> 2032-33 | CE3: 2023-24 | CF3: 2024-25 | CG3: 2025-26 | CH3: 2026-27 | CI3: 2027-28 | CJ3: 2028-29 | CK3: 2029-30 | CL3: 2030-31 | CM3: =CM39 -> 2031-32 | CN3: =CN39 -> 2032-33 | CP3: 2023-24 | CQ3: 2024-25 | CR3: =CR39 -> 2025-26 | CS3: 2026-27 | CT3: 2027-28 | CU3: 2028-29 | CV3: 2029-30 | CW3: 2030-31 | CX3: =CX39 -> 2031-32 | CY3: =CY39 -> 2032-33
C7: Input Summary | F7: FIFTH REG PERIOD | K7: SIXTH REG PERIOD
D9: =+Q39 -> 2023-24 | E9: =+R39 -> 2024-25 | F9: 2025-26 | G9: 2026-27 | H9: 2027-28 | I9: 2028-29 | J9: 2029-30 | K9: 2030-31 | L9: =+Y39 -> 2031-32 | M9: =+Z39 -> 2032-33
C10: By Cost Driver
C11: Net capital expenditure - Renewals | D11: =+SUMIF($F$42:$F$1016,"Renewals",AX$42:AX$1016) -> 128.755201 | E11: 125.303562 | F11: 125.25462 | G11: 124.466299 | H11: 126.294566 | I11: 115.032151 | J11: 86.60231 | K11: 88.591534 | L11: =+SUMIF($F$42:$F$1016,"Renewals",BF$42:BF$1016) -> 88.216859 | M11: =+SUMIF($F$42:$F$1016,"Renewals",BG$42:BG$1016) -> 83.19332
C12: Net capital expenditure - Growth | D12: =+SUMIF($F$42:$F$1016,"Growth",AX$42:AX$1016) -> 85.98035244 | E12: 112.4493108 | F12: 121.8908717 | G12: 113.2622885 | H12: 117.1078752 | I12: 133.8988208 | J12: 163.5438908 | K12: 153.1404509 | L12: =+SUMIF($F$42:$F$1016,"Growth",BF$42:BF$1016) -> 146.3734606 | M12: =+SUMIF($F$42:$F$1016,"Growth",BG$42:BG$1016) -> 151.9462197
C13: Net capital expenditure - Improvements / Compliance | D13: =+SUMIF($F$42:$F$1016,"Improvements / Compliance",AX$42:AX$1016) -> 91.45149 | E13: 107.739686 | F13: 108.762268 | G13: 116.20419 | H13: 105.206943 | I13: 101.196055 | J13: 107.632928 | K13: 116.390912 | L13: =+SUMIF($F$42:$F$1016,"Improvements / Compliance",BF$42:BF$1016) -> 123.795702 | M13: =+SUMIF($F$42:$F$1016,"Improvements / Compliance",BG$42:BG$1016) -> 108.788998
C14: Government Contributions | D14: =+AB41 -> 12.529 | E14: 0 | F14: 0 | G14: 0 | H14: 0 | I14: 0 | J14: 0 | K14: 0 | L14: =+AJ41 -> 0 | M14: =+AK41 -> 0
C15: Customer Contributions | D15: =+AM41 -> 33.24766856 | E15: 34.71100123 | F15: 36.47113926 | G15: 45.93990749 | H15: 48.04296779 | I15: 54.81239619 | J15: 54.84421416 | K15: 54.87603213 | L15: =+AU41 -> 54.17066036 | M15: =+AV41 -> 54.20247834
C16: Total prescribed capex | D16: =SUM(D11:D15) -> 351.963712 | E16: 380.20356 | F16: 392.378899 | G16: 399.872685 | H16: 396.652352 | I16: 404.939423 | J16: 412.623343 | K16: 412.998929 | L16: =SUM(L11:L15) -> 412.556682 | M16: =SUM(M11:M15) -> 398.131016
C18: By Capital Type
C19: Top 10 Major Projects | D19: =+SUMIF($H$42:$H$1016,$C$19,Q$42:Q$1016) -> 73.50401 | E19: 121.049221 | F19: 128.133664 | G19: 128.258507 | H19: 136.764581 | I19: 114.360869 | J19: 65.487685 | K19: 73.263378 | L19: =+SUMIF($H$42:$H$1016,$C$19,Y$42:Y$1016) -> 78.384698 | M19: =+SUMIF($H$42:$H$1016,$C$19,Z$42:Z$1016) -> 60.944539
C20: Significant projects | D20: =+SUMIF($H$42:$H$1016,$C$20,Q$42:Q$1016) -> 0 | E20: 0 | F20: 0 | G20: 0 | H20: 0 | I20: 0 | J20: 0 | K20: 0 | L20: =+SUMIF($H$42:$H$1016,$C$20,Y$42:Y$1016) -> 0 | M20: =+SUMIF($H$42:$H$1016,$C$20,Z$42:Z$1016) -> 0
C21: Capital Programs / Allocation | D21: =+SUMIF($H$42:$H$1016,$C$21,Q$42:Q$1016) -> 278.459702 | E21: 259.154339 | F21: 264.245235 | G21: 271.614178 | H21: 259.887771 | I21: 290.578554 | J21: 347.135658 | K21: 339.735551 | L21: =+SUMIF($H$42:$H$1016,$C$21,Y$42:Y$1016) -> 334.171984 | M21: =+SUMIF($H$42:$H$1016,$C$21,Z$42:Z$1016) -> 337.186477
C22: Other Capital expenditure | D22: =+SUMIF($H$42:$H$1016,$C$22,Q$42:Q$1016) -> 0 | E22: 0 | F22: 0 | G22: 0 | H22: 0 | I22: 0 | J22: 0 | K22: 0 | L22: =+SUMIF($H$42:$H$1016,$C$22,Y$42:Y$1016) -> 0 | M22: =+SUMIF($H$42:$H$1016,$C$22,Z$42:Z$1016) -> 0
C23: Total prescribed capex | D23: =SUM(D19:D22) -> 351.963712 | E23: 380.20356 | F23: 392.378899 | G23: 399.872685 | H23: 396.652352 | I23: 404.939423 | J23: 412.623343 | K23: 412.998929 | L23: =SUM(L19:L22) -> 412.556682 | M23: =SUM(M19:M22) -> 398.131016
C25: Difference | D25: =+D23-D16 -> 0 | E25: 0 | F25: 0 | G25: 0 | H25: 0 | I25: 0 | J25: 0 | K25: 0 | L25: =+L23-L16 -> 0 | M25: =+M23-M16 -> 0
C26: Test | D26: =IF(+D23=D16,0,1) -> 0 | E26: 0 | F26: 0 | G26: 0 | H26: 0 | I26: 0 | J26: 0 | K26: 0 | L26: 0 | M26: 0
C29: Total prescribed capex | D29: =+D23 -> 351.963712 | E29: 380.20356 | F29: 392.378899 | G29: 399.872685 | H29: 396.652352 | I29: 404.939423 | J29: 412.623343 | K29: 412.998929 | L29: =+L23 -> 412.556682 | M29: =+M23 -> 398.131016
C32: Regulatory Depreciation | D32: =+BI41 -> 5.462674716 | E32: 16.22185757 | F32: 26.85818082 | G32: 38.54499581 | H32: 51.08816184 | I32: 63.50502866 | J32: 75.5189568 | K32: 86.50892201 | L32: =+BQ41 -> 98.40304347 | M32: =+BR41 -> 109.5258432
B35: =Expenditure_Detail!$B$6 -> $m, 01/01/23
Q36: Gross capital expenditure | AB36: Government contributions | AM36: Customer contributions | AX36: Net capital expenditure | BI36: Regulatory Depreciation | BT36: Accumulated capex | CE36: Gross capital expenditure | CP36: Tax Depreciation
Q37: =Expenditure_Detail!$B$6 -> $m, 01/01/23 | AB37: =Expenditure_Detail!$B$6 -> $m, 01/01/23 | AM37: =Expenditure_Detail!$B$6 -> $m, 01/01/23 | AX37: =Expenditure_Detail!$B$6 -> $m, 01/01/23 | BI37: =Expenditure_Detail!$B$6 -> $m, 01/01/23 | BT37: =Expenditure_Detail!$B$6 -> $m, 01/01/23 | CE37: Nominal,$ | CP37: Nominal,$
Q39: 2023-24 | R39: 2024-25 | S39: 2025-26 | T39: 2026-27 | U39: 2027-28 | V39: 2028-29 | W39: 2029-30 | X39: 2030-31 | Y39: 2031-32 | Z39: 2032-33 | AB39: 2023-24 | AC39: 2024-25 | AD39: 2025-26 | AE39: 2026-27 | AF39: 2027-28 | AG39: 2028-29 | AH39: 2029-30 | AI39: 2030-31 | AJ39: 2031-32 | AK39: 2032-33 | AM39: 2023-24 | AN39: 2024-25 | AO39: 2025-26 | AP39: 2026-27 | AQ39: 2027-28 | AR39: 2028-29 | AS39: 2029-30 | AT39: 2030-31 | AU39: 2031-32 | AV39: 2032-33 | AX39: 2023-24 | AY39: 2024-25 | AZ39: 2025-26 | BA39: 2026-27 | BB39: 2027-28 | BC39: 2028-29 | BD39: 2029-30 | BE39: 2030-31 | BF39: 2031-32 | BG39: 2032-33 | BI39: 2023-24 | BJ39: 2024-25 | BK39: 2025-26 | BL39: 2026-27 | BM39: 2027-28 | BN39: 2028-29 | BO39: 2029-30 | BP39: 2030-31 | BQ39: 2031-32 | BR39: 2032-33 | BT39: 2023-24 | BU39: 2024-25 | BV39: 2025-26 | BW39: 2026-27 | BX39: 2027-28 | BY39: 2028-29 | BZ39: 2029-30 | CA39: 2030-31 | CB39: 2031-32 | CC39: 2032-33 | CE39: 2023-24 | CF39: 2024-25 | CG39: 2025-26 | CH39: 2026-27 | CI39: 2027-28 | CJ39: 2028-29 | CK39: 2029-30 | CL39: 2030-31 | CM39: 2031-32 | CN39: 2032-33 | CP39: 2023-24 | CQ39: 2024-25 | CR39: 2025-26 | CS39: 2026-27 | CT39: 2027-28 | CU39: 2028-29 | CV39: 2029-30 | CW39: 2030-31 | CX39: 2031-32 | CY39: 2032-33
BI40: 1 | BJ40: 2 | BK40: 3 | BL40: 4 | BM40: 5 | BN40: 6 | BO40: 7 | BP40: 8 | BQ40: 9 | BR40: 10 | CP40: 1 | CQ40: 2 | CR40: 3 | CS40: 4 | CT40: 5 | CU40: 6 | CV40: 7 | CW40: 8 | CX40: 9 | CY40: 10
C41: Project/program Name | E41: Service | F41: Major cost driver | G41: Asset category | H41: Capital type | J41: Reg Depreciation Method | K41: Year asset operational | L41: Asset life (Regulatory) | M41: Asset life (Tax) | Q41: =SUM(Q42:Q1016) -> 351.963712 | R41: 380.20356 | S41: 392.378899 | T41: 399.872685 | U41: 396.652352 | V41: 404.939423 | W41: 412.623343 | X41: 412.998929 | Y41: =SUM(Y42:Y1016) -> 412.556682 | Z41: =SUM(Z42:Z1016) -> 398.131016 | AB41: =SUM(AB42:AB1016) -> 12.529 | AC41: 0 | AD41: 0 | AE41: 0 | AF41: 0 | AG41: 0 | AH41: 0 | AI41: 0 | AJ41: 0 | AK41: 0 | AM41: =SUM(AM42:AM1016) -> 33.24766856 | AN41: 34.71100123 | AO41: 36.47113926 | AP41: 45.93990749 | AQ41: 48.04296779 | AR41: 54.81239619 | AS41: 54.84421416 | AT41: 54.87603213 | AU41: 54.17066036 | AV41: 54.20247834 | AX41: =SUM(AX42:AX1016) -> 306.1870434 | AY41: 345.4925588 | AZ41: 355.9077597 | BA41: 353.9327775 | BB41: 348.6093842 | BC41: 350.1270268 | BD41: 357.7791288 | BE41: 358.1228969 | BF41: 358.3860216 | BG41: 343.9285377 | BI41: =SUM(BI42:BI1016) -> 5.462674716 | BJ41: 16.22185757 | BK41: 26.85818082 | BL41: 38.54499581 | BM41: 51.08816184 | BN41: 63.50502866 | BO41: 75.5189568 | BP41: 86.50892201 | BQ41: =SUM(BQ42:BQ1016) -> 98.40304347 | BR41: =SUM(BR42:BR1016) -> 109.5258432 | BT41: =SUM(BT42:BT1016) -> 288.3179824 | BU41: 266.7871578 | BV41: 266.1183347 | BW41: 409.9042665 | BX41: 378.1793392 | BY41: 345.5199228 | BZ41: 367.6827218 | CA41: 293.9134819 | CB41: =SUM(CB42:CB1016) -> 518.1213906 | CC41: =SUM(CC42:CC1016) -> 343.9285377 | CE41: =SUM(CE42:CE1016) -> 362.5226234 | CF41: 403.3579568 | CG41: 428.7630172 | CH41: 450.0602298 | CI41: 459.8287882 | CJ41: 483.518848 | CK41: 507.4746658 | CL41: 523.1746869 | CM41: =SUM(CM42:CM1016) -> 538.2928955 | CN41: =SUM(CN42:CN1016) -> 535.0547935 | CP41: =SUM(CP42:CP1016) -> 6.133391528 | CQ41: 18.84646885 | CR41: 32.36598924 | CS41: 46.48366197 | CT41: 61.01228762 | CU41: 76.0255482 | CV41: 91.13490425 | CW41: 106.4355547 | CX41: =SUM(CX42:CX1016) -> 121.5114387 | CY41: =SUM(CY42:CY1016) -> 135.2570368
C42: Ballarto Road East Sewer Pump Station and Rising Main | E42: Sewerage | F42: Growth | G42: Pipelines/network | H42: Top 10 Major Projects | J42: Straight line | K42: 2028-29 | L42: 30 | M42: 30 | Q42: 0 | R42: 0 | S42: 0.525445 | T42: 9.983461 | U42: 21.017812 | V42: 35.730276 | W42: 0 | X42: 0 | Y42: 0 | Z42: 0 | AX42: =+Q42-AB42-AM42 -> 0 | AY42: =+R42-AC42-AN42 -> 0 | AZ42: =+S42-AD42-AO42 -> 0.525445 | BA42: =+T42-AE42-AP42 -> 9.983461 | BB42: =+U42-AF42-AQ42 -> 21.017812 | BC42: =+V42-AG42-AR42 -> 35.730276 | BD42: =+W42-AH42-AS42 -> 0 | BE42: =+X42-AI42-AT42 -> 0 | BF42: =+Y42-AJ42-AU42 -> 0 | BG42: =+Z42-AK42-AV42 -> 0 | BI42: =IF($L42=0,0, IF($L42<=0.5,BT42, IF($J42="straight line", IF((LEFT(BI$39,4)*1)-INT($L42)<LEFT($BI$39,4)*1,0,((OFFSET(BT42,0,-INT($L42+0.5),1,1))/$L42)*(IF($L42-INT($L42)>0.5,$L42-0.5-INT($L42),IF($L42-INT($L42)<=0.5,$L42-0.5-INT($L42)+1,0)))) +BT42/$L42*0.5, IF($J42="Declining Balance",-$BI$38,0)))) -> 0 | BJ42: =IF($L42=0,0, IF($L42<=0.5,BU42, IF(AND($J42="straight line",$L42<1.51),(BT42-((BT42/$L42)*0.5))+BU42/$L42*0.5, IF($J42="straight line", IF((LEFT(BJ$39,4)*1)-INT($L42)<LEFT($BI$39,4)*1,0,((OFFSET(BU42,0,-INT($L42+0.5),1,1))/$L42)*(IF($L42-INT($L42)>0.5,$L42-0.5-INT($L42),IF($L42-INT($L42)<=0.5,$L42-0.5-INT($L42)+1,0)))) +BU42/$L42*0.5 +SUM(OFFSET(BU42,0,MAX(-INT($L42+(0.5-(10^-12))),-BJ$40)+1,1,MIN(INT($L42+(0.5-(10^-12))),BJ$40)-1))*1/$L42, IF($J42="Declining Balance",-$BI$38,0))))) -> 0 | BK42: =IF($L42=0,0, IF($L42<=0.5,BV42, IF(AND($J42="straight line",$L42<1.51),(BU42-((BU42/$L42)*0.5))+BV42/$L42*0.5, IF($J42="straight line", IF((LEFT(BK$39,4)*1)-INT($L42)<LEFT($BI$39,4)*1,0,((OFFSET(BV42,0,-INT($L42+0.5),1,1))/$L42)*(IF($L42-INT($L42)>0.5,$L42-0.5-INT($L42),IF($L42-INT($L42)<=0.5,$L42-0.5-INT($L42)+1,0)))) +BV42/$L42*0.5 +SUM(OFFSET(BV42,0,MAX(-INT($L42+(0.5-(10^-12))),-BK$40)+1,1,MIN(INT($L42+(0.5-(10^-12))),BK$40)-1))*1/$L42, IF($J42="Declining Balance",-$BI$38,0))))) -> 0 | BL42: =IF($L42=0,0, IF($L42<=0.5,BW42, IF(AND($J42="straight line",$L42<1.51),(BV42-((BV42/$L42)*0.5))+BW42/$L42*0.5, IF($J42="straight line", IF((LEFT(BL$39,4)*1)-INT($L42)<LEFT($BI$39,4)*1,0,((OFFSET(BW42,0,-INT($L42+0.5),1,1))/$L42)*(IF($L42-INT($L42)>0.5,$L42-0.5-INT($L42),IF($L42-INT($L42)<=0.5,$L42-0.5-INT($L42)+1,0)))) +BW42/$L42*0.5 +SUM(OFFSET(BW42,0,MAX(-INT($L42+(0.5-(10^-12))),-BL$40)+1,1,MIN(INT($L42+(0.5-(10^-12))),BL$40)-1))*1/$L42, IF($J42="Declining Balance",-$BI$38,0))))) -> 0 | BM42: =IF($L42=0,0, IF($L42<=0.5,BX42, IF(AND($J42="straight line",$L42<1.51),(BW42-((BW42/$L42)*0.5))+BX42/$L42*0.5, IF($J42="straight line", IF((LEFT(BM$39,4)*1)-INT($L42)<LEFT($BI$39,4)*1,0,((OFFSET(BX42,0,-INT($L42+0.5),1,1))/$L42)*(IF($L42-INT($L42)>0.5,$L42-0.5-INT($L42),IF($L42-INT($L42)<=0.5,$L42-0.5-INT($L42)+1,0)))) +BX42/$L42*0.5 +SUM(OFFSET(BX42,0,MAX(-INT($L42+(0.5-(10^-12))),-BM$40)+1,1,MIN(INT($L42+(0.5-(10^-12))),BM$40)-1))*1/$L42, IF($J42="Declining Balance",-$BI$38,0))))) -> 0 | BN42: =IF($L42=0,0, IF($L42<=0.5,BY42, IF(AND($J42="straight line",$L42<1.51),(BX42-((BX42/$L42)*0.5))+BY42/$L42*0.5, IF($J42="straight line", IF((LEFT(BN$39,4)*1)-INT($L42)<LEFT($BI$39,4)*1,0,((OFFSET(BY42,0,-INT($L42+0.5),1,1))/$L42)*(IF($L42-INT($L42)>0.5,$L42-0.5-INT($L42),IF($L42-INT($L42)<=0.5,$L42-0.5-INT($L42)+1,0)))) +BY42/$L42*0.5 +SUM(OFFSET(BY42,0,MAX(-INT($L42+(0.5-(10^-12))),-BN$40)+1,1,MIN(INT($L42+(0.5-(10^-12))),BN$40)-1))*1/$L42, IF($J42="Declining Balance",-$BI$38,0))))) -> 1.1209499 | BO42: =IF($L42=0,0, IF($L42<=0.5,BZ42, IF(AND($J42="straight line",$L42<1.51),(BY42-((BY42/$L42)*0.5))+BZ42/$L42*0.5, IF($J42="straight line", IF((LEFT(BO$39,4)*1)-INT($L42)<LEFT($BI$39,4)*1,0,((OFFSET(BZ42,0,-INT($L42+0.5),1,1))/$L42)*(IF($L42-INT($L42)>0.5,$L42-0.5-INT($L42),IF($L42-INT($L42)<=0.5,$L42-0.5-INT($L42)+1,0)))) +BZ42/$L42*0.5 +SUM(OFFSET(BZ42,0,MAX(-INT($L42+(0.5-(10^-12))),-BO$40)+1,1,MIN(INT($L42+(0.5-(10^-12))),BO$40)-1))*1/$L42, IF($J42="Declining Balance",-$BI$38,0))))) -> 2.2418998 | BP42: =IF($L42=0,0, IF($L42<=0.5,CA42, IF(AND($J42="straight line",$L42<1.51),(BZ42-((BZ42/$L42)*0.5))+CA42/$L42*0.5, IF($J42="straight line", IF((LEFT(BP$39,4)*1)-INT($L42)<LEFT($BI$39,4)*1,0,((OFFSET(CA42,0,-INT($L42+0.5),1,1))/$L42)*(IF($L42-INT($L42)>0.5,$L42-0.5-INT($L42),IF($L42-INT($L42)<=0.5,$L42-0.5-INT($L42)+1,0)))) +CA42/$L42*0.5 +SUM(OFFSET(CA42,0,MAX(-INT($L42+(0.5-(10^-12))),-BP$40)+1,1,MIN(INT($L42+(0.5-(10^-12))),BP$40)-1))*1/$L42, IF($J42="Declining Balance",-$BI$38,0))))) -> 2.2418998 | BQ42: =IF($L42=0,0, IF($L42<=0.5,CB42, IF(AND($J42="straight line",$L42<1.51),(CA42-((CA42/$L42)*0.5))+CB42/$L42*0.5, IF($J42="straight line", IF((LEFT(BQ$39,4)*1)-INT($L42)<LEFT($BI$39,4)*1,0,((OFFSET(CB42,0,-INT($L42+0.5),1,1))/$L42)*(IF($L42-INT($L42)>0.5,$L42-0.5-INT($L42),IF($L42-INT($L42)<=0.5,$L42-0.5-INT($L42)+1,0)))) +CB42/$L42*0.5 +SUM(OFFSET(CB42,0,MAX(-INT($L42+(0.5-(10^-12))),-BQ$40)+1,1,MIN(INT($L42+(0.5-(10^-12))),BQ$40)-1))*1/$L42, IF($J42="Declining Balance",-$BI$38,0))))) -> 2.2418998 | BR42: =IF($L42=0,0, IF($L42<=0.5,CC42, IF(AND($J42="straight line",$L42<1.51),(CB42-((CB42/$L42)*0.5))+CC42/$L42*0.5, IF($J42="straight line", IF((LEFT(BR$39,4)*1)-INT($L42)<LEFT($BI$39,4)*1,0,((OFFSET(CC42,0,-INT($L42+0.5),1,1))/$L42)*(IF($L42-INT($L42)>0.5,$L42-0.5-INT($L42),IF($L42-INT($L42)<=0.5,$L42-0.5-INT($L42)+1,0)))) +CC42/$L42*0.5 +SUM(OFFSET(CC42,0,MAX(-INT($L42+(0.5-(10^-12))),-BR$40)+1,1,MIN(INT($L42+(0.5-(10^-12))),BR$40)-1))*1/$L42, IF($J42="Declining Balance",-$BI$38,0))))) -> 2.2418998 | BT42: =+IF($K42="Ongoing",AX42,IF(RIGHT($K42,2)=RIGHT(BT$39,2),SUM($AX42:AX42),0)+IF(RIGHT(BT$39,2)>RIGHT($K42,2),AX42,0)) -> 0 | BU42: =+IF($K42="Ongoing",AY42,IF(RIGHT($K42,2)=RIGHT(BU$39,2),SUM($AX42:AY42),0)+IF(RIGHT(BU$39,2)>RIGHT($K42,2),AY42,0)) -> 0 | BV42: =+IF($K42="Ongoing",AZ42,IF(RIGHT($K42,2)=RIGHT(BV$39,2),SUM($AX42:AZ42),0)+IF(RIGHT(BV$39,2)>RIGHT($K42,2),AZ42,0)) -> 0 | BW42: =+IF($K42="Ongoing",BA42,IF(RIGHT($K42,2)=RIGHT(BW$39,2),SUM($AX42:BA42),0)+IF(RIGHT(BW$39,2)>RIGHT($K42,2),BA42,0)) -> 0 | BX42: =+IF($K42="Ongoing",BB42,IF(RIGHT($K42,2)=RIGHT(BX$39,2),SUM($AX42:BB42),0)+IF(RIGHT(BX$39,2)>RIGHT($K42,2),BB42,0)) -> 0 | BY42: =+IF($K42="Ongoing",BC42,IF(RIGHT($K42,2)=RIGHT(BY$39,2),SUM($AX42:BC42),0)+IF(RIGHT(BY$39,2)>RIGHT($K42,2),BC42,0)) -> 67.256994 | BZ42: =+IF($K42="Ongoing",BD42,IF(RIGHT($K42,2)=RIGHT(BZ$39,2),SUM($AX42:BD42),0)+IF(RIGHT(BZ$39,2)>RIGHT($K42,2),BD42,0)) -> 0 | CA42: =+IF($K42="Ongoing",BE42,IF(RIGHT($K42,2)=RIGHT(CA$39,2),SUM($AX42:BE42),0)+IF(RIGHT(CA$39,2)>RIGHT($K42,2),BE42,0)) -> 0 | CB42: =+IF($K42="Ongoing",BF42,IF(RIGHT($K42,2)=RIGHT(CB$39,2),SUM($AX42:BF42),0)+IF(RIGHT(CB$39,2)>RIGHT($K42,2),BF42,0)) -> 0 | CC42: =+IF($K42="Ongoing",BG42,IF(RIGHT($K42,2)=RIGHT(CC$39,2),SUM($AX42:BG42),0)+IF(RIGHT(CC$39,2)>RIGHT($K42,2),BG42,0)) -> 0 | CE42: =+Q42*KeyAssumptionsPriceControl_FO!AC$15 -> 0 | CF42: =+R42*KeyAssumptionsPriceControl_FO!AD$15 -> 0 | CG42: =+S42*KeyAssumptionsPriceControl_FO!AE$15 -> 0.5741679385 | CH42: =+T42*KeyAssumptionsPriceControl_FO!AF$15 -> 11.23647331 | CI42: =+U42*KeyAssumptionsPriceControl_FO!AG$15 -> 24.36540455 | CJ42: =+V42*KeyAssumptionsPriceControl_FO!AH$15 -> 42.66381811 | CK42: =+W42*KeyAssumptionsPriceControl_FO!AI$15 -> 0 | CL42: =+X42*KeyAssumptionsPriceControl_FO!AJ$15 -> 0 | CM42: =+Y42*KeyAssumptionsPriceControl_FO!AK$15 -> 0 | CN42: =+Z42*KeyAssumptionsPriceControl_FO!AL$15 -> 0 | CP42: =IF($M42=0,0, IF($M42<=0.5,CE42, IF($J42="straight line", IF((LEFT(CP$39,4)*1)-INT($M42)<LEFT($CP$39,4)*1,0,((OFFSET(CE42,0,-INT($M42+0.5),1,1))/$M42)*(IF($M42-INT($M42)>0.5,$M42-0.5-INT($M42),IF($M42-INT($M42)<=0.5,$M42-0.5-INT($M42)+1,0)))) +CE42/$M42*0.5, IF($J42="Declining Balance",-$CP$38,0)))) -> 0 | CQ42: =IF($M42=0,0, IF($M42<=0.5,CF42, IF(AND($J42="straight line",$M42<1.51),(CE42-((CE42/$M42)*0.5))+CF42/$M42*0.5, IF($J42="straight line", IF((LEFT(CQ$39,4)*1)-INT($M42)<LEFT($CP$39,4)*1,0,((OFFSET(CF42,0,-INT($M42+0.5),1,1))/$M42)*(IF($M42-INT($M42)>0.5,$M42-0.5-INT($M42),IF($M42-INT($M42)<=0.5,$M42-0.5-INT($M42)+1,0)))) +CF42/$M42*0.5 +SUM(OFFSET(CF42,0,MAX(-INT($M42+(0.5-(10^-12))),-CQ$40)+1,1,MIN(INT($M42+(0.5-(10^-12))),CQ$40)-1))*1/$M42, IF($J42="Declining Balance",-$CP$38,0))))) -> 0 | CR42: =IF($M42=0,0, IF($M42<=0.5,CG42, IF(AND($J42="straight line",$M42<1.51),(CF42-((CF42/$M42)*0.5))+CG42/$M42*0.5, IF($J42="straight line", IF((LEFT(CR$39,4)*1)-INT($M42)<LEFT($CP$39,4)*1,0,((OFFSET(CG42,0,-INT($M42+0.5),1,1))/$M42)*(IF($M42-INT($M42)>0.5,$M42-0.5-INT($M42),IF($M42-INT($M42)<=0.5,$M42-0.5-INT($M42)+1,0)))) +CG42/$M42*0.5 +SUM(OFFSET(CG42,0,MAX(-INT($M42+(0.5-(10^-12))),-CR$40)+1,1,MIN(INT($M42+(0.5-(10^-12))),CR$40)-1))*1/$M42, IF($J42="Declining Balance",-$CP$38,0))))) -> 0.009569465642 | CS42: =IF($M42=0,0, IF($M42<=0.5,CH42, IF(AND($J42="straight line",$M42<1.51),(CG42-((CG42/$M42)*0.5))+CH42/$M42*0.5, IF($J42="straight line", IF((LEFT(CS$39,4)*1)-INT($M42)<LEFT($CP$39,4)*1,0,((OFFSET(CH42,0,-INT($M42+0.5),1,1))/$M42)*(IF($M42-INT($M42)>0.5,$M42-0.5-INT($M42),IF($M42-INT($M42)<=0.5,$M42-0.5-INT($M42)+1,0)))) +CH42/$M42*0.5 +SUM(OFFSET(CH42,0,MAX(-INT($M42+(0.5-(10^-12))),-CS$40)+1,1,MIN(INT($M42+(0.5-(10^-12))),CS$40)-1))*1/$M42, IF($J42="Declining Balance",-$CP$38,0))))) -> 0.2064134864 | CT42: =IF($M42=0,0, IF($M42<=0.5,CI42, IF(AND($J42="straight line",$M42<1.51),(CH42-((CH42/$M42)*0.5))+CI42/$M42*0.5, IF($J42="straight line", IF((LEFT(CT$39,4)*1)-INT($M42)<LEFT($CP$39,4)*1,0,((OFFSET(CI42,0,-INT($M42+0.5),1,1))/$M42)*(IF($M42-INT($M42)>0.5,$M42-0.5-INT($M42),IF($M42-INT($M42)<=0.5,$M42-0.5-INT($M42)+1,0)))) +CI42/$M42*0.5 +SUM(OFFSET(CI42,0,MAX(-INT($M42+(0.5-(10^-12))),-CT$40)+1,1,MIN(INT($M42+(0.5-(10^-12))),CT$40)-1))*1/$M42, IF($J42="Declining Balance",-$CP$38,0))))) -> 0.7997781174 | CU42: =IF($M42=0,0, IF($M42<=0.5,CJ42, IF(AND($J42="straight line",$M42<1.51),(CI42-((CI42/$M42)*0.5))+CJ42/$M42*0.5, IF($J42="straight line", IF((LEFT(CU$39,4)*1)-INT($M42)<LEFT($CP$39,4)*1,0,((OFFSET(CJ42,0,-INT($M42+0.5),1,1))/$M42)*(IF($M42-INT($M42)>0.5,$M42-0.5-INT($M42),IF($M42-INT($M42)<=0.5,$M42-0.5-INT($M42)+1,0)))) +CJ42/$M42*0.5 +SUM(OFFSET(CJ42,0,MAX(-INT($M42+(0.5-(10^-12))),-CU$40)+1,1,MIN(INT($M42+(0.5-(10^-12))),CU$40)-1))*1/$M42, IF($J42="Declining Balance",-$CP$38,0))))) -> 1.916931829 | CV42: =IF($M42=0,0, IF($M42<=0.5,CK42, IF(AND($J42="straight line",$M42<1.51),(CJ42-((CJ42/$M42)*0.5))+CK42/$M42*0.5, IF($J42="straight line", IF((LEFT(CV$39,4)*1)-INT($M42)<LEFT($CP$39,4)*1,0,((OFFSET(CK42,0,-INT($M42+0.5),1,1))/$M42)*(IF($M42-INT($M42)>0.5,$M42-0.5-INT($M42),IF($M42-INT($M42)<=0.5,$M42-0.5-INT($M42)+1,0)))) +CK42/$M42*0.5 +SUM(OFFSET(CK42,0,MAX(-INT($M42+(0.5-(10^-12))),-CV$40)+1,1,MIN(INT($M42+(0.5-(10^-12))),CV$40)-1))*1/$M42, IF($J42="Declining Balance",-$CP$38,0))))) -> 2.627995464 | CW42: =IF($M42=0,0, IF($M42<=0.5,CL42, IF(AND($J42="straight line",$M42<1.51),(CK42-((CK42/$M42)*0.5))+CL42/$M42*0.5, IF($J42="straight line", IF((LEFT(CW$39,4)*1)-INT($M42)<LEFT($CP$39,4)*1,0,((OFFSET(CL42,0,-INT($M42+0.5),1,1))/$M42)*(IF($M42-INT($M42)>0.5,$M42-0.5-INT($M42),IF($M42-INT($M42)<=0.5,$M42-0.5-INT($M42)+1,0)))) +CL42/$M42*0.5 +SUM(OFFSET(CL42,0,MAX(-INT($M42+(0.5-(10^-12))),-CW$40)+1,1,MIN(INT($M42+(0.5-(10^-12))),CW$40)-1))*1/$M42, IF($J42="Declining Balance",-$CP$38,0))))) -> 2.627995464 | CX42: =IF($M42=0,0, IF($M42<=0.5,CM42, IF(AND($J42="straight line",$M42<1.51),(CL42-((CL42/$M42)*0.5))+CM42/$M42*0.5, IF($J42="straight line", IF((LEFT(CX$39,4)*1)-INT($M42)<LEFT($CP$39,4)*1,0,((OFFSET(CM42,0,-INT($M42+0.5),1,1))/$M42)*(IF($M42-INT($M42)>0.5,$M42-0.5-INT($M42),IF($M42-INT($M42)<=0.5,$M42-0.5-INT($M42)+1,0)))) +CM42/$M42*0.5 +SUM(OFFSET(CM42,0,MAX(-INT($M42+(0.5-(10^-12))),-CX$40)+1,1,MIN(INT($M42+(0.5-(10^-12))),CX$40)-1))*1/$M42, IF($J42="Declining Balance",-$CP$38,0))))) -> 2.627995464 | CY42: =IF($M42=0,0, IF($M42<=0.5,CN42, IF(AND($J42="straight line",$M42<1.51),(CM42-((CM42/$M42)*0.5))+CN42/$M42*0.5, IF($J42="straight line", IF((LEFT(CY$39,4)*1)-INT($M42)<LEFT($CP$39,4)*1,0,((OFFSET(CN42,0,-INT($M42+0.5),1,1))/$M42)*(IF($M42-INT($M42)>0.5,$M42-0.5-INT($M42),IF($M42-INT($M42)<=0.5,$M42-0.5-INT($M42)+1,0)))) +CN42/$M42*0.5 +SUM(OFFSET(CN42,0,MAX(-INT($M42+(0.5-(10^-12))),-CY$40)+1,1,MIN(INT($M42+(0.5-(10^-12))),CY$40)-1))*1/$M42, IF($J42="Declining Balance",-$CP$38,0))))) -> 2.627995464
C43: Dingley Recycled Water Scheme | E43: Recycled Water | F43: Growth | G43: Pipelines/network | H43: Top 10 Major Projects | J43: Straight line | K43: 2025-26 | L43: 50 | M43: 50 | Q43: 0.210178 | R43: 3.340781 | S43: 6.503962 | T43: 9.458015 | U43: 9.458015 | V43: 6.05313 | W43: 6.05313 | X43: 0 | Y43: 0 | Z43: 0 | AB43: 12.529 | AX43: -12.318822 | AY43: 3.340781 | AZ43: 6.503962 | BA43: 9.458015 | BB43: 9.458015 | BC43: 6.05313 | BD43: 6.05313 | BE43: 0 | BF43: 0 | BG43: 0 | BI43: =IF($L43=0,0, IF($L43<=0.5,BT43, IF($J43="straight line", IF((LEFT(BI$39,4)*1)-INT($L43)<LEFT($BI$39,4)*1,0,((OFFSET(BT43,0,-INT($L43+0.5),1,1))/$L43)*(IF($L43-INT($L43)>0.5,$L43-0.5-INT($L43),IF($L43-INT($L43)<=0.5,$L43-0.5-INT($L43)+1,0)))) +BT43/$L43*0.5, IF($J43="Declining Balance",-$BI$38,0)))) -> 0 | BJ43: =IF($L43=0,0, IF($L43<=0.5,BU43, IF(AND($J43="straight line",$L43<1.51),(BT43-((BT43/$L43)*0.5))+BU43/$L43*0.5, IF($J43="straight line", IF((LEFT(BJ$39,4)*1)-INT($L43)<LEFT($BI$39,4)*1,0,((OFFSET(BU43,0,-INT($L43+0.5),1,1))/$L43)*(IF($L43-INT($L43)>0.5,$L43-0.5-INT($L43),IF($L43-INT($L43)<=0.5,$L43-0.5-INT($L43)+1,0)))) +BU43/$L43*0.5 +SUM(OFFSET(BU43,0,MAX(-INT($L43+(0.5-(10^-12))),-BJ$40)+1,1,MIN(INT($L43+(0.5-(10^-12))),BJ$40)-1))*1/$L43, IF($J43="Declining Balance",-$BI$38,0))))) -> 0 | BK43: -0.02474079 | BL43: 0.04509857 | BM43: 0.23425887 | BN43: 0.38937032 | BO43: 0.51043292 | BP43: 0.57096422 | BQ43: 0.57096422 | BR43: 0.57096422 | BT43: =+IF($K43="Ongoing",AX43,IF(RIGHT($K43,2)=RIGHT(BT$39,2),SUM($AX43:AX43),0)+IF(RIGHT(BT$39,2)>RIGHT($K43,2),AX43,0)) -> 0 | BU43: =+IF($K43="Ongoing",AY43,IF(RIGHT($K43,2)=RIGHT(BU$39,2),SUM($AX43:AY43),0)+IF(RIGHT(BU$39,2)>RIGHT($K43,2),AY43,0)) -> 0 | BV43: =+IF($K43="Ongoing",AZ43,IF(RIGHT($K43,2)=RIGHT(BV$39,2),SUM($AX43:AZ43),0)+IF(RIGHT(BV$39,2)>RIGHT($K43,2),AZ43,0)) -> -2.474079 | BW43: =+IF($K43="Ongoing",BA43,IF(RIGHT($K43,2)=RIGHT(BW$39,2),SUM($AX43:BA43),0)+IF(RIGHT(BW$39,2)>RIGHT($K43,2),BA43,0)) -> 9.458015 | BX43: =+IF($K43="Ongoing",BB43,IF(RIGHT($K43,2)=RIGHT(BX$39,2),SUM($AX43:BB43),0)+IF(RIGHT(BX$39,2)>RIGHT($K43,2),BB43,0)) -> 9.458015 | BY43: =+IF($K43="Ongoing",BC43,IF(RIGHT($K43,2)=RIGHT(BY$39,2),SUM($AX43:BC43),0)+IF(RIGHT(BY$39,2)>RIGHT($K43,2),BC43,0)) -> 6.05313 | BZ43: =+IF($K43="Ongoing",BD43,IF(RIGHT($K43,2)=RIGHT(BZ$39,2),SUM($AX43:BD43),0)+IF(RIGHT(BZ$39,2)>RIGHT($K43,2),BD43,0)) -> 6.05313 | CA43: =+IF($K43="Ongoing",BE43,IF(RIGHT($K43,2)=RIGHT(CA$39,2),SUM($AX43:BE43),0)+IF(RIGHT(CA$39,2)>RIGHT($K43,2),BE43,0)) -> 0 | CB43: =+IF($K43="Ongoing",BF43,IF(RIGHT($K43,2)=RIGHT(CB$39,2),SUM($AX43:BF43),0)+IF(RIGHT(CB$39,2)>RIGHT($K43,2),BF43,0)) -> 0 | CC43: =+IF($K43="Ongoing",BG43,IF(RIGHT($K43,2)=RIGHT(CC$39,2),SUM($AX43:BG43),0)+IF(RIGHT(CC$39,2)>RIGHT($K43,2),BG43,0)) -> 0 | CE43: =+Q43*KeyAssumptionsPriceControl_FO!AC$15 -> 0.21648334 | CF43: =+R43*KeyAssumptionsPriceControl_FO!AD$15 -> 3.544234563 | CG43: =+S43*KeyAssumptionsPriceControl_FO!AE$15 -> 7.107054884 | CH43: =+T43*KeyAssumptionsPriceControl_FO!AF$15 -> 10.64507921 | CI43: =+U43*KeyAssumptionsPriceControl_FO!AG$15 -> 10.96443158 | CJ43: =+V43*KeyAssumptionsPriceControl_FO!AH$15 -> 7.227753778 | CK43: =+W43*KeyAssumptionsPriceControl_FO!AI$15 -> 7.444586391 | CL43: =+X43*KeyAssumptionsPriceControl_FO!AJ$15 -> 0 | CM43: =+Y43*KeyAssumptionsPriceControl_FO!AK$15 -> 0 | CN43: =+Z43*KeyAssumptionsPriceControl_FO!AL$15 -> 0 | CP43: 0.0021648334 | CQ43: 0.03977201243 | CR43: 0.1462849069 | CS43: 0.3238062478 | CT43: 0.5399013557 | CU43: 0.7218232094 | CV43: 0.868546611 | CW43: 0.9429924749 | CX43: 0.9429924749 | CY43: 0.9429924749
C44: Fishermans Bend Water Recycling Plant and Sewer Connection | E44: Recycled Water | F44: Growth | G44: Treatment | H44: Top 10 Major Projects | J44: Straight line | K44: 2029-30 | L44: 50 | M44: 50 | Q44: 0.735623 | R44: 4.119491 | S44: 4.119491 | T44: 12.925954 | U44: 17.234606 | V44: 13.960031 | W44: 11.429486 | X44: 4.203562 | Y44: 0 | Z44: 0 | AX44: 0.735623 | AY44: 4.119491 | AZ44: 4.119491 | BA44: 12.925954 | BB44: 17.234606 | BC44: 13.960031 | BD44: 11.429486 | BE44: 4.203562 | BF44: 0 | BG44: 0 | BI44: 0 | BJ44: 0 | BK44: 0 | BL44: 0 | BM44: 0 | BN44: 0 | BO44: 0.64524682 | BP44: 1.33252926 | BQ44: 1.37456488 | BR44: 1.37456488 | BT44: =+IF($K44="Ongoing",AX44,IF(RIGHT($K44,2)=RIGHT(BT$39,2),SUM($AX44:AX44),0)+IF(RIGHT(BT$39,2)>RIGHT($K44,2),AX44,0)) -> 0 | BU44: =+IF($K44="Ongoing",AY44,IF(RIGHT($K44,2)=RIGHT(BU$39,2),SUM($AX44:AY44),0)+IF(RIGHT(BU$39,2)>RIGHT($K44,2),AY44,0)) -> 0 | BV44: =+IF($K44="Ongoing",AZ44,IF(RIGHT($K44,2)=RIGHT(BV$39,2),SUM($AX44:AZ44),0)+IF(RIGHT(BV$39,2)>RIGHT($K44,2),AZ44,0)) -> 0 | BW44: =+IF($K44="Ongoing",BA44,IF(RIGHT($K44,2)=RIGHT(BW$39,2),SUM($AX44:BA44),0)+IF(RIGHT(BW$39,2)>RIGHT($K44,2),BA44,0)) -> 0 | BX44: =+IF($K44="Ongoing",BB44,IF(RIGHT($K44,2)=RIGHT(BX$39,2),SUM($AX44:BB44),0)+IF(RIGHT(BX$39,2)>RIGHT($K44,2),BB44,0)) -> 0 | BY44: =+IF($K44="Ongoing",BC44,IF(RIGHT($K44,2)=RIGHT(BY$39,2),SUM($AX44:BC44),0)+IF(RIGHT(BY$39,2)>RIGHT($K44,2),BC44,0)) -> 0 | BZ44: =+IF($K44="Ongoing",BD44,IF(RIGHT($K44,2)=RIGHT(BZ$39,2),SUM($AX44:BD44),0)+IF(RIGHT(BZ$39,2)>RIGHT($K44,2),BD44,0)) -> 64.524682 | CA44: =+IF($K44="Ongoing",BE44,IF(RIGHT($K44,2)=RIGHT(CA$39,2),SUM($AX44:BE44),0)+IF(RIGHT(CA$39,2)>RIGHT($K44,2),BE44,0)) -> 4.203562 | CB44: =+IF($K44="Ongoing",BF44,IF(RIGHT($K44,2)=RIGHT(CB$39,2),SUM($AX44:BF44),0)+IF(RIGHT(CB$39,2)>RIGHT($K44,2),BF44,0)) -> 0 | CC44: =+IF($K44="Ongoing",BG44,IF(RIGHT($K44,2)=RIGHT(CC$39,2),SUM($AX44:BG44),0)+IF(RIGHT(CC$39,2)>RIGHT($K44,2),BG44,0)) -> 0 | CE44: =+Q44*KeyAssumptionsPriceControl_FO!AC$15 -> 0.75769169 | CF44: =+R44*KeyAssumptionsPriceControl_FO!AD$15 -> 4.370368002 | CG44: =+S44*KeyAssumptionsPriceControl_FO!AE$15 -> 4.501479042 | CH44: =+T44*KeyAssumptionsPriceControl_FO!AF$15 -> 14.5482751 | CI44: =+U44*KeyAssumptionsPriceControl_FO!AG$15 -> 19.97963192 | CJ44: =+V44*KeyAssumptionsPriceControl_FO!AH$15 -> 16.66900708 | CK44: =+W44*KeyAssumptionsPriceControl_FO!AI$15 -> 14.05682613 | CL44: =+X44*KeyAssumptionsPriceControl_FO!AJ$15 -> 5.324946577 | CM44: =+Y44*KeyAssumptionsPriceControl_FO!AK$15 -> 0 | CN44: =+Z44*KeyAssumptionsPriceControl_FO!AL$15 -> 0 | CP44: 0.0075769169 | CQ44: 0.05885751382 | CR44: 0.1475759843 | CS44: 0.3380735257 | CT44: 0.6833525959 | CU44: 1.049838986 | CV44: 1.357097318 | CW44: 1.550915045 | CX44: 1.604164511 | CY44: 1.604164511
C45: Hanna Street Capacity Upgrade - Stage 2 | E45: Sewerage | F45: Growth | G45: Pipelines/network | H45: Top 10 Major Projects | J45: Straight line | K45: 2026-27 | L45: 80 | M45: 80 | Q45: 5.254453 | R45: 26.272265 | S45: 31.526718 | T45: 3.614249 | U45: 3.614249 | V45: 0 | W45: 0 | X45: 0 | Y45: 0 | Z45: 0 | AX45: 5.254453 | AY45: 26.272265 | AZ45: 31.526718 | BA45: 3.614249 | BB45: 3.614249 | BC45: 0 | BD45: 0 | BE45: 0 | BF45: 0 | BG45: 0 | BI45: 0 | BJ45: 0 | BK45: 0 | BL45: 0.4166730313 | BM45: 0.8559351188 | BN45: 0.878524175 | BO45: 0.878524175 | BP45: 0.878524175 | BQ45: 0.878524175 | BR45: 0.878524175 | BT45: =+IF($K45="Ongoing",AX45,IF(RIGHT($K45,2)=RIGHT(BT$39,2),SUM($AX45:AX45),0)+IF(RIGHT(BT$39,2)>RIGHT($K45,2),AX45,0)) -> 0 | BU45: =+IF($K45="Ongoing",AY45,IF(RIGHT($K45,2)=RIGHT(BU$39,2),SUM($AX45:AY45),0)+IF(RIGHT(BU$39,2)>RIGHT($K45,2),AY45,0)) -> 0 | BV45: =+IF($K45="Ongoing",AZ45,IF(RIGHT($K45,2)=RIGHT(BV$39,2),SUM($AX45:AZ45),0)+IF(RIGHT(BV$39,2)>RIGHT($K45,2),AZ45,0)) -> 0 | BW45: =+IF($K45="Ongoing",BA45,IF(RIGHT($K45,2)=RIGHT(BW$39,2),SUM($AX45:BA45),0)+IF(RIGHT(BW$39,2)>RIGHT($K45,2),BA45,0)) -> 66.667685 | BX45: =+IF($K45="Ongoing",BB45,IF(RIGHT($K45,2)=RIGHT(BX$39,2),SUM($AX45:BB45),0)+IF(RIGHT(BX$39,2)>RIGHT($K45,2),BB45,0)) -> 3.614249 | BY45: =+IF($K45="Ongoing",BC45,IF(RIGHT($K45,2)=RIGHT(BY$39,2),SUM($AX45:BC45),0)+IF(RIGHT(BY$39,2)>RIGHT($K45,2),BC45,0)) -> 0 | BZ45: =+IF($K45="Ongoing",BD45,IF(RIGHT($K45,2)=RIGHT(BZ$39,2),SUM($AX45:BD45),0)+IF(RIGHT(BZ$39,2)>RIGHT($K45,2),BD45,0)) -> 0 | CA45: =+IF($K45="Ongoing",BE45,IF(RIGHT($K45,2)=RIGHT(CA$39,2),SUM($AX45:BE45),0)+IF(RIGHT(CA$39,2)>RIGHT($K45,2),BE45,0)) -> 0 | CB45: =+IF($K45="Ongoing",BF45,IF(RIGHT($K45,2)=RIGHT(CB$39,2),SUM($AX45:BF45),0)+IF(RIGHT(CB$39,2)>RIGHT($K45,2),BF45,0)) -> 0 | CC45: =+IF($K45="Ongoing",BG45,IF(RIGHT($K45,2)=RIGHT(CC$39,2),SUM($AX45:BG45),0)+IF(RIGHT(CC$39,2)>RIGHT($K45,2),BG45,0)) -> 0 | CE45: =+Q45*KeyAssumptionsPriceControl_FO!AC$15 -> 5.41208659 | CF45: =+R45*KeyAssumptionsPriceControl_FO!AD$15 -> 27.87224594 | CG45: =+S45*KeyAssumptionsPriceControl_FO!AE$15 -> 34.45009598 | CH45: =+T45*KeyAssumptionsPriceControl_FO!AF$15 -> 4.067869091 | CI45: =+U45*KeyAssumptionsPriceControl_FO!AG$15 -> 4.189905164 | CJ45: =+V45*KeyAssumptionsPriceControl_FO!AH$15 -> 0 | CK45: =+W45*KeyAssumptionsPriceControl_FO!AI$15 -> 0 | CL45: =+X45*KeyAssumptionsPriceControl_FO!AJ$15 -> 0 | CM45: =+Y45*KeyAssumptionsPriceControl_FO!AK$15 -> 0 | CN45: =+Z45*KeyAssumptionsPriceControl_FO!AL$15 -> 0 | CP45: 0.03382554119 | CQ45: 0.2418526195 | CR45: 0.6313672565 | CS45: 0.8721045382 | CT45: 0.9237156273 | CU45: 0.9499025345 | CV45: 0.9499025345 | CW45: 0.9499025345 | CX45: 0.9499025345 | CY45: 0.9499025345
C46: Lang Lang Water Recycling Plant | E46: Sewerage | F46: Growth | G46: Treatment | H46: Top 10 Major Projects | J46: Straight line | K46: 2026-27 | L46: 50 | M46: 50 | Q46: 4.203562 | R46: 4.51883 | S46: 8.722392 | T46: 8.722392 | U46: 0 | V46: 0 | W46: 0 | X46: 0 | Y46: 0 | Z46: 0 | AX46: 4.203562 | AY46: 4.51883 | AZ46: 8.722392 | BA46: 8.722392 | BB46: 0 | BC46: 0 | BD46: 0 | BE46: 0 | BF46: 0 | BG46: 0 | BI46: 0 | BJ46: 0 | BK46: 0 | BL46: 0.26167176 | BM46: 0.52334352 | BN46: 0.52334352 | BO46: 0.52334352 | BP46: 0.52334352 | BQ46: 0.52334352 | BR46: 0.52334352 | BT46: =+IF($K46="Ongoing",AX46,IF(RIGHT($K46,2)=RIGHT(BT$39,2),SUM($AX46:AX46),0)+IF(RIGHT(BT$39,2)>RIGHT($K46,2),AX46,0)) -> 0 | BU46: =+IF($K46="Ongoing",AY46,IF(RIGHT($K46,2)=RIGHT(BU$39,2),SUM($AX46:AY46),0)+IF(RIGHT(BU$39,2)>RIGHT($K46,2),AY46,0)) -> 0 | BV46: =+IF($K46="Ongoing",AZ46,IF(RIGHT($K46,2)=RIGHT(BV$39,2),SUM($AX46:AZ46),0)+IF(RIGHT(BV$39,2)>RIGHT($K46,2),AZ46,0)) -> 0 | BW46: =+IF($K46="Ongoing",BA46,IF(RIGHT($K46,2)=RIGHT(BW$39,2),SUM($AX46:BA46),0)+IF(RIGHT(BW$39,2)>RIGHT($K46,2),BA46,0)) -> 26.167176 | BX46: =+IF($K46="Ongoing",BB46,IF(RIGHT($K46,2)=RIGHT(BX$39,2),SUM($AX46:BB46),0)+IF(RIGHT(BX$39,2)>RIGHT($K46,2),BB46,0)) -> 0 | BY46: =+IF($K46="Ongoing",BC46,IF(RIGHT($K46,2)=RIGHT(BY$39,2),SUM($AX46:BC46),0)+IF(RIGHT(BY$39,2)>RIGHT($K46,2),BC46,0)) -> 0 | BZ46: =+IF($K46="Ongoing",BD46,IF(RIGHT($K46,2)=RIGHT(BZ$39,2),SUM($AX46:BD46),0)+IF(RIGHT(BZ$39,2)>RIGHT($K46,2),BD46,0)) -> 0 | CA46: =+IF($K46="Ongoing",BE46,IF(RIGHT($K46,2)=RIGHT(CA$39,2),SUM($AX46:BE46),0)+IF(RIGHT(CA$39,2)>RIGHT($K46,2),BE46,0)) -> 0 | CB46: =+IF($K46="Ongoing",BF46,IF(RIGHT($K46,2)=RIGHT(CB$39,2),SUM($AX46:BF46),0)+IF(RIGHT(CB$39,2)>RIGHT($K46,2),BF46,0)) -> 0 | CC46: =+IF($K46="Ongoing",BG46,IF(RIGHT($K46,2)=RIGHT(CC$39,2),SUM($AX46:BG46),0)+IF(RIGHT(CC$39,2)>RIGHT($K46,2),BG46,0)) -> 0 | CE46: =+Q46*KeyAssumptionsPriceControl_FO!AC$15 -> 4.32966886 | CF46: =+R46*KeyAssumptionsPriceControl_FO!AD$15 -> 4.794026747 | CG46: =+S46*KeyAssumptionsPriceControl_FO!AE$15 -> 9.531193243 | CH46: =+T46*KeyAssumptionsPriceControl_FO!AF$15 -> 9.81712904 | CI46: =+U46*KeyAssumptionsPriceControl_FO!AG$15 -> 0 | CJ46: =+V46*KeyAssumptionsPriceControl_FO!AH$15 -> 0 | CK46: =+W46*KeyAssumptionsPriceControl_FO!AI$15 -> 0 | CL46: =+X46*KeyAssumptionsPriceControl_FO!AJ$15 -> 0 | CM46: =+Y46*KeyAssumptionsPriceControl_FO!AK$15 -> 0 | CN46: =+Z46*KeyAssumptionsPriceControl_FO!AL$15 -> 0 | CP46: 0.0432966886 | CQ46: 0.1345336447 | CR46: 0.2777858446 | CS46: 0.4712690674 | CT46: 0.5694403578 | CU46: 0.5694403578 | CV46: 0.5694403578 | CW46: 0.5694403578 | CX46: 0.5694403578 | CY46: 0.5694403578
C47: Longwarry Water Recycling Plant Upgrade | E47: Sewerage | F47: Growth | G47: Treatment | H47: Top 10 Major Projects | J47: Straight line | K47: 2027-28 | L47: 50 | M47: 50 | Q47: 4.51883 | R47: 11.769975 | S47: 15.973537 | T47: 12.820865 | U47: 3.152672 | V47: 0 | W47: 0 | X47: 0 | Y47: 0 | Z47: 0 | AX47: 4.51883 | AY47: 11.769975 | AZ47: 15.973537 | BA47: 12.820865 | BB47: 3.152672 | BC47: 0 | BD47: 0 | BE47: 0 | BF47: 0 | BG47: 0 | BI47: 0 | BJ47: 0 | BK47: 0 | BL47: 0 | BM47: 0.48235879 | BN47: 0.96471758 | BO47: 0.96471758 | BP47: 0.96471758 | BQ47: 0.96471758 | BR47: 0.96471758 | BT47: =+IF($K47="Ongoing",AX47,IF(RIGHT($K47,2)=RIGHT(BT$39,2),SUM($AX47:AX47),0)+IF(RIGHT(BT$39,2)>RIGHT($K47,2),AX47,0)) -> 0 | BU47: =+IF($K47="Ongoing",AY47,IF(RIGHT($K47,2)=RIGHT(BU$39,2),SUM($AX47:AY47),0)+IF(RIGHT(BU$39,2)>RIGHT($K47,2),AY47,0)) -> 0 | BV47: =+IF($K47="Ongoing",AZ47,IF(RIGHT($K47,2)=RIGHT(BV$39,2),SUM($AX47:AZ47),0)+IF(RIGHT(BV$39,2)>RIGHT($K47,2),AZ47,0)) -> 0 | BW47: =+IF($K47="Ongoing",BA47,IF(RIGHT($K47,2)=RIGHT(BW$39,2),SUM($AX47:BA47),0)+IF(RIGHT(BW$39,2)>RIGHT($K47,2),BA47,0)) -> 0 | BX47: =+IF($K47="Ongoing",BB47,IF(RIGHT($K47,2)=RIGHT(BX$39,2),SUM($AX47:BB47),0)+IF(RIGHT(BX$39,2)>RIGHT($K47,2),BB47,0)) -> 48.235879 | BY47: =+IF($K47="Ongoing",BC47,IF(RIGHT($K47,2)=RIGHT(BY$39,2),SUM($AX47:BC47),0)+IF(RIGHT(BY$39,2)>RIGHT($K47,2),BC47,0)) -> 0 | BZ47: =+IF($K47="Ongoing",BD47,IF(RIGHT($K47,2)=RIGHT(BZ$39,2),SUM($AX47:BD47),0)+IF(RIGHT(BZ$39,2)>RIGHT($K47,2),BD47,0)) -> 0 | CA47: =+IF($K47="Ongoing",BE47,IF(RIGHT($K47,2)=RIGHT(CA$39,2),SUM($AX47:BE47),0)+IF(RIGHT(CA$39,2)>RIGHT($K47,2),BE47,0)) -> 0 | CB47: =+IF($K47="Ongoing",BF47,IF(RIGHT($K47,2)=RIGHT(CB$39,2),SUM($AX47:BF47),0)+IF(RIGHT(CB$39,2)>RIGHT($K47,2),BF47,0)) -> 0 | CC47: =+IF($K47="Ongoing",BG47,IF(RIGHT($K47,2)=RIGHT(CC$39,2),SUM($AX47:BG47),0)+IF(RIGHT(CC$39,2)>RIGHT($K47,2),BG47,0)) -> 0 | CE47: =+Q47*KeyAssumptionsPriceControl_FO!AC$15 -> 4.6543949 | CF47: =+R47*KeyAssumptionsPriceControl_FO!AD$15 -> 12.48676648 | CG47: =+S47*KeyAssumptionsPriceControl_FO!AE$15 -> 17.45471517 | CH47: =+T47*KeyAssumptionsPriceControl_FO!AF$15 -> 14.42999651 | CI47: =+U47*KeyAssumptionsPriceControl_FO!AG$15 -> 3.654810914 | CJ47: =+V47*KeyAssumptionsPriceControl_FO!AH$15 -> 0 | CK47: =+W47*KeyAssumptionsPriceControl_FO!AI$15 -> 0 | CL47: =+X47*KeyAssumptionsPriceControl_FO!AJ$15 -> 0 | CM47: =+Y47*KeyAssumptionsPriceControl_FO!AK$15 -> 0 | CN47: =+Z47*KeyAssumptionsPriceControl_FO!AL$15 -> 0 | CP47: 0.046543949 | CQ47: 0.2179555628 | CR47: 0.5173703792 | CS47: 0.836217496 | CT47: 1.01706557 | CU47: 1.053613679 | CV47: 1.053613679 | CW47: 1.053613679 | CX47: 1.053613679 | CY47: 1.053613679
C48: Digital Metering – New Connections & Exchanges | E48: Water | F48: Renewals | G48: Pipelines/network | H48: Top 10 Major Projects | J48: Straight line | K48: Ongoing | L48: 15 | M48: 15 | Q48: 43.105949 | R48: 42.34382 | S48: 40.818318 | T48: 39.990822 | U48: 39.736663 | V48: 36.443641 | W48: 4.813466 | X48: 4.850401 | Y48: 4.822357 | Z48: 4.932071 | AX48: 43.105949 | AY48: 42.34382 | AZ48: 40.818318 | BA48: 39.990822 | BB48: 39.736663 | BC48: 36.443641 | BD48: 4.813466 | BE48: 4.850401 | BF48: 4.822357 | BG48: 4.932071 | BI48: 1.436864967 | BJ48: 4.2851906 | BK48: 7.057261867 | BL48: 9.750899867 | BM48: 12.4084827 | BN48: 14.94782617 | BO48: 16.32306307 | BP48: 16.64519197 | BQ48: 16.96761723 | BR48: 17.29276483 | BT48: =+IF($K48="Ongoing",AX48,IF(RIGHT($K48,2)=RIGHT(BT$39,2),SUM($AX48:AX48),0)+IF(RIGHT(BT$39,2)>RIGHT($K48,2),AX48,0)) -> 43.105949 | BU48: =+IF($K48="Ongoing",AY48,IF(RIGHT($K48,2)=RIGHT(BU$39,2),SUM($AX48:AY48),0)+IF(RIGHT(BU$39,2)>RIGHT($K48,2),AY48,0)) -> 42.34382 | BV48: =+IF($K48="Ongoing",AZ48,IF(RIGHT($K48,2)=RIGHT(BV$39,2),SUM($AX48:AZ48),0)+IF(RIGHT(BV$39,2)>RIGHT($K48,2),AZ48,0)) -> 40.818318 | BW48: =+IF($K48="Ongoing",BA48,IF(RIGHT($K48,2)=RIGHT(BW$39,2),SUM($AX48:BA48),0)+IF(RIGHT(BW$39,2)>RIGHT($K48,2),BA48,0)) -> 39.990822 | BX48: =+IF($K48="Ongoing",BB48,IF(RIGHT($K48,2)=RIGHT(BX$39,2),SUM($AX48:BB48),0)+IF(RIGHT(BX$39,2)>RIGHT($K48,2),BB48,0)) -> 39.736663 | BY48: =+IF($K48="Ongoing",BC48,IF(RIGHT($K48,2)=RIGHT(BY$39,2),SUM($AX48:BC48),0)+IF(RIGHT(BY$39,2)>RIGHT($K48,2),BC48,0)) -> 36.443641 | BZ48: =+IF($K48="Ongoing",BD48,IF(RIGHT($K48,2)=RIGHT(BZ$39,2),SUM($AX48:BD48),0)+IF(RIGHT(BZ$39,2)>RIGHT($K48,2),BD48,0)) -> 4.813466 | CA48: =+IF($K48="Ongoing",BE48,IF(RIGHT($K48,2)=RIGHT(CA$39,2),SUM($AX48:BE48),0)+IF(RIGHT(CA$39,2)>RIGHT($K48,2),BE48,0)) -> 4.850401 | CB48: =+IF($K48="Ongoing",BF48,IF(RIGHT($K48,2)=RIGHT(CB$39,2),SUM($AX48:BF48),0)+IF(RIGHT(CB$39,2)>RIGHT($K48,2),BF48,0)) -> 4.822357 | CC48: =+IF($K48="Ongoing",BG48,IF(RIGHT($K48,2)=RIGHT(CC$39,2),SUM($AX48:BG48),0)+IF(RIGHT(CC$39,2)>RIGHT($K48,2),BG48,0)) -> 4.932071 | CE48: =+Q48*KeyAssumptionsPriceControl_FO!AC$15 -> 44.39912747 | CF48: =+R48*KeyAssumptionsPriceControl_FO!AD$15 -> 44.92255864 | CG48: =+S48*KeyAssumptionsPriceControl_FO!AE$15 -> 44.60327817 | CH48: =+T48*KeyAssumptionsPriceControl_FO!AF$15 -> 45.01002248 | CI48: =+U48*KeyAssumptionsPriceControl_FO!AG$15 -> 46.06568322 | CJ48: =+V48*KeyAssumptionsPriceControl_FO!AH$15 -> 43.51561323 | CK48: =+W48*KeyAssumptionsPriceControl_FO!AI$15 -> 5.919956036 | CL48: =+X48*KeyAssumptionsPriceControl_FO!AJ$15 -> 6.14434287 | CM48: =+Y48*KeyAssumptionsPriceControl_FO!AK$15 -> 6.292082096 | CN48: =+Z48*KeyAssumptionsPriceControl_FO!AL$15 -> 6.628291001 | CP48: 1.479970916 | CQ48: 4.457360453 | CR48: 7.441555013 | CS48: 10.42866503 | CT48: 13.46452189 | CU48: 16.45056511 | CV48: 18.09841741 | CW48: 18.50056071 | CX48: 18.91510821 | CY48: 19.34578731
C49: Mt Martha Water Recycling Plant Augmentation | E49: Sewerage | F49: Growth | G49: Treatment | H49: Top 10 Major Projects | J49: Straight line | K49: 2027-28 | L49: 50 | M49: 50 | Q49: 5.365847 | R49: 9.458015 | S49: 10.485786 | T49: 16.030281 | U49: 13.440895 | V49: 0 | W49: 0 | X49: 0 | Y49: 0 | Z49: 0 | AX49: 5.365847 | AY49: 9.458015 | AZ49: 10.485786 | BA49: 16.030281 | BB49: 13.440895 | BC49: 0 | BD49: 0 | BE49: 0 | BF49: 0 | BG49: 0 | BI49: 0 | BJ49: 0 | BK49: 0 | BL49: 0 | BM49: 0.54780824 | BN49: 1.09561648 | BO49: 1.09561648 | BP49: 1.09561648 | BQ49: 1.09561648 | BR49: 1.09561648 | BT49: =+IF($K49="Ongoing",AX49,IF(RIGHT($K49,2)=RIGHT(BT$39,2),SUM($AX49:AX49),0)+IF(RIGHT(BT$39,2)>RIGHT($K49,2),AX49,0)) -> 0 | BU49: =+IF($K49="Ongoing",AY49,IF(RIGHT($K49,2)=RIGHT(BU$39,2),SUM($AX49:AY49),0)+IF(RIGHT(BU$39,2)>RIGHT($K49,2),AY49,0)) -> 0 | BV49: =+IF($K49="Ongoing",AZ49,IF(RIGHT($K49,2)=RIGHT(BV$39,2),SUM($AX49:AZ49),0)+IF(RIGHT(BV$39,2)>RIGHT($K49,2),AZ49,0)) -> 0 | BW49: =+IF($K49="Ongoing",BA49,IF(RIGHT($K49,2)=RIGHT(BW$39,2),SUM($AX49:BA49),0)+IF(RIGHT(BW$39,2)>RIGHT($K49,2),BA49,0)) -> 0 | BX49: =+IF($K49="Ongoing",BB49,IF(RIGHT($K49,2)=RIGHT(BX$39,2),SUM($AX49:BB49),0)+IF(RIGHT(BX$39,2)>RIGHT($K49,2),BB49,0)) -> 54.780824 | BY49: =+IF($K49="Ongoing",BC49,IF(RIGHT($K49,2)=RIGHT(BY$39,2),SUM($AX49:BC49),0)+IF(RIGHT(BY$39,2)>RIGHT($K49,2),BC49,0)) -> 0 | BZ49: =+IF($K49="Ongoing",BD49,IF(RIGHT($K49,2)=RIGHT(BZ$39,2),SUM($AX49:BD49),0)+IF(RIGHT(BZ$39,2)>RIGHT($K49,2),BD49,0)) -> 0 | CA49: =+IF($K49="Ongoing",BE49,IF(RIGHT($K49,2)=RIGHT(CA$39,2),SUM($AX49:BE49),0)+IF(RIGHT(CA$39,2)>RIGHT($K49,2),BE49,0)) -> 0 | CB49: =+IF($K49="Ongoing",BF49,IF(RIGHT($K49,2)=RIGHT(CB$39,2),SUM($AX49:BF49),0)+IF(RIGHT(CB$39,2)>RIGHT($K49,2),BF49,0)) -> 0 | CC49: =+IF($K49="Ongoing",BG49,IF(RIGHT($K49,2)=RIGHT(CC$39,2),SUM($AX49:BG49),0)+IF(RIGHT(CC$39,2)>RIGHT($K49,2),BG49,0)) -> 0 | CE49: =+Q49*KeyAssumptionsPriceControl_FO!AC$15 -> 5.52682241 | CF49: =+R49*KeyAssumptionsPriceControl_FO!AD$15 -> 10.03400811 | CG49: =+S49*KeyAssumptionsPriceControl_FO!AE$15 -> 11.45810148 | CH49: =+T49*KeyAssumptionsPriceControl_FO!AF$15 -> 18.04222249 | CI49: =+U49*KeyAssumptionsPriceControl_FO!AG$15 -> 15.58168111 | CJ49: =+V49*KeyAssumptionsPriceControl_FO!AH$15 -> 0 | CK49: =+W49*KeyAssumptionsPriceControl_FO!AI$15 -> 0 | CL49: =+X49*KeyAssumptionsPriceControl_FO!AJ$15 -> 0 | CM49: =+Y49*KeyAssumptionsPriceControl_FO!AK$15 -> 0 | CN49: =+Z49*KeyAssumptionsPriceControl_FO!AL$15 -> 0 | CP49: 0.0552682241 | CQ49: 0.2108765293 | CR49: 0.4257976253 | CS49: 0.720800865 | CT49: 1.057039901 | CU49: 1.212856712 | CV49: 1.212856712 | CW49: 1.212856712 | CX49: 1.212856712 | CY49: 1.212856712
C50: South East Regional Biofactory | E50: Sewerage | F50: Growth | G50: Treatment | H50: Top 10 Major Projects | J50: Straight line | K50: 2031-32 | L50: 50 | M50: 50 | Q50: 1.050891 | R50: 1.050891 | S50: 2.101781 | T50: 7.356234 | U50: 18.600763 | V50: 22.173791 | W50: 43.191603 | X50: 64.209415 | Y50: 73.562341 | Z50: 56.012468 | AX50: 1.050891 | AY50: 1.050891 | AZ50: 2.101781 | BA50: 7.356234 | BB50: 18.600763 | BC50: 22.173791 | BD50: 43.191603 | BE50: 64.209415 | BF50: 73.562341 | BG50: 56.012468 | BI50: 0 | BJ50: 0 | BK50: 0 | BL50: 0 | BM50: 0 | BN50: 0 | BO50: 0 | BP50: 0 | BQ50: 2.3329771 | BR50: 5.22607888 | BT50: =+IF($K50="Ongoing",AX50,IF(RIGHT($K50,2)=RIGHT(BT$39,2),SUM($AX50:AX50),0)+IF(RIGHT(BT$39,2)>RIGHT($K50,2),AX50,0)) -> 0 | BU50: =+IF($K50="Ongoing",AY50,IF(RIGHT($K50,2)=RIGHT(BU$39,2),SUM($AX50:AY50),0)+IF(RIGHT(BU$39,2)>RIGHT($K50,2),AY50,0)) -> 0 | BV50: =+IF($K50="Ongoing",AZ50,IF(RIGHT($K50,2)=RIGHT(BV$39,2),SUM($AX50:AZ50),0)+IF(RIGHT(BV$39,2)>RIGHT($K50,2),AZ50,0)) -> 0 | BW50: =+IF($K50="Ongoing",BA50,IF(RIGHT($K50,2)=RIGHT(BW$39,2),SUM($AX50:BA50),0)+IF(RIGHT(BW$39,2)>RIGHT($K50,2),BA50,0)) -> 0 | BX50: =+IF($K50="Ongoing",BB50,IF(RIGHT($K50,2)=RIGHT(BX$39,2),SUM($AX50:BB50),0)+IF(RIGHT(BX$39,2)>RIGHT($K50,2),BB50,0)) -> 0 | BY50: =+IF($K50="Ongoing",BC50,IF(RIGHT($K50,2)=RIGHT(BY$39,2),SUM($AX50:BC50),0)+IF(RIGHT(BY$39,2)>RIGHT($K50,2),BC50,0)) -> 0 | BZ50: =+IF($K50="Ongoing",BD50,IF(RIGHT($K50,2)=RIGHT(BZ$39,2),SUM($AX50:BD50),0)+IF(RIGHT(BZ$39,2)>RIGHT($K50,2),BD50,0)) -> 0 | CA50: =+IF($K50="Ongoing",BE50,IF(RIGHT($K50,2)=RIGHT(CA$39,2),SUM($AX50:BE50),0)+IF(RIGHT(CA$39,2)>RIGHT($K50,2),BE50,0)) -> 0 | CB50: =+IF($K50="Ongoing",BF50,IF(RIGHT($K50,2)=RIGHT(CB$39,2),SUM($AX50:BF50),0)+IF(RIGHT(CB$39,2)>RIGHT($K50,2),BF50,0)) -> 233.29771 | CC50: =+IF($K50="Ongoing",BG50,IF(RIGHT($K50,2)=RIGHT(CC$39,2),SUM($AX50:BG50),0)+IF(RIGHT(CC$39,2)>RIGHT($K50,2),BG50,0)) -> 56.012468 | CE50: =+Q50*KeyAssumptionsPriceControl_FO!AC$15 -> 1.08241773 | CF50: =+R50*KeyAssumptionsPriceControl_FO!AD$15 -> 1.114890262 | CG50: =+S50*KeyAssumptionsPriceControl_FO!AE$15 -> 2.296672847 | CH50: =+T50*KeyAssumptionsPriceControl_FO!AF$15 -> 8.279506175 | CI50: =+U50*KeyAssumptionsPriceControl_FO!AG$15 -> 21.56338231 | CJ50: =+V50*KeyAssumptionsPriceControl_FO!AH$15 -> 26.47666607 | CK50: =+W50*KeyAssumptionsPriceControl_FO!AI$15 -> 53.12022374 | CL50: =+X50*KeyAssumptionsPriceControl_FO!AJ$15 -> 81.33856587 | CM50: =+Y50*KeyAssumptionsPriceControl_FO!AK$15 -> 95.98216988 | CN50: =+Z50*KeyAssumptionsPriceControl_FO!AL$15 -> 75.27607319 | CP50: 0.0108241773 | CQ50: 0.03279725722 | CR50: 0.06691288831 | CS50: 0.1726746785 | CT50: 0.4711035634 | CU50: 0.9515040471 | CV50: 1.747472945 | CW50: 3.092060841 | CX50: 4.865268199 | CY50: 6.577850629
C51: Westernport Irrigation Scheme - Stage 1 | E51: Recycled Water | F51: Improvements / Compliance | G51: Treatment | H51: Top 10 Major Projects | J51: Straight line | K51: 2026-27 | L51: 50 | M51: 50 | Q51: 9.058677 | R51: 18.175153 | S51: 7.356234 | T51: 7.356234 | U51: 10.508906 | V51: 0 | W51: 0 | X51: 0 | Y51: 0 | Z51: 0 | AX51: 9.058677 | AY51: 18.175153 | AZ51: 7.356234 | BA51: 7.356234 | BB51: 10.508906 | BC51: 0 | BD51: 0 | BE51: 0 | BF51: 0 | BG51: 0 | BI51: 0 | BJ51: 0 | BK51: 0 | BL51: 0.41946298 | BM51: 0.94401502 | BN51: 1.04910408 | BO51: 1.04910408 | BP51: 1.04910408 | BQ51: 1.04910408 | BR51: 1.04910408 | BT51: =+IF($K51="Ongoing",AX51,IF(RIGHT($K51,2)=RIGHT(BT$39,2),SUM($AX51:AX51),0)+IF(RIGHT(BT$39,2)>RIGHT($K51,2),AX51,0)) -> 0 | BU51: =+IF($K51="Ongoing",AY51,IF(RIGHT($K51,2)=RIGHT(BU$39,2),SUM($AX51:AY51),0)+IF(RIGHT(BU$39,2)>RIGHT($K51,2),AY51,0)) -> 0 | BV51: =+IF($K51="Ongoing",AZ51,IF(RIGHT($K51,2)=RIGHT(BV$39,2),SUM($AX51:AZ51),0)+IF(RIGHT(BV$39,2)>RIGHT($K51,2),AZ51,0)) -> 0 | BW51: =+IF($K51="Ongoing",BA51,IF(RIGHT($K51,2)=RIGHT(BW$39,2),SUM($AX51:BA51),0)+IF(RIGHT(BW$39,2)>RIGHT($K51,2),BA51,0)) -> 41.946298 | BX51: =+IF($K51="Ongoing",BB51,IF(RIGHT($K51,2)=RIGHT(BX$39,2),SUM($AX51:BB51),0)+IF(RIGHT(BX$39,2)>RIGHT($K51,2),BB51,0)) -> 10.508906 | BY51: =+IF($K51="Ongoing",BC51,IF(RIGHT($K51,2)=RIGHT(BY$39,2),SUM($AX51:BC51),0)+IF(RIGHT(BY$39,2)>RIGHT($K51,2),BC51,0)) -> 0 | BZ51: =+IF($K51="Ongoing",BD51,IF(RIGHT($K51,2)=RIGHT(BZ$39,2),SUM($AX51:BD51),0)+IF(RIGHT(BZ$39,2)>RIGHT($K51,2),BD51,0)) -> 0 | CA51: =+IF($K51="Ongoing",BE51,IF(RIGHT($K51,2)=RIGHT(CA$39,2),SUM($AX51:BE51),0)+IF(RIGHT(CA$39,2)>RIGHT($K51,2),BE51,0)) -> 0 | CB51: =+IF($K51="Ongoing",BF51,IF(RIGHT($K51,2)=RIGHT(CB$39,2),SUM($AX51:BF51),0)+IF(RIGHT(CB$39,2)>RIGHT($K51,2),BF51,0)) -> 0 | CC51: =+IF($K51="Ongoing",BG51,IF(RIGHT($K51,2)=RIGHT(CC$39,2),SUM($AX51:BG51),0)+IF(RIGHT(CC$39,2)>RIGHT($K51,2),BG51,0)) -> 0 | CE51: =+Q51*KeyAssumptionsPriceControl_FO!AC$15 -> 9.33043731 | CF51: =+R51*KeyAssumptionsPriceControl_FO!AD$15 -> 19.28201982 | CG51: =+S51*KeyAssumptionsPriceControl_FO!AE$15 -> 8.03835551 | CH51: =+T51*KeyAssumptionsPriceControl_FO!AF$15 -> 8.279506175 | CI51: =+U51*KeyAssumptionsPriceControl_FO!AG$15 -> 12.18270228 | CJ51: =+V51*KeyAssumptionsPriceControl_FO!AH$15 -> 0 | CK51: =+W51*KeyAssumptionsPriceControl_FO!AI$15 -> 0 | CL51: =+X51*KeyAssumptionsPriceControl_FO!AJ$15 -> 0 | CM51: =+Y51*KeyAssumptionsPriceControl_FO!AK$15 -> 0 | CN51: =+Z51*KeyAssumptionsPriceControl_FO!AL$15 -> 0 | CP51: 0.0933043731 | CQ51: 0.3794289444 | CR51: 0.6526326977 | CS51: 0.8158113145 | CT51: 1.020433399 | CU51: 1.142260422 | CV51: 1.142260422 | CW51: 1.142260422 | CX51: 1.142260422 | CY51: 1.142260422
C53: Distributed Treatment | E53: Sewerage | F53: Growth | G53: Pipelines/network | H53: Capital Programs / Allocation | J53: Straight line | K53: Ongoing | L53: 80 | M53: 80 | Q53: 1.73397 | R53: 1.839058 | S53: 6.988422 | T53: 10.246183 | U53: 11.927608 | V53: 16.236259 | W53: 16.288804 | X53: 5.832443 | Y53: 10.377545 | Z53: 15.369275 | AX53: =+Q53-AB53-AM53 -> 1.73397 | AY53: =+R53-AC53-AN53 -> 1.839058 | AZ53: =+S53-AD53-AO53 -> 6.988422 | BA53: =+T53-AE53-AP53 -> 10.246183 | BB53: =+U53-AF53-AQ53 -> 11.927608 | BC53: =+V53-AG53-AR53 -> 16.236259 | BD53: =+W53-AH53-AS53 -> 16.288804 | BE53: =+X53-AI53-AT53 -> 5.832443 | BF53: =+Y53-AJ53-AU53 -> 10.377545 | BG53: =+Z53-AK53-AV53 -> 15.369275 | BI53: =IF($L53=0,0, IF($L53<=0.5,BT53, IF($J53="straight line", IF((LEFT(BI$39,4)*1)-INT($L53)<LEFT($BI$39,4)*1,0,((OFFSET(BT53,0,-INT($L53+0.5),1,1))/$L53)*(IF($L53-INT($L53)>0.5,$L53-0.5-INT($L53),IF($L53-INT($L53)<=0.5,$L53-0.5-INT($L53)+1,0)))) +BT53/$L53*0.5, IF($J53="Declining Balance",-$BI$38,0)))) -> 0.0108373125 | BJ53: =IF($L53=0,0, IF($L53<=0.5,BU53, IF(AND($J53="straight line",$L53<1.51),(BT53-((BT53/$L53)*0.5))+BU53/$L53*0.5, IF($J53="straight line", IF((LEFT(BJ$39,4)*1)-INT($L53)<LEFT($BI$39,4)*1,0,((OFFSET(BU53,0,-INT($L53+0.5),1,1))/$L53)*(IF($L53-INT($L53)>0.5,$L53-0.5-INT($L53),IF($L53-INT($L53)<=0.5,$L53-0.5-INT($L53)+1,0)))) +BU53/$L53*0.5 +SUM(OFFSET(BU53,0,MAX(-INT($L53+(0.5-(10^-12))),-BJ$40)+1,1,MIN(INT($L53+(0.5-(10^-12))),BJ$40)-1))*1/$L53, IF($J53="Declining Balance",-$BI$38,0))))) -> 0.0331687375 | BK53: =IF($L53=0,0, IF($L53<=0.5,BV53, IF(AND($J53="straight line",$L53<1.51),(BU53-((BU53/$L53)*0.5))+BV53/$L53*0.5, IF($J53="straight line", IF((LEFT(BK$39,4)*1)-INT($L53)<LEFT($BI$39,4)*1,0,((OFFSET(BV53,0,-INT($L53+0.5),1,1))/$L53)*(IF($L53-INT($L53)>0.5,$L53-0.5-INT($L53),IF($L53-INT($L53)<=0.5,$L53-0.5-INT($L53)+1,0)))) +BV53/$L53*0.5 +SUM(OFFSET(BV53,0,MAX(-INT($L53+(0.5-(10^-12))),-BK$40)+1,1,MIN(INT($L53+(0.5-(10^-12))),BK$40)-1))*1/$L53, IF($J53="Declining Balance",-$BI$38,0))))) -> 0.0883404875 | BL53: =IF($L53=0,0, IF($L53<=0.5,BW53, IF(AND($J53="straight line",$L53<1.51),(BV53-((BV53/$L53)*0.5))+BW53/$L53*0.5, IF($J53="straight line", IF((LEFT(BL$39,4)*1)-INT($L53)<LEFT($BI$39,4)*1,0,((OFFSET(BW53,0,-INT($L53+0.5),1,1))/$L53)*(IF($L53-INT($L53)>0.5,$L53-0.5-INT($L53),IF($L53-INT($L53)<=0.5,$L53-0.5-INT($L53)+1,0)))) +BW53/$L53*0.5 +SUM(OFFSET(BW53,0,MAX(-INT($L53+(0.5-(10^-12))),-BL$40)+1,1,MIN(INT($L53+(0.5-(10^-12))),BL$40)-1))*1/$L53, IF($J53="Declining Balance",-$BI$38,0))))) -> 0.1960567687 | BM53: =IF($L53=0,0, IF($L53<=0.5,BX53, IF(AND($J53="straight line",$L53<1.51),(BW53-((BW53/$L53)*0.5))+BX53/$L53*0.5, IF($J53="straight line", IF((LEFT(BM$39,4)*1)-INT($L53)<LEFT($BI$39,4)*1,0,((OFFSET(BX53,0,-INT($L53+0.5),1,1))/$L53)*(IF($L53-INT($L53)>0.5,$L53-0.5-INT($L53),IF($L53-INT($L53)<=0.5,$L53-0.5-INT($L53)+1,0)))) +BX53/$L53*0.5 +SUM(OFFSET(BX53,0,MAX(-INT($L53+(0.5-(10^-12))),-BM$40)+1,1,MIN(INT($L53+(0.5-(10^-12))),BM$40)-1))*1/$L53, IF($J53="Declining Balance",-$BI$38,0))))) -> 0.3346429625 | BN53: =IF($L53=0,0, IF($L53<=0.5,BY53, IF(AND($J53="straight line",$L53<1.51),(BX53-((BX53/$L53)*0.5))+BY53/$L53*0.5, IF($J53="straight line", IF((LEFT(BN$39,4)*1)-INT($L53)<LEFT($BI$39,4)*1,0,((OFFSET(BY53,0,-INT($L53+0.5),1,1))/$L53)*(IF($L53-INT($L53)>0.5,$L53-0.5-INT($L53),IF($L53-INT($L53)<=0.5,$L53-0.5-INT($L53)+1,0)))) +BY53/$L53*0.5 +SUM(OFFSET(BY53,0,MAX(-INT($L53+(0.5-(10^-12))),-BN$40)+1,1,MIN(INT($L53+(0.5-(10^-12))),BN$40)-1))*1/$L53, IF($J53="Declining Balance",-$BI$38,0))))) -> 0.5106671313 | BO53: =IF($L53=0,0, IF($L53<=0.5,BZ53, IF(AND($J53="straight line",$L53<1.51),(BY53-((BY53/$L53)*0.5))+BZ53/$L53*0.5, IF($J53="straight line", IF((LEFT(BO$39,4)*1)-INT($L53)<LEFT($BI$39,4)*1,0,((OFFSET(BZ53,0,-INT($L53+0.5),1,1))/$L53)*(IF($L53-INT($L53)>0.5,$L53-0.5-INT($L53),IF($L53-INT($L53)<=0.5,$L53-0.5-INT($L53)+1,0)))) +BZ53/$L53*0.5 +SUM(OFFSET(BZ53,0,MAX(-INT($L53+(0.5-(10^-12))),-BO$40)+1,1,MIN(INT($L53+(0.5-(10^-12))),BO$40)-1))*1/$L53, IF($J53="Declining Balance",-$BI$38,0))))) -> 0.713948775 | BP53: =IF($L53=0,0, IF($L53<=0.5,CA53, IF(AND($J53="straight line",$L53<1.51),(BZ53-((BZ53/$L53)*0.5))+CA53/$L53*0.5, IF($J53="straight line", IF((LEFT(BP$39,4)*1)-INT($L53)<LEFT($BI$39,4)*1,0,((OFFSET(CA53,0,-INT($L53+0.5),1,1))/$L53)*(IF($L53-INT($L53)>0.5,$L53-0.5-INT($L53),IF($L53-INT($L53)<=0.5,$L53-0.5-INT($L53)+1,0)))) +CA53/$L53*0.5 +SUM(OFFSET(CA53,0,MAX(-INT($L53+(0.5-(10^-12))),-BP$40)+1,1,MIN(INT($L53+(0.5-(10^-12))),BP$40)-1))*1/$L53, IF($J53="Declining Balance",-$BI$38,0))))) -> 0.8522065688 | BQ53: =IF($L53=0,0, IF($L53<=0.5,CB53, IF(AND($J53="straight line",$L53<1.51),(CA53-((CA53/$L53)*0.5))+CB53/$L53*0.5, IF($J53="straight line", IF((LEFT(BQ$39,4)*1)-INT($L53)<LEFT($BI$39,4)*1,0,((OFFSET(CB53,0,-INT($L53+0.5),1,1))/$L53)*(IF($L53-INT($L53)>0.5,$L53-0.5-INT($L53),IF($L53-INT($L53)<=0.5,$L53-0.5-INT($L53)+1,0)))) +CB53/$L53*0.5 +SUM(OFFSET(CB53,0,MAX(-INT($L53+(0.5-(10^-12))),-BQ$40)+1,1,MIN(INT($L53+(0.5-(10^-12))),BQ$40)-1))*1/$L53, IF($J53="Declining Balance",-$BI$38,0))))) -> 0.9535189938 | BR53: =IF($L53=0,0, IF($L53<=0.5,CC53, IF(AND($J53="straight line",$L53<1.51),(CB53-((CB53/$L53)*0.5))+CC53/$L53*0.5, IF($J53="straight line", IF((LEFT(BR$39,4)*1)-INT($L53)<LEFT($BI$39,4)*1,0,((OFFSET(CC53,0,-INT($L53+0.5),1,1))/$L53)*(IF($L53-INT($L53)>0.5,$L53-0.5-INT($L53),IF($L53-INT($L53)<=0.5,$L53-0.5-INT($L53)+1,0)))) +CC53/$L53*0.5 +SUM(OFFSET(CC53,0,MAX(-INT($L53+(0.5-(10^-12))),-BR$40)+1,1,MIN(INT($L53+(0.5-(10^-12))),BR$40)-1))*1/$L53, IF($J53="Declining Balance",-$BI$38,0))))) -> 1.114436619 | BT53: =+IF($K53="Ongoing",AX53,IF(RIGHT($K53,2)=RIGHT(BT$39,2),SUM($AX53:AX53),0)+IF(RIGHT(BT$39,2)>RIGHT($K53,2),AX53,0)) -> 1.73397 | BU53: =+IF($K53="Ongoing",AY53,IF(RIGHT($K53,2)=RIGHT(BU$39,2),SUM($AX53:AY53),0)+IF(RIGHT(BU$39,2)>RIGHT($K53,2),AY53,0)) -> 1.839058 | BV53: =+IF($K53="Ongoing",AZ53,IF(RIGHT($K53,2)=RIGHT(BV$39,2),SUM($AX53:AZ53),0)+IF(RIGHT(BV$39,2)>RIGHT($K53,2),AZ53,0)) -> 6.988422 | BW53: =+IF($K53="Ongoing",BA53,IF(RIGHT($K53,2)=RIGHT(BW$39,2),SUM($AX53:BA53),0)+IF(RIGHT(BW$39,2)>RIGHT($K53,2),BA53,0)) -> 10.246183 | BX53: =+IF($K53="Ongoing",BB53,IF(RIGHT($K53,2)=RIGHT(BX$39,2),SUM($AX53:BB53),0)+IF(RIGHT(BX$39,2)>RIGHT($K53,2),BB53,0)) -> 11.927608 | BY53: =+IF($K53="Ongoing",BC53,IF(RIGHT($K53,2)=RIGHT(BY$39,2),SUM($AX53:BC53),0)+IF(RIGHT(BY$39,2)>RIGHT($K53,2),BC53,0)) -> 16.236259 | BZ53: =+IF($K53="Ongoing",BD53,IF(RIGHT($K53,2)=RIGHT(BZ$39,2),SUM($AX53:BD53),0)+IF(RIGHT(BZ$39,2)>RIGHT($K53,2),BD53,0)) -> 16.288804 | CA53: =+IF($K53="Ongoing",BE53,IF(RIGHT($K53,2)=RIGHT(CA$39,2),SUM($AX53:BE53),0)+IF(RIGHT(CA$39,2)>RIGHT($K53,2),BE53,0)) -> 5.832443 | CB53: =+IF($K53="Ongoing",BF53,IF(RIGHT($K53,2)=RIGHT(CB$39,2),SUM($AX53:BF53),0)+IF(RIGHT(CB$39,2)>RIGHT($K53,2),BF53,0)) -> 10.377545 | CC53: =+IF($K53="Ongoing",BG53,IF(RIGHT($K53,2)=RIGHT(CC$39,2),SUM($AX53:BG53),0)+IF(RIGHT(CC$39,2)>RIGHT($K53,2),BG53,0)) -> 15.369275 | CE53: =+Q53*KeyAssumptionsPriceControl_FO!AC$15 -> 1.7859891 | CF53: =+R53*KeyAssumptionsPriceControl_FO!AD$15 -> 1.951056632 | CG53: =+S53*KeyAssumptionsPriceControl_FO!AE$15 -> 7.636437407 | CH53: =+T53*KeyAssumptionsPriceControl_FO!AF$15 -> 11.53216924 | CI53: =+U53*KeyAssumptionsPriceControl_FO!AG$15 -> 13.82736672 | CJ53: =+V53*KeyAssumptionsPriceControl_FO!AH$15 -> 19.38694235 | CK53: =+W53*KeyAssumptionsPriceControl_FO!AI$15 -> 20.03317434 | CL53: =+X53*KeyAssumptionsPriceControl_FO!AJ$15 -> 7.388364294 | CM53: =+Y53*KeyAssumptionsPriceControl_FO!AK$15 -> 13.54034243 | CN53: =+Z53*KeyAssumptionsPriceControl_FO!AL$15 -> 20.65502041 | CP53: =IF($M53=0,0, IF($M53<=0.5,CE53, IF($J53="straight line", IF((LEFT(CP$39,4)*1)-INT($M53)<LEFT($CP$39,4)*1,0,((OFFSET(CE53,0,-INT($M53+0.5),1,1))/$M53)*(IF($M53-INT($M53)>0.5,$M53-0.5-INT($M53),IF($M53-INT($M53)<=0.5,$M53-0.5-INT($M53)+1,0)))) +CE53/$M53*0.5, IF($J53="Declining Balance",-$CP$38,0)))) -> 0.01116243187 | CQ53: =IF($M53=0,0, IF($M53<=0.5,CF53, IF(AND($J53="straight line",$M53<1.51),(CE53-((CE53/$M53)*0.5))+CF53/$M53*0.5, IF($J53="straight line", IF((LEFT(CQ$39,4)*1)-INT($M53)<LEFT($CP$39,4)*1,0,((OFFSET(CF53,0,-INT($M53+0.5),1,1))/$M53)*(IF($M53-INT($M53)>0.5,$M53-0.5-INT($M53),IF($M53-INT($M53)<=0.5,$M53-0.5-INT($M53)+1,0)))) +CF53/$M53*0.5 +SUM(OFFSET(CF53,0,MAX(-INT($M53+(0.5-(10^-12))),-CQ$40)+1,1,MIN(INT($M53+(0.5-(10^-12))),CQ$40)-1))*1/$M53, IF($J53="Declining Balance",-$CP$38,0))))) -> 0.0345189677 | CR53: =IF($M53=0,0, IF($M53<=0.5,CG53, IF(AND($J53="straight line",$M53<1.51),(CF53-((CF53/$M53)*0.5))+CG53/$M53*0.5, IF($J53="straight line", IF((LEFT(CR$39,4)*1)-INT($M53)<LEFT($CP$39,4)*1,0,((OFFSET(CG53,0,-INT($M53+0.5),1,1))/$M53)*(IF($M53-INT($M53)>0.5,$M53-0.5-INT($M53),IF($M53-INT($M53)<=0.5,$M53-0.5-INT($M53)+1,0)))) +CG53/$M53*0.5 +SUM(OFFSET(CG53,0,MAX(-INT($M53+(0.5-(10^-12))),-CR$40)+1,1,MIN(INT($M53+(0.5-(10^-12))),CR$40)-1))*1/$M53, IF($J53="Declining Balance",-$CP$38,0))))) -> 0.09444080544 | CS53: =IF($M53=0,0, IF($M53<=0.5,CH53, IF(AND($J53="straight line",$M53<1.51),(CG53-((CG53/$M53)*0.5))+CH53/$M53*0.5, IF($J53="straight line", IF((LEFT(CS$39,4)*1)-INT($M53)<LEFT($CP$39,4)*1,0,((OFFSET(CH53,0,-INT($M53+0.5),1,1))/$M53)*(IF($M53-INT($M53)>0.5,$M53-0.5-INT($M53),IF($M53-INT($M53)<=0.5,$M53-0.5-INT($M53)+1,0)))) +CH53/$M53*0.5 +SUM(OFFSET(CH53,0,MAX(-INT($M53+(0.5-(10^-12))),-CS$40)+1,1,MIN(INT($M53+(0.5-(10^-12))),CS$40)-1))*1/$M53, IF($J53="Declining Balance",-$CP$38,0))))) -> 0.214244597 | CT53: =IF($M53=0,0, IF($M53<=0.5,CI53, IF(AND($J53="straight line",$M53<1.51),(CH53-((CH53/$M53)*0.5))+CI53/$M53*0.5, IF($J53="straight line", IF((LEFT(CT$39,4)*1)-INT($M53)<LEFT($CP$39,4)*1,0,((OFFSET(CI53,0,-INT($M53+0.5),1,1))/$M53)*(IF($M53-INT($M53)>0.5,$M53-0.5-INT($M53),IF($M53-INT($M53)<=0.5,$M53-0.5-INT($M53)+1,0)))) +CI53/$M53*0.5 +SUM(OFFSET(CI53,0,MAX(-INT($M53+(0.5-(10^-12))),-CT$40)+1,1,MIN(INT($M53+(0.5-(10^-12))),CT$40)-1))*1/$M53, IF($J53="Declining Balance",-$CP$38,0))))) -> 0.3727416967 | CU53: =IF($M53=0,0, IF($M53<=0.5,CJ53, IF(AND($J53="straight line",$M53<1.51),(CI53-((CI53/$M53)*0.5))+CJ53/$M53*0.5, IF($J53="straight line", IF((LEFT(CU$39,4)*1)-INT($M53)<LEFT($CP$39,4)*1,0,((OFFSET(CJ53,0,-INT($M53+0.5),1,1))/$M53)*(IF($M53-INT($M53)>0.5,$M53-0.5-INT($M53),IF($M53-INT($M53)<=0.5,$M53-0.5-INT($M53)+1,0)))) +CJ53/$M53*0.5 +SUM(OFFSET(CJ53,0,MAX(-INT($M53+(0.5-(10^-12))),-CU$40)+1,1,MIN(INT($M53+(0.5-(10^-12))),CU$40)-1))*1/$M53, IF($J53="Declining Balance",-$CP$38,0))))) -> 0.5803311284 | CV53: =IF($M53=0,0, IF($M53<=0.5,CK53, IF(AND($J53="straight line",$M53<1.51),(CJ53-((CJ53/$M53)*0.5))+CK53/$M53*0.5, IF($J53="straight line", IF((LEFT(CV$39,4)*1)-INT($M53)<LEFT($CP$39,4)*1,0,((OFFSET(CK53,0,-INT($M53+0.5),1,1))/$M53)*(IF($M53-INT($M53)>0.5,$M53-0.5-INT($M53),IF($M53-INT($M53)<=0.5,$M53-0.5-INT($M53)+1,0)))) +CK53/$M53*0.5 +SUM(OFFSET(CK53,0,MAX(-INT($M53+(0.5-(10^-12))),-CV$40)+1,1,MIN(INT($M53+(0.5-(10^-12))),CV$40)-1))*1/$M53, IF($J53="Declining Balance",-$CP$38,0))))) -> 0.8267068577 | CW53: =IF($M53=0,0, IF($M53<=0.5,CL53, IF(AND($J53="straight line",$M53<1.51),(CK53-((CK53/$M53)*0.5))+CL53/$M53*0.5, IF($J53="straight line", IF((LEFT(CW$39,4)*1)-INT($M53)<LEFT($CP$39,4)*1,0,((OFFSET(CL53,0,-INT($M53+0.5),1,1))/$M53)*(IF($M53-INT($M53)>0.5,$M53-0.5-INT($M53),IF($M53-INT($M53)<=0.5,$M53-0.5-INT($M53)+1,0)))) +CL53/$M53*0.5 +SUM(OFFSET(CL53,0,MAX(-INT($M53+(0.5-(10^-12))),-CW$40)+1,1,MIN(INT($M53+(0.5-(10^-12))),CW$40)-1))*1/$M53, IF($J53="Declining Balance",-$CP$38,0))))) -> 0.9980914741 | CX53: =IF($M53=0,0, IF($M53<=0.5,CM53, IF(AND($J53="straight line",$M53<1.51),(CL53-((CL53/$M53)*0.5))+CM53/$M53*0.5, IF($J53="straight line", IF((LEFT(CX$39,4)*1)-INT($M53)<LEFT($CP$39,4)*1,0,((OFFSET(CM53,0,-INT($M53+0.5),1,1))/$M53)*(IF($M53-INT($M53)>0.5,$M53-0.5-INT($M53),IF($M53-INT($M53)<=0.5,$M53-0.5-INT($M53)+1,0)))) +CM53/$M53*0.5 +SUM(OFFSET(CM53,0,MAX(-INT($M53+(0.5-(10^-12))),-CX$40)+1,1,MIN(INT($M53+(0.5-(10^-12))),CX$40)-1))*1/$M53, IF($J53="Declining Balance",-$CP$38,0))))) -> 1.128895891 | CY53: =IF($M53=0,0, IF($M53<=0.5,CN53, IF(AND($J53="straight line",$M53<1.51),(CM53-((CM53/$M53)*0.5))+CN53/$M53*0.5, IF($J53="straight line", IF((LEFT(CY$39,4)*1)-INT($M53)<LEFT($CP$39,4)*1,0,((OFFSET(CN53,0,-INT($M53+0.5),1,1))/$M53)*(IF($M53-INT($M53)>0.5,$M53-0.5-INT($M53),IF($M53-INT($M53)<=0.5,$M53-0.5-INT($M53)+1,0)))) +CN53/$M53*0.5 +SUM(OFFSET(CN53,0,MAX(-INT($M53+(0.5-(10^-12))),-CY$40)+1,1,MIN(INT($M53+(0.5-(10^-12))),CY$40)-1))*1/$M53, IF($J53="Declining Balance",-$CP$38,0))))) -> 1.342616909
C54: Distributed Treatment | E54: Sewerage | F54: Improvements / Compliance | G54: Pipelines/network | H54: Capital Programs / Allocation | J54: Straight line | K54: Ongoing | L54: 80 | M54: 80 | Q54: 3.676197 | R54: 3.652325 | S54: 3.652325 | T54: 3.652325 | U54: 3.652325 | V54: 0 | W54: 0 | X54: 0 | Y54: 0 | Z54: 0 | AX54: 3.676197 | AY54: 3.652325 | AZ54: 3.652325 | BA54: 3.652325 | BB54: 3.652325 | BC54: 0 | BD54: 0 | BE54: 0 | BF54: 0 | BG54: 0 | BI54: 0.02297623125 | BJ54: 0.06877949375 | BK54: 0.1144335562 | BL54: 0.1600876187 | BM54: 0.2057416812 | BN54: 0.2285687125 | BO54: 0.2285687125 | BP54: 0.2285687125 | BQ54: 0.2285687125 | BR54: 0.2285687125 | BT54: =+IF($K54="Ongoing",AX54,IF(RIGHT($K54,2)=RIGHT(BT$39,2),SUM($AX54:AX54),0)+IF(RIGHT(BT$39,2)>RIGHT($K54,2),AX54,0)) -> 3.676197 | BU54: =+IF($K54="Ongoing",AY54,IF(RIGHT($K54,2)=RIGHT(BU$39,2),SUM($AX54:AY54),0)+IF(RIGHT(BU$39,2)>RIGHT($K54,2),AY54,0)) -> 3.652325 | BV54: =+IF($K54="Ongoing",AZ54,IF(RIGHT($K54,2)=RIGHT(BV$39,2),SUM($AX54:AZ54),0)+IF(RIGHT(BV$39,2)>RIGHT($K54,2),AZ54,0)) -> 3.652325 | BW54: =+IF($K54="Ongoing",BA54,IF(RIGHT($K54,2)=RIGHT(BW$39,2),SUM($AX54:BA54),0)+IF(RIGHT(BW$39,2)>RIGHT($K54,2),BA54,0)) -> 3.652325 | BX54: =+IF($K54="Ongoing",BB54,IF(RIGHT($K54,2)=RIGHT(BX$39,2),SUM($AX54:BB54),0)+IF(RIGHT(BX$39,2)>RIGHT($K54,2),BB54,0)) -> 3.652325 | BY54: =+IF($K54="Ongoing",BC54,IF(RIGHT($K54,2)=RIGHT(BY$39,2),SUM($AX54:BC54),0)+IF(RIGHT(BY$39,2)>RIGHT($K54,2),BC54,0)) -> 0 | BZ54: =+IF($K54="Ongoing",BD54,IF(RIGHT($K54,2)=RIGHT(BZ$39,2),SUM($AX54:BD54),0)+IF(RIGHT(BZ$39,2)>RIGHT($K54,2),BD54,0)) -> 0 | CA54: =+IF($K54="Ongoing",BE54,IF(RIGHT($K54,2)=RIGHT(CA$39,2),SUM($AX54:BE54),0)+IF(RIGHT(CA$39,2)>RIGHT($K54,2),BE54,0)) -> 0 | CB54: =+IF($K54="Ongoing",BF54,IF(RIGHT($K54,2)=RIGHT(CB$39,2),SUM($AX54:BF54),0)+IF(RIGHT(CB$39,2)>RIGHT($K54,2),BF54,0)) -> 0 | CC54: =+IF($K54="Ongoing",BG54,IF(RIGHT($K54,2)=RIGHT(CC$39,2),SUM($AX54:BG54),0)+IF(RIGHT(CC$39,2)>RIGHT($K54,2),BG54,0)) -> 0 | CE54: =+Q54*KeyAssumptionsPriceControl_FO!AC$15 -> 3.78648291 | CF54: =+R54*KeyAssumptionsPriceControl_FO!AD$15 -> 3.874751592 | CG54: =+S54*KeyAssumptionsPriceControl_FO!AE$15 -> 3.99099414 | CH54: =+T54*KeyAssumptionsPriceControl_FO!AF$15 -> 4.110723964 | CI54: =+U54*KeyAssumptionsPriceControl_FO!AG$15 -> 4.234045683 | CJ54: =+V54*KeyAssumptionsPriceControl_FO!AH$15 -> 0 | CK54: =+W54*KeyAssumptionsPriceControl_FO!AI$15 -> 0 | CL54: =+X54*KeyAssumptionsPriceControl_FO!AJ$15 -> 0 | CM54: =+Y54*KeyAssumptionsPriceControl_FO!AK$15 -> 0 | CN54: =+Z54*KeyAssumptionsPriceControl_FO!AL$15 -> 0 | CP54: 0.02366551819 | CQ54: 0.07154823383 | CR54: 0.1207091447 | CS54: 0.1713448828 | CT54: 0.2234996931 | CU54: 0.2499624786 | CV54: 0.2499624786 | CW54: 0.2499624786 | CX54: 0.2499624786 | CY54: 0.2499624786
C55: Facilities - Recycled Water | E55: Recycled Water | F55: Renewals | G55: Corporate | H55: Capital Programs / Allocation | J55: Straight line | K55: Ongoing | L55: 20 | M55: 20 | Q55: 0.042788 | R55: 0.040006 | S55: 0.046911 | T55: 0.046423 | U55: 0.049673 | V55: 0.059625 | W55: 0.059625 | X55: 0.059625 | Y55: 0.059625 | Z55: 0.059625 | AX55: 0.042788 | AY55: 0.040006 | AZ55: 0.046911 | BA55: 0.046423 | BB55: 0.049673 | BC55: 0.059625 | BD55: 0.059625 | BE55: 0.059625 | BF55: 0.059625 | BG55: 0.059625 | BI55: 0.0010697 | BJ55: 0.00313955 | BK55: 0.005312475 | BL55: 0.007645825 | BM55: 0.010048225 | BN55: 0.012780675 | BO55: 0.015761925 | BP55: 0.018743175 | BQ55: 0.021724425 | BR55: 0.024705675 | BT55: =+IF($K55="Ongoing",AX55,IF(RIGHT($K55,2)=RIGHT(BT$39,2),SUM($AX55:AX55),0)+IF(RIGHT(BT$39,2)>RIGHT($K55,2),AX55,0)) -> 0.042788 | BU55: =+IF($K55="Ongoing",AY55,IF(RIGHT($K55,2)=RIGHT(BU$39,2),SUM($AX55:AY55),0)+IF(RIGHT(BU$39,2)>RIGHT($K55,2),AY55,0)) -> 0.040006 | BV55: =+IF($K55="Ongoing",AZ55,IF(RIGHT($K55,2)=RIGHT(BV$39,2),SUM($AX55:AZ55),0)+IF(RIGHT(BV$39,2)>RIGHT($K55,2),AZ55,0)) -> 0.046911 | BW55: =+IF($K55="Ongoing",BA55,IF(RIGHT($K55,2)=RIGHT(BW$39,2),SUM($AX55:BA55),0)+IF(RIGHT(BW$39,2)>RIGHT($K55,2),BA55,0)) -> 0.046423 | BX55: =+IF($K55="Ongoing",BB55,IF(RIGHT($K55,2)=RIGHT(BX$39,2),SUM($AX55:BB55),0)+IF(RIGHT(BX$39,2)>RIGHT($K55,2),BB55,0)) -> 0.049673 | BY55: =+IF($K55="Ongoing",BC55,IF(RIGHT($K55,2)=RIGHT(BY$39,2),SUM($AX55:BC55),0)+IF(RIGHT(BY$39,2)>RIGHT($K55,2),BC55,0)) -> 0.059625 | BZ55: =+IF($K55="Ongoing",BD55,IF(RIGHT($K55,2)=RIGHT(BZ$39,2),SUM($AX55:BD55),0)+IF(RIGHT(BZ$39,2)>RIGHT($K55,2),BD55,0)) -> 0.059625 | CA55: =+IF($K55="Ongoing",BE55,IF(RIGHT($K55,2)=RIGHT(CA$39,2),SUM($AX55:BE55),0)+IF(RIGHT(CA$39,2)>RIGHT($K55,2),BE55,0)) -> 0.059625 | CB55: =+IF($K55="Ongoing",BF55,IF(RIGHT($K55,2)=RIGHT(CB$39,2),SUM($AX55:BF55),0)+IF(RIGHT(CB$39,2)>RIGHT($K55,2),BF55,0)) -> 0.059625 | CC55: =+IF($K55="Ongoing",BG55,IF(RIGHT($K55,2)=RIGHT(CC$39,2),SUM($AX55:BG55),0)+IF(RIGHT(CC$39,2)>RIGHT($K55,2),BG55,0)) -> 0.059625 | CE55: =+Q55*KeyAssumptionsPriceControl_FO!AC$15 -> 0.04407164 | CF55: =+R55*KeyAssumptionsPriceControl_FO!AD$15 -> 0.0424423654 | CG55: =+S55*KeyAssumptionsPriceControl_FO!AE$15 -> 0.0512609163 | CH55: =+T55*KeyAssumptionsPriceControl_FO!AF$15 -> 0.05224949549 | CI55: =+U55*KeyAssumptionsPriceControl_FO!AG$15 -> 0.05758462109 | CJ55: =+V55*KeyAssumptionsPriceControl_FO!AH$15 -> 0.07119536818 | CK55: =+W55*KeyAssumptionsPriceControl_FO!AI$15 -> 0.07333122923 | CL55: =+X55*KeyAssumptionsPriceControl_FO!AJ$15 -> 0.0755311661 | CM55: =+Y55*KeyAssumptionsPriceControl_FO!AK$15 -> 0.07779710109 | CN55: =+Z55*KeyAssumptionsPriceControl_FO!AL$15 -> 0.08013101412 | CP55: 0.001101791 | CQ55: 0.003264641135 | CR55: 0.005607223177 | CS55: 0.008194983472 | CT55: 0.01094083639 | CU55: 0.01416033612 | CV55: 0.01777350105 | CW55: 0.02149506094 | CX55: 0.02532826762 | CY55: 0.0292764705
C56: Facilities - Sewerage | E56: Sewerage | F56: Renewals | G56: Corporate | H56: Capital Programs / Allocation | J56: Straight line | K56: Ongoing | L56: 20 | M56: 20 | Q56: 0.342546 | R56: 0.320273 | S56: 0.375549 | T56: 0.371647 | U56: 0.397659 | V56: 0.37383 | W56: 0.37383 | X56: 0.37383 | Y56: 0.37383 | Z56: 0.37383 | AX56: 0.342546 | AY56: 0.320273 | AZ56: 0.375549 | BA56: 0.371647 | BB56: 0.397659 | BC56: 0.37383 | BD56: 0.37383 | BE56: 0.37383 | BF56: 0.37383 | BG56: 0.37383 | BI56: 0.00856365 | BJ56: 0.025134125 | BK56: 0.042529675 | BL56: 0.061209575 | BM56: 0.080442225 | BN56: 0.09972945 | BO56: 0.11842095 | BP56: 0.13711245 | BQ56: 0.15580395 | BR56: 0.17449545 | BT56: =+IF($K56="Ongoing",AX56,IF(RIGHT($K56,2)=RIGHT(BT$39,2),SUM($AX56:AX56),0)+IF(RIGHT(BT$39,2)>RIGHT($K56,2),AX56,0)) -> 0.342546 | BU56: =+IF($K56="Ongoing",AY56,IF(RIGHT($K56,2)=RIGHT(BU$39,2),SUM($AX56:AY56),0)+IF(RIGHT(BU$39,2)>RIGHT($K56,2),AY56,0)) -> 0.320273 | BV56: =+IF($K56="Ongoing",AZ56,IF(RIGHT($K56,2)=RIGHT(BV$39,2),SUM($AX56:AZ56),0)+IF(RIGHT(BV$39,2)>RIGHT($K56,2),AZ56,0)) -> 0.375549 | BW56: =+IF($K56="Ongoing",BA56,IF(RIGHT($K56,2)=RIGHT(BW$39,2),SUM($AX56:BA56),0)+IF(RIGHT(BW$39,2)>RIGHT($K56,2),BA56,0)) -> 0.371647 | BX56: =+IF($K56="Ongoing",BB56,IF(RIGHT($K56,2)=RIGHT(BX$39,2),SUM($AX56:BB56),0)+IF(RIGHT(BX$39,2)>RIGHT($K56,2),BB56,0)) -> 0.397659 | BY56: =+IF($K56="Ongoing",BC56,IF(RIGHT($K56,2)=RIGHT(BY$39,2),SUM($AX56:BC56),0)+IF(RIGHT(BY$39,2)>RIGHT($K56,2),BC56,0)) -> 0.37383 | BZ56: =+IF($K56="Ongoing",BD56,IF(RIGHT($K56,2)=RIGHT(BZ$39,2),SUM($AX56:BD56),0)+IF(RIGHT(BZ$39,2)>RIGHT($K56,2),BD56,0)) -> 0.37383 | CA56: =+IF($K56="Ongoing",BE56,IF(RIGHT($K56,2)=RIGHT(CA$39,2),SUM($AX56:BE56),0)+IF(RIGHT(CA$39,2)>RIGHT($K56,2),BE56,0)) -> 0.37383 | CB56: =+IF($K56="Ongoing",BF56,IF(RIGHT($K56,2)=RIGHT(CB$39,2),SUM($AX56:BF56),0)+IF(RIGHT(CB$39,2)>RIGHT($K56,2),BF56,0)) -> 0.37383 | CC56: =+IF($K56="Ongoing",BG56,IF(RIGHT($K56,2)=RIGHT(CC$39,2),SUM($AX56:BG56),0)+IF(RIGHT(CC$39,2)>RIGHT($K56,2),BG56,0)) -> 0.37383 | CE56: =+Q56*KeyAssumptionsPriceControl_FO!AC$15 -> 0.35282238 | CF56: =+R56*KeyAssumptionsPriceControl_FO!AD$15 -> 0.3397776257 | CG56: =+S56*KeyAssumptionsPriceControl_FO!AE$15 -> 0.4103725321 | CH56: =+T56*KeyAssumptionsPriceControl_FO!AF$15 -> 0.4182919727 | CI56: =+U56*KeyAssumptionsPriceControl_FO!AG$15 -> 0.4609957691 | CJ56: =+V56*KeyAssumptionsPriceControl_FO!AH$15 -> 0.44637257 | CK56: =+W56*KeyAssumptionsPriceControl_FO!AI$15 -> 0.4597637471 | CL56: =+X56*KeyAssumptionsPriceControl_FO!AJ$15 -> 0.4735566595 | CM56: =+Y56*KeyAssumptionsPriceControl_FO!AK$15 -> 0.4877633593 | CN56: =+Z56*KeyAssumptionsPriceControl_FO!AL$15 -> 0.5023962601 | CP56: 0.0088205595 | CQ56: 0.02613555964 | CR56: 0.04488931359 | CS56: 0.06560592621 | CT56: 0.08758811975 | CU56: 0.1102723282 | CV56: 0.1329257362 | CW56: 0.1562587463 | CX56: 0.1802917468 | CY56: 0.2050457373
C57: Facilities - Water | E57: Water | F57: Renewals | G57: Corporate | H57: Capital Programs / Allocation | J57: Straight line | K57: Ongoing | L57: 20 | M57: 20 | Q57: 0.168222 | R57: 0.157284 | S57: 0.18443 | T57: 0.182514 | U57: 0.195288 | V57: 0.207588 | W57: 0.207588 | X57: 0.207588 | Y57: 0.207588 | Z57: 0.207588 | AX57: 0.168222 | AY57: 0.157284 | AZ57: 0.18443 | BA57: 0.182514 | BB57: 0.195288 | BC57: 0.207588 | BD57: 0.207588 | BE57: 0.207588 | BF57: 0.207588 | BG57: 0.207588 | BI57: 0.00420555 | BJ57: 0.0123432 | BK57: 0.02088605 | BL57: 0.03005965 | BM57: 0.0395047 | BN57: 0.0495766 | BO57: 0.059956 | BP57: 0.0703354 | BQ57: 0.0807148 | BR57: 0.0910942 | BT57: =+IF($K57="Ongoing",AX57,IF(RIGHT($K57,2)=RIGHT(BT$39,2),SUM($AX57:AX57),0)+IF(RIGHT(BT$39,2)>RIGHT($K57,2),AX57,0)) -> 0.168222 | BU57: =+IF($K57="Ongoing",AY57,IF(RIGHT($K57,2)=RIGHT(BU$39,2),SUM($AX57:AY57),0)+IF(RIGHT(BU$39,2)>RIGHT($K57,2),AY57,0)) -> 0.157284 | BV57: =+IF($K57="Ongoing",AZ57,IF(RIGHT($K57,2)=RIGHT(BV$39,2),SUM($AX57:AZ57),0)+IF(RIGHT(BV$39,2)>RIGHT($K57,2),AZ57,0)) -> 0.18443 | BW57: =+IF($K57="Ongoing",BA57,IF(RIGHT($K57,2)=RIGHT(BW$39,2),SUM($AX57:BA57),0)+IF(RIGHT(BW$39,2)>RIGHT($K57,2),BA57,0)) -> 0.182514 | BX57: =+IF($K57="Ongoing",BB57,IF(RIGHT($K57,2)=RIGHT(BX$39,2),SUM($AX57:BB57),0)+IF(RIGHT(BX$39,2)>RIGHT($K57,2),BB57,0)) -> 0.195288 | BY57: =+IF($K57="Ongoing",BC57,IF(RIGHT($K57,2)=RIGHT(BY$39,2),SUM($AX57:BC57),0)+IF(RIGHT(BY$39,2)>RIGHT($K57,2),BC57,0)) -> 0.207588 | BZ57: =+IF($K57="Ongoing",BD57,IF(RIGHT($K57,2)=RIGHT(BZ$39,2),SUM($AX57:BD57),0)+IF(RIGHT(BZ$39,2)>RIGHT($K57,2),BD57,0)) -> 0.207588 | CA57: =+IF($K57="Ongoing",BE57,IF(RIGHT($K57,2)=RIGHT(CA$39,2),SUM($AX57:BE57),0)+IF(RIGHT(CA$39,2)>RIGHT($K57,2),BE57,0)) -> 0.207588 | CB57: =+IF($K57="Ongoing",BF57,IF(RIGHT($K57,2)=RIGHT(CB$39,2),SUM($AX57:BF57),0)+IF(RIGHT(CB$39,2)>RIGHT($K57,2),BF57,0)) -> 0.207588 | CC57: =+IF($K57="Ongoing",BG57,IF(RIGHT($K57,2)=RIGHT(CC$39,2),SUM($AX57:BG57),0)+IF(RIGHT(CC$39,2)>RIGHT($K57,2),BG57,0)) -> 0.207588 | CE57: =+Q57*KeyAssumptionsPriceControl_FO!AC$15 -> 0.17326866 | CF57: =+R57*KeyAssumptionsPriceControl_FO!AD$15 -> 0.1668625956 | CG57: =+S57*KeyAssumptionsPriceControl_FO!AE$15 -> 0.2015316406 | CH57: =+T57*KeyAssumptionsPriceControl_FO!AF$15 -> 0.2054211149 | CI57: =+U57*KeyAssumptionsPriceControl_FO!AG$15 -> 0.2263923154 | CJ57: =+V57*KeyAssumptionsPriceControl_FO!AH$15 -> 0.2478709281 | CK57: =+W57*KeyAssumptionsPriceControl_FO!AI$15 -> 0.255307056 | CL57: =+X57*KeyAssumptionsPriceControl_FO!AJ$15 -> 0.2629662677 | CM57: =+Y57*KeyAssumptionsPriceControl_FO!AK$15 -> 0.2708552557 | CN57: =+Z57*KeyAssumptionsPriceControl_FO!AL$15 -> 0.2789809134 | CP57: 0.0043317165 | CQ57: 0.01283499789 | CR57: 0.0220448538 | CS57: 0.03221867268 | CT57: 0.04301400844 | CU57: 0.05487058953 | CV57: 0.06745003914 | CW57: 0.08040687223 | CX57: 0.09375241031 | CY57: 0.1074983145
C58: Information Technology | E58: Recycled Water | F58: Growth | G58: Corporate | H58: Capital Programs / Allocation | J58: Straight line | K58: Ongoing | L58: 10 | M58: 10 | Q58: 1.802696 | R58: 1.800692 | S58: 1.822048 | T58: 1.778161 | U58: 1.733351 | V58: 1.788988 | W58: 3.115627 | X58: 3.115627 | Y58: 2.432555 | Z58: 1.531966 | AX58: 1.802696 | AY58: 1.800692 | AZ58: 1.822048 | BA58: 1.778161 | BB58: 1.733351 | BC58: 1.788988 | BD58: 3.115627 | BE58: 3.115627 | BF58: 2.432555 | BG58: 1.531966 | BI58: 0.0901348 | BJ58: 0.2703042 | BK58: 0.4514412 | BL58: 0.63145165 | BM58: 0.80702725 | BN58: 0.9831442 | BO58: 1.22837495 | BP58: 1.53993765 | BQ58: 1.81734675 | BR58: 2.0155728 | BT58: =+IF($K58="Ongoing",AX58,IF(RIGHT($K58,2)=RIGHT(BT$39,2),SUM($AX58:AX58),0)+IF(RIGHT(BT$39,2)>RIGHT($K58,2),AX58,0)) -> 1.802696 | BU58: =+IF($K58="Ongoing",AY58,IF(RIGHT($K58,2)=RIGHT(BU$39,2),SUM($AX58:AY58),0)+IF(RIGHT(BU$39,2)>RIGHT($K58,2),AY58,0)) -> 1.800692 | BV58: =+IF($K58="Ongoing",AZ58,IF(RIGHT($K58,2)=RIGHT(BV$39,2),SUM($AX58:AZ58),0)+IF(RIGHT(BV$39,2)>RIGHT($K58,2),AZ58,0)) -> 1.822048 | BW58: =+IF($K58="Ongoing",BA58,IF(RIGHT($K58,2)=RIGHT(BW$39,2),SUM($AX58:BA58),0)+IF(RIGHT(BW$39,2)>RIGHT($K58,2),BA58,0)) -> 1.778161 | BX58: =+IF($K58="Ongoing",BB58,IF(RIGHT($K58,2)=RIGHT(BX$39,2),SUM($AX58:BB58),0)+IF(RIGHT(BX$39,2)>RIGHT($K58,2),BB58,0)) -> 1.733351 | BY58: =+IF($K58="Ongoing",BC58,IF(RIGHT($K58,2)=RIGHT(BY$39,2),SUM($AX58:BC58),0)+IF(RIGHT(BY$39,2)>RIGHT($K58,2),BC58,0)) -> 1.788988 | BZ58: =+IF($K58="Ongoing",BD58,IF(RIGHT($K58,2)=RIGHT(BZ$39,2),SUM($AX58:BD58),0)+IF(RIGHT(BZ$39,2)>RIGHT($K58,2),BD58,0)) -> 3.115627 | CA58: =+IF($K58="Ongoing",BE58,IF(RIGHT($K58,2)=RIGHT(CA$39,2),SUM($AX58:BE58),0)+IF(RIGHT(CA$39,2)>RIGHT($K58,2),BE58,0)) -> 3.115627 | CB58: =+IF($K58="Ongoing",BF58,IF(RIGHT($K58,2)=RIGHT(CB$39,2),SUM($AX58:BF58),0)+IF(RIGHT(CB$39,2)>RIGHT($K58,2),BF58,0)) -> 2.432555 | CC58: =+IF($K58="Ongoing",BG58,IF(RIGHT($K58,2)=RIGHT(CC$39,2),SUM($AX58:BG58),0)+IF(RIGHT(CC$39,2)>RIGHT($K58,2),BG58,0)) -> 1.531966 | CE58: =+Q58*KeyAssumptionsPriceControl_FO!AC$15 -> 1.85677688 | CF58: =+R58*KeyAssumptionsPriceControl_FO!AD$15 -> 1.910354143 | CG58: =+S58*KeyAssumptionsPriceControl_FO!AE$15 -> 1.991001045 | CH58: =+T58*KeyAssumptionsPriceControl_FO!AF$15 -> 2.001335871 | CI58: =+U58*KeyAssumptionsPriceControl_FO!AG$15 -> 2.009428876 | CJ58: =+V58*KeyAssumptionsPriceControl_FO!AH$15 -> 2.13614523 | CK58: =+W58*KeyAssumptionsPriceControl_FO!AI$15 -> 3.831828222 | CL58: =+X58*KeyAssumptionsPriceControl_FO!AJ$15 -> 3.946783068 | CM58: =+Y58*KeyAssumptionsPriceControl_FO!AK$15 -> 3.173932532 | CN58: =+Z58*KeyAssumptionsPriceControl_FO!AL$15 -> 2.0588342 | CP58: 0.092838844 | CQ58: 0.2811953951 | CR58: 0.4762631545 | CS58: 0.6758800003 | CT58: 0.8764182377 | CU58: 1.083696943 | CV58: 1.382095616 | CW58: 1.77102618 | CX58: 2.12706196 | CY58: 2.388700297
C59: Information Technology | E59: Recycled Water | F59: Improvements / Compliance | G59: Corporate | H59: Capital Programs / Allocation | J59: Straight line | K59: Ongoing | L59: 10 | M59: 10 | Q59: 0.192866 | R59: 0.192652 | S59: 0.194936 | T59: 0.190241 | U59: 0.185447 | V59: 0.70951 | W59: 1.235652 | X59: 1.235652 | Y59: 0.964747 | Z59: 0.607575 | AX59: 0.192866 | AY59: 0.192652 | AZ59: 0.194936 | BA59: 0.190241 | BB59: 0.185447 | BC59: 0.70951 | BD59: 1.235652 | BE59: 1.235652 | BF59: 0.964747 | BG59: 0.607575 | BI59: 0.0096433 | BJ59: 0.0289192 | BK59: 0.0482986 | BL59: 0.06755745 | BM59: 0.08634185 | BN59: 0.1310897 | BO59: 0.2283478 | BP59: 0.351913 | BQ59: 0.46193295 | BR59: 0.54054905 | BT59: =+IF($K59="Ongoing",AX59,IF(RIGHT($K59,2)=RIGHT(BT$39,2),SUM($AX59:AX59),0)+IF(RIGHT(BT$39,2)>RIGHT($K59,2),AX59,0)) -> 0.192866 | BU59: =+IF($K59="Ongoing",AY59,IF(RIGHT($K59,2)=RIGHT(BU$39,2),SUM($AX59:AY59),0)+IF(RIGHT(BU$39,2)>RIGHT($K59,2),AY59,0)) -> 0.192652 | BV59: =+IF($K59="Ongoing",AZ59,IF(RIGHT($K59,2)=RIGHT(BV$39,2),SUM($AX59:AZ59),0)+IF(RIGHT(BV$39,2)>RIGHT($K59,2),AZ59,0)) -> 0.194936 | BW59: =+IF($K59="Ongoing",BA59,IF(RIGHT($K59,2)=RIGHT(BW$39,2),SUM($AX59:BA59),0)+IF(RIGHT(BW$39,2)>RIGHT($K59,2),BA59,0)) -> 0.190241 | BX59: =+IF($K59="Ongoing",BB59,IF(RIGHT($K59,2)=RIGHT(BX$39,2),SUM($AX59:BB59),0)+IF(RIGHT(BX$39,2)>RIGHT($K59,2),BB59,0)) -> 0.185447 | BY59: =+IF($K59="Ongoing",BC59,IF(RIGHT($K59,2)=RIGHT(BY$39,2),SUM($AX59:BC59),0)+IF(RIGHT(BY$39,2)>RIGHT($K59,2),BC59,0)) -> 0.70951 | BZ59: =+IF($K59="Ongoing",BD59,IF(RIGHT($K59,2)=RIGHT(BZ$39,2),SUM($AX59:BD59),0)+IF(RIGHT(BZ$39,2)>RIGHT($K59,2),BD59,0)) -> 1.235652 | CA59: =+IF($K59="Ongoing",BE59,IF(RIGHT($K59,2)=RIGHT(CA$39,2),SUM($AX59:BE59),0)+IF(RIGHT(CA$39,2)>RIGHT($K59,2),BE59,0)) -> 1.235652 | CB59: =+IF($K59="Ongoing",BF59,IF(RIGHT($K59,2)=RIGHT(CB$39,2),SUM($AX59:BF59),0)+IF(RIGHT(CB$39,2)>RIGHT($K59,2),BF59,0)) -> 0.964747 | CC59: =+IF($K59="Ongoing",BG59,IF(RIGHT($K59,2)=RIGHT(CC$39,2),SUM($AX59:BG59),0)+IF(RIGHT(CC$39,2)>RIGHT($K59,2),BG59,0)) -> 0.607575 | CE59: =+Q59*KeyAssumptionsPriceControl_FO!AC$15 -> 0.19865198 | CF59: =+R59*KeyAssumptionsPriceControl_FO!AD$15 -> 0.2043845068 | CG59: =+S59*KeyAssumptionsPriceControl_FO!AE$15 -> 0.2130118305 | CH59: =+T59*KeyAssumptionsPriceControl_FO!AF$15 -> 0.2141179215 | CI59: =+U59*KeyAssumptionsPriceControl_FO!AG$15 -> 0.2149838993 | CJ59: =+V59*KeyAssumptionsPriceControl_FO!AH$15 -> 0.8471920449 | CK59: =+W59*KeyAssumptionsPriceControl_FO!AI$15 -> 1.519696102 | CL59: =+X59*KeyAssumptionsPriceControl_FO!AJ$15 -> 1.565286985 | CM59: =+Y59*KeyAssumptionsPriceControl_FO!AK$15 -> 1.258776015 | CN59: =+Z59*KeyAssumptionsPriceControl_FO!AL$15 -> 0.8165299942 | CP59: 0.009932599 | CQ59: 0.03008442334 | CR59: 0.0509542402 | CS59: 0.0723107278 | CT59: 0.09376581884 | CU59: 0.1468746161 | CV59: 0.2652190234 | CW59: 0.4194681777 | CX59: 0.5606713277 | CY59: 0.6644366281
C60: Information Technology | E60: Recycled Water | F60: Renewals | G60: Corporate | H60: Capital Programs / Allocation | J60: Straight line | K60: Ongoing | L60: 10 | M60: 10 | Q60: 0.226617 | R60: 0.226365 | S60: 0.22905 | T60: 0.223533 | U60: 0.2179 | V60: 0.061507 | W60: 0.107118 | X60: 0.107118 | Y60: 0.083634 | Z60: 0.052671 | AX60: 0.226617 | AY60: 0.226365 | AZ60: 0.22905 | BA60: 0.223533 | BB60: 0.2179 | BC60: 0.061507 | BD60: 0.107118 | BE60: 0.107118 | BF60: 0.083634 | BG60: 0.052671 | BI60: 0.01133085 | BJ60: 0.03397995 | BK60: 0.0567507 | BL60: 0.07937985 | BM60: 0.1014515 | BN60: 0.11542185 | BO60: 0.1238531 | BP60: 0.1345649 | BQ60: 0.1441025 | BR60: 0.15091775 | BT60: =+IF($K60="Ongoing",AX60,IF(RIGHT($K60,2)=RIGHT(BT$39,2),SUM($AX60:AX60),0)+IF(RIGHT(BT$39,2)>RIGHT($K60,2),AX60,0)) -> 0.226617 | BU60: =+IF($K60="Ongoing",AY60,IF(RIGHT($K60,2)=RIGHT(BU$39,2),SUM($AX60:AY60),0)+IF(RIGHT(BU$39,2)>RIGHT($K60,2),AY60,0)) -> 0.226365 | BV60: =+IF($K60="Ongoing",AZ60,IF(RIGHT($K60,2)=RIGHT(BV$39,2),SUM($AX60:AZ60),0)+IF(RIGHT(BV$39,2)>RIGHT($K60,2),AZ60,0)) -> 0.22905 | BW60: =+IF($K60="Ongoing",BA60,IF(RIGHT($K60,2)=RIGHT(BW$39,2),SUM($AX60:BA60),0)+IF(RIGHT(BW$39,2)>RIGHT($K60,2),BA60,0)) -> 0.223533 | BX60: =+IF($K60="Ongoing",BB60,IF(RIGHT($K60,2)=RIGHT(BX$39,2),SUM($AX60:BB60),0)+IF(RIGHT(BX$39,2)>RIGHT($K60,2),BB60,0)) -> 0.2179 | BY60: =+IF($K60="Ongoing",BC60,IF(RIGHT($K60,2)=RIGHT(BY$39,2),SUM($AX60:BC60),0)+IF(RIGHT(BY$39,2)>RIGHT($K60,2),BC60,0)) -> 0.061507 | BZ60: =+IF($K60="Ongoing",BD60,IF(RIGHT($K60,2)=RIGHT(BZ$39,2),SUM($AX60:BD60),0)+IF(RIGHT(BZ$39,2)>RIGHT($K60,2),BD60,0)) -> 0.107118 | CA60: =+IF($K60="Ongoing",BE60,IF(RIGHT($K60,2)=RIGHT(CA$39,2),SUM($AX60:BE60),0)+IF(RIGHT(CA$39,2)>RIGHT($K60,2),BE60,0)) -> 0.107118 | CB60: =+IF($K60="Ongoing",BF60,IF(RIGHT($K60,2)=RIGHT(CB$39,2),SUM($AX60:BF60),0)+IF(RIGHT(CB$39,2)>RIGHT($K60,2),BF60,0)) -> 0.083634 | CC60: =+IF($K60="Ongoing",BG60,IF(RIGHT($K60,2)=RIGHT(CC$39,2),SUM($AX60:BG60),0)+IF(RIGHT(CC$39,2)>RIGHT($K60,2),BG60,0)) -> 0.052671 | CE60: =+Q60*KeyAssumptionsPriceControl_FO!AC$15 -> 0.23341551 | CF60: =+R60*KeyAssumptionsPriceControl_FO!AD$15 -> 0.2401506285 | CG60: =+S60*KeyAssumptionsPriceControl_FO!AE$15 -> 0.2502891193 | CH60: =+T60*KeyAssumptionsPriceControl_FO!AF$15 -> 0.2515883608 | CI60: =+U60*KeyAssumptionsPriceControl_FO!AG$15 -> 0.2526058208 | CJ60: =+V60*KeyAssumptionsPriceControl_FO!AH$15 -> 0.0734425746 | CK60: =+W60*KeyAssumptionsPriceControl_FO!AI$15 -> 0.1317416287 | CL60: =+X60*KeyAssumptionsPriceControl_FO!AJ$15 -> 0.1356938776 | CM60: =+Y60*KeyAssumptionsPriceControl_FO!AK$15 -> 0.1091234005 | CN60: =+Z60*KeyAssumptionsPriceControl_FO!AL$15 -> 0.07078541962 | CP60: 0.0116707755 | CQ60: 0.03534908242 | CR60: 0.05987106982 | CS60: 0.08496494383 | CT60: 0.1101746529 | CU60: 0.1264770727 | CV60: 0.1367362828 | CW60: 0.1501080582 | CX60: 0.1623489221 | CY60: 0.1713443631
C61: Information Technology | E61: Sewerage | F61: Growth | G61: Corporate | H61: Capital Programs / Allocation | J61: Straight line | K61: Ongoing | L61: 10 | M61: 10 | Q61: 5.840987 | R61: 5.834496 | S61: 5.903692 | T61: 5.761491 | U61: 5.616301 | V61: 7.550996 | W61: 13.150499 | X61: 13.150499 | Y61: 10.267376 | Z61: 6.466152 | AX61: 5.840987 | AY61: 5.834496 | AZ61: 5.903692 | BA61: 5.761491 | BB61: 5.616301 | BC61: 7.550996 | BD61: 13.150499 | BE61: 13.150499 | BF61: 10.267376 | BG61: 6.466152 | BI61: 0.29204935 | BJ61: 0.8758235 | BK61: 1.4627329 | BL61: 2.04599205 | BM61: 2.61488165 | BN61: 3.2732465 | BO61: 4.30832125 | BP61: 5.62337115 | BQ61: 6.7942649 | BR61: 7.6309413 | BT61: =+IF($K61="Ongoing",AX61,IF(RIGHT($K61,2)=RIGHT(BT$39,2),SUM($AX61:AX61),0)+IF(RIGHT(BT$39,2)>RIGHT($K61,2),AX61,0)) -> 5.840987 | BU61: =+IF($K61="Ongoing",AY61,IF(RIGHT($K61,2)=RIGHT(BU$39,2),SUM($AX61:AY61),0)+IF(RIGHT(BU$39,2)>RIGHT($K61,2),AY61,0)) -> 5.834496 | BV61: =+IF($K61="Ongoing",AZ61,IF(RIGHT($K61,2)=RIGHT(BV$39,2),SUM($AX61:AZ61),0)+IF(RIGHT(BV$39,2)>RIGHT($K61,2),AZ61,0)) -> 5.903692 | BW61: =+IF($K61="Ongoing",BA61,IF(RIGHT($K61,2)=RIGHT(BW$39,2),SUM($AX61:BA61),0)+IF(RIGHT(BW$39,2)>RIGHT($K61,2),BA61,0)) -> 5.761491 | BX61: =+IF($K61="Ongoing",BB61,IF(RIGHT($K61,2)=RIGHT(BX$39,2),SUM($AX61:BB61),0)+IF(RIGHT(BX$39,2)>RIGHT($K61,2),BB61,0)) -> 5.616301 | BY61: =+IF($K61="Ongoing",BC61,IF(RIGHT($K61,2)=RIGHT(BY$39,2),SUM($AX61:BC61),0)+IF(RIGHT(BY$39,2)>RIGHT($K61,2),BC61,0)) -> 7.550996 | BZ61: =+IF($K61="Ongoing",BD61,IF(RIGHT($K61,2)=RIGHT(BZ$39,2),SUM($AX61:BD61),0)+IF(RIGHT(BZ$39,2)>RIGHT($K61,2),BD61,0)) -> 13.150499 | CA61: =+IF($K61="Ongoing",BE61,IF(RIGHT($K61,2)=RIGHT(CA$39,2),SUM($AX61:BE61),0)+IF(RIGHT(CA$39,2)>RIGHT($K61,2),BE61,0)) -> 13.150499 | CB61: =+IF($K61="Ongoing",BF61,IF(RIGHT($K61,2)=RIGHT(CB$39,2),SUM($AX61:BF61),0)+IF(RIGHT(CB$39,2)>RIGHT($K61,2),BF61,0)) -> 10.267376 | CC61: =+IF($K61="Ongoing",BG61,IF(RIGHT($K61,2)=RIGHT(CC$39,2),SUM($AX61:BG61),0)+IF(RIGHT(CC$39,2)>RIGHT($K61,2),BG61,0)) -> 6.466152 | CE61: =+Q61*KeyAssumptionsPriceControl_FO!AC$15 -> 6.01621661 | CF61: =+R61*KeyAssumptionsPriceControl_FO!AD$15 -> 6.189816806 | CG61: =+S61*KeyAssumptionsPriceControl_FO!AE$15 -> 6.451123648 | CH61: =+T61*KeyAssumptionsPriceControl_FO!AF$15 -> 6.484608879 | CI61: =+U61*KeyAssumptionsPriceControl_FO!AG$15 -> 6.510832143 | CJ61: =+V61*KeyAssumptionsPriceControl_FO!AH$15 -> 9.016284115 | CK61: =+W61*KeyAssumptionsPriceControl_FO!AI$15 -> 16.17345504 | CL61: =+X61*KeyAssumptionsPriceControl_FO!AJ$15 -> 16.65865869 | CM61: =+Y61*KeyAssumptionsPriceControl_FO!AK$15 -> 13.39659687 | CN61: =+Z61*KeyAssumptionsPriceControl_FO!AL$15 -> 8.689967584 | CP61: 0.3008108305 | CQ61: 0.9111125013 | CR61: 1.543159524 | CS61: 2.18994615 | CT61: 2.839718202 | CU61: 3.616074014 | CV61: 4.875560972 | CW61: 6.517166658 | CX61: 8.019929436 | CY61: 9.124257659
C62: Information Technology | E62: Sewerage | F62: Improvements / Compliance | G62: Corporate | H62: Capital Programs / Allocation | J62: Straight line | K62: Ongoing | L62: 10 | M62: 10 | Q62: 6.906092 | R62: 6.898418 | S62: 6.980231 | T62: 6.8121 | U62: 6.640434 | V62: 4.838846 | W62: 8.427131 | X62: 8.427131 | Y62: 6.579562 | Z62: 4.143654 | AX62: 6.906092 | AY62: 6.898418 | AZ62: 6.980231 | BA62: 6.8121 | BB62: 6.640434 | BC62: 4.838846 | BD62: 8.427131 | BE62: 8.427131 | BF62: 6.579562 | BG62: 4.143654 | BI62: 0.3453046 | BJ62: 1.0355301 | BK62: 1.72946255 | BL62: 2.4190791 | BM62: 3.0917058 | BN62: 3.6656698 | BO62: 4.32896865 | BP62: 5.17168175 | BQ62: 5.9220164 | BR62: 6.4581772 | BT62: =+IF($K62="Ongoing",AX62,IF(RIGHT($K62,2)=RIGHT(BT$39,2),SUM($AX62:AX62),0)+IF(RIGHT(BT$39,2)>RIGHT($K62,2),AX62,0)) -> 6.906092 | BU62: =+IF($K62="Ongoing",AY62,IF(RIGHT($K62,2)=RIGHT(BU$39,2),SUM($AX62:AY62),0)+IF(RIGHT(BU$39,2)>RIGHT($K62,2),AY62,0)) -> 6.898418 | BV62: =+IF($K62="Ongoing",AZ62,IF(RIGHT($K62,2)=RIGHT(BV$39,2),SUM($AX62:AZ62),0)+IF(RIGHT(BV$39,2)>RIGHT($K62,2),AZ62,0)) -> 6.980231 | BW62: =+IF($K62="Ongoing",BA62,IF(RIGHT($K62,2)=RIGHT(BW$39,2),SUM($AX62:BA62),0)+IF(RIGHT(BW$39,2)>RIGHT($K62,2),BA62,0)) -> 6.8121 | BX62: =+IF($K62="Ongoing",BB62,IF(RIGHT($K62,2)=RIGHT(BX$39,2),SUM($AX62:BB62),0)+IF(RIGHT(BX$39,2)>RIGHT($K62,2),BB62,0)) -> 6.640434 | BY62: =+IF($K62="Ongoing",BC62,IF(RIGHT($K62,2)=RIGHT(BY$39,2),SUM($AX62:BC62),0)+IF(RIGHT(BY$39,2)>RIGHT($K62,2),BC62,0)) -> 4.838846 | BZ62: =+IF($K62="Ongoing",BD62,IF(RIGHT($K62,2)=RIGHT(BZ$39,2),SUM($AX62:BD62),0)+IF(RIGHT(BZ$39,2)>RIGHT($K62,2),BD62,0)) -> 8.427131 | CA62: =+IF($K62="Ongoing",BE62,IF(RIGHT($K62,2)=RIGHT(CA$39,2),SUM($AX62:BE62),0)+IF(RIGHT(CA$39,2)>RIGHT($K62,2),BE62,0)) -> 8.427131 | CB62: =+IF($K62="Ongoing",BF62,IF(RIGHT($K62,2)=RIGHT(CB$39,2),SUM($AX62:BF62),0)+IF(RIGHT(CB$39,2)>RIGHT($K62,2),BF62,0)) -> 6.579562 | CC62: =+IF($K62="Ongoing",BG62,IF(RIGHT($K62,2)=RIGHT(CC$39,2),SUM($AX62:BG62),0)+IF(RIGHT(CC$39,2)>RIGHT($K62,2),BG62,0)) -> 4.143654 | CE62: =+Q62*KeyAssumptionsPriceControl_FO!AC$15 -> 7.11327476 | CF62: =+R62*KeyAssumptionsPriceControl_FO!AD$15 -> 7.318531656 | CG62: =+S62*KeyAssumptionsPriceControl_FO!AE$15 -> 7.62748688 | CH62: =+T62*KeyAssumptionsPriceControl_FO!AF$15 -> 7.667078565 | CI62: =+U62*KeyAssumptionsPriceControl_FO!AG$15 -> 7.698082978 | CJ62: =+V62*KeyAssumptionsPriceControl_FO!AH$15 -> 5.777835179 | CK62: =+W62*KeyAssumptionsPriceControl_FO!AI$15 -> 10.36430818 | CL62: =+X62*KeyAssumptionsPriceControl_FO!AJ$15 -> 10.67523742 | CM62: =+Y62*KeyAssumptionsPriceControl_FO!AK$15 -> 8.584836059 | CN62: =+Z62*KeyAssumptionsPriceControl_FO!AL$15 -> 5.568724481 | CP62: 0.355663738 | CQ62: 1.077254059 | CR62: 1.824554986 | CS62: 2.589283258 | CT62: 3.357541335 | CU62: 4.031337243 | CV62: 4.838444411 | CW62: 5.890421691 | CX62: 6.853425365 | CY62: 7.561103392
C63: Information Technology | E63: Sewerage | F63: Renewals | G63: Corporate | H63: Capital Programs / Allocation | J63: Straight line | K63: Ongoing | L63: 10 | M63: 10 | Q63: 5.042763 | R63: 5.037159 | S63: 5.096898 | T63: 4.97413 | U63: 4.848781 | V63: 3.660531 | W63: 6.375028 | X63: 6.375028 | Y63: 4.977363 | Z63: 3.134626 | AX63: 5.042763 | AY63: 5.037159 | AZ63: 5.096898 | BA63: 4.97413 | BB63: 4.848781 | BC63: 3.660531 | BD63: 6.375028 | BE63: 6.375028 | BF63: 4.977363 | BG63: 3.134626 | BI63: 0.25213815 | BJ63: 0.75613425 | BK63: 1.2628371 | BL63: 1.7663885 | BM63: 2.25753405 | BN63: 2.68299965 | BO63: 3.1847776 | BP63: 3.8222804 | BQ63: 4.38989995 | BR63: 4.7954994 | BT63: =+IF($K63="Ongoing",AX63,IF(RIGHT($K63,2)=RIGHT(BT$39,2),SUM($AX63:AX63),0)+IF(RIGHT(BT$39,2)>RIGHT($K63,2),AX63,0)) -> 5.042763 | BU63: =+IF($K63="Ongoing",AY63,IF(RIGHT($K63,2)=RIGHT(BU$39,2),SUM($AX63:AY63),0)+IF(RIGHT(BU$39,2)>RIGHT($K63,2),AY63,0)) -> 5.037159 | BV63: =+IF($K63="Ongoing",AZ63,IF(RIGHT($K63,2)=RIGHT(BV$39,2),SUM($AX63:AZ63),0)+IF(RIGHT(BV$39,2)>RIGHT($K63,2),AZ63,0)) -> 5.096898 | BW63: =+IF($K63="Ongoing",BA63,IF(RIGHT($K63,2)=RIGHT(BW$39,2),SUM($AX63:BA63),0)+IF(RIGHT(BW$39,2)>RIGHT($K63,2),BA63,0)) -> 4.97413 | BX63: =+IF($K63="Ongoing",BB63,IF(RIGHT($K63,2)=RIGHT(BX$39,2),SUM($AX63:BB63),0)+IF(RIGHT(BX$39,2)>RIGHT($K63,2),BB63,0)) -> 4.848781 | BY63: =+IF($K63="Ongoing",BC63,IF(RIGHT($K63,2)=RIGHT(BY$39,2),SUM($AX63:BC63),0)+IF(RIGHT(BY$39,2)>RIGHT($K63,2),BC63,0)) -> 3.660531 | BZ63: =+IF($K63="Ongoing",BD63,IF(RIGHT($K63,2)=RIGHT(BZ$39,2),SUM($AX63:BD63),0)+IF(RIGHT(BZ$39,2)>RIGHT($K63,2),BD63,0)) -> 6.375028 | CA63: =+IF($K63="Ongoing",BE63,IF(RIGHT($K63,2)=RIGHT(CA$39,2),SUM($AX63:BE63),0)+IF(RIGHT(CA$39,2)>RIGHT($K63,2),BE63,0)) -> 6.375028 | CB63: =+IF($K63="Ongoing",BF63,IF(RIGHT($K63,2)=RIGHT(CB$39,2),SUM($AX63:BF63),0)+IF(RIGHT(CB$39,2)>RIGHT($K63,2),BF63,0)) -> 4.977363 | CC63: =+IF($K63="Ongoing",BG63,IF(RIGHT($K63,2)=RIGHT(CC$39,2),SUM($AX63:BG63),0)+IF(RIGHT(CC$39,2)>RIGHT($K63,2),BG63,0)) -> 3.134626 | CE63: =+Q63*KeyAssumptionsPriceControl_FO!AC$15 -> 5.19404589 | CF63: =+R63*KeyAssumptionsPriceControl_FO!AD$15 -> 5.343921983 | CG63: =+S63*KeyAssumptionsPriceControl_FO!AE$15 -> 5.569518061 | CH63: =+T63*KeyAssumptionsPriceControl_FO!AF$15 -> 5.598427137 | CI63: =+U63*KeyAssumptionsPriceControl_FO!AG$15 -> 5.621066105 | CJ63: =+V63*KeyAssumptionsPriceControl_FO!AH$15 -> 4.370865447 | CK63: =+W63*KeyAssumptionsPriceControl_FO!AI$15 -> 7.840480329 | CL63: =+X63*KeyAssumptionsPriceControl_FO!AJ$15 -> 8.075694738 | CM63: =+Y63*KeyAssumptionsPriceControl_FO!AK$15 -> 6.494329769 | CN63: =+Z63*KeyAssumptionsPriceControl_FO!AL$15 -> 4.212675225 | CP63: 0.2597022945 | CQ63: 0.7866006882 | CR63: 1.33227269 | CS63: 1.89066995 | CT63: 2.451644612 | CU63: 2.95124119 | CV63: 3.561808479 | CW63: 4.357617232 | CX63: 5.086118457 | CY63: 5.621468707
C64: Information Technology | E64: Water | F64: Growth | G64: Corporate | H64: Capital Programs / Allocation | J64: Straight line | K64: Ongoing | L64: 10 | M64: 10 | Q64: 1.898309 | R64: 1.896199 | S64: 1.918688 | T64: 1.872473 | U64: 1.825286 | V64: 2.312397 | W64: 4.027173 | X64: 4.027173 | Y64: 3.144253 | Z64: 1.980177 | AX64: 1.898309 | AY64: 1.896199 | AZ64: 1.918688 | BA64: 1.872473 | BB64: 1.825286 | BC64: 2.312397 | BD64: 4.027173 | BE64: 4.027173 | BF64: 3.144253 | BG64: 1.980177 | BI64: 0.09491545 | BJ64: 0.28464085 | BK64: 0.4753852 | BL64: 0.66494325 | BM64: 0.8498312 | BN64: 1.05671535 | BO64: 1.37369385 | BP64: 1.77641115 | BQ64: 2.13498245 | BR64: 2.39120395 | BT64: =+IF($K64="Ongoing",AX64,IF(RIGHT($K64,2)=RIGHT(BT$39,2),SUM($AX64:AX64),0)+IF(RIGHT(BT$39,2)>RIGHT($K64,2),AX64,0)) -> 1.898309 | BU64: =+IF($K64="Ongoing",AY64,IF(RIGHT($K64,2)=RIGHT(BU$39,2),SUM($AX64:AY64),0)+IF(RIGHT(BU$39,2)>RIGHT($K64,2),AY64,0)) -> 1.896199 | BV64: =+IF($K64="Ongoing",AZ64,IF(RIGHT($K64,2)=RIGHT(BV$39,2),SUM($AX64:AZ64),0)+IF(RIGHT(BV$39,2)>RIGHT($K64,2),AZ64,0)) -> 1.918688 | BW64: =+IF($K64="Ongoing",BA64,IF(RIGHT($K64,2)=RIGHT(BW$39,2),SUM($AX64:BA64),0)+IF(RIGHT(BW$39,2)>RIGHT($K64,2),BA64,0)) -> 1.872473 | BX64: =+IF($K64="Ongoing",BB64,IF(RIGHT($K64,2)=RIGHT(BX$39,2),SUM($AX64:BB64),0)+IF(RIGHT(BX$39,2)>RIGHT($K64,2),BB64,0)) -> 1.825286 | BY64: =+IF($K64="Ongoing",BC64,IF(RIGHT($K64,2)=RIGHT(BY$39,2),SUM($AX64:BC64),0)+IF(RIGHT(BY$39,2)>RIGHT($K64,2),BC64,0)) -> 2.312397 | BZ64: =+IF($K64="Ongoing",BD64,IF(RIGHT($K64,2)=RIGHT(BZ$39,2),SUM($AX64:BD64),0)+IF(RIGHT(BZ$39,2)>RIGHT($K64,2),BD64,0)) -> 4.027173 | CA64: =+IF($K64="Ongoing",BE64,IF(RIGHT($K64,2)=RIGHT(CA$39,2),SUM($AX64:BE64),0)+IF(RIGHT(CA$39,2)>RIGHT($K64,2),BE64,0)) -> 4.027173 | CB64: =+IF($K64="Ongoing",BF64,IF(RIGHT($K64,2)=RIGHT(CB$39,2),SUM($AX64:BF64),0)+IF(RIGHT(CB$39,2)>RIGHT($K64,2),BF64,0)) -> 3.144253 | CC64: =+IF($K64="Ongoing",BG64,IF(RIGHT($K64,2)=RIGHT(CC$39,2),SUM($AX64:BG64),0)+IF(RIGHT(CC$39,2)>RIGHT($K64,2),BG64,0)) -> 1.980177 | CE64: =+Q64*KeyAssumptionsPriceControl_FO!AC$15 -> 1.95525827 | CF64: =+R64*KeyAssumptionsPriceControl_FO!AD$15 -> 2.011677519 | CG64: =+S64*KeyAssumptionsPriceControl_FO!AE$15 -> 2.096602182 | CH64: =+T64*KeyAssumptionsPriceControl_FO!AF$15 -> 2.107484858 | CI64: =+U64*KeyAssumptionsPriceControl_FO!AG$15 -> 2.116006738 | CJ64: =+V64*KeyAssumptionsPriceControl_FO!AH$15 -> 2.761122948 | CK64: =+W64*KeyAssumptionsPriceControl_FO!AI$15 -> 4.952914824 | CL64: =+X64*KeyAssumptionsPriceControl_FO!AJ$15 -> 5.101502269 | CM64: =+Y64*KeyAssumptionsPriceControl_FO!AK$15 -> 4.102536998 | CN64: =+Z64*KeyAssumptionsPriceControl_FO!AL$15 -> 2.661192304 | CP64: 0.0977629135 | CQ64: 0.296109703 | CR64: 0.501523688 | CS64: 0.71172804 | CT64: 0.9229026198 | CU64: 1.166759104 | CV64: 1.552460993 | CW64: 2.055181847 | CX64: 2.515383811 | CY64: 2.853570276
C65: Information Technology | E65: Water | F65: Improvements / Compliance | G65: Corporate | H65: Capital Programs / Allocation | J65: Straight line | K65: Ongoing | L65: 10 | M65: 10 | Q65: 3.254591 | R65: 3.250974 | S65: 3.28953 | T65: 3.210295 | U65: 3.129395 | V65: 3.820575 | W65: 6.653754 | X65: 6.653754 | Y65: 5.194981 | Z65: 3.271677 | AX65: 3.254591 | AY65: 3.250974 | AZ65: 3.28953 | BA65: 3.210295 | BB65: 3.129395 | BC65: 3.820575 | BD65: 6.653754 | BE65: 6.653754 | BF65: 5.194981 | BG65: 3.271677 | BI65: 0.16272955 | BJ65: 0.4880078 | BK65: 0.815033 | BL65: 1.14002425 | BM65: 1.45700875 | BN65: 1.80450725 | BO65: 2.3282237 | BP65: 2.9935991 | BQ65: 3.58603585 | BR65: 4.00936875 | BT65: =+IF($K65="Ongoing",AX65,IF(RIGHT($K65,2)=RIGHT(BT$39,2),SUM($AX65:AX65),0)+IF(RIGHT(BT$39,2)>RIGHT($K65,2),AX65,0)) -> 3.254591 | BU65: =+IF($K65="Ongoing",AY65,IF(RIGHT($K65,2)=RIGHT(BU$39,2),SUM($AX65:AY65),0)+IF(RIGHT(BU$39,2)>RIGHT($K65,2),AY65,0)) -> 3.250974 | BV65: =+IF($K65="Ongoing",AZ65,IF(RIGHT($K65,2)=RIGHT(BV$39,2),SUM($AX65:AZ65),0)+IF(RIGHT(BV$39,2)>RIGHT($K65,2),AZ65,0)) -> 3.28953 | BW65: =+IF($K65="Ongoing",BA65,IF(RIGHT($K65,2)=RIGHT(BW$39,2),SUM($AX65:BA65),0)+IF(RIGHT(BW$39,2)>RIGHT($K65,2),BA65,0)) -> 3.210295 | BX65: =+IF($K65="Ongoing",BB65,IF(RIGHT($K65,2)=RIGHT(BX$39,2),SUM($AX65:BB65),0)+IF(RIGHT(BX$39,2)>RIGHT($K65,2),BB65,0)) -> 3.129395 | BY65: =+IF($K65="Ongoing",BC65,IF(RIGHT($K65,2)=RIGHT(BY$39,2),SUM($AX65:BC65),0)+IF(RIGHT(BY$39,2)>RIGHT($K65,2),BC65,0)) -> 3.820575 | BZ65: =+IF($K65="Ongoing",BD65,IF(RIGHT($K65,2)=RIGHT(BZ$39,2),SUM($AX65:BD65),0)+IF(RIGHT(BZ$39,2)>RIGHT($K65,2),BD65,0)) -> 6.653754 | CA65: =+IF($K65="Ongoing",BE65,IF(RIGHT($K65,2)=RIGHT(CA$39,2),SUM($AX65:BE65),0)+IF(RIGHT(CA$39,2)>RIGHT($K65,2),BE65,0)) -> 6.653754 | CB65: =+IF($K65="Ongoing",BF65,IF(RIGHT($K65,2)=RIGHT(CB$39,2),SUM($AX65:BF65),0)+IF(RIGHT(CB$39,2)>RIGHT($K65,2),BF65,0)) -> 5.194981 | CC65: =+IF($K65="Ongoing",BG65,IF(RIGHT($K65,2)=RIGHT(CC$39,2),SUM($AX65:BG65),0)+IF(RIGHT(CC$39,2)>RIGHT($K65,2),BG65,0)) -> 3.271677 | CE65: =+Q65*KeyAssumptionsPriceControl_FO!AC$15 -> 3.35222873 | CF65: =+R65*KeyAssumptionsPriceControl_FO!AD$15 -> 3.448958317 | CG65: =+S65*KeyAssumptionsPriceControl_FO!AE$15 -> 3.594558248 | CH65: =+T65*KeyAssumptionsPriceControl_FO!AF$15 -> 3.613215305 | CI65: =+U65*KeyAssumptionsPriceControl_FO!AG$15 -> 3.627826492 | CJ65: =+V65*KeyAssumptionsPriceControl_FO!AH$15 -> 4.561966353 | CK65: =+W65*KeyAssumptionsPriceControl_FO!AI$15 -> 8.183278152 | CL65: =+X65*KeyAssumptionsPriceControl_FO!AJ$15 -> 8.428776496 | CM65: =+Y65*KeyAssumptionsPriceControl_FO!AK$15 -> 6.778271899 | CN65: =+Z65*KeyAssumptionsPriceControl_FO!AL$15 -> 4.396860308 | CP65: 0.1676114365 | CQ65: 0.5076707888 | CR65: 0.8598466171 | CS65: 1.220235295 | CT65: 1.582287385 | CU65: 1.991777027 | CV65: 2.629039252 | CW65: 3.459641984 | CX65: 4.219994404 | CY65: 4.778751015
C66: Information Technology | E66: Water | F66: Renewals | G66: Corporate | H66: Capital Programs / Allocation | J66: Straight line | K66: Ongoing | L66: 10 | M66: 10 | Q66: 3.583581 | R66: 3.579599 | S66: 3.622052 | T66: 3.534809 | U66: 3.445731 | V66: 2.779832 | W66: 4.841238 | X66: 4.841238 | Y66: 3.779843 | Z66: 2.380456 | AX66: 3.583581 | AY66: 3.579599 | AZ66: 3.622052 | BA66: 3.534809 | BB66: 3.445731 | BC66: 2.779832 | BD66: 4.841238 | BE66: 4.841238 | BF66: 3.779843 | BG66: 2.380456 | BI66: 0.17917905 | BJ66: 0.53733805 | BK66: 0.8974206 | BL66: 1.25526365 | BM66: 1.60429065 | BN66: 1.9155688 | BO66: 2.2966223 | BP66: 2.7807461 | BQ66: 3.21180015 | BR66: 3.5198151 | BT66: =+IF($K66="Ongoing",AX66,IF(RIGHT($K66,2)=RIGHT(BT$39,2),SUM($AX66:AX66),0)+IF(RIGHT(BT$39,2)>RIGHT($K66,2),AX66,0)) -> 3.583581 | BU66: =+IF($K66="Ongoing",AY66,IF(RIGHT($K66,2)=RIGHT(BU$39,2),SUM($AX66:AY66),0)+IF(RIGHT(BU$39,2)>RIGHT($K66,2),AY66,0)) -> 3.579599 | BV66: =+IF($K66="Ongoing",AZ66,IF(RIGHT($K66,2)=RIGHT(BV$39,2),SUM($AX66:AZ66),0)+IF(RIGHT(BV$39,2)>RIGHT($K66,2),AZ66,0)) -> 3.622052 | BW66: =+IF($K66="Ongoing",BA66,IF(RIGHT($K66,2)=RIGHT(BW$39,2),SUM($AX66:BA66),0)+IF(RIGHT(BW$39,2)>RIGHT($K66,2),BA66,0)) -> 3.534809 | BX66: =+IF($K66="Ongoing",BB66,IF(RIGHT($K66,2)=RIGHT(BX$39,2),SUM($AX66:BB66),0)+IF(RIGHT(BX$39,2)>RIGHT($K66,2),BB66,0)) -> 3.445731 | BY66: =+IF($K66="Ongoing",BC66,IF(RIGHT($K66,2)=RIGHT(BY$39,2),SUM($AX66:BC66),0)+IF(RIGHT(BY$39,2)>RIGHT($K66,2),BC66,0)) -> 2.779832 | BZ66: =+IF($K66="Ongoing",BD66,IF(RIGHT($K66,2)=RIGHT(BZ$39,2),SUM($AX66:BD66),0)+IF(RIGHT(BZ$39,2)>RIGHT($K66,2),BD66,0)) -> 4.841238 | CA66: =+IF($K66="Ongoing",BE66,IF(RIGHT($K66,2)=RIGHT(CA$39,2),SUM($AX66:BE66),0)+IF(RIGHT(CA$39,2)>RIGHT($K66,2),BE66,0)) -> 4.841238 | CB66: =+IF($K66="Ongoing",BF66,IF(RIGHT($K66,2)=RIGHT(CB$39,2),SUM($AX66:BF66),0)+IF(RIGHT(CB$39,2)>RIGHT($K66,2),BF66,0)) -> 3.779843 | CC66: =+IF($K66="Ongoing",BG66,IF(RIGHT($K66,2)=RIGHT(CC$39,2),SUM($AX66:BG66),0)+IF(RIGHT(CC$39,2)>RIGHT($K66,2),BG66,0)) -> 2.380456 | CE66: =+Q66*KeyAssumptionsPriceControl_FO!AC$15 -> 3.69108843 | CF66: =+R66*KeyAssumptionsPriceControl_FO!AD$15 -> 3.797596579 | CG66: =+S66*KeyAssumptionsPriceControl_FO!AE$15 -> 3.957914016 | CH66: =+T66*KeyAssumptionsPriceControl_FO!AF$15 -> 3.978458671 | CI66: =+U66*KeyAssumptionsPriceControl_FO!AG$15 -> 3.994546615 | CJ66: =+V66*KeyAssumptionsPriceControl_FO!AH$15 -> 3.319264784 | CK66: =+W66*KeyAssumptionsPriceControl_FO!AI$15 -> 5.954112093 | CL66: =+X66*KeyAssumptionsPriceControl_FO!AJ$15 -> 6.132735455 | CM66: =+Y66*KeyAssumptionsPriceControl_FO!AK$15 -> 4.931837785 | CN66: =+Z66*KeyAssumptionsPriceControl_FO!AL$15 -> 3.199133809 | CP66: 0.1845544215 | CQ66: 0.558988672 | CR66: 0.9467642017 | CS66: 1.343582836 | CT66: 1.7422331 | CU66: 2.10792367 | CV66: 2.571592514 | CW66: 3.175934892 | CX66: 3.729163554 | CY66: 4.135712133
C67: IWM Schemes | E67: Recycled Water | F67: Improvements / Compliance | G67: Pipelines/network | H67: Capital Programs / Allocation | J67: Straight line | K67: Ongoing | L67: 50 | M67: 50 | Q67: 0.735623 | R67: 0 | S67: 0 | T67: 0 | U67: 0 | V67: 0 | W67: 0 | X67: 0 | Y67: 0 | Z67: 0 | AX67: 0.735623 | AY67: 0 | AZ67: 0 | BA67: 0 | BB67: 0 | BC67: 0 | BD67: 0 | BE67: 0 | BF67: 0 | BG67: 0 | BI67: 0.00735623 | BJ67: 0.01471246 | BK67: 0.01471246 | BL67: 0.01471246 | BM67: 0.01471246 | BN67: 0.01471246 | BO67: 0.01471246 | BP67: 0.01471246 | BQ67: 0.01471246 | BR67: 0.01471246 | BT67: =+IF($K67="Ongoing",AX67,IF(RIGHT($K67,2)=RIGHT(BT$39,2),SUM($AX67:AX67),0)+IF(RIGHT(BT$39,2)>RIGHT($K67,2),AX67,0)) -> 0.735623 | BU67: =+IF($K67="Ongoing",AY67,IF(RIGHT($K67,2)=RIGHT(BU$39,2),SUM($AX67:AY67),0)+IF(RIGHT(BU$39,2)>RIGHT($K67,2),AY67,0)) -> 0 | BV67: =+IF($K67="Ongoing",AZ67,IF(RIGHT($K67,2)=RIGHT(BV$39,2),SUM($AX67:AZ67),0)+IF(RIGHT(BV$39,2)>RIGHT($K67,2),AZ67,0)) -> 0 | BW67: =+IF($K67="Ongoing",BA67,IF(RIGHT($K67,2)=RIGHT(BW$39,2),SUM($AX67:BA67),0)+IF(RIGHT(BW$39,2)>RIGHT($K67,2),BA67,0)) -> 0 | BX67: =+IF($K67="Ongoing",BB67,IF(RIGHT($K67,2)=RIGHT(BX$39,2),SUM($AX67:BB67),0)+IF(RIGHT(BX$39,2)>RIGHT($K67,2),BB67,0)) -> 0 | BY67: =+IF($K67="Ongoing",BC67,IF(RIGHT($K67,2)=RIGHT(BY$39,2),SUM($AX67:BC67),0)+IF(RIGHT(BY$39,2)>RIGHT($K67,2),BC67,0)) -> 0 | BZ67: =+IF($K67="Ongoing",BD67,IF(RIGHT($K67,2)=RIGHT(BZ$39,2),SUM($AX67:BD67),0)+IF(RIGHT(BZ$39,2)>RIGHT($K67,2),BD67,0)) -> 0 | CA67: =+IF($K67="Ongoing",BE67,IF(RIGHT($K67,2)=RIGHT(CA$39,2),SUM($AX67:BE67),0)+IF(RIGHT(CA$39,2)>RIGHT($K67,2),BE67,0)) -> 0 | CB67: =+IF($K67="Ongoing",BF67,IF(RIGHT($K67,2)=RIGHT(CB$39,2),SUM($AX67:BF67),0)+IF(RIGHT(CB$39,2)>RIGHT($K67,2),BF67,0)) -> 0 | CC67: =+IF($K67="Ongoing",BG67,IF(RIGHT($K67,2)=RIGHT(CC$39,2),SUM($AX67:BG67),0)+IF(RIGHT(CC$39,2)>RIGHT($K67,2),BG67,0)) -> 0 | CE67: =+Q67*KeyAssumptionsPriceControl_FO!AC$15 -> 0.75769169 | CF67: =+R67*KeyAssumptionsPriceControl_FO!AD$15 -> 0 | CG67: =+S67*KeyAssumptionsPriceControl_FO!AE$15 -> 0 | CH67: =+T67*KeyAssumptionsPriceControl_FO!AF$15 -> 0 | CI67: =+U67*KeyAssumptionsPriceControl_FO!AG$15 -> 0 | CJ67: =+V67*KeyAssumptionsPriceControl_FO!AH$15 -> 0 | CK67: =+W67*KeyAssumptionsPriceControl_FO!AI$15 -> 0 | CL67: =+X67*KeyAssumptionsPriceControl_FO!AJ$15 -> 0 | CM67: =+Y67*KeyAssumptionsPriceControl_FO!AK$15 -> 0 | CN67: =+Z67*KeyAssumptionsPriceControl_FO!AL$15 -> 0 | CP67: 0.0075769169 | CQ67: 0.0151538338 | CR67: 0.0151538338 | CS67: 0.0151538338 | CT67: 0.0151538338 | CU67: 0.0151538338 | CV67: 0.0151538338 | CW67: 0.0151538338 | CX67: 0.0151538338 | CY67: 0.0151538338
C68: IWM Schemes | E68: Recycled Water | F68: Renewals | G68: Pipelines/network | H68: Capital Programs / Allocation | J68: Straight line | K68: Ongoing | L68: 50 | M68: 50 | Q68: 1.087016 | R68: 1.034471 | S68: 1.034471 | T68: 1.034471 | U68: 1.012378 | V68: 0.56395 | W68: 0.541867 | X68: 0.541867 | Y68: 0.541867 | Z68: 0.541867 | AX68: 1.087016 | AY68: 1.034471 | AZ68: 1.034471 | BA68: 1.034471 | BB68: 1.012378 | BC68: 0.56395 | BD68: 0.541867 | BE68: 0.541867 | BF68: 0.541867 | BG68: 0.541867 | BI68: 0.01087016 | BJ68: 0.03208503 | BK68: 0.05277445 | BL68: 0.07346387 | BM68: 0.09393236 | BN68: 0.10969564 | BO68: 0.12075381 | BP68: 0.13159115 | BQ68: 0.14242849 | BR68: 0.15326583 | BT68: =+IF($K68="Ongoing",AX68,IF(RIGHT($K68,2)=RIGHT(BT$39,2),SUM($AX68:AX68),0)+IF(RIGHT(BT$39,2)>RIGHT($K68,2),AX68,0)) -> 1.087016 | BU68: =+IF($K68="Ongoing",AY68,IF(RIGHT($K68,2)=RIGHT(BU$39,2),SUM($AX68:AY68),0)+IF(RIGHT(BU$39,2)>RIGHT($K68,2),AY68,0)) -> 1.034471 | BV68: =+IF($K68="Ongoing",AZ68,IF(RIGHT($K68,2)=RIGHT(BV$39,2),SUM($AX68:AZ68),0)+IF(RIGHT(BV$39,2)>RIGHT($K68,2),AZ68,0)) -> 1.034471 | BW68: =+IF($K68="Ongoing",BA68,IF(RIGHT($K68,2)=RIGHT(BW$39,2),SUM($AX68:BA68),0)+IF(RIGHT(BW$39,2)>RIGHT($K68,2),BA68,0)) -> 1.034471 | BX68: =+IF($K68="Ongoing",BB68,IF(RIGHT($K68,2)=RIGHT(BX$39,2),SUM($AX68:BB68),0)+IF(RIGHT(BX$39,2)>RIGHT($K68,2),BB68,0)) -> 1.012378 | BY68: =+IF($K68="Ongoing",BC68,IF(RIGHT($K68,2)=RIGHT(BY$39,2),SUM($AX68:BC68),0)+IF(RIGHT(BY$39,2)>RIGHT($K68,2),BC68,0)) -> 0.56395 | BZ68: =+IF($K68="Ongoing",BD68,IF(RIGHT($K68,2)=RIGHT(BZ$39,2),SUM($AX68:BD68),0)+IF(RIGHT(BZ$39,2)>RIGHT($K68,2),BD68,0)) -> 0.541867 | CA68: =+IF($K68="Ongoing",BE68,IF(RIGHT($K68,2)=RIGHT(CA$39,2),SUM($AX68:BE68),0)+IF(RIGHT(CA$39,2)>RIGHT($K68,2),BE68,0)) -> 0.541867 | CB68: =+IF($K68="Ongoing",BF68,IF(RIGHT($K68,2)=RIGHT(CB$39,2),SUM($AX68:BF68),0)+IF(RIGHT(CB$39,2)>RIGHT($K68,2),BF68,0)) -> 0.541867 | CC68: =+IF($K68="Ongoing",BG68,IF(RIGHT($K68,2)=RIGHT(CC$39,2),SUM($AX68:BG68),0)+IF(RIGHT(CC$39,2)>RIGHT($K68,2),BG68,0)) -> 0.541867 | CE68: =+Q68*KeyAssumptionsPriceControl_FO!AC$15 -> 1.11962648 | CF68: =+R68*KeyAssumptionsPriceControl_FO!AD$15 -> 1.097470284 | CG68: =+S68*KeyAssumptionsPriceControl_FO!AE$15 -> 1.130394392 | CH68: =+T68*KeyAssumptionsPriceControl_FO!AF$15 -> 1.164306224 | CI68: =+U68*KeyAssumptionsPriceControl_FO!AG$15 -> 1.173623569 | CJ68: =+V68*KeyAssumptionsPriceControl_FO!AH$15 -> 0.6733857926 | CK68: =+W68*KeyAssumptionsPriceControl_FO!AI$15 -> 0.6664280618 | CL68: =+X68*KeyAssumptionsPriceControl_FO!AJ$15 -> 0.6864209037 | CM68: =+Y68*KeyAssumptionsPriceControl_FO!AK$15 -> 0.7070135308 | CN68: =+Z68*KeyAssumptionsPriceControl_FO!AL$15 -> 0.7282239367 | CP68: 0.0111962648 | CQ68: 0.03336723244 | CR68: 0.0556458792 | CS68: 0.07859288537 | CT68: 0.1019721833 | CU68: 0.1204422769 | CV68: 0.1338404155 | CW68: 0.1473689051 | CX68: 0.1613032495 | CY68: 0.1756556241
C69: Motor Vehicle Fleet | E69: Recycled Water | F69: Renewals | G69: Corporate | H69: Capital Programs / Allocation | J69: Straight line | K69: Ongoing | L69: 8 | M69: 8 | Q69: 0.324924 | R69: 0.324924 | S69: 0.324924 | T69: 0.324924 | U69: 0.324924 | V69: 0.390985 | W69: 0.390985 | X69: 0.390985 | Y69: 0.390985 | Z69: 0.390985 | AX69: 0.324924 | AY69: 0.324924 | AZ69: 0.324924 | BA69: 0.324924 | BB69: 0.324924 | BC69: 0.390985 | BD69: 0.390985 | BE69: 0.390985 | BF69: 0.390985 | BG69: 0.390985 | BI69: 0.02030775 | BJ69: 0.06092325 | BK69: 0.10153875 | BL69: 0.14215425 | BM69: 0.18276975 | BN69: 0.2275140625 | BO69: 0.2763871875 | BP69: 0.3252603125 | BQ69: 0.3538256875 | BR69: 0.3620833125 | BT69: =+IF($K69="Ongoing",AX69,IF(RIGHT($K69,2)=RIGHT(BT$39,2),SUM($AX69:AX69),0)+IF(RIGHT(BT$39,2)>RIGHT($K69,2),AX69,0)) -> 0.324924 | BU69: =+IF($K69="Ongoing",AY69,IF(RIGHT($K69,2)=RIGHT(BU$39,2),SUM($AX69:AY69),0)+IF(RIGHT(BU$39,2)>RIGHT($K69,2),AY69,0)) -> 0.324924 | BV69: =+IF($K69="Ongoing",AZ69,IF(RIGHT($K69,2)=RIGHT(BV$39,2),SUM($AX69:AZ69),0)+IF(RIGHT(BV$39,2)>RIGHT($K69,2),AZ69,0)) -> 0.324924 | BW69: =+IF($K69="Ongoing",BA69,IF(RIGHT($K69,2)=RIGHT(BW$39,2),SUM($AX69:BA69),0)+IF(RIGHT(BW$39,2)>RIGHT($K69,2),BA69,0)) -> 0.324924 | BX69: =+IF($K69="Ongoing",BB69,IF(RIGHT($K69,2)=RIGHT(BX$39,2),SUM($AX69:BB69),0)+IF(RIGHT(BX$39,2)>RIGHT($K69,2),BB69,0)) -> 0.324924 | BY69: =+IF($K69="Ongoing",BC69,IF(RIGHT($K69,2)=RIGHT(BY$39,2),SUM($AX69:BC69),0)+IF(RIGHT(BY$39,2)>RIGHT($K69,2),BC69,0)) -> 0.390985 | BZ69: =+IF($K69="Ongoing",BD69,IF(RIGHT($K69,2)=RIGHT(BZ$39,2),SUM($AX69:BD69),0)+IF(RIGHT(BZ$39,2)>RIGHT($K69,2),BD69,0)) -> 0.390985 | CA69: =+IF($K69="Ongoing",BE69,IF(RIGHT($K69,2)=RIGHT(CA$39,2),SUM($AX69:BE69),0)+IF(RIGHT(CA$39,2)>RIGHT($K69,2),BE69,0)) -> 0.390985 | CB69: =+IF($K69="Ongoing",BF69,IF(RIGHT($K69,2)=RIGHT(CB$39,2),SUM($AX69:BF69),0)+IF(RIGHT(CB$39,2)>RIGHT($K69,2),BF69,0)) -> 0.390985 | CC69: =+IF($K69="Ongoing",BG69,IF(RIGHT($K69,2)=RIGHT(CC$39,2),SUM($AX69:BG69),0)+IF(RIGHT(CC$39,2)>RIGHT($K69,2),BG69,0)) -> 0.390985 | CE69: =+Q69*KeyAssumptionsPriceControl_FO!AC$15 -> 0.33467172 | CF69: =+R69*KeyAssumptionsPriceControl_FO!AD$15 -> 0.3447118716 | CG69: =+S69*KeyAssumptionsPriceControl_FO!AE$15 -> 0.3550532277 | CH69: =+T69*KeyAssumptionsPriceControl_FO!AF$15 -> 0.3657048246 | CI69: =+U69*KeyAssumptionsPriceControl_FO!AG$15 -> 0.3766759693 | CJ69: =+V69*KeyAssumptionsPriceControl_FO!AH$15 -> 0.4668565372 | CK69: =+W69*KeyAssumptionsPriceControl_FO!AI$15 -> 0.4808622333 | CL69: =+X69*KeyAssumptionsPriceControl_FO!AJ$15 -> 0.4952881003 | CM69: =+Y69*KeyAssumptionsPriceControl_FO!AK$15 -> 0.5101467433 | CN69: =+Z69*KeyAssumptionsPriceControl_FO!AL$15 -> 0.5254511456 | CP69: 0.0209169825 | CQ69: 0.06337845697 | CR69: 0.1071137757 | CS69: 0.152161154 | CT69: 0.1985599536 | CU69: 0.2512807352 | CV69: 0.3105131584 | CW69: 0.3715225542 | CX69: 0.4134452494 | CY69: 0.435708643
C70: Motor Vehicle Fleet | E70: Sewerage | F70: Renewals | G70: Corporate | H70: Capital Programs / Allocation | J70: Straight line | K70: Ongoing | L70: 8 | M70: 8 | Q70: 2.601204 | R70: 2.601204 | S70: 2.601204 | T70: 2.601204 | U70: 2.601204 | V70: 2.451342 | W70: 2.451342 | X70: 2.451342 | Y70: 2.451342 | Z70: 2.451342 | AX70: 2.601204 | AY70: 2.601204 | AZ70: 2.601204 | BA70: 2.601204 | BB70: 2.601204 | BC70: 2.451342 | BD70: 2.451342 | BE70: 2.451342 | BF70: 2.451342 | BG70: 2.451342 | BI70: 0.16257525 | BJ70: 0.48772575 | BK70: 0.81287625 | BL70: 1.13802675 | BM70: 1.46317725 | BN70: 1.778961375 | BO70: 2.085379125 | BP70: 2.391796875 | BQ70: 2.535639375 | BR70: 2.516906625 | BT70: =+IF($K70="Ongoing",AX70,IF(RIGHT($K70,2)=RIGHT(BT$39,2),SUM($AX70:AX70),0)+IF(RIGHT(BT$39,2)>RIGHT($K70,2),AX70,0)) -> 2.601204 | BU70: =+IF($K70="Ongoing",AY70,IF(RIGHT($K70,2)=RIGHT(BU$39,2),SUM($AX70:AY70),0)+IF(RIGHT(BU$39,2)>RIGHT($K70,2),AY70,0)) -> 2.601204 | BV70: =+IF($K70="Ongoing",AZ70,IF(RIGHT($K70,2)=RIGHT(BV$39,2),SUM($AX70:AZ70),0)+IF(RIGHT(BV$39,2)>RIGHT($K70,2),AZ70,0)) -> 2.601204 | BW70: =+IF($K70="Ongoing",BA70,IF(RIGHT($K70,2)=RIGHT(BW$39,2),SUM($AX70:BA70),0)+IF(RIGHT(BW$39,2)>RIGHT($K70,2),BA70,0)) -> 2.601204 | BX70: =+IF($K70="Ongoing",BB70,IF(RIGHT($K70,2)=RIGHT(BX$39,2),SUM($AX70:BB70),0)+IF(RIGHT(BX$39,2)>RIGHT($K70,2),BB70,0)) -> 2.601204 | BY70: =+IF($K70="Ongoing",BC70,IF(RIGHT($K70,2)=RIGHT(BY$39,2),SUM($AX70:BC70),0)+IF(RIGHT(BY$39,2)>RIGHT($K70,2),BC70,0)) -> 2.451342 | BZ70: =+IF($K70="Ongoing",BD70,IF(RIGHT($K70,2)=RIGHT(BZ$39,2),SUM($AX70:BD70),0)+IF(RIGHT(BZ$39,2)>RIGHT($K70,2),BD70,0)) -> 2.451342 | CA70: =+IF($K70="Ongoing",BE70,IF(RIGHT($K70,2)=RIGHT(CA$39,2),SUM($AX70:BE70),0)+IF(RIGHT(CA$39,2)>RIGHT($K70,2),BE70,0)) -> 2.451342 | CB70: =+IF($K70="Ongoing",BF70,IF(RIGHT($K70,2)=RIGHT(CB$39,2),SUM($AX70:BF70),0)+IF(RIGHT(CB$39,2)>RIGHT($K70,2),BF70,0)) -> 2.451342 | CC70: =+IF($K70="Ongoing",BG70,IF(RIGHT($K70,2)=RIGHT(CC$39,2),SUM($AX70:BG70),0)+IF(RIGHT(CC$39,2)>RIGHT($K70,2),BG70,0)) -> 2.451342 | CE70: =+Q70*KeyAssumptionsPriceControl_FO!AC$15 -> 2.67924012 | CF70: =+R70*KeyAssumptionsPriceControl_FO!AD$15 -> 2.759617324 | CG70: =+S70*KeyAssumptionsPriceControl_FO!AE$15 -> 2.842405843 | CH70: =+T70*KeyAssumptionsPriceControl_FO!AF$15 -> 2.927678019 | CI70: =+U70*KeyAssumptionsPriceControl_FO!AG$15 -> 3.015508359 | CJ70: =+V70*KeyAssumptionsPriceControl_FO!AH$15 -> 2.927030545 | CK70: =+W70*KeyAssumptionsPriceControl_FO!AI$15 -> 3.014841461 | CL70: =+X70*KeyAssumptionsPriceControl_FO!AJ$15 -> 3.105286705 | CM70: =+Y70*KeyAssumptionsPriceControl_FO!AK$15 -> 3.198445306 | CN70: =+Z70*KeyAssumptionsPriceControl_FO!AL$15 -> 3.294398665 | CP70: 0.1674525075 | CQ70: 0.5073810977 | CR70: 0.8575075457 | CS70: 1.218137787 | CT70: 1.589586936 | CU70: 1.960995617 | CV70: 2.332362617 | CW70: 2.714870628 | CX70: 2.941401371 | CY70: 3.007275529
C71: Motor Vehicle Fleet | E71: Water | F71: Renewals | G71: Corporate | H71: Capital Programs / Allocation | J71: Straight line | K71: Ongoing | L71: 8 | M71: 8 | Q71: 1.277435 | R71: 1.277435 | S71: 1.277435 | T71: 1.277435 | U71: 1.277435 | V71: 1.361235 | W71: 1.361235 | X71: 1.361235 | Y71: 1.361235 | Z71: 1.361235 | AX71: 1.277435 | AY71: 1.277435 | AZ71: 1.277435 | BA71: 1.277435 | BB71: 1.277435 | BC71: 1.361235 | BD71: 1.361235 | BE71: 1.361235 | BF71: 1.361235 | BG71: 1.361235 | BI71: 0.0798396875 | BJ71: 0.2395190625 | BK71: 0.3991984375 | BL71: 0.5588778125 | BM71: 0.7185571875 | BN71: 0.8834740625 | BO71: 1.053628438 | BP71: 1.223782813 | BQ71: 1.3140975 | BR71: 1.3245725 | BT71: =+IF($K71="Ongoing",AX71,IF(RIGHT($K71,2)=RIGHT(BT$39,2),SUM($AX71:AX71),0)+IF(RIGHT(BT$39,2)>RIGHT($K71,2),AX71,0)) -> 1.277435 | BU71: =+IF($K71="Ongoing",AY71,IF(RIGHT($K71,2)=RIGHT(BU$39,2),SUM($AX71:AY71),0)+IF(RIGHT(BU$39,2)>RIGHT($K71,2),AY71,0)) -> 1.277435 | BV71: =+IF($K71="Ongoing",AZ71,IF(RIGHT($K71,2)=RIGHT(BV$39,2),SUM($AX71:AZ71),0)+IF(RIGHT(BV$39,2)>RIGHT($K71,2),AZ71,0)) -> 1.277435 | BW71: =+IF($K71="Ongoing",BA71,IF(RIGHT($K71,2)=RIGHT(BW$39,2),SUM($AX71:BA71),0)+IF(RIGHT(BW$39,2)>RIGHT($K71,2),BA71,0)) -> 1.277435 | BX71: =+IF($K71="Ongoing",BB71,IF(RIGHT($K71,2)=RIGHT(BX$39,2),SUM($AX71:BB71),0)+IF(RIGHT(BX$39,2)>RIGHT($K71,2),BB71,0)) -> 1.277435 | BY71: =+IF($K71="Ongoing",BC71,IF(RIGHT($K71,2)=RIGHT(BY$39,2),SUM($AX71:BC71),0)+IF(RIGHT(BY$39,2)>RIGHT($K71,2),BC71,0)) -> 1.361235 | BZ71: =+IF($K71="Ongoing",BD71,IF(RIGHT($K71,2)=RIGHT(BZ$39,2),SUM($AX71:BD71),0)+IF(RIGHT(BZ$39,2)>RIGHT($K71,2),BD71,0)) -> 1.361235 | CA71: =+IF($K71="Ongoing",BE71,IF(RIGHT($K71,2)=RIGHT(CA$39,2),SUM($AX71:BE71),0)+IF(RIGHT(CA$39,2)>RIGHT($K71,2),BE71,0)) -> 1.361235 | CB71: =+IF($K71="Ongoing",BF71,IF(RIGHT($K71,2)=RIGHT(CB$39,2),SUM($AX71:BF71),0)+IF(RIGHT(CB$39,2)>RIGHT($K71,2),BF71,0)) -> 1.361235 | CC71: =+IF($K71="Ongoing",BG71,IF(RIGHT($K71,2)=RIGHT(CC$39,2),SUM($AX71:BG71),0)+IF(RIGHT(CC$39,2)>RIGHT($K71,2),BG71,0)) -> 1.361235 | CE71: =+Q71*KeyAssumptionsPriceControl_FO!AC$15 -> 1.31575805 | CF71: =+R71*KeyAssumptionsPriceControl_FO!AD$15 -> 1.355230792 | CG71: =+S71*KeyAssumptionsPriceControl_FO!AE$15 -> 1.395887715 | CH71: =+T71*KeyAssumptionsPriceControl_FO!AF$15 -> 1.437764347 | CI71: =+U71*KeyAssumptionsPriceControl_FO!AG$15 -> 1.480897277 | CJ71: =+V71*KeyAssumptionsPriceControl_FO!AH$15 -> 1.625385778 | CK71: =+W71*KeyAssumptionsPriceControl_FO!AI$15 -> 1.674147351 | CL71: =+X71*KeyAssumptionsPriceControl_FO!AJ$15 -> 1.724371772 | CM71: =+Y71*KeyAssumptionsPriceControl_FO!AK$15 -> 1.776102925 | CN71: =+Z71*KeyAssumptionsPriceControl_FO!AL$15 -> 1.829386013 | CP71: 0.08223487813 | CQ71: 0.2491716807 | CR71: 0.4211165874 | CS71: 0.5982198413 | CT71: 0.7806361927 | CU71: 0.9747788837 | CV71: 1.180999704 | CW71: 1.393407149 | CX71: 1.52995194 | CY71: 1.588358196
C72: New Technology and Intellectual Property | E72: Sewerage | F72: Improvements / Compliance | G72: Pipelines/network | H72: Capital Programs / Allocation | J72: Straight line | K72: Ongoing | L72: 80 | M72: 80 | Q72: 0.263558 | R72: 0 | S72: 0 | T72: 0 | U72: 0 | V72: 0 | W72: 0 | X72: 0 | Y72: 0 | Z72: 0 | AX72: 0.263558 | AY72: 0 | AZ72: 0 | BA72: 0 | BB72: 0 | BC72: 0 | BD72: 0 | BE72: 0 | BF72: 0 | BG72: 0 | BI72: 0.0016472375 | BJ72: 0.003294475 | BK72: 0.003294475 | BL72: 0.003294475 | BM72: 0.003294475 | BN72: 0.003294475 | BO72: 0.003294475 | BP72: 0.003294475 | BQ72: 0.003294475 | BR72: 0.003294475 | BT72: =+IF($K72="Ongoing",AX72,IF(RIGHT($K72,2)=RIGHT(BT$39,2),SUM($AX72:AX72),0)+IF(RIGHT(BT$39,2)>RIGHT($K72,2),AX72,0)) -> 0.263558 | BU72: =+IF($K72="Ongoing",AY72,IF(RIGHT($K72,2)=RIGHT(BU$39,2),SUM($AX72:AY72),0)+IF(RIGHT(BU$39,2)>RIGHT($K72,2),AY72,0)) -> 0 | BV72: =+IF($K72="Ongoing",AZ72,IF(RIGHT($K72,2)=RIGHT(BV$39,2),SUM($AX72:AZ72),0)+IF(RIGHT(BV$39,2)>RIGHT($K72,2),AZ72,0)) -> 0 | BW72: =+IF($K72="Ongoing",BA72,IF(RIGHT($K72,2)=RIGHT(BW$39,2),SUM($AX72:BA72),0)+IF(RIGHT(BW$39,2)>RIGHT($K72,2),BA72,0)) -> 0 | BX72: =+IF($K72="Ongoing",BB72,IF(RIGHT($K72,2)=RIGHT(BX$39,2),SUM($AX72:BB72),0)+IF(RIGHT(BX$39,2)>RIGHT($K72,2),BB72,0)) -> 0 | BY72: =+IF($K72="Ongoing",BC72,IF(RIGHT($K72,2)=RIGHT(BY$39,2),SUM($AX72:BC72),0)+IF(RIGHT(BY$39,2)>RIGHT($K72,2),BC72,0)) -> 0 | BZ72: =+IF($K72="Ongoing",BD72,IF(RIGHT($K72,2)=RIGHT(BZ$39,2),SUM($AX72:BD72),0)+IF(RIGHT(BZ$39,2)>RIGHT($K72,2),BD72,0)) -> 0 | CA72: =+IF($K72="Ongoing",BE72,IF(RIGHT($K72,2)=RIGHT(CA$39,2),SUM($AX72:BE72),0)+IF(RIGHT(CA$39,2)>RIGHT($K72,2),BE72,0)) -> 0 | CB72: =+IF($K72="Ongoing",BF72,IF(RIGHT($K72,2)=RIGHT(CB$39,2),SUM($AX72:BF72),0)+IF(RIGHT(CB$39,2)>RIGHT($K72,2),BF72,0)) -> 0 | CC72: =+IF($K72="Ongoing",BG72,IF(RIGHT($K72,2)=RIGHT(CC$39,2),SUM($AX72:BG72),0)+IF(RIGHT(CC$39,2)>RIGHT($K72,2),BG72,0)) -> 0 | CE72: =+Q72*KeyAssumptionsPriceControl_FO!AC$15 -> 0.27146474 | CF72: =+R72*KeyAssumptionsPriceControl_FO!AD$15 -> 0 | CG72: =+S72*KeyAssumptionsPriceControl_FO!AE$15 -> 0 | CH72: =+T72*KeyAssumptionsPriceControl_FO!AF$15 -> 0 | CI72: =+U72*KeyAssumptionsPriceControl_FO!AG$15 -> 0 | CJ72: =+V72*KeyAssumptionsPriceControl_FO!AH$15 -> 0 | CK72: =+W72*KeyAssumptionsPriceControl_FO!AI$15 -> 0 | CL72: =+X72*KeyAssumptionsPriceControl_FO!AJ$15 -> 0 | CM72: =+Y72*KeyAssumptionsPriceControl_FO!AK$15 -> 0 | CN72: =+Z72*KeyAssumptionsPriceControl_FO!AL$15 -> 0 | CP72: 0.001696654625 | CQ72: 0.00339330925 | CR72: 0.00339330925 | CS72: 0.00339330925 | CT72: 0.00339330925 | CU72: 0.00339330925 | CV72: 0.00339330925 | CW72: 0.00339330925 | CX72: 0.00339330925 | CY72: 0.00339330925
C73: New Technology and Intellectual Property | E73: Recycled Water | F73: Growth | G73: Corporate | H73: Capital Programs / Allocation | J73: Straight line | K73: Ongoing | L73: 5 | M73: 5 | Q73: 0.033458 | R73: 0.033458 | S73: 0.033458 | T73: 0.032814 | U73: 0.032492 | V73: 0.057768 | W73: 0.057768 | X73: 0.057768 | Y73: 0.057768 | Z73: 0.057768 | AX73: 0.033458 | AY73: 0.033458 | AZ73: 0.033458 | BA73: 0.032814 | BB73: 0.032492 | BC73: 0.057768 | BD73: 0.057768 | BE73: 0.057768 | BF73: 0.057768 | BG73: 0.057768 | BI73: 0.0033458 | BJ73: 0.0100374 | BK73: 0.016729 | BL73: 0.0233562 | BM73: 0.0298868 | BN73: 0.035567 | BO73: 0.040429 | BP73: 0.045291 | BQ73: 0.0502174 | BR73: 0.0552404 | BT73: =+IF($K73="Ongoing",AX73,IF(RIGHT($K73,2)=RIGHT(BT$39,2),SUM($AX73:AX73),0)+IF(RIGHT(BT$39,2)>RIGHT($K73,2),AX73,0)) -> 0.033458 | BU73: =+IF($K73="Ongoing",AY73,IF(RIGHT($K73,2)=RIGHT(BU$39,2),SUM($AX73:AY73),0)+IF(RIGHT(BU$39,2)>RIGHT($K73,2),AY73,0)) -> 0.033458 | BV73: =+IF($K73="Ongoing",AZ73,IF(RIGHT($K73,2)=RIGHT(BV$39,2),SUM($AX73:AZ73),0)+IF(RIGHT(BV$39,2)>RIGHT($K73,2),AZ73,0)) -> 0.033458 | BW73: =+IF($K73="Ongoing",BA73,IF(RIGHT($K73,2)=RIGHT(BW$39,2),SUM($AX73:BA73),0)+IF(RIGHT(BW$39,2)>RIGHT($K73,2),BA73,0)) -> 0.032814 | BX73: =+IF($K73="Ongoing",BB73,IF(RIGHT($K73,2)=RIGHT(BX$39,2),SUM($AX73:BB73),0)+IF(RIGHT(BX$39,2)>RIGHT($K73,2),BB73,0)) -> 0.032492 | BY73: =+IF($K73="Ongoing",BC73,IF(RIGHT($K73,2)=RIGHT(BY$39,2),SUM($AX73:BC73),0)+IF(RIGHT(BY$39,2)>RIGHT($K73,2),BC73,0)) -> 0.057768 | BZ73: =+IF($K73="Ongoing",BD73,IF(RIGHT($K73,2)=RIGHT(BZ$39,2),SUM($AX73:BD73),0)+IF(RIGHT(BZ$39,2)>RIGHT($K73,2),BD73,0)) -> 0.057768 | CA73: =+IF($K73="Ongoing",BE73,IF(RIGHT($K73,2)=RIGHT(CA$39,2),SUM($AX73:BE73),0)+IF(RIGHT(CA$39,2)>RIGHT($K73,2),BE73,0)) -> 0.057768 | CB73: =+IF($K73="Ongoing",BF73,IF(RIGHT($K73,2)=RIGHT(CB$39,2),SUM($AX73:BF73),0)+IF(RIGHT(CB$39,2)>RIGHT($K73,2),BF73,0)) -> 0.057768 | CC73: =+IF($K73="Ongoing",BG73,IF(RIGHT($K73,2)=RIGHT(CC$39,2),SUM($AX73:BG73),0)+IF(RIGHT(CC$39,2)>RIGHT($K73,2),BG73,0)) -> 0.057768 | CE73: =+Q73*KeyAssumptionsPriceControl_FO!AC$15 -> 0.03446174 | CF73: =+R73*KeyAssumptionsPriceControl_FO!AD$15 -> 0.0354955922 | CG73: =+S73*KeyAssumptionsPriceControl_FO!AE$15 -> 0.03656045997 | CH73: =+T73*KeyAssumptionsPriceControl_FO!AF$15 -> 0.03693244609 | CI73: =+U73*KeyAssumptionsPriceControl_FO!AG$15 -> 0.03766713322 | CJ73: =+V73*KeyAssumptionsPriceControl_FO!AH$15 -> 0.06897801307 | CK73: =+W73*KeyAssumptionsPriceControl_FO!AI$15 -> 0.07104735346 | CL73: =+X73*KeyAssumptionsPriceControl_FO!AJ$15 -> 0.07317877406 | CM73: =+Y73*KeyAssumptionsPriceControl_FO!AK$15 -> 0.07537413728 | CN73: =+Z73*KeyAssumptionsPriceControl_FO!AL$15 -> 0.0776353614 | CP73: 0.003446174 | CQ73: 0.01044190722 | CR73: 0.01764751244 | CS73: 0.02499680304 | CT73: 0.03245676097 | CU73: 0.0396751016 | CV73: 0.04668190503 | CW73: 0.05389891257 | CX73: 0.0614049131 | CY73: 0.06924590504
C74: New Technology and Intellectual Property | E74: Sewerage | F74: Growth | G74: Corporate | H74: Capital Programs / Allocation | J74: Straight line | K74: Ongoing | L74: 5 | M74: 5 | Q74: 0.267848 | R74: 0.267848 | S74: 0.267848 | T74: 0.262696 | U74: 0.26012 | V74: 0.362186 | W74: 0.362186 | X74: 0.362186 | Y74: 0.362186 | Z74: 0.362186 | AX74: 0.267848 | AY74: 0.267848 | AZ74: 0.267848 | BA74: 0.262696 | BB74: 0.26012 | BC74: 0.362186 | BD74: 0.362186 | BE74: 0.362186 | BF74: 0.362186 | BG74: 0.362186 | BI74: 0.0267848 | BJ74: 0.0803544 | BK74: 0.133924 | BL74: 0.1869784 | BM74: 0.23926 | BN74: 0.2747058 | BO74: 0.2935734 | BP74: 0.312441 | BQ74: 0.3318238 | BR74: 0.3519794 | BT74: =+IF($K74="Ongoing",AX74,IF(RIGHT($K74,2)=RIGHT(BT$39,2),SUM($AX74:AX74),0)+IF(RIGHT(BT$39,2)>RIGHT($K74,2),AX74,0)) -> 0.267848 | BU74: =+IF($K74="Ongoing",AY74,IF(RIGHT($K74,2)=RIGHT(BU$39,2),SUM($AX74:AY74),0)+IF(RIGHT(BU$39,2)>RIGHT($K74,2),AY74,0)) -> 0.267848 | BV74: =+IF($K74="Ongoing",AZ74,IF(RIGHT($K74,2)=RIGHT(BV$39,2),SUM($AX74:AZ74),0)+IF(RIGHT(BV$39,2)>RIGHT($K74,2),AZ74,0)) -> 0.267848 | BW74: =+IF($K74="Ongoing",BA74,IF(RIGHT($K74,2)=RIGHT(BW$39,2),SUM($AX74:BA74),0)+IF(RIGHT(BW$39,2)>RIGHT($K74,2),BA74,0)) -> 0.262696 | BX74: =+IF($K74="Ongoing",BB74,IF(RIGHT($K74,2)=RIGHT(BX$39,2),SUM($AX74:BB74),0)+IF(RIGHT(BX$39,2)>RIGHT($K74,2),BB74,0)) -> 0.26012 | BY74: =+IF($K74="Ongoing",BC74,IF(RIGHT($K74,2)=RIGHT(BY$39,2),SUM($AX74:BC74),0)+IF(RIGHT(BY$39,2)>RIGHT($K74,2),BC74,0)) -> 0.362186 | BZ74: =+IF($K74="Ongoing",BD74,IF(RIGHT($K74,2)=RIGHT(BZ$39,2),SUM($AX74:BD74),0)+IF(RIGHT(BZ$39,2)>RIGHT($K74,2),BD74,0)) -> 0.362186 | CA74: =+IF($K74="Ongoing",BE74,IF(RIGHT($K74,2)=RIGHT(CA$39,2),SUM($AX74:BE74),0)+IF(RIGHT(CA$39,2)>RIGHT($K74,2),BE74,0)) -> 0.362186 | CB74: =+IF($K74="Ongoing",BF74,IF(RIGHT($K74,2)=RIGHT(CB$39,2),SUM($AX74:BF74),0)+IF(RIGHT(CB$39,2)>RIGHT($K74,2),BF74,0)) -> 0.362186 | CC74: =+IF($K74="Ongoing",BG74,IF(RIGHT($K74,2)=RIGHT(CC$39,2),SUM($AX74:BG74),0)+IF(RIGHT(CC$39,2)>RIGHT($K74,2),BG74,0)) -> 0.362186 | CE74: =+Q74*KeyAssumptionsPriceControl_FO!AC$15 -> 0.27588344 | CF74: =+R74*KeyAssumptionsPriceControl_FO!AD$15 -> 0.2841599432 | CG74: =+S74*KeyAssumptionsPriceControl_FO!AE$15 -> 0.2926847415 | CH74: =+T74*KeyAssumptionsPriceControl_FO!AF$15 -> 0.2956666624 | CI74: =+U74*KeyAssumptionsPriceControl_FO!AG$15 -> 0.3015503722 | CJ74: =+V74*KeyAssumptionsPriceControl_FO!AH$15 -> 0.4324690251 | CK74: =+W74*KeyAssumptionsPriceControl_FO!AI$15 -> 0.4454430958 | CL74: =+X74*KeyAssumptionsPriceControl_FO!AJ$15 -> 0.4588063887 | CM74: =+Y74*KeyAssumptionsPriceControl_FO!AK$15 -> 0.4725705804 | CN74: =+Z74*KeyAssumptionsPriceControl_FO!AL$15 -> 0.4867476978 | CP74: 0.027588344 | CQ74: 0.08359268232 | CR74: 0.1412771508 | CS74: 0.2001122912 | CT74: 0.2598339946 | CU74: 0.3056475904 | CV74: 0.3374344641 | CW74: 0.3701749441 | CX74: 0.4044775006 | CY74: 0.440687625
C75: New Technology and Intellectual Property | E75: Water | F75: Growth | G75: Corporate | H75: Capital Programs / Allocation | J75: Straight line | K75: Ongoing | L75: 5 | M75: 5 | Q75: 0.131539 | R75: 0.131539 | S75: 0.131539 | T75: 0.129009 | U75: 0.127743 | V75: 0.201123 | W75: 0.201123 | X75: 0.201123 | Y75: 0.201123 | Z75: 0.201123 | AX75: 0.131539 | AY75: 0.131539 | AZ75: 0.131539 | BA75: 0.129009 | BB75: 0.127743 | BC75: 0.201123 | BD75: 0.201123 | BE75: 0.201123 | BF75: 0.201123 | BG75: 0.201123 | BI75: 0.0131539 | BJ75: 0.0394617 | BK75: 0.0657695 | BL75: 0.0918243 | BM75: 0.1174995 | BN75: 0.1372322 | BO75: 0.151149 | BP75: 0.1650658 | BQ75: 0.1792356 | BR75: 0.193785 | BT75: =+IF($K75="Ongoing",AX75,IF(RIGHT($K75,2)=RIGHT(BT$39,2),SUM($AX75:AX75),0)+IF(RIGHT(BT$39,2)>RIGHT($K75,2),AX75,0)) -> 0.131539 | BU75: =+IF($K75="Ongoing",AY75,IF(RIGHT($K75,2)=RIGHT(BU$39,2),SUM($AX75:AY75),0)+IF(RIGHT(BU$39,2)>RIGHT($K75,2),AY75,0)) -> 0.131539 | BV75: =+IF($K75="Ongoing",AZ75,IF(RIGHT($K75,2)=RIGHT(BV$39,2),SUM($AX75:AZ75),0)+IF(RIGHT(BV$39,2)>RIGHT($K75,2),AZ75,0)) -> 0.131539 | BW75: =+IF($K75="Ongoing",BA75,IF(RIGHT($K75,2)=RIGHT(BW$39,2),SUM($AX75:BA75),0)+IF(RIGHT(BW$39,2)>RIGHT($K75,2),BA75,0)) -> 0.129009 | BX75: =+IF($K75="Ongoing",BB75,IF(RIGHT($K75,2)=RIGHT(BX$39,2),SUM($AX75:BB75),0)+IF(RIGHT(BX$39,2)>RIGHT($K75,2),BB75,0)) -> 0.127743 | BY75: =+IF($K75="Ongoing",BC75,IF(RIGHT($K75,2)=RIGHT(BY$39,2),SUM($AX75:BC75),0)+IF(RIGHT(BY$39,2)>RIGHT($K75,2),BC75,0)) -> 0.201123 | BZ75: =+IF($K75="Ongoing",BD75,IF(RIGHT($K75,2)=RIGHT(BZ$39,2),SUM($AX75:BD75),0)+IF(RIGHT(BZ$39,2)>RIGHT($K75,2),BD75,0)) -> 0.201123 | CA75: =+IF($K75="Ongoing",BE75,IF(RIGHT($K75,2)=RIGHT(CA$39,2),SUM($AX75:BE75),0)+IF(RIGHT(CA$39,2)>RIGHT($K75,2),BE75,0)) -> 0.201123 | CB75: =+IF($K75="Ongoing",BF75,IF(RIGHT($K75,2)=RIGHT(CB$39,2),SUM($AX75:BF75),0)+IF(RIGHT(CB$39,2)>RIGHT($K75,2),BF75,0)) -> 0.201123 | CC75: =+IF($K75="Ongoing",BG75,IF(RIGHT($K75,2)=RIGHT(CC$39,2),SUM($AX75:BG75),0)+IF(RIGHT(CC$39,2)>RIGHT($K75,2),BG75,0)) -> 0.201123 | CE75: =+Q75*KeyAssumptionsPriceControl_FO!AC$15 -> 0.13548517 | CF75: =+R75*KeyAssumptionsPriceControl_FO!AD$15 -> 0.1395497251 | CG75: =+S75*KeyAssumptionsPriceControl_FO!AE$15 -> 0.1437362169 | CH75: =+T75*KeyAssumptionsPriceControl_FO!AF$15 -> 0.1452007661 | CI75: =+U75*KeyAssumptionsPriceControl_FO!AG$15 -> 0.1480891481 | CJ75: =+V75*KeyAssumptionsPriceControl_FO!AH$15 -> 0.24015138 | CK75: =+W75*KeyAssumptionsPriceControl_FO!AI$15 -> 0.2473559214 | CL75: =+X75*KeyAssumptionsPriceControl_FO!AJ$15 -> 0.2547765991 | CM75: =+Y75*KeyAssumptionsPriceControl_FO!AK$15 -> 0.2624198971 | CN75: =+Z75*KeyAssumptionsPriceControl_FO!AL$15 -> 0.270292494 | CP75: 0.013548517 | CQ75: 0.04105200651 | CR75: 0.06938060071 | CS75: 0.098274299 | CT75: 0.1276032904 | CU75: 0.1528788262 | CV75: 0.1741260669 | CW75: 0.1960107247 | CX75: 0.218836676 | CY75: 0.2427789237
C76: New Technology and Intellectual Property | E76: Recycled Water | F76: Improvements / Compliance | G76: Corporate | H76: Capital Programs / Allocation | J76: Straight line | K76: Ongoing | L76: 5 | M76: 5 | Q76: 0.052553 | R76: 0.052553 | S76: 0.052553 | T76: 0.051909 | U76: 0.051588 | V76: 0.069302 | W76: 0.069302 | X76: 0.069302 | Y76: 0.069302 | Z76: 0.069302 | AX76: 0.052553 | AY76: 0.052553 | AZ76: 0.052553 | BA76: 0.051909 | BB76: 0.051588 | BC76: 0.069302 | BD76: 0.069302 | BE76: 0.069302 | BF76: 0.069302 | BG76: 0.069302 | BI76: 0.0052553 | BJ76: 0.0157659 | BK76: 0.0262765 | BL76: 0.0367227 | BM76: 0.0470724 | BN76: 0.0539061 | BO76: 0.0572559 | BP76: 0.0606057 | BQ76: 0.0640199 | BR76: 0.0675306 | BT76: =+IF($K76="Ongoing",AX76,IF(RIGHT($K76,2)=RIGHT(BT$39,2),SUM($AX76:AX76),0)+IF(RIGHT(BT$39,2)>RIGHT($K76,2),AX76,0)) -> 0.052553 | BU76: =+IF($K76="Ongoing",AY76,IF(RIGHT($K76,2)=RIGHT(BU$39,2),SUM($AX76:AY76),0)+IF(RIGHT(BU$39,2)>RIGHT($K76,2),AY76,0)) -> 0.052553 | BV76: =+IF($K76="Ongoing",AZ76,IF(RIGHT($K76,2)=RIGHT(BV$39,2),SUM($AX76:AZ76),0)+IF(RIGHT(BV$39,2)>RIGHT($K76,2),AZ76,0)) -> 0.052553 | BW76: =+IF($K76="Ongoing",BA76,IF(RIGHT($K76,2)=RIGHT(BW$39,2),SUM($AX76:BA76),0)+IF(RIGHT(BW$39,2)>RIGHT($K76,2),BA76,0)) -> 0.051909 | BX76: =+IF($K76="Ongoing",BB76,IF(RIGHT($K76,2)=RIGHT(BX$39,2),SUM($AX76:BB76),0)+IF(RIGHT(BX$39,2)>RIGHT($K76,2),BB76,0)) -> 0.051588 | BY76: =+IF($K76="Ongoing",BC76,IF(RIGHT($K76,2)=RIGHT(BY$39,2),SUM($AX76:BC76),0)+IF(RIGHT(BY$39,2)>RIGHT($K76,2),BC76,0)) -> 0.069302 | BZ76: =+IF($K76="Ongoing",BD76,IF(RIGHT($K76,2)=RIGHT(BZ$39,2),SUM($AX76:BD76),0)+IF(RIGHT(BZ$39,2)>RIGHT($K76,2),BD76,0)) -> 0.069302 | CA76: =+IF($K76="Ongoing",BE76,IF(RIGHT($K76,2)=RIGHT(CA$39,2),SUM($AX76:BE76),0)+IF(RIGHT(CA$39,2)>RIGHT($K76,2),BE76,0)) -> 0.069302 | CB76: =+IF($K76="Ongoing",BF76,IF(RIGHT($K76,2)=RIGHT(CB$39,2),SUM($AX76:BF76),0)+IF(RIGHT(CB$39,2)>RIGHT($K76,2),BF76,0)) -> 0.069302 | CC76: =+IF($K76="Ongoing",BG76,IF(RIGHT($K76,2)=RIGHT(CC$39,2),SUM($AX76:BG76),0)+IF(RIGHT(CC$39,2)>RIGHT($K76,2),BG76,0)) -> 0.069302 | CE76: =+Q76*KeyAssumptionsPriceControl_FO!AC$15 -> 0.05412959 | CF76: =+R76*KeyAssumptionsPriceControl_FO!AD$15 -> 0.0557534777 | CG76: =+S76*KeyAssumptionsPriceControl_FO!AE$15 -> 0.05742608203 | CH76: =+T76*KeyAssumptionsPriceControl_FO!AF$15 -> 0.05842403682 | CI76: =+U76*KeyAssumptionsPriceControl_FO!AG$15 -> 0.05980463094 | CJ76: =+V76*KeyAssumptionsPriceControl_FO!AH$15 -> 0.08275021225 | CK76: =+W76*KeyAssumptionsPriceControl_FO!AI$15 -> 0.08523271862 | CL76: =+X76*KeyAssumptionsPriceControl_FO!AJ$15 -> 0.08778970018 | CM76: =+Y76*KeyAssumptionsPriceControl_FO!AK$15 -> 0.09042339119 | CN76: =+Z76*KeyAssumptionsPriceControl_FO!AL$15 -> 0.09313609292 | CP76: 0.005412959 | CQ76: 0.01640126577 | CR76: 0.02771922174 | CS76: 0.03930423363 | CT76: 0.0511271004 | CU76: 0.05996962572 | CV76: 0.06577961204 | CW76: 0.07176389795 | CX76: 0.0780001952 | CY76: 0.08453327683
C77: New Technology and Intellectual Property | E77: Sewerage | F77: Improvements / Compliance | G77: Corporate | H77: Capital Programs / Allocation | J77: Straight line | K77: Ongoing | L77: 5 | M77: 5 | Q77: 0.420717 | R77: 0.420717 | S77: 0.420717 | T77: 0.415565 | U77: 0.412989 | V77: 0.4345 | W77: 0.4345 | X77: 0.4345 | Y77: 0.4345 | Z77: 0.4345 | AX77: 0.420717 | AY77: 0.420717 | AZ77: 0.420717 | BA77: 0.415565 | BB77: 0.412989 | BC77: 0.4345 | BD77: 0.4345 | BE77: 0.4345 | BF77: 0.4345 | BG77: 0.4345 | BI77: 0.0420717 | BJ77: 0.1262151 | BK77: 0.2103585 | BL77: 0.2939867 | BM77: 0.3768421 | BN77: 0.4195193 | BO77: 0.4222759 | BP77: 0.4250325 | BQ77: 0.4283043 | BR77: 0.4323489 | BT77: =+IF($K77="Ongoing",AX77,IF(RIGHT($K77,2)=RIGHT(BT$39,2),SUM($AX77:AX77),0)+IF(RIGHT(BT$39,2)>RIGHT($K77,2),AX77,0)) -> 0.420717 | BU77: =+IF($K77="Ongoing",AY77,IF(RIGHT($K77,2)=RIGHT(BU$39,2),SUM($AX77:AY77),0)+IF(RIGHT(BU$39,2)>RIGHT($K77,2),AY77,0)) -> 0.420717 | BV77: =+IF($K77="Ongoing",AZ77,IF(RIGHT($K77,2)=RIGHT(BV$39,2),SUM($AX77:AZ77),0)+IF(RIGHT(BV$39,2)>RIGHT($K77,2),AZ77,0)) -> 0.420717 | BW77: =+IF($K77="Ongoing",BA77,IF(RIGHT($K77,2)=RIGHT(BW$39,2),SUM($AX77:BA77),0)+IF(RIGHT(BW$39,2)>RIGHT($K77,2),BA77,0)) -> 0.415565 | BX77: =+IF($K77="Ongoing",BB77,IF(RIGHT($K77,2)=RIGHT(BX$39,2),SUM($AX77:BB77),0)+IF(RIGHT(BX$39,2)>RIGHT($K77,2),BB77,0)) -> 0.412989 | BY77: =+IF($K77="Ongoing",BC77,IF(RIGHT($K77,2)=RIGHT(BY$39,2),SUM($AX77:BC77),0)+IF(RIGHT(BY$39,2)>RIGHT($K77,2),BC77,0)) -> 0.4345 | BZ77: =+IF($K77="Ongoing",BD77,IF(RIGHT($K77,2)=RIGHT(BZ$39,2),SUM($AX77:BD77),0)+IF(RIGHT(BZ$39,2)>RIGHT($K77,2),BD77,0)) -> 0.4345 | CA77: =+IF($K77="Ongoing",BE77,IF(RIGHT($K77,2)=RIGHT(CA$39,2),SUM($AX77:BE77),0)+IF(RIGHT(CA$39,2)>RIGHT($K77,2),BE77,0)) -> 0.4345 | CB77: =+IF($K77="Ongoing",BF77,IF(RIGHT($K77,2)=RIGHT(CB$39,2),SUM($AX77:BF77),0)+IF(RIGHT(CB$39,2)>RIGHT($K77,2),BF77,0)) -> 0.4345 | CC77: =+IF($K77="Ongoing",BG77,IF(RIGHT($K77,2)=RIGHT(CC$39,2),SUM($AX77:BG77),0)+IF(RIGHT(CC$39,2)>RIGHT($K77,2),BG77,0)) -> 0.4345 | CE77: =+Q77*KeyAssumptionsPriceControl_FO!AC$15 -> 0.43333851 | CF77: =+R77*KeyAssumptionsPriceControl_FO!AD$15 -> 0.4463386653 | CG77: =+S77*KeyAssumptionsPriceControl_FO!AE$15 -> 0.4597288253 | CH77: =+T77*KeyAssumptionsPriceControl_FO!AF$15 -> 0.4677220686 | CI77: =+U77*KeyAssumptionsPriceControl_FO!AG$15 -> 0.4787674407 | CJ77: =+V77*KeyAssumptionsPriceControl_FO!AH$15 -> 0.5188157228 | CK77: =+W77*KeyAssumptionsPriceControl_FO!AI$15 -> 0.5343801945 | CL77: =+X77*KeyAssumptionsPriceControl_FO!AJ$15 -> 0.5504116004 | CM77: =+Y77*KeyAssumptionsPriceControl_FO!AK$15 -> 0.5669239484 | CN77: =+Z77*KeyAssumptionsPriceControl_FO!AL$15 -> 0.5839316668 | CP77: 0.043333851 | CQ77: 0.1313015685 | CR77: 0.2219083176 | CS77: 0.314653407 | CT77: 0.4093023579 | CU77: 0.4657268233 | CV77: 0.4830786975 | CW77: 0.5009511279 | CX77: 0.5199395934 | CY77: 0.540376204
C78: New Technology and Intellectual Property | E78: Water | F78: Improvements / Compliance | G78: Corporate | H78: Capital Programs / Allocation | J78: Straight line | K78: Ongoing | L78: 5 | M78: 5 | Q78: 0.206612 | R78: 0.206612 | S78: 0.206612 | T78: 0.204081 | U78: 0.202816 | V78: 0.241279 | W78: 0.241279 | X78: 0.241279 | Y78: 0.241279 | Z78: 0.241279 | AX78: 0.206612 | AY78: 0.206612 | AZ78: 0.206612 | BA78: 0.204081 | BB78: 0.202816 | BC78: 0.241279 | BD78: 0.241279 | BE78: 0.241279 | BF78: 0.241279 | BG78: 0.241279 | BI78: 0.0206612 | BJ78: 0.0619836 | BK78: 0.103306 | BL78: 0.1443753 | BM78: 0.185065 | BN78: 0.2088133 | BO78: 0.2157467 | BP78: 0.2226801 | BQ78: 0.2298666 | BR78: 0.2374327 | BT78: =+IF($K78="Ongoing",AX78,IF(RIGHT($K78,2)=RIGHT(BT$39,2),SUM($AX78:AX78),0)+IF(RIGHT(BT$39,2)>RIGHT($K78,2),AX78,0)) -> 0.206612 | BU78: =+IF($K78="Ongoing",AY78,IF(RIGHT($K78,2)=RIGHT(BU$39,2),SUM($AX78:AY78),0)+IF(RIGHT(BU$39,2)>RIGHT($K78,2),AY78,0)) -> 0.206612 | BV78: =+IF($K78="Ongoing",AZ78,IF(RIGHT($K78,2)=RIGHT(BV$39,2),SUM($AX78:AZ78),0)+IF(RIGHT(BV$39,2)>RIGHT($K78,2),AZ78,0)) -> 0.206612 | BW78: =+IF($K78="Ongoing",BA78,IF(RIGHT($K78,2)=RIGHT(BW$39,2),SUM($AX78:BA78),0)+IF(RIGHT(BW$39,2)>RIGHT($K78,2),BA78,0)) -> 0.204081 | BX78: =+IF($K78="Ongoing",BB78,IF(RIGHT($K78,2)=RIGHT(BX$39,2),SUM($AX78:BB78),0)+IF(RIGHT(BX$39,2)>RIGHT($K78,2),BB78,0)) -> 0.202816 | BY78: =+IF($K78="Ongoing",BC78,IF(RIGHT($K78,2)=RIGHT(BY$39,2),SUM($AX78:BC78),0)+IF(RIGHT(BY$39,2)>RIGHT($K78,2),BC78,0)) -> 0.241279 | BZ78: =+IF($K78="Ongoing",BD78,IF(RIGHT($K78,2)=RIGHT(BZ$39,2),SUM($AX78:BD78),0)+IF(RIGHT(BZ$39,2)>RIGHT($K78,2),BD78,0)) -> 0.241279 | CA78: =+IF($K78="Ongoing",BE78,IF(RIGHT($K78,2)=RIGHT(CA$39,2),SUM($AX78:BE78),0)+IF(RIGHT(CA$39,2)>RIGHT($K78,2),BE78,0)) -> 0.241279 | CB78: =+IF($K78="Ongoing",BF78,IF(RIGHT($K78,2)=RIGHT(CB$39,2),SUM($AX78:BF78),0)+IF(RIGHT(CB$39,2)>RIGHT($K78,2),BF78,0)) -> 0.241279 | CC78: =+IF($K78="Ongoing",BG78,IF(RIGHT($K78,2)=RIGHT(CC$39,2),SUM($AX78:BG78),0)+IF(RIGHT(CC$39,2)>RIGHT($K78,2),BG78,0)) -> 0.241279 | CE78: =+Q78*KeyAssumptionsPriceControl_FO!AC$15 -> 0.21281036 | CF78: =+R78*KeyAssumptionsPriceControl_FO!AD$15 -> 0.2191946708 | CG78: =+S78*KeyAssumptionsPriceControl_FO!AE$15 -> 0.2257705109 | CH78: =+T78*KeyAssumptionsPriceControl_FO!AF$15 -> 0.2296949635 | CI78: =+U78*KeyAssumptionsPriceControl_FO!AG$15 -> 0.2351193307 | CJ78: =+V78*KeyAssumptionsPriceControl_FO!AH$15 -> 0.2880997441 | CK78: =+W78*KeyAssumptionsPriceControl_FO!AI$15 -> 0.2967427364 | CL78: =+X78*KeyAssumptionsPriceControl_FO!AJ$15 -> 0.3056450185 | CM78: =+Y78*KeyAssumptionsPriceControl_FO!AK$15 -> 0.314814369 | CN78: =+Z78*KeyAssumptionsPriceControl_FO!AL$15 -> 0.3242588001 | CP78: 0.021281036 | CQ78: 0.06448153908 | CR78: 0.1089780573 | CS78: 0.1545246047 | CT78: 0.2010060341 | CU78: 0.2320469056 | CV78: 0.2473306505 | CW78: 0.2630729078 | CX78: 0.2795722992 | CY78: 0.2969981867
C79: New Technology and Intellectual Property | E79: Recycled Water | F79: Renewals | G79: Corporate | H79: Capital Programs / Allocation | J79: Straight line | K79: Ongoing | L79: 5 | M79: 5 | Q79: 0.015424 | R79: 0.015424 | S79: 0.015424 | T79: 0.014781 | U79: 0.014459 | V79: 0.017399 | W79: 0.017399 | X79: 0.017399 | Y79: 0.017399 | Z79: 0.017399 | AX79: 0.015424 | AY79: 0.015424 | AZ79: 0.015424 | BA79: 0.014781 | BB79: 0.014459 | BC79: 0.017399 | BD79: 0.017399 | BE79: 0.017399 | BF79: 0.017399 | BG79: 0.017399 | BI79: 0.0015424 | BJ79: 0.0046272 | BK79: 0.007712 | BL79: 0.0107325 | BM79: 0.0136565 | BN79: 0.0152999 | BO79: 0.0156949 | BP79: 0.0160899 | BQ79: 0.0165492 | BR79: 0.017105 | BT79: =+IF($K79="Ongoing",AX79,IF(RIGHT($K79,2)=RIGHT(BT$39,2),SUM($AX79:AX79),0)+IF(RIGHT(BT$39,2)>RIGHT($K79,2),AX79,0)) -> 0.015424 | BU79: =+IF($K79="Ongoing",AY79,IF(RIGHT($K79,2)=RIGHT(BU$39,2),SUM($AX79:AY79),0)+IF(RIGHT(BU$39,2)>RIGHT($K79,2),AY79,0)) -> 0.015424 | BV79: =+IF($K79="Ongoing",AZ79,IF(RIGHT($K79,2)=RIGHT(BV$39,2),SUM($AX79:AZ79),0)+IF(RIGHT(BV$39,2)>RIGHT($K79,2),AZ79,0)) -> 0.015424 | BW79: =+IF($K79="Ongoing",BA79,IF(RIGHT($K79,2)=RIGHT(BW$39,2),SUM($AX79:BA79),0)+IF(RIGHT(BW$39,2)>RIGHT($K79,2),BA79,0)) -> 0.014781 | BX79: =+IF($K79="Ongoing",BB79,IF(RIGHT($K79,2)=RIGHT(BX$39,2),SUM($AX79:BB79),0)+IF(RIGHT(BX$39,2)>RIGHT($K79,2),BB79,0)) -> 0.014459 | BY79: =+IF($K79="Ongoing",BC79,IF(RIGHT($K79,2)=RIGHT(BY$39,2),SUM($AX79:BC79),0)+IF(RIGHT(BY$39,2)>RIGHT($K79,2),BC79,0)) -> 0.017399 | BZ79: =+IF($K79="Ongoing",BD79,IF(RIGHT($K79,2)=RIGHT(BZ$39,2),SUM($AX79:BD79),0)+IF(RIGHT(BZ$39,2)>RIGHT($K79,2),BD79,0)) -> 0.017399 | CA79: =+IF($K79="Ongoing",BE79,IF(RIGHT($K79,2)=RIGHT(CA$39,2),SUM($AX79:BE79),0)+IF(RIGHT(CA$39,2)>RIGHT($K79,2),BE79,0)) -> 0.017399 | CB79: =+IF($K79="Ongoing",BF79,IF(RIGHT($K79,2)=RIGHT(CB$39,2),SUM($AX79:BF79),0)+IF(RIGHT(CB$39,2)>RIGHT($K79,2),BF79,0)) -> 0.017399 | CC79: =+IF($K79="Ongoing",BG79,IF(RIGHT($K79,2)=RIGHT(CC$39,2),SUM($AX79:BG79),0)+IF(RIGHT(CC$39,2)>RIGHT($K79,2),BG79,0)) -> 0.017399 | CE79: =+Q79*KeyAssumptionsPriceControl_FO!AC$15 -> 0.01588672 | CF79: =+R79*KeyAssumptionsPriceControl_FO!AD$15 -> 0.0163633216 | CG79: =+S79*KeyAssumptionsPriceControl_FO!AE$15 -> 0.01685422125 | CH79: =+T79*KeyAssumptionsPriceControl_FO!AF$15 -> 0.01663614572 | CI79: =+U79*KeyAssumptionsPriceControl_FO!AG$15 -> 0.01676194384 | CJ79: =+V79*KeyAssumptionsPriceControl_FO!AH$15 -> 0.02077531591 | CK79: =+W79*KeyAssumptionsPriceControl_FO!AI$15 -> 0.02139857538 | CL79: =+X79*KeyAssumptionsPriceControl_FO!AJ$15 -> 0.02204053265 | CM79: =+Y79*KeyAssumptionsPriceControl_FO!AK$15 -> 0.02270174863 | CN79: =+Z79*KeyAssumptionsPriceControl_FO!AL$15 -> 0.02338280108 | CP79: 0.001588672 | CQ79: 0.00481367616 | CR79: 0.008135430445 | CS79: 0.01148446714 | CT79: 0.0148242761 | CU79: 0.01698933007 | CV79: 0.01798171504 | CW79: 0.01900387156 | CX79: 0.02012906299 | CY79: 0.02139770901
C80: New Technology and Intellectual Property | E80: Sewerage | F80: Renewals | G80: Corporate | H80: Capital Programs / Allocation | J80: Straight line | K80: Ongoing | L80: 5 | M80: 5 | Q80: 0.123481 | R80: 0.123481 | S80: 0.123481 | T80: 0.118329 | U80: 0.115754 | V80: 0.109085 | W80: 0.109085 | X80: 0.109085 | Y80: 0.109085 | Z80: 0.109085 | AX80: 0.123481 | AY80: 0.123481 | AZ80: 0.123481 | BA80: 0.118329 | BB80: 0.115754 | BC80: 0.109085 | BD80: 0.109085 | BE80: 0.109085 | BF80: 0.109085 | BG80: 0.109085 | BI80: 0.0123481 | BJ80: 0.0370443 | BK80: 0.0617405 | BL80: 0.0859215 | BM80: 0.1093298 | BN80: 0.1194656 | BO80: 0.1165864 | BP80: 0.1137072 | BQ80: 0.1113432 | BR80: 0.1097519 | BT80: =+IF($K80="Ongoing",AX80,IF(RIGHT($K80,2)=RIGHT(BT$39,2),SUM($AX80:AX80),0)+IF(RIGHT(BT$39,2)>RIGHT($K80,2),AX80,0)) -> 0.123481 | BU80: =+IF($K80="Ongoing",AY80,IF(RIGHT($K80,2)=RIGHT(BU$39,2),SUM($AX80:AY80),0)+IF(RIGHT(BU$39,2)>RIGHT($K80,2),AY80,0)) -> 0.123481 | BV80: =+IF($K80="Ongoing",AZ80,IF(RIGHT($K80,2)=RIGHT(BV$39,2),SUM($AX80:AZ80),0)+IF(RIGHT(BV$39,2)>RIGHT($K80,2),AZ80,0)) -> 0.123481 | BW80: =+IF($K80="Ongoing",BA80,IF(RIGHT($K80,2)=RIGHT(BW$39,2),SUM($AX80:BA80),0)+IF(RIGHT(BW$39,2)>RIGHT($K80,2),BA80,0)) -> 0.118329 | BX80: =+IF($K80="Ongoing",BB80,IF(RIGHT($K80,2)=RIGHT(BX$39,2),SUM($AX80:BB80),0)+IF(RIGHT(BX$39,2)>RIGHT($K80,2),BB80,0)) -> 0.115754 | BY80: =+IF($K80="Ongoing",BC80,IF(RIGHT($K80,2)=RIGHT(BY$39,2),SUM($AX80:BC80),0)+IF(RIGHT(BY$39,2)>RIGHT($K80,2),BC80,0)) -> 0.109085 | BZ80: =+IF($K80="Ongoing",BD80,IF(RIGHT($K80,2)=RIGHT(BZ$39,2),SUM($AX80:BD80),0)+IF(RIGHT(BZ$39,2)>RIGHT($K80,2),BD80,0)) -> 0.109085 | CA80: =+IF($K80="Ongoing",BE80,IF(RIGHT($K80,2)=RIGHT(CA$39,2),SUM($AX80:BE80),0)+IF(RIGHT(CA$39,2)>RIGHT($K80,2),BE80,0)) -> 0.109085 | CB80: =+IF($K80="Ongoing",BF80,IF(RIGHT($K80,2)=RIGHT(CB$39,2),SUM($AX80:BF80),0)+IF(RIGHT(CB$39,2)>RIGHT($K80,2),BF80,0)) -> 0.109085 | CC80: =+IF($K80="Ongoing",BG80,IF(RIGHT($K80,2)=RIGHT(CC$39,2),SUM($AX80:BG80),0)+IF(RIGHT(CC$39,2)>RIGHT($K80,2),BG80,0)) -> 0.109085 | CE80: =+Q80*KeyAssumptionsPriceControl_FO!AC$15 -> 0.12718543 | CF80: =+R80*KeyAssumptionsPriceControl_FO!AD$15 -> 0.1310009929 | CG80: =+S80*KeyAssumptionsPriceControl_FO!AE$15 -> 0.1349310227 | CH80: =+T80*KeyAssumptionsPriceControl_FO!AF$15 -> 0.133180332 | CI80: =+U80*KeyAssumptionsPriceControl_FO!AG$15 -> 0.1341906112 | CJ80: =+V80*KeyAssumptionsPriceControl_FO!AH$15 -> 0.1302531948 | CK80: =+W80*KeyAssumptionsPriceControl_FO!AI$15 -> 0.1341607906 | CL80: =+X80*KeyAssumptionsPriceControl_FO!AJ$15 -> 0.1381856143 | CM80: =+Y80*KeyAssumptionsPriceControl_FO!AK$15 -> 0.1423311828 | CN80: =+Z80*KeyAssumptionsPriceControl_FO!AL$15 -> 0.1466011182 | CP80: 0.012718543 | CQ80: 0.03853718529 | CR80: 0.06513038685 | CS80: 0.09194152232 | CT80: 0.1186786166 | CU80: 0.1324044542 | CV80: 0.1330272105 | CW80: 0.1336686494 | CX80: 0.1349091937 | CY80: 0.1370653294
C81: New Technology and Intellectual Property | E81: Water | F81: Renewals | G81: Corporate | H81: Capital Programs / Allocation | J81: Straight line | K81: Ongoing | L81: 5 | M81: 5 | Q81: 0.060641 | R81: 0.060641 | S81: 0.060641 | T81: 0.058111 | U81: 0.056846 | V81: 0.060575 | W81: 0.060575 | X81: 0.060575 | Y81: 0.060575 | Z81: 0.060575 | AX81: 0.060641 | AY81: 0.060641 | AZ81: 0.060641 | BA81: 0.058111 | BB81: 0.056846 | BC81: 0.060575 | BD81: 0.060575 | BE81: 0.060575 | BF81: 0.060575 | BG81: 0.060575 | BI81: 0.0060641 | BJ81: 0.0181923 | BK81: 0.0303205 | BL81: 0.0421957 | BM81: 0.0536914 | BN81: 0.0593694 | BO81: 0.0593562 | BP81: 0.059343 | BQ81: 0.0595828 | BR81: 0.0602021 | BT81: =+IF($K81="Ongoing",AX81,IF(RIGHT($K81,2)=RIGHT(BT$39,2),SUM($AX81:AX81),0)+IF(RIGHT(BT$39,2)>RIGHT($K81,2),AX81,0)) -> 0.060641 | BU81: =+IF($K81="Ongoing",AY81,IF(RIGHT($K81,2)=RIGHT(BU$39,2),SUM($AX81:AY81),0)+IF(RIGHT(BU$39,2)>RIGHT($K81,2),AY81,0)) -> 0.060641 | BV81: =+IF($K81="Ongoing",AZ81,IF(RIGHT($K81,2)=RIGHT(BV$39,2),SUM($AX81:AZ81),0)+IF(RIGHT(BV$39,2)>RIGHT($K81,2),AZ81,0)) -> 0.060641 | BW81: =+IF($K81="Ongoing",BA81,IF(RIGHT($K81,2)=RIGHT(BW$39,2),SUM($AX81:BA81),0)+IF(RIGHT(BW$39,2)>RIGHT($K81,2),BA81,0)) -> 0.058111 | BX81: =+IF($K81="Ongoing",BB81,IF(RIGHT($K81,2)=RIGHT(BX$39,2),SUM($AX81:BB81),0)+IF(RIGHT(BX$39,2)>RIGHT($K81,2),BB81,0)) -> 0.056846 | BY81: =+IF($K81="Ongoing",BC81,IF(RIGHT($K81,2)=RIGHT(BY$39,2),SUM($AX81:BC81),0)+IF(RIGHT(BY$39,2)>RIGHT($K81,2),BC81,0)) -> 0.060575 | BZ81: =+IF($K81="Ongoing",BD81,IF(RIGHT($K81,2)=RIGHT(BZ$39,2),SUM($AX81:BD81),0)+IF(RIGHT(BZ$39,2)>RIGHT($K81,2),BD81,0)) -> 0.060575 | CA81: =+IF($K81="Ongoing",BE81,IF(RIGHT($K81,2)=RIGHT(CA$39,2),SUM($AX81:BE81),0)+IF(RIGHT(CA$39,2)>RIGHT($K81,2),BE81,0)) -> 0.060575 | CB81: =+IF($K81="Ongoing",BF81,IF(RIGHT($K81,2)=RIGHT(CB$39,2),SUM($AX81:BF81),0)+IF(RIGHT(CB$39,2)>RIGHT($K81,2),BF81,0)) -> 0.060575 | CC81: =+IF($K81="Ongoing",BG81,IF(RIGHT($K81,2)=RIGHT(CC$39,2),SUM($AX81:BG81),0)+IF(RIGHT(CC$39,2)>RIGHT($K81,2),BG81,0)) -> 0.060575 | CE81: =+Q81*KeyAssumptionsPriceControl_FO!AC$15 -> 0.06246023 | CF81: =+R81*KeyAssumptionsPriceControl_FO!AD$15 -> 0.0643340369 | CG81: =+S81*KeyAssumptionsPriceControl_FO!AE$15 -> 0.06626405801 | CH81: =+T81*KeyAssumptionsPriceControl_FO!AF$15 -> 0.06540444246 | CI81: =+U81*KeyAssumptionsPriceControl_FO!AG$15 -> 0.06590009403 | CJ81: =+V81*KeyAssumptionsPriceControl_FO!AH$15 -> 0.07232971786 | CK81: =+W81*KeyAssumptionsPriceControl_FO!AI$15 -> 0.0744996094 | CL81: =+X81*KeyAssumptionsPriceControl_FO!AJ$15 -> 0.07673459768 | CM81: =+Y81*KeyAssumptionsPriceControl_FO!AK$15 -> 0.07903663561 | CN81: =+Z81*KeyAssumptionsPriceControl_FO!AL$15 -> 0.08140773468 | CP81: 0.006246023 | CQ81: 0.01892544969 | CR81: 0.03198525918 | CS81: 0.04515210923 | CT81: 0.05828256288 | CU81: 0.06585952106 | CV81: 0.0678630271 | CW81: 0.06992663832 | CX81: 0.0723369116 | CY81: 0.07525089498
C82: Potable Water Growth | E82: Water | F82: Growth | G82: Pipelines/network | H82: Capital Programs / Allocation | J82: Straight line | K82: Ongoing | L82: 80 | M82: 80 | Q82: 17.136219 | R82: 15.223598 | S82: 14.144018 | T82: 14.277797 | U82: 15.398446 | V82: 23.975052 | W82: 23.975052 | X82: 23.975052 | Y82: 23.975052 | Z82: 23.975052 | AX82: 17.136219 | AY82: 15.223598 | AZ82: 14.144018 | BA82: 14.277797 | BB82: 15.398446 | BC82: 23.975052 | BD82: 23.975052 | BE82: 23.975052 | BF82: 23.975052 | BG82: 23.975052 | BI82: 0.1071013688 | BJ82: 0.309350225 | BK82: 0.492897825 | BL82: 0.6705341688 | BM82: 0.8560106875 | BN82: 1.10209505 | BO82: 1.4017832 | BP82: 1.70147135 | BQ82: 2.0011595 | BR82: 2.30084765 | BT82: =+IF($K82="Ongoing",AX82,IF(RIGHT($K82,2)=RIGHT(BT$39,2),SUM($AX82:AX82),0)+IF(RIGHT(BT$39,2)>RIGHT($K82,2),AX82,0)) -> 17.136219 | BU82: =+IF($K82="Ongoing",AY82,IF(RIGHT($K82,2)=RIGHT(BU$39,2),SUM($AX82:AY82),0)+IF(RIGHT(BU$39,2)>RIGHT($K82,2),AY82,0)) -> 15.223598 | BV82: =+IF($K82="Ongoing",AZ82,IF(RIGHT($K82,2)=RIGHT(BV$39,2),SUM($AX82:AZ82),0)+IF(RIGHT(BV$39,2)>RIGHT($K82,2),AZ82,0)) -> 14.144018 | BW82: =+IF($K82="Ongoing",BA82,IF(RIGHT($K82,2)=RIGHT(BW$39,2),SUM($AX82:BA82),0)+IF(RIGHT(BW$39,2)>RIGHT($K82,2),BA82,0)) -> 14.277797 | BX82: =+IF($K82="Ongoing",BB82,IF(RIGHT($K82,2)=RIGHT(BX$39,2),SUM($AX82:BB82),0)+IF(RIGHT(BX$39,2)>RIGHT($K82,2),BB82,0)) -> 15.398446 | BY82: =+IF($K82="Ongoing",BC82,IF(RIGHT($K82,2)=RIGHT(BY$39,2),SUM($AX82:BC82),0)+IF(RIGHT(BY$39,2)>RIGHT($K82,2),BC82,0)) -> 23.975052 | BZ82: =+IF($K82="Ongoing",BD82,IF(RIGHT($K82,2)=RIGHT(BZ$39,2),SUM($AX82:BD82),0)+IF(RIGHT(BZ$39,2)>RIGHT($K82,2),BD82,0)) -> 23.975052 | CA82: =+IF($K82="Ongoing",BE82,IF(RIGHT($K82,2)=RIGHT(CA$39,2),SUM($AX82:BE82),0)+IF(RIGHT(CA$39,2)>RIGHT($K82,2),BE82,0)) -> 23.975052 | CB82: =+IF($K82="Ongoing",BF82,IF(RIGHT($K82,2)=RIGHT(CB$39,2),SUM($AX82:BF82),0)+IF(RIGHT(CB$39,2)>RIGHT($K82,2),BF82,0)) -> 23.975052 | CC82: =+IF($K82="Ongoing",BG82,IF(RIGHT($K82,2)=RIGHT(CC$39,2),SUM($AX82:BG82),0)+IF(RIGHT(CC$39,2)>RIGHT($K82,2),BG82,0)) -> 23.975052 | CE82: =+Q82*KeyAssumptionsPriceControl_FO!AC$15 -> 17.65030557 | CF82: =+R82*KeyAssumptionsPriceControl_FO!AD$15 -> 16.15071512 | CG82: =+S82*KeyAssumptionsPriceControl_FO!AE$15 -> 15.45555036 | CH82: =+T82*KeyAssumptionsPriceControl_FO!AF$15 -> 16.06978631 | CI82: =+U82*KeyAssumptionsPriceControl_FO!AG$15 -> 17.85101923 | CJ82: =+V82*KeyAssumptionsPriceControl_FO!AH$15 -> 28.6274659 | CK82: =+W82*KeyAssumptionsPriceControl_FO!AI$15 -> 29.48628988 | CL82: =+X82*KeyAssumptionsPriceControl_FO!AJ$15 -> 30.37087857 | CM82: =+Y82*KeyAssumptionsPriceControl_FO!AK$15 -> 31.28200493 | CN82: =+Z82*KeyAssumptionsPriceControl_FO!AL$15 -> 32.22046508 | CP82: 0.1103144098 | CQ82: 0.3215707891 | CR82: 0.5191099483 | CS82: 0.7161433025 | CT82: 0.9281483372 | CU82: 1.218638869 | CV82: 1.581849843 | CW82: 1.955957146 | CX82: 2.341287668 | CY82: 2.738178105
C83: Potable Water Improvements/Compliance | E83: Water | F83: Improvements / Compliance | G83: Pipelines/network | H83: Capital Programs / Allocation | J83: Straight line | K83: Ongoing | L83: 30 | M83: 30 | Q83: 0 | R83: 0 | S83: 0 | T83: 0 | U83: 0 | V83: 0.105089 | W83: 0.105089 | X83: 0.105089 | Y83: 0.105089 | Z83: 0.105089 | AX83: 0 | AY83: 0 | AZ83: 0 | BA83: 0 | BB83: 0 | BC83: 0.105089 | BD83: 0.105089 | BE83: 0.105089 | BF83: 0.105089 | BG83: 0.105089 | BI83: 0 | BJ83: 0 | BK83: 0 | BL83: 0 | BM83: 0 | BN83: 0.001751483333 | BO83: 0.00525445 | BP83: 0.008757416667 | BQ83: 0.01226038333 | BR83: 0.01576335 | BT83: =+IF($K83="Ongoing",AX83,IF(RIGHT($K83,2)=RIGHT(BT$39,2),SUM($AX83:AX83),0)+IF(RIGHT(BT$39,2)>RIGHT($K83,2),AX83,0)) -> 0 | BU83: =+IF($K83="Ongoing",AY83,IF(RIGHT($K83,2)=RIGHT(BU$39,2),SUM($AX83:AY83),0)+IF(RIGHT(BU$39,2)>RIGHT($K83,2),AY83,0)) -> 0 | BV83: =+IF($K83="Ongoing",AZ83,IF(RIGHT($K83,2)=RIGHT(BV$39,2),SUM($AX83:AZ83),0)+IF(RIGHT(BV$39,2)>RIGHT($K83,2),AZ83,0)) -> 0 | BW83: =+IF($K83="Ongoing",BA83,IF(RIGHT($K83,2)=RIGHT(BW$39,2),SUM($AX83:BA83),0)+IF(RIGHT(BW$39,2)>RIGHT($K83,2),BA83,0)) -> 0 | BX83: =+IF($K83="Ongoing",BB83,IF(RIGHT($K83,2)=RIGHT(BX$39,2),SUM($AX83:BB83),0)+IF(RIGHT(BX$39,2)>RIGHT($K83,2),BB83,0)) -> 0 | BY83: =+IF($K83="Ongoing",BC83,IF(RIGHT($K83,2)=RIGHT(BY$39,2),SUM($AX83:BC83),0)+IF(RIGHT(BY$39,2)>RIGHT($K83,2),BC83,0)) -> 0.105089 | BZ83: =+IF($K83="Ongoing",BD83,IF(RIGHT($K83,2)=RIGHT(BZ$39,2),SUM($AX83:BD83),0)+IF(RIGHT(BZ$39,2)>RIGHT($K83,2),BD83,0)) -> 0.105089 | CA83: =+IF($K83="Ongoing",BE83,IF(RIGHT($K83,2)=RIGHT(CA$39,2),SUM($AX83:BE83),0)+IF(RIGHT(CA$39,2)>RIGHT($K83,2),BE83,0)) -> 0.105089 | CB83: =+IF($K83="Ongoing",BF83,IF(RIGHT($K83,2)=RIGHT(CB$39,2),SUM($AX83:BF83),0)+IF(RIGHT(CB$39,2)>RIGHT($K83,2),BF83,0)) -> 0.105089 | CC83: =+IF($K83="Ongoing",BG83,IF(RIGHT($K83,2)=RIGHT(CC$39,2),SUM($AX83:BG83),0)+IF(RIGHT(CC$39,2)>RIGHT($K83,2),BG83,0)) -> 0.105089 | CE83: =+Q83*KeyAssumptionsPriceControl_FO!AC$15 -> 0 | CF83: =+R83*KeyAssumptionsPriceControl_FO!AD$15 -> 0 | CG83: =+S83*KeyAssumptionsPriceControl_FO!AE$15 -> 0 | CH83: =+T83*KeyAssumptionsPriceControl_FO!AF$15 -> 0 | CI83: =+U83*KeyAssumptionsPriceControl_FO!AG$15 -> 0 | CJ83: =+V83*KeyAssumptionsPriceControl_FO!AH$15 -> 0.1254817618 | CK83: =+W83*KeyAssumptionsPriceControl_FO!AI$15 -> 0.1292462146 | CL83: =+X83*KeyAssumptionsPriceControl_FO!AJ$15 -> 0.1331236011 | CM83: =+Y83*KeyAssumptionsPriceControl_FO!AK$15 -> 0.1371173091 | CN83: =+Z83*KeyAssumptionsPriceControl_FO!AL$15 -> 0.1412308284 | CP83: 0 | CQ83: 0 | CR83: 0 | CS83: 0 | CT83: 0 | CU83: 0.002091362696 | CV83: 0.00633682897 | CW83: 0.01070965923 | CX83: 0.0152136744 | CY83: 0.01985281003
C84: Potable Water Improvements/Compliance | E84: Water | F84: Improvements / Compliance | G84: Pipelines/network | H84: Capital Programs / Allocation | J84: Straight line | K84: Ongoing | L84: 80 | M84: 80 | Q84: 7.414942 | R84: 9.585031 | S84: 14.314032 | T84: 17.36366 | U84: 18.793991 | V84: 25.393543 | W84: 25.393543 | X84: 25.393543 | Y84: 25.393543 | Z84: 25.393543 | AX84: 7.414942 | AY84: 9.585031 | AZ84: 14.314032 | BA84: 17.36366 | BB84: 18.793991 | BC84: 25.393543 | BD84: 25.393543 | BE84: 25.393543 | BF84: 25.393543 | BG84: 25.393543 | BI84: 0.0463433875 | BJ84: 0.1525932188 | BK84: 0.3019623625 | BL84: 0.4999479375 | BM84: 0.7259332563 | BN84: 1.002105344 | BO84: 1.319524631 | BP84: 1.636943919 | BQ84: 1.954363206 | BR84: 2.271782494 | BT84: =+IF($K84="Ongoing",AX84,IF(RIGHT($K84,2)=RIGHT(BT$39,2),SUM($AX84:AX84),0)+IF(RIGHT(BT$39,2)>RIGHT($K84,2),AX84,0)) -> 7.414942 | BU84: =+IF($K84="Ongoing",AY84,IF(RIGHT($K84,2)=RIGHT(BU$39,2),SUM($AX84:AY84),0)+IF(RIGHT(BU$39,2)>RIGHT($K84,2),AY84,0)) -> 9.585031 | BV84: =+IF($K84="Ongoing",AZ84,IF(RIGHT($K84,2)=RIGHT(BV$39,2),SUM($AX84:AZ84),0)+IF(RIGHT(BV$39,2)>RIGHT($K84,2),AZ84,0)) -> 14.314032 | BW84: =+IF($K84="Ongoing",BA84,IF(RIGHT($K84,2)=RIGHT(BW$39,2),SUM($AX84:BA84),0)+IF(RIGHT(BW$39,2)>RIGHT($K84,2),BA84,0)) -> 17.36366 | BX84: =+IF($K84="Ongoing",BB84,IF(RIGHT($K84,2)=RIGHT(BX$39,2),SUM($AX84:BB84),0)+IF(RIGHT(BX$39,2)>RIGHT($K84,2),BB84,0)) -> 18.793991 | BY84: =+IF($K84="Ongoing",BC84,IF(RIGHT($K84,2)=RIGHT(BY$39,2),SUM($AX84:BC84),0)+IF(RIGHT(BY$39,2)>RIGHT($K84,2),BC84,0)) -> 25.393543 | BZ84: =+IF($K84="Ongoing",BD84,IF(RIGHT($K84,2)=RIGHT(BZ$39,2),SUM($AX84:BD84),0)+IF(RIGHT(BZ$39,2)>RIGHT($K84,2),BD84,0)) -> 25.393543 | CA84: =+IF($K84="Ongoing",BE84,IF(RIGHT($K84,2)=RIGHT(CA$39,2),SUM($AX84:BE84),0)+IF(RIGHT(CA$39,2)>RIGHT($K84,2),BE84,0)) -> 25.393543 | CB84: =+IF($K84="Ongoing",BF84,IF(RIGHT($K84,2)=RIGHT(CB$39,2),SUM($AX84:BF84),0)+IF(RIGHT(CB$39,2)>RIGHT($K84,2),BF84,0)) -> 25.393543 | CC84: =+IF($K84="Ongoing",BG84,IF(RIGHT($K84,2)=RIGHT(CC$39,2),SUM($AX84:BG84),0)+IF(RIGHT(CC$39,2)>RIGHT($K84,2),BG84,0)) -> 25.393543 | CE84: =+Q84*KeyAssumptionsPriceControl_FO!AC$15 -> 7.63739026 | CF84: =+R84*KeyAssumptionsPriceControl_FO!AD$15 -> 10.16875939 | CG84: =+S84*KeyAssumptionsPriceControl_FO!AE$15 -> 15.64132925 | CH84: =+T84*KeyAssumptionsPriceControl_FO!AF$15 -> 19.5429523 | CI84: =+U84*KeyAssumptionsPriceControl_FO!AG$15 -> 21.78738652 | CJ84: =+V84*KeyAssumptionsPriceControl_FO!AH$15 -> 30.32121834 | CK84: =+W84*KeyAssumptionsPriceControl_FO!AI$15 -> 31.23085489 | CL84: =+X84*KeyAssumptionsPriceControl_FO!AJ$15 -> 32.16778053 | CM84: =+Y84*KeyAssumptionsPriceControl_FO!AK$15 -> 33.13281395 | CN84: =+Z84*KeyAssumptionsPriceControl_FO!AL$15 -> 34.12679837 | CP84: 0.04773368912 | CQ84: 0.1590221244 | CR84: 0.3203351784 | CS84: 0.5402369381 | CT84: 0.7985515557 | CU84: 1.124230336 | CV84: 1.508930794 | CW84: 1.905172265 | CX84: 2.313300981 | CY84: 2.733673558
C85: Potable Water Quality | E85: Water | F85: Improvements / Compliance | G85: Pipelines/network | H85: Capital Programs / Allocation | J85: Straight line | K85: Ongoing | L85: 80 | M85: 80 | Q85: 3.215725 | R85: 1.113944 | S85: 0.49602 | T85: 0.49602 | U85: 0.49602 | V85: 0.49602 | W85: 0.49602 | X85: 0.49602 | Y85: 0.49602 | Z85: 0.49602 | AX85: =+Q85-AB85-AM85 -> 3.215725 | AY85: =+R85-AC85-AN85 -> 1.113944 | AZ85: =+S85-AD85-AO85 -> 0.49602 | BA85: =+T85-AE85-AP85 -> 0.49602 | BB85: =+U85-AF85-AQ85 -> 0.49602 | BC85: =+V85-AG85-AR85 -> 0.49602 | BD85: =+W85-AH85-AS85 -> 0.49602 | BE85: =+X85-AI85-AT85 -> 0.49602 | BF85: 0.49602 | BG85: 0.49602 | BI85: 0.02009828125 | BJ85: 0.0471587125 | BK85: 0.0572209875 | BL85: 0.0634212375 | BM85: 0.0696214875 | BN85: 0.0758217375 | BO85: 0.0820219875 | BP85: 0.0882222375 | BQ85: 0.0944224875 | BR85: 0.1006227375 | BT85: =+IF($K85="Ongoing",AX85,IF(RIGHT($K85,2)=RIGHT(BT$39,2),SUM($AX85:AX85),0)+IF(RIGHT(BT$39,2)>RIGHT($K85,2),AX85,0)) -> 3.215725 | BU85: =+IF($K85="Ongoing",AY85,IF(RIGHT($K85,2)=RIGHT(BU$39,2),SUM($AX85:AY85),0)+IF(RIGHT(BU$39,2)>RIGHT($K85,2),AY85,0)) -> 1.113944 | BV85: =+IF($K85="Ongoing",AZ85,IF(RIGHT($K85,2)=RIGHT(BV$39,2),SUM($AX85:AZ85),0)+IF(RIGHT(BV$39,2)>RIGHT($K85,2),AZ85,0)) -> 0.49602 | BW85: =+IF($K85="Ongoing",BA85,IF(RIGHT($K85,2)=RIGHT(BW$39,2),SUM($AX85:BA85),0)+IF(RIGHT(BW$39,2)>RIGHT($K85,2),BA85,0)) -> 0.49602 | BX85: =+IF($K85="Ongoing",BB85,IF(RIGHT($K85,2)=RIGHT(BX$39,2),SUM($AX85:BB85),0)+IF(RIGHT(BX$39,2)>RIGHT($K85,2),BB85,0)) -> 0.49602 | BY85: =+IF($K85="Ongoing",BC85,IF(RIGHT($K85,2)=RIGHT(BY$39,2),SUM($AX85:BC85),0)+IF(RIGHT(BY$39,2)>RIGHT($K85,2),BC85,0)) -> 0.49602 | BZ85: =+IF($K85="Ongoing",BD85,IF(RIGHT($K85,2)=RIGHT(BZ$39,2),SUM($AX85:BD85),0)+IF(RIGHT(BZ$39,2)>RIGHT($K85,2),BD85,0)) -> 0.49602 | CA85: =+IF($K85="Ongoing",BE85,IF(RIGHT($K85,2)=RIGHT(CA$39,2),SUM($AX85:BE85),0)+IF(RIGHT(CA$39,2)>RIGHT($K85,2),BE85,0)) -> 0.49602 | CB85: =+IF($K85="Ongoing",BF85,IF(RIGHT($K85,2)=RIGHT(CB$39,2),SUM($AX85:BF85),0)+IF(RIGHT(CB$39,2)>RIGHT($K85,2),BF85,0)) -> 0.49602 | CC85: =+IF($K85="Ongoing",BG85,IF(RIGHT($K85,2)=RIGHT(CC$39,2),SUM($AX85:BG85),0)+IF(RIGHT(CC$39,2)>RIGHT($K85,2),BG85,0)) -> 0.49602 | CE85: =+Q85*KeyAssumptionsPriceControl_FO!AC$15 -> 3.31219675 | CF85: =+R85*KeyAssumptionsPriceControl_FO!AD$15 -> 1.18178319 | CG85: =+S85*KeyAssumptionsPriceControl_FO!AE$15 -> 0.5420144465 | CH85: =+T85*KeyAssumptionsPriceControl_FO!AF$15 -> 0.5582748799 | CI85: =+U85*KeyAssumptionsPriceControl_FO!AG$15 -> 0.5750231263 | CJ85: =+V85*KeyAssumptionsPriceControl_FO!AH$15 -> 0.5922738201 | CK85: =+W85*KeyAssumptionsPriceControl_FO!AI$15 -> 0.6100420347 | CL85: =+X85*KeyAssumptionsPriceControl_FO!AJ$15 -> 0.6283432958 | CM85: =+Y85*KeyAssumptionsPriceControl_FO!AK$15 -> 0.6471935946 | CN85: =+Z85*KeyAssumptionsPriceControl_FO!AL$15 -> 0.6666094025 | CP85: =IF($M85=0,0, IF($M85<=0.5,CE85, IF($J85="straight line", IF((LEFT(CP$39,4)*1)-INT($M85)<LEFT($CP$39,4)*1,0,((OFFSET(CE85,0,-INT($M85+0.5),1,1))/$M85)*(IF($M85-INT($M85)>0.5,$M85-0.5-INT($M85),IF($M85-INT($M85)<=0.5,$M85-0.5-INT($M85)+1,0)))) +CE85/$M85*0.5, IF($J85="Declining Balance",-$CP$38,0)))) -> 0.02070122969 | CQ85: =IF($M85=0,0, IF($M85<=0.5,CF85, IF(AND($J85="straight line",$M85<1.51),(CE85-((CE85/$M85)*0.5))+CF85/$M85*0.5, IF($J85="straight line", IF((LEFT(CQ$39,4)*1)-INT($M85)<LEFT($CP$39,4)*1,0,((OFFSET(CF85,0,-INT($M85+0.5),1,1))/$M85)*(IF($M85-INT($M85)>0.5,$M85-0.5-INT($M85),IF($M85-INT($M85)<=0.5,$M85-0.5-INT($M85)+1,0)))) +CF85/$M85*0.5 +SUM(OFFSET(CF85,0,MAX(-INT($M85+(0.5-(10^-12))),-CQ$40)+1,1,MIN(INT($M85+(0.5-(10^-12))),CQ$40)-1))*1/$M85, IF($J85="Declining Balance",-$CP$38,0))))) -> 0.04878860431 | CR85: =IF($M85=0,0, IF($M85<=0.5,CG85, IF(AND($J85="straight line",$M85<1.51),(CF85-((CF85/$M85)*0.5))+CG85/$M85*0.5, IF($J85="straight line", IF((LEFT(CR$39,4)*1)-INT($M85)<LEFT($CP$39,4)*1,0,((OFFSET(CG85,0,-INT($M85+0.5),1,1))/$M85)*(IF($M85-INT($M85)>0.5,$M85-0.5-INT($M85),IF($M85-INT($M85)<=0.5,$M85-0.5-INT($M85)+1,0)))) +CG85/$M85*0.5 +SUM(OFFSET(CG85,0,MAX(-INT($M85+(0.5-(10^-12))),-CR$40)+1,1,MIN(INT($M85+(0.5-(10^-12))),CR$40)-1))*1/$M85, IF($J85="Declining Balance",-$CP$38,0))))) -> 0.05956233954 | CS85: =IF($M85=0,0, IF($M85<=0.5,CH85, IF(AND($J85="straight line",$M85<1.51),(CG85-((CG85/$M85)*0.5))+CH85/$M85*0.5, IF($J85="straight line", IF((LEFT(CS$39,4)*1)-INT($M85)<LEFT($CP$39,4)*1,0,((OFFSET(CH85,0,-INT($M85+0.5),1,1))/$M85)*(IF($M85-INT($M85)>0.5,$M85-0.5-INT($M85),IF($M85-INT($M85)<=0.5,$M85-0.5-INT($M85)+1,0)))) +CH85/$M85*0.5 +SUM(OFFSET(CH85,0,MAX(-INT($M85+(0.5-(10^-12))),-CS$40)+1,1,MIN(INT($M85+(0.5-(10^-12))),CS$40)-1))*1/$M85, IF($J85="Declining Balance",-$CP$38,0))))) -> 0.06643914783 | CT85: =IF($M85=0,0, IF($M85<=0.5,CI85, IF(AND($J85="straight line",$M85<1.51),(CH85-((CH85/$M85)*0.5))+CI85/$M85*0.5, IF($J85="straight line", IF((LEFT(CT$39,4)*1)-INT($M85)<LEFT($CP$39,4)*1,0,((OFFSET(CI85,0,-INT($M85+0.5),1,1))/$M85)*(IF($M85-INT($M85)>0.5,$M85-0.5-INT($M85),IF($M85-INT($M85)<=0.5,$M85-0.5-INT($M85)+1,0)))) +CI85/$M85*0.5 +SUM(OFFSET(CI85,0,MAX(-INT($M85+(0.5-(10^-12))),-CT$40)+1,1,MIN(INT($M85+(0.5-(10^-12))),CT$40)-1))*1/$M85, IF($J85="Declining Balance",-$CP$38,0))))) -> 0.07352226037 | CU85: =IF($M85=0,0, IF($M85<=0.5,CJ85, IF(AND($J85="straight line",$M85<1.51),(CI85-((CI85/$M85)*0.5))+CJ85/$M85*0.5, IF($J85="straight line", IF((LEFT(CU$39,4)*1)-INT($M85)<LEFT($CP$39,4)*1,0,((OFFSET(CJ85,0,-INT($M85+0.5),1,1))/$M85)*(IF($M85-INT($M85)>0.5,$M85-0.5-INT($M85),IF($M85-INT($M85)<=0.5,$M85-0.5-INT($M85)+1,0)))) +CJ85/$M85*0.5 +SUM(OFFSET(CJ85,0,MAX(-INT($M85+(0.5-(10^-12))),-CU$40)+1,1,MIN(INT($M85+(0.5-(10^-12))),CU$40)-1))*1/$M85, IF($J85="Declining Balance",-$CP$38,0))))) -> 0.08081786628 | CV85: =IF($M85=0,0, IF($M85<=0.5,CK85, IF(AND($J85="straight line",$M85<1.51),(CJ85-((CJ85/$M85)*0.5))+CK85/$M85*0.5, IF($J85="straight line", IF((LEFT(CV$39,4)*1)-INT($M85)<LEFT($CP$39,4)*1,0,((OFFSET(CK85,0,-INT($M85+0.5),1,1))/$M85)*(IF($M85-INT($M85)>0.5,$M85-0.5-INT($M85),IF($M85-INT($M85)<=0.5,$M85-0.5-INT($M85)+1,0)))) +CK85/$M85*0.5 +SUM(OFFSET(CK85,0,MAX(-INT($M85+(0.5-(10^-12))),-CV$40)+1,1,MIN(INT($M85+(0.5-(10^-12))),CV$40)-1))*1/$M85, IF($J85="Declining Balance",-$CP$38,0))))) -> 0.08833234037 | CW85: =IF($M85=0,0, IF($M85<=0.5,CL85, IF(AND($J85="straight line",$M85<1.51),(CK85-((CK85/$M85)*0.5))+CL85/$M85*0.5, IF($J85="straight line", IF((LEFT(CW$39,4)*1)-INT($M85)<LEFT($CP$39,4)*1,0,((OFFSET(CL85,0,-INT($M85+0.5),1,1))/$M85)*(IF($M85-INT($M85)>0.5,$M85-0.5-INT($M85),IF($M85-INT($M85)<=0.5,$M85-0.5-INT($M85)+1,0)))) +CL85/$M85*0.5 +SUM(OFFSET(CL85,0,MAX(-INT($M85+(0.5-(10^-12))),-CW$40)+1,1,MIN(INT($M85+(0.5-(10^-12))),CW$40)-1))*1/$M85, IF($J85="Declining Balance",-$CP$38,0))))) -> 0.09607224869 | CX85: =IF($M85=0,0, IF($M85<=0.5,CM85, IF(AND($J85="straight line",$M85<1.51),(CL85-((CL85/$M85)*0.5))+CM85/$M85*0.5, IF($J85="straight line", IF((LEFT(CX$39,4)*1)-INT($M85)<LEFT($CP$39,4)*1,0,((OFFSET(CM85,0,-INT($M85+0.5),1,1))/$M85)*(IF($M85-INT($M85)>0.5,$M85-0.5-INT($M85),IF($M85-INT($M85)<=0.5,$M85-0.5-INT($M85)+1,0)))) +CM85/$M85*0.5 +SUM(OFFSET(CM85,0,MAX(-INT($M85+(0.5-(10^-12))),-CX$40)+1,1,MIN(INT($M85+(0.5-(10^-12))),CX$40)-1))*1/$M85, IF($J85="Declining Balance",-$CP$38,0))))) -> 0.1040443543 | CY85: =IF($M85=0,0, IF($M85<=0.5,CN85, IF(AND($J85="straight line",$M85<1.51),(CM85-((CM85/$M85)*0.5))+CN85/$M85*0.5, IF($J85="straight line", IF((LEFT(CY$39,4)*1)-INT($M85)<LEFT($CP$39,4)*1,0,((OFFSET(CN85,0,-INT($M85+0.5),1,1))/$M85)*(IF($M85-INT($M85)>0.5,$M85-0.5-INT($M85),IF($M85-INT($M85)<=0.5,$M85-0.5-INT($M85)+1,0)))) +CN85/$M85*0.5 +SUM(OFFSET(CN85,0,MAX(-INT($M85+(0.5-(10^-12))),-CY$40)+1,1,MIN(INT($M85+(0.5-(10^-12))),CY$40)-1))*1/$M85, IF($J85="Declining Balance",-$CP$38,0))))) -> 0.112255623
C86: Potable Water Quality | E86: Water | F86: Improvements / Compliance | G86: Treatment | H86: Capital Programs / Allocation | J86: Straight line | K86: Ongoing | L86: 50 | M86: 50 | Q86: 12.500827 | R86: 11.767179 | S86: 11.404996 | T86: 10.841057 | U86: 10.804906 | V86: 13.617278 | W86: 13.617278 | X86: 13.617278 | Y86: 13.617278 | Z86: 13.617278 | AX86: 12.500827 | AY86: 11.767179 | AZ86: 11.404996 | BA86: 10.841057 | BB86: 10.804906 | BC86: 13.617278 | BD86: 13.617278 | BE86: 13.617278 | BF86: 13.617278 | BG86: 13.617278 | BI86: 0.12500827 | BJ86: 0.36768833 | BK86: 0.59941008 | BL86: 0.82187061 | BM86: 1.03833024 | BN86: 1.28255208 | BO86: 1.55489764 | BP86: 1.8272432 | BQ86: 2.09958876 | BR86: 2.37193432 | BT86: =+IF($K86="Ongoing",AX86,IF(RIGHT($K86,2)=RIGHT(BT$39,2),SUM($AX86:AX86),0)+IF(RIGHT(BT$39,2)>RIGHT($K86,2),AX86,0)) -> 12.500827 | BU86: =+IF($K86="Ongoing",AY86,IF(RIGHT($K86,2)=RIGHT(BU$39,2),SUM($AX86:AY86),0)+IF(RIGHT(BU$39,2)>RIGHT($K86,2),AY86,0)) -> 11.767179 | BV86: =+IF($K86="Ongoing",AZ86,IF(RIGHT($K86,2)=RIGHT(BV$39,2),SUM($AX86:AZ86),0)+IF(RIGHT(BV$39,2)>RIGHT($K86,2),AZ86,0)) -> 11.404996 | BW86: =+IF($K86="Ongoing",BA86,IF(RIGHT($K86,2)=RIGHT(BW$39,2),SUM($AX86:BA86),0)+IF(RIGHT(BW$39,2)>RIGHT($K86,2),BA86,0)) -> 10.841057 | BX86: =+IF($K86="Ongoing",BB86,IF(RIGHT($K86,2)=RIGHT(BX$39,2),SUM($AX86:BB86),0)+IF(RIGHT(BX$39,2)>RIGHT($K86,2),BB86,0)) -> 10.804906 | BY86: =+IF($K86="Ongoing",BC86,IF(RIGHT($K86,2)=RIGHT(BY$39,2),SUM($AX86:BC86),0)+IF(RIGHT(BY$39,2)>RIGHT($K86,2),BC86,0)) -> 13.617278 | BZ86: =+IF($K86="Ongoing",BD86,IF(RIGHT($K86,2)=RIGHT(BZ$39,2),SUM($AX86:BD86),0)+IF(RIGHT(BZ$39,2)>RIGHT($K86,2),BD86,0)) -> 13.617278 | CA86: =+IF($K86="Ongoing",BE86,IF(RIGHT($K86,2)=RIGHT(CA$39,2),SUM($AX86:BE86),0)+IF(RIGHT(CA$39,2)>RIGHT($K86,2),BE86,0)) -> 13.617278 | CB86: =+IF($K86="Ongoing",BF86,IF(RIGHT($K86,2)=RIGHT(CB$39,2),SUM($AX86:BF86),0)+IF(RIGHT(CB$39,2)>RIGHT($K86,2),BF86,0)) -> 13.617278 | CC86: =+IF($K86="Ongoing",BG86,IF(RIGHT($K86,2)=RIGHT(CC$39,2),SUM($AX86:BG86),0)+IF(RIGHT(CC$39,2)>RIGHT($K86,2),BG86,0)) -> 13.617278 | CE86: =+Q86*KeyAssumptionsPriceControl_FO!AC$15 -> 12.87585181 | CF86: =+R86*KeyAssumptionsPriceControl_FO!AD$15 -> 12.4838002 | CG86: =+S86*KeyAssumptionsPriceControl_FO!AE$15 -> 12.46254706 | CH86: =+T86*KeyAssumptionsPriceControl_FO!AF$15 -> 12.20170516 | CI86: =+U86*KeyAssumptionsPriceControl_FO!AG$15 -> 12.5258474 | CJ86: =+V86*KeyAssumptionsPriceControl_FO!AH$15 -> 16.25974207 | CK86: =+W86*KeyAssumptionsPriceControl_FO!AI$15 -> 16.74753433 | CL86: =+X86*KeyAssumptionsPriceControl_FO!AJ$15 -> 17.24996036 | CM86: =+Y86*KeyAssumptionsPriceControl_FO!AK$15 -> 17.76745917 | CN86: =+Z86*KeyAssumptionsPriceControl_FO!AL$15 -> 18.30048295 | CP86: 0.1287585181 | CQ86: 0.3823550382 | CR86: 0.6318185109 | CS86: 0.8784610331 | CT86: 1.125736559 | CU86: 1.413592453 | CV86: 1.743665217 | CW86: 2.083640164 | CX86: 2.43381436 | CY86: 2.794493781
C87: Potable Water Reliability | E87: Water | F87: Renewals | G87: Pipelines/network | H87: Capital Programs / Allocation | J87: Straight line | K87: Ongoing | L87: 8 | M87: 8 | Q87: 1.788569 | R87: 1.296145 | S87: 1.239851 | T87: 1.540872 | U87: 1.02221 | V87: 0.200694 | W87: 0.202246 | X87: 0.203811 | Y87: 0.205388 | Z87: 0.206977 | AX87: 1.788569 | AY87: 1.296145 | AZ87: 1.239851 | BA87: 1.540872 | BB87: 1.02221 | BC87: 0.200694 | BD87: 0.202246 | BE87: 0.203811 | BF87: 0.205388 | BG87: 0.206977 | BI87: 0.1117855625 | BJ87: 0.3045801875 | BK87: 0.4630799375 | BL87: 0.636875125 | BM87: 0.79706775 | BN87: 0.87349925 | BO87: 0.898683 | BP87: 0.9240615625 | BQ87: 0.8378509375 | BR87: 0.670829125 | BT87: =+IF($K87="Ongoing",AX87,IF(RIGHT($K87,2)=RIGHT(BT$39,2),SUM($AX87:AX87),0)+IF(RIGHT(BT$39,2)>RIGHT($K87,2),AX87,0)) -> 1.788569 | BU87: =+IF($K87="Ongoing",AY87,IF(RIGHT($K87,2)=RIGHT(BU$39,2),SUM($AX87:AY87),0)+IF(RIGHT(BU$39,2)>RIGHT($K87,2),AY87,0)) -> 1.296145 | BV87: =+IF($K87="Ongoing",AZ87,IF(RIGHT($K87,2)=RIGHT(BV$39,2),SUM($AX87:AZ87),0)+IF(RIGHT(BV$39,2)>RIGHT($K87,2),AZ87,0)) -> 1.239851 | BW87: =+IF($K87="Ongoing",BA87,IF(RIGHT($K87,2)=RIGHT(BW$39,2),SUM($AX87:BA87),0)+IF(RIGHT(BW$39,2)>RIGHT($K87,2),BA87,0)) -> 1.540872 | BX87: =+IF($K87="Ongoing",BB87,IF(RIGHT($K87,2)=RIGHT(BX$39,2),SUM($AX87:BB87),0)+IF(RIGHT(BX$39,2)>RIGHT($K87,2),BB87,0)) -> 1.02221 | BY87: =+IF($K87="Ongoing",BC87,IF(RIGHT($K87,2)=RIGHT(BY$39,2),SUM($AX87:BC87),0)+IF(RIGHT(BY$39,2)>RIGHT($K87,2),BC87,0)) -> 0.200694 | BZ87: =+IF($K87="Ongoing",BD87,IF(RIGHT($K87,2)=RIGHT(BZ$39,2),SUM($AX87:BD87),0)+IF(RIGHT(BZ$39,2)>RIGHT($K87,2),BD87,0)) -> 0.202246 | CA87: =+IF($K87="Ongoing",BE87,IF(RIGHT($K87,2)=RIGHT(CA$39,2),SUM($AX87:BE87),0)+IF(RIGHT(CA$39,2)>RIGHT($K87,2),BE87,0)) -> 0.203811 | CB87: =+IF($K87="Ongoing",BF87,IF(RIGHT($K87,2)=RIGHT(CB$39,2),SUM($AX87:BF87),0)+IF(RIGHT(CB$39,2)>RIGHT($K87,2),BF87,0)) -> 0.205388 | CC87: =+IF($K87="Ongoing",BG87,IF(RIGHT($K87,2)=RIGHT(CC$39,2),SUM($AX87:BG87),0)+IF(RIGHT(CC$39,2)>RIGHT($K87,2),BG87,0)) -> 0.206977 | CE87: =+Q87*KeyAssumptionsPriceControl_FO!AC$15 -> 1.84222607 | CF87: =+R87*KeyAssumptionsPriceControl_FO!AD$15 -> 1.375080231 | CG87: =+S87*KeyAssumptionsPriceControl_FO!AE$15 -> 1.354818664 | CH87: =+T87*KeyAssumptionsPriceControl_FO!AF$15 -> 1.734265011 | CI87: =+U87*KeyAssumptionsPriceControl_FO!AG$15 -> 1.185021551 | CJ87: =+V87*KeyAssumptionsPriceControl_FO!AH$15 -> 0.2396391316 | CK87: =+W87*KeyAssumptionsPriceControl_FO!AI$15 -> 0.2487370698 | CL87: =+X87*KeyAssumptionsPriceControl_FO!AJ$15 -> 0.2581816771 | CM87: =+Y87*KeyAssumptionsPriceControl_FO!AK$15 -> 0.2679847547 | CN87: =+Z87*KeyAssumptionsPriceControl_FO!AL$15 -> 0.2781597804 | CP87: 0.1151391294 | CQ87: 0.3162207732 | CR87: 0.486839454 | CS87: 0.6799071837 | CT87: 0.8623625939 | CU87: 0.9514038866 | CV87: 0.9819273992 | CW87: 1.013609821 | CX87: 0.9313560934 | CY87: 0.7644084831
C88: Potable Water Reliability | E88: Water | F88: Renewals | G88: Pipelines/network | H88: Capital Programs / Allocation | J88: Straight line | K88: Ongoing | L88: 15 | M88: 15 | Q88: 0.325776 | R88: 0.325776 | S88: 0.325776 | T88: 0.325776 | U88: 0.325776 | V88: 0.325776 | W88: 0.325776 | X88: 0.325776 | Y88: 0.325776 | Z88: 0.325776 | AX88: 0.325776 | AY88: 0.325776 | AZ88: 0.325776 | BA88: 0.325776 | BB88: 0.325776 | BC88: 0.325776 | BD88: 0.325776 | BE88: 0.325776 | BF88: 0.325776 | BG88: 0.325776 | BI88: 0.0108592 | BJ88: 0.0325776 | BK88: 0.054296 | BL88: 0.0760144 | BM88: 0.0977328 | BN88: 0.1194512 | BO88: 0.1411696 | BP88: 0.162888 | BQ88: 0.1846064 | BR88: 0.2063248 | BT88: =+IF($K88="Ongoing",AX88,IF(RIGHT($K88,2)=RIGHT(BT$39,2),SUM($AX88:AX88),0)+IF(RIGHT(BT$39,2)>RIGHT($K88,2),AX88,0)) -> 0.325776 | BU88: =+IF($K88="Ongoing",AY88,IF(RIGHT($K88,2)=RIGHT(BU$39,2),SUM($AX88:AY88),0)+IF(RIGHT(BU$39,2)>RIGHT($K88,2),AY88,0)) -> 0.325776 | BV88: =+IF($K88="Ongoing",AZ88,IF(RIGHT($K88,2)=RIGHT(BV$39,2),SUM($AX88:AZ88),0)+IF(RIGHT(BV$39,2)>RIGHT($K88,2),AZ88,0)) -> 0.325776 | BW88: =+IF($K88="Ongoing",BA88,IF(RIGHT($K88,2)=RIGHT(BW$39,2),SUM($AX88:BA88),0)+IF(RIGHT(BW$39,2)>RIGHT($K88,2),BA88,0)) -> 0.325776 | BX88: =+IF($K88="Ongoing",BB88,IF(RIGHT($K88,2)=RIGHT(BX$39,2),SUM($AX88:BB88),0)+IF(RIGHT(BX$39,2)>RIGHT($K88,2),BB88,0)) -> 0.325776 | BY88: =+IF($K88="Ongoing",BC88,IF(RIGHT($K88,2)=RIGHT(BY$39,2),SUM($AX88:BC88),0)+IF(RIGHT(BY$39,2)>RIGHT($K88,2),BC88,0)) -> 0.325776 | BZ88: =+IF($K88="Ongoing",BD88,IF(RIGHT($K88,2)=RIGHT(BZ$39,2),SUM($AX88:BD88),0)+IF(RIGHT(BZ$39,2)>RIGHT($K88,2),BD88,0)) -> 0.325776 | CA88: =+IF($K88="Ongoing",BE88,IF(RIGHT($K88,2)=RIGHT(CA$39,2),SUM($AX88:BE88),0)+IF(RIGHT(CA$39,2)>RIGHT($K88,2),BE88,0)) -> 0.325776 | CB88: =+IF($K88="Ongoing",BF88,IF(RIGHT($K88,2)=RIGHT(CB$39,2),SUM($AX88:BF88),0)+IF(RIGHT(CB$39,2)>RIGHT($K88,2),BF88,0)) -> 0.325776 | CC88: =+IF($K88="Ongoing",BG88,IF(RIGHT($K88,2)=RIGHT(CC$39,2),SUM($AX88:BG88),0)+IF(RIGHT(CC$39,2)>RIGHT($K88,2),BG88,0)) -> 0.325776 | CE88: =+Q88*KeyAssumptionsPriceControl_FO!AC$15 -> 0.33554928 | CF88: =+R88*KeyAssumptionsPriceControl_FO!AD$15 -> 0.3456157584 | CG88: =+S88*KeyAssumptionsPriceControl_FO!AE$15 -> 0.3559842312 | CH88: =+T88*KeyAssumptionsPriceControl_FO!AF$15 -> 0.3666637581 | CI88: =+U88*KeyAssumptionsPriceControl_FO!AG$15 -> 0.3776636708 | CJ88: =+V88*KeyAssumptionsPriceControl_FO!AH$15 -> 0.388993581 | CK88: =+W88*KeyAssumptionsPriceControl_FO!AI$15 -> 0.4006633884 | CL88: =+X88*KeyAssumptionsPriceControl_FO!AJ$15 -> 0.41268329 | CM88: =+Y88*KeyAssumptionsPriceControl_FO!AK$15 -> 0.4250637887 | CN88: =+Z88*KeyAssumptionsPriceControl_FO!AL$15 -> 0.4378157024 | CP88: 0.011184976 | CQ88: 0.03389047728 | CR88: 0.0572771436 | CS88: 0.08136540991 | CT88: 0.1061763242 | CU88: 0.1317315659 | CV88: 0.1580534649 | CW88: 0.1851650209 | CX88: 0.2130899235 | CY88: 0.2418525732
C89: Potable Water Reliability | E89: Water | F89: Renewals | G89: Pipelines/network | H89: Capital Programs / Allocation | J89: Straight line | K89: Ongoing | L89: 20 | M89: 20 | Q89: 0.544357 | R89: 0.338383 | S89: 0.321568 | T89: 0.531746 | U89: 0.321568 | V89: 0.321568 | W89: 0.321568 | X89: 0.321568 | Y89: 0.531746 | Z89: 0.321568 | AX89: 0.544357 | AY89: 0.338383 | AZ89: 0.321568 | BA89: 0.531746 | BB89: 0.321568 | BC89: 0.321568 | BD89: 0.321568 | BE89: 0.321568 | BF89: 0.531746 | BG89: 0.321568 | BI89: 0.013608925 | BJ89: 0.035677425 | BK89: 0.0521762 | BL89: 0.07350905 | BM89: 0.0948419 | BN89: 0.1109203 | BO89: 0.1269987 | BP89: 0.1430771 | BQ89: 0.16440995 | BR89: 0.1857428 | BT89: =+IF($K89="Ongoing",AX89,IF(RIGHT($K89,2)=RIGHT(BT$39,2),SUM($AX89:AX89),0)+IF(RIGHT(BT$39,2)>RIGHT($K89,2),AX89,0)) -> 0.544357 | BU89: =+IF($K89="Ongoing",AY89,IF(RIGHT($K89,2)=RIGHT(BU$39,2),SUM($AX89:AY89),0)+IF(RIGHT(BU$39,2)>RIGHT($K89,2),AY89,0)) -> 0.338383 | BV89: =+IF($K89="Ongoing",AZ89,IF(RIGHT($K89,2)=RIGHT(BV$39,2),SUM($AX89:AZ89),0)+IF(RIGHT(BV$39,2)>RIGHT($K89,2),AZ89,0)) -> 0.321568 | BW89: =+IF($K89="Ongoing",BA89,IF(RIGHT($K89,2)=RIGHT(BW$39,2),SUM($AX89:BA89),0)+IF(RIGHT(BW$39,2)>RIGHT($K89,2),BA89,0)) -> 0.531746 | BX89: =+IF($K89="Ongoing",BB89,IF(RIGHT($K89,2)=RIGHT(BX$39,2),SUM($AX89:BB89),0)+IF(RIGHT(BX$39,2)>RIGHT($K89,2),BB89,0)) -> 0.321568 | BY89: =+IF($K89="Ongoing",BC89,IF(RIGHT($K89,2)=RIGHT(BY$39,2),SUM($AX89:BC89),0)+IF(RIGHT(BY$39,2)>RIGHT($K89,2),BC89,0)) -> 0.321568 | BZ89: =+IF($K89="Ongoing",BD89,IF(RIGHT($K89,2)=RIGHT(BZ$39,2),SUM($AX89:BD89),0)+IF(RIGHT(BZ$39,2)>RIGHT($K89,2),BD89,0)) -> 0.321568 | CA89: =+IF($K89="Ongoing",BE89,IF(RIGHT($K89,2)=RIGHT(CA$39,2),SUM($AX89:BE89),0)+IF(RIGHT(CA$39,2)>RIGHT($K89,2),BE89,0)) -> 0.321568 | CB89: =+IF($K89="Ongoing",BF89,IF(RIGHT($K89,2)=RIGHT(CB$39,2),SUM($AX89:BF89),0)+IF(RIGHT(CB$39,2)>RIGHT($K89,2),BF89,0)) -> 0.531746 | CC89: =+IF($K89="Ongoing",BG89,IF(RIGHT($K89,2)=RIGHT(CC$39,2),SUM($AX89:BG89),0)+IF(RIGHT(CC$39,2)>RIGHT($K89,2),BG89,0)) -> 0.321568 | CE89: =+Q89*KeyAssumptionsPriceControl_FO!AC$15 -> 0.56068771 | CF89: =+R89*KeyAssumptionsPriceControl_FO!AD$15 -> 0.3589905247 | CG89: =+S89*KeyAssumptionsPriceControl_FO!AE$15 -> 0.3513860359 | CH89: =+T89*KeyAssumptionsPriceControl_FO!AF$15 -> 0.5984848077 | CI89: =+U89*KeyAssumptionsPriceControl_FO!AG$15 -> 0.3727854455 | CJ89: =+V89*KeyAssumptionsPriceControl_FO!AH$15 -> 0.3839690089 | CK89: =+W89*KeyAssumptionsPriceControl_FO!AI$15 -> 0.3954880792 | CL89: =+X89*KeyAssumptionsPriceControl_FO!AJ$15 -> 0.4073527215 | CM89: =+Y89*KeyAssumptionsPriceControl_FO!AK$15 -> 0.6938079214 | CN89: =+Z89*KeyAssumptionsPriceControl_FO!AL$15 -> 0.4321605023 | CP89: 0.01401719275 | CQ89: 0.03700914862 | CR89: 0.05476856263 | CS89: 0.07851533372 | CT89: 0.1027970901 | CU89: 0.1217159514 | CV89: 0.1412023786 | CW89: 0.1612733986 | CX89: 0.1888024147 | CY89: 0.2169516253
C90: Potable Water Reliability | E90: Water | F90: Renewals | G90: Pipelines/network | H90: Capital Programs / Allocation | J90: Straight line | K90: Ongoing | L90: 30 | M90: 30 | Q90: 0.975046 | R90: 0.998234 | S90: 1.010391 | T90: 1.025537 | U90: 1.039961 | V90: 1.026554 | W90: 1.001186 | X90: 1.006818 | Y90: 1.030123 | Z90: 1.049174 | AX90: 0.975046 | AY90: 0.998234 | AZ90: 1.010391 | BA90: 1.025537 | BB90: 1.039961 | BC90: 1.026554 | BD90: 1.001186 | BE90: 1.006818 | BF90: 1.030123 | BG90: 1.049174 | BI90: 0.01625076667 | BJ90: 0.04913876667 | BK90: 0.08261585 | BL90: 0.1165479833 | BM90: 0.15097295 | BN90: 0.1854148667 | BO90: 0.2192105333 | BP90: 0.2526772667 | BQ90: 0.2866262833 | BR90: 0.3212812333 | BT90: =+IF($K90="Ongoing",AX90,IF(RIGHT($K90,2)=RIGHT(BT$39,2),SUM($AX90:AX90),0)+IF(RIGHT(BT$39,2)>RIGHT($K90,2),AX90,0)) -> 0.975046 | BU90: =+IF($K90="Ongoing",AY90,IF(RIGHT($K90,2)=RIGHT(BU$39,2),SUM($AX90:AY90),0)+IF(RIGHT(BU$39,2)>RIGHT($K90,2),AY90,0)) -> 0.998234 | BV90: =+IF($K90="Ongoing",AZ90,IF(RIGHT($K90,2)=RIGHT(BV$39,2),SUM($AX90:AZ90),0)+IF(RIGHT(BV$39,2)>RIGHT($K90,2),AZ90,0)) -> 1.010391 | BW90: =+IF($K90="Ongoing",BA90,IF(RIGHT($K90,2)=RIGHT(BW$39,2),SUM($AX90:BA90),0)+IF(RIGHT(BW$39,2)>RIGHT($K90,2),BA90,0)) -> 1.025537 | BX90: =+IF($K90="Ongoing",BB90,IF(RIGHT($K90,2)=RIGHT(BX$39,2),SUM($AX90:BB90),0)+IF(RIGHT(BX$39,2)>RIGHT($K90,2),BB90,0)) -> 1.039961 | BY90: =+IF($K90="Ongoing",BC90,IF(RIGHT($K90,2)=RIGHT(BY$39,2),SUM($AX90:BC90),0)+IF(RIGHT(BY$39,2)>RIGHT($K90,2),BC90,0)) -> 1.026554 | BZ90: =+IF($K90="Ongoing",BD90,IF(RIGHT($K90,2)=RIGHT(BZ$39,2),SUM($AX90:BD90),0)+IF(RIGHT(BZ$39,2)>RIGHT($K90,2),BD90,0)) -> 1.001186 | CA90: =+IF($K90="Ongoing",BE90,IF(RIGHT($K90,2)=RIGHT(CA$39,2),SUM($AX90:BE90),0)+IF(RIGHT(CA$39,2)>RIGHT($K90,2),BE90,0)) -> 1.006818 | CB90: =+IF($K90="Ongoing",BF90,IF(RIGHT($K90,2)=RIGHT(CB$39,2),SUM($AX90:BF90),0)+IF(RIGHT(CB$39,2)>RIGHT($K90,2),BF90,0)) -> 1.030123 | CC90: =+IF($K90="Ongoing",BG90,IF(RIGHT($K90,2)=RIGHT(CC$39,2),SUM($AX90:BG90),0)+IF(RIGHT(CC$39,2)>RIGHT($K90,2),BG90,0)) -> 1.049174 | CE90: =+Q90*KeyAssumptionsPriceControl_FO!AC$15 -> 1.00429738 | CF90: =+R90*KeyAssumptionsPriceControl_FO!AD$15 -> 1.059026451 | CG90: =+S90*KeyAssumptionsPriceControl_FO!AE$15 -> 1.104081526 | CH90: =+T90*KeyAssumptionsPriceControl_FO!AF$15 -> 1.154250928 | CI90: =+U90*KeyAssumptionsPriceControl_FO!AG$15 -> 1.205599826 | CJ90: =+V90*KeyAssumptionsPriceControl_FO!AH$15 -> 1.225759161 | CK90: =+W90*KeyAssumptionsPriceControl_FO!AI$15 -> 1.231332496 | CL90: =+X90*KeyAssumptionsPriceControl_FO!AJ$15 -> 1.27540692 | CM90: =+Y90*KeyAssumptionsPriceControl_FO!AK$15 -> 1.344076866 | CN90: =+Z90*KeyAssumptionsPriceControl_FO!AL$15 -> 1.410002123 | CP90: 0.01673828967 | CQ90: 0.05112702018 | CR90: 0.08717881979 | CS90: 0.124817694 | CT90: 0.1641485399 | CU90: 0.2046711897 | CV90: 0.2456227173 | CW90: 0.2874017076 | CX90: 0.3310597707 | CY90: 0.3769610872
C91: Potable Water Reliability | E91: Water | F91: Renewals | G91: Pipelines/network | H91: Capital Programs / Allocation | J91: Straight line | K91: Ongoing | L91: 80 | M91: 80 | Q91: 7.756602 | R91: 9.289364 | S91: 8.25293 | T91: 8.315914 | U91: 8.336709 | V91: 10.588629 | W91: 9.316004 | X91: 9.378951 | Y91: 9.436543 | Z91: 9.571135 | AX91: 7.756602 | AY91: 9.289364 | AZ91: 8.25293 | BA91: 8.315914 | BB91: 8.336709 | BC91: 10.588629 | BD91: 9.316004 | BE91: 9.378951 | BF91: 9.436543 | BG91: 9.571135 | BI91: 0.0484787625 | BJ91: 0.15501605 | BK91: 0.2646553875 | BL91: 0.3682106625 | BM91: 0.4722895563 | BN91: 0.5905729187 | BO91: 0.714976875 | BP91: 0.8318203437 | BQ91: 0.9494171812 | BR91: 1.068215169 | BT91: =+IF($K91="Ongoing",AX91,IF(RIGHT($K91,2)=RIGHT(BT$39,2),SUM($AX91:AX91),0)+IF(RIGHT(BT$39,2)>RIGHT($K91,2),AX91,0)) -> 7.756602 | BU91: =+IF($K91="Ongoing",AY91,IF(RIGHT($K91,2)=RIGHT(BU$39,2),SUM($AX91:AY91),0)+IF(RIGHT(BU$39,2)>RIGHT($K91,2),AY91,0)) -> 9.289364 | BV91: =+IF($K91="Ongoing",AZ91,IF(RIGHT($K91,2)=RIGHT(BV$39,2),SUM($AX91:AZ91),0)+IF(RIGHT(BV$39,2)>RIGHT($K91,2),AZ91,0)) -> 8.25293 | BW91: =+IF($K91="Ongoing",BA91,IF(RIGHT($K91,2)=RIGHT(BW$39,2),SUM($AX91:BA91),0)+IF(RIGHT(BW$39,2)>RIGHT($K91,2),BA91,0)) -> 8.315914 | BX91: =+IF($K91="Ongoing",BB91,IF(RIGHT($K91,2)=RIGHT(BX$39,2),SUM($AX91:BB91),0)+IF(RIGHT(BX$39,2)>RIGHT($K91,2),BB91,0)) -> 8.336709 | BY91: =+IF($K91="Ongoing",BC91,IF(RIGHT($K91,2)=RIGHT(BY$39,2),SUM($AX91:BC91),0)+IF(RIGHT(BY$39,2)>RIGHT($K91,2),BC91,0)) -> 10.588629 | BZ91: =+IF($K91="Ongoing",BD91,IF(RIGHT($K91,2)=RIGHT(BZ$39,2),SUM($AX91:BD91),0)+IF(RIGHT(BZ$39,2)>RIGHT($K91,2),BD91,0)) -> 9.316004 | CA91: =+IF($K91="Ongoing",BE91,IF(RIGHT($K91,2)=RIGHT(CA$39,2),SUM($AX91:BE91),0)+IF(RIGHT(CA$39,2)>RIGHT($K91,2),BE91,0)) -> 9.378951 | CB91: =+IF($K91="Ongoing",BF91,IF(RIGHT($K91,2)=RIGHT(CB$39,2),SUM($AX91:BF91),0)+IF(RIGHT(CB$39,2)>RIGHT($K91,2),BF91,0)) -> 9.436543 | CC91: =+IF($K91="Ongoing",BG91,IF(RIGHT($K91,2)=RIGHT(CC$39,2),SUM($AX91:BG91),0)+IF(RIGHT(CC$39,2)>RIGHT($K91,2),BG91,0)) -> 9.571135 | CE91: =+Q91*KeyAssumptionsPriceControl_FO!AC$15 -> 7.98930006 | CF91: =+R91*KeyAssumptionsPriceControl_FO!AD$15 -> 9.855086268 | CG91: =+S91*KeyAssumptionsPriceControl_FO!AE$15 -> 9.01819944 | CH91: =+T91*KeyAssumptionsPriceControl_FO!AF$15 -> 9.35963447 | CI91: =+U91*KeyAssumptionsPriceControl_FO!AG$15 -> 9.664530609 | CJ91: =+V91*KeyAssumptionsPriceControl_FO!AH$15 -> 12.64337677 | CK91: =+W91*KeyAssumptionsPriceControl_FO!AI$15 -> 11.45750985 | CL91: =+X91*KeyAssumptionsPriceControl_FO!AJ$15 -> 11.88097452 | CM91: =+Y91*KeyAssumptionsPriceControl_FO!AK$15 -> 12.31254825 | CN91: =+Z91*KeyAssumptionsPriceControl_FO!AL$15 -> 12.8628051 | CP91: 0.04993312538 | CQ91: 0.1614605399 | CR91: 0.2794185756 | CS91: 0.3942800375 | CT91: 0.5131810693 | CU91: 0.6526054904 | CV91: 0.8032360318 | CW91: 0.9491015591 | CX91: 1.100311076 | CY91: 1.257657035
C92: Potable Water Renewals | E92: Water | F92: Renewals | G92: Pipelines/network | H92: Capital Programs / Allocation | J92: Straight line | K92: Ongoing | L92: 80 | M92: 80 | Q92: 16.814249 | R92: 16.814249 | S92: 16.814249 | T92: 16.814249 | U92: 16.814249 | V92: 16.814249 | W92: 16.814249 | X92: 16.814249 | Y92: 16.814249 | Z92: 16.814249 | AX92: 16.814249 | AY92: 16.814249 | AZ92: 16.814249 | BA92: 16.814249 | BB92: 16.814249 | BC92: 16.814249 | BD92: 16.814249 | BE92: 16.814249 | BF92: 16.814249 | BG92: 16.814249 | BI92: 0.1050890563 | BJ92: 0.3152671688 | BK92: 0.5254452813 | BL92: 0.7356233937 | BM92: 0.9458015063 | BN92: 1.155979619 | BO92: 1.366157731 | BP92: 1.576335844 | BQ92: 1.786513956 | BR92: 1.996692069 | BT92: =+IF($K92="Ongoing",AX92,IF(RIGHT($K92,2)=RIGHT(BT$39,2),SUM($AX92:AX92),0)+IF(RIGHT(BT$39,2)>RIGHT($K92,2),AX92,0)) -> 16.814249 | BU92: =+IF($K92="Ongoing",AY92,IF(RIGHT($K92,2)=RIGHT(BU$39,2),SUM($AX92:AY92),0)+IF(RIGHT(BU$39,2)>RIGHT($K92,2),AY92,0)) -> 16.814249 | BV92: =+IF($K92="Ongoing",AZ92,IF(RIGHT($K92,2)=RIGHT(BV$39,2),SUM($AX92:AZ92),0)+IF(RIGHT(BV$39,2)>RIGHT($K92,2),AZ92,0)) -> 16.814249 | BW92: =+IF($K92="Ongoing",BA92,IF(RIGHT($K92,2)=RIGHT(BW$39,2),SUM($AX92:BA92),0)+IF(RIGHT(BW$39,2)>RIGHT($K92,2),BA92,0)) -> 16.814249 | BX92: =+IF($K92="Ongoing",BB92,IF(RIGHT($K92,2)=RIGHT(BX$39,2),SUM($AX92:BB92),0)+IF(RIGHT(BX$39,2)>RIGHT($K92,2),BB92,0)) -> 16.814249 | BY92: =+IF($K92="Ongoing",BC92,IF(RIGHT($K92,2)=RIGHT(BY$39,2),SUM($AX92:BC92),0)+IF(RIGHT(BY$39,2)>RIGHT($K92,2),BC92,0)) -> 16.814249 | BZ92: =+IF($K92="Ongoing",BD92,IF(RIGHT($K92,2)=RIGHT(BZ$39,2),SUM($AX92:BD92),0)+IF(RIGHT(BZ$39,2)>RIGHT($K92,2),BD92,0)) -> 16.814249 | CA92: =+IF($K92="Ongoing",BE92,IF(RIGHT($K92,2)=RIGHT(CA$39,2),SUM($AX92:BE92),0)+IF(RIGHT(CA$39,2)>RIGHT($K92,2),BE92,0)) -> 16.814249 | CB92: =+IF($K92="Ongoing",BF92,IF(RIGHT($K92,2)=RIGHT(CB$39,2),SUM($AX92:BF92),0)+IF(RIGHT(CB$39,2)>RIGHT($K92,2),BF92,0)) -> 16.814249 | CC92: =+IF($K92="Ongoing",BG92,IF(RIGHT($K92,2)=RIGHT(CC$39,2),SUM($AX92:BG92),0)+IF(RIGHT(CC$39,2)>RIGHT($K92,2),BG92,0)) -> 16.814249 | CE92: =+Q92*KeyAssumptionsPriceControl_FO!AC$15 -> 17.31867647 | CF92: =+R92*KeyAssumptionsPriceControl_FO!AD$15 -> 17.83823676 | CG92: =+S92*KeyAssumptionsPriceControl_FO!AE$15 -> 18.37338387 | CH92: =+T92*KeyAssumptionsPriceControl_FO!AF$15 -> 18.92458538 | CI92: =+U92*KeyAssumptionsPriceControl_FO!AG$15 -> 19.49232294 | CJ92: =+V92*KeyAssumptionsPriceControl_FO!AH$15 -> 20.07709263 | CK92: =+W92*KeyAssumptionsPriceControl_FO!AI$15 -> 20.67940541 | CL92: =+X92*KeyAssumptionsPriceControl_FO!AJ$15 -> 21.29978757 | CM92: =+Y92*KeyAssumptionsPriceControl_FO!AK$15 -> 21.9387812 | CN92: =+Z92*KeyAssumptionsPriceControl_FO!AL$15 -> 22.59694464 | CP92: 0.1082417279 | CQ92: 0.3279724357 | CR92: 0.5542950646 | CS92: 0.7874073724 | CT92: 1.027513049 | CU92: 1.274821897 | CV92: 1.52955001 | CW92: 1.791919966 | CX92: 2.062161021 | CY92: 2.340509307
C93: Recycled Water Growth | E93: Recycled Water | F93: Growth | G93: Pipelines/network | H93: Capital Programs / Allocation | J93: Straight line | K93: Ongoing | L93: 50 | M93: 50 | Q93: 19.89867 | R93: 9.482901 | S93: 9.997838 | T93: 9.262214 | U93: 9.514428 | V93: 18.212041 | W93: 18.926647 | X93: 19.935501 | Y93: 17.83372 | Z93: 17.83372 | AX93: 19.89867 | AY93: 9.482901 | AZ93: 9.997838 | BA93: 9.262214 | BB93: 9.514428 | BC93: 18.212041 | BD93: 18.926647 | BE93: 19.935501 | BF93: 17.83372 | BG93: 17.83372 | BI93: 0.1989867 | BJ93: 0.49280241 | BK93: 0.6876098 | BL93: 0.88021032 | BM93: 1.06797674 | BN93: 1.34524143 | BO93: 1.71662831 | BP93: 2.10524979 | BQ93: 2.482942 | BR93: 2.8396164 | BT93: =+IF($K93="Ongoing",AX93,IF(RIGHT($K93,2)=RIGHT(BT$39,2),SUM($AX93:AX93),0)+IF(RIGHT(BT$39,2)>RIGHT($K93,2),AX93,0)) -> 19.89867 | BU93: =+IF($K93="Ongoing",AY93,IF(RIGHT($K93,2)=RIGHT(BU$39,2),SUM($AX93:AY93),0)+IF(RIGHT(BU$39,2)>RIGHT($K93,2),AY93,0)) -> 9.482901 | BV93: =+IF($K93="Ongoing",AZ93,IF(RIGHT($K93,2)=RIGHT(BV$39,2),SUM($AX93:AZ93),0)+IF(RIGHT(BV$39,2)>RIGHT($K93,2),AZ93,0)) -> 9.997838 | BW93: =+IF($K93="Ongoing",BA93,IF(RIGHT($K93,2)=RIGHT(BW$39,2),SUM($AX93:BA93),0)+IF(RIGHT(BW$39,2)>RIGHT($K93,2),BA93,0)) -> 9.262214 | BX93: =+IF($K93="Ongoing",BB93,IF(RIGHT($K93,2)=RIGHT(BX$39,2),SUM($AX93:BB93),0)+IF(RIGHT(BX$39,2)>RIGHT($K93,2),BB93,0)) -> 9.514428 | BY93: =+IF($K93="Ongoing",BC93,IF(RIGHT($K93,2)=RIGHT(BY$39,2),SUM($AX93:BC93),0)+IF(RIGHT(BY$39,2)>RIGHT($K93,2),BC93,0)) -> 18.212041 | BZ93: =+IF($K93="Ongoing",BD93,IF(RIGHT($K93,2)=RIGHT(BZ$39,2),SUM($AX93:BD93),0)+IF(RIGHT(BZ$39,2)>RIGHT($K93,2),BD93,0)) -> 18.926647 | CA93: =+IF($K93="Ongoing",BE93,IF(RIGHT($K93,2)=RIGHT(CA$39,2),SUM($AX93:BE93),0)+IF(RIGHT(CA$39,2)>RIGHT($K93,2),BE93,0)) -> 19.935501 | CB93: =+IF($K93="Ongoing",BF93,IF(RIGHT($K93,2)=RIGHT(CB$39,2),SUM($AX93:BF93),0)+IF(RIGHT(CB$39,2)>RIGHT($K93,2),BF93,0)) -> 17.83372 | CC93: =+IF($K93="Ongoing",BG93,IF(RIGHT($K93,2)=RIGHT(CC$39,2),SUM($AX93:BG93),0)+IF(RIGHT(CC$39,2)>RIGHT($K93,2),BG93,0)) -> 17.83372 | CE93: =+Q93*KeyAssumptionsPriceControl_FO!AC$15 -> 20.4956301 | CF93: =+R93*KeyAssumptionsPriceControl_FO!AD$15 -> 10.06040967 | CG93: =+S93*KeyAssumptionsPriceControl_FO!AE$15 -> 10.92490752 | CH93: =+T93*KeyAssumptionsPriceControl_FO!AF$15 -> 10.42470346 | CI93: =+U93*KeyAssumptionsPriceControl_FO!AG$15 -> 11.02982971 | CJ93: =+V93*KeyAssumptionsPriceControl_FO!AH$15 -> 21.74612938 | CK93: =+W93*KeyAssumptionsPriceControl_FO!AI$15 -> 23.27738851 | CL93: =+X93*KeyAssumptionsPriceControl_FO!AJ$15 -> 25.25369622 | CM93: =+Y93*KeyAssumptionsPriceControl_FO!AK$15 -> 23.26895962 | CN93: =+Z93*KeyAssumptionsPriceControl_FO!AL$15 -> 23.96702841 | CP93: 0.204956301 | CQ93: 0.5105166987 | CR93: 0.7203698707 | CS93: 0.9338659805 | CT93: 1.148411312 | CU93: 1.476170903 | CV93: 1.926406082 | CW93: 2.411716929 | CX93: 2.896943488 | CY93: 3.369303368
C94: SCADA and Realtime Systems | E94: Recycled Water | F94: Improvements / Compliance | G94: Corporate | H94: Capital Programs / Allocation | J94: Straight line | K94: Ongoing | L94: 10 | M94: 10 | Q94: 0.073108 | R94: 0.073108 | S94: 0.073108 | T94: 0.073108 | U94: 0.073108 | V94: 0.087972 | W94: 0.087972 | X94: 0.087972 | Y94: 0.087972 | Z94: 0.087972 | AX94: 0.073108 | AY94: 0.073108 | AZ94: 0.073108 | BA94: 0.073108 | BB94: 0.073108 | BC94: 0.087972 | BD94: 0.087972 | BE94: 0.087972 | BF94: 0.087972 | BG94: 0.087972 | BI94: 0.0036554 | BJ94: 0.0109662 | BK94: 0.018277 | BL94: 0.0255878 | BM94: 0.0328986 | BN94: 0.0409526 | BO94: 0.0497498 | BP94: 0.058547 | BQ94: 0.0673442 | BR94: 0.0761414 | BT94: =+IF($K94="Ongoing",AX94,IF(RIGHT($K94,2)=RIGHT(BT$39,2),SUM($AX94:AX94),0)+IF(RIGHT(BT$39,2)>RIGHT($K94,2),AX94,0)) -> 0.073108 | BU94: =+IF($K94="Ongoing",AY94,IF(RIGHT($K94,2)=RIGHT(BU$39,2),SUM($AX94:AY94),0)+IF(RIGHT(BU$39,2)>RIGHT($K94,2),AY94,0)) -> 0.073108 | BV94: =+IF($K94="Ongoing",AZ94,IF(RIGHT($K94,2)=RIGHT(BV$39,2),SUM($AX94:AZ94),0)+IF(RIGHT(BV$39,2)>RIGHT($K94,2),AZ94,0)) -> 0.073108 | BW94: =+IF($K94="Ongoing",BA94,IF(RIGHT($K94,2)=RIGHT(BW$39,2),SUM($AX94:BA94),0)+IF(RIGHT(BW$39,2)>RIGHT($K94,2),BA94,0)) -> 0.073108 | BX94: =+IF($K94="Ongoing",BB94,IF(RIGHT($K94,2)=RIGHT(BX$39,2),SUM($AX94:BB94),0)+IF(RIGHT(BX$39,2)>RIGHT($K94,2),BB94,0)) -> 0.073108 | BY94: =+IF($K94="Ongoing",BC94,IF(RIGHT($K94,2)=RIGHT(BY$39,2),SUM($AX94:BC94),0)+IF(RIGHT(BY$39,2)>RIGHT($K94,2),BC94,0)) -> 0.087972 | BZ94: =+IF($K94="Ongoing",BD94,IF(RIGHT($K94,2)=RIGHT(BZ$39,2),SUM($AX94:BD94),0)+IF(RIGHT(BZ$39,2)>RIGHT($K94,2),BD94,0)) -> 0.087972 | CA94: =+IF($K94="Ongoing",BE94,IF(RIGHT($K94,2)=RIGHT(CA$39,2),SUM($AX94:BE94),0)+IF(RIGHT(CA$39,2)>RIGHT($K94,2),BE94,0)) -> 0.087972 | CB94: =+IF($K94="Ongoing",BF94,IF(RIGHT($K94,2)=RIGHT(CB$39,2),SUM($AX94:BF94),0)+IF(RIGHT(CB$39,2)>RIGHT($K94,2),BF94,0)) -> 0.087972 | CC94: =+IF($K94="Ongoing",BG94,IF(RIGHT($K94,2)=RIGHT(CC$39,2),SUM($AX94:BG94),0)+IF(RIGHT(CC$39,2)>RIGHT($K94,2),BG94,0)) -> 0.087972 | CE94: =+Q94*KeyAssumptionsPriceControl_FO!AC$15 -> 0.07530124 | CF94: =+R94*KeyAssumptionsPriceControl_FO!AD$15 -> 0.0775602772 | CG94: =+S94*KeyAssumptionsPriceControl_FO!AE$15 -> 0.07988708552 | CH94: =+T94*KeyAssumptionsPriceControl_FO!AF$15 -> 0.08228369808 | CI94: =+U94*KeyAssumptionsPriceControl_FO!AG$15 -> 0.08475220902 | CJ94: =+V94*KeyAssumptionsPriceControl_FO!AH$15 -> 0.1050431686 | CK94: =+W94*KeyAssumptionsPriceControl_FO!AI$15 -> 0.1081944637 | CL94: =+X94*KeyAssumptionsPriceControl_FO!AJ$15 -> 0.1114402976 | CM94: =+Y94*KeyAssumptionsPriceControl_FO!AK$15 -> 0.1147835065 | CN94: =+Z94*KeyAssumptionsPriceControl_FO!AL$15 -> 0.1182270117 | CP94: 0.003765062 | CQ94: 0.01140813786 | CR94: 0.019280506 | CS94: 0.02738904518 | CT94: 0.03574084053 | CU94: 0.04523060941 | CV94: 0.05589249103 | CW94: 0.06687422909 | CX94: 0.0781854193 | CY94: 0.08983594521
C95: SCADA and Realtime Systems | E95: Sewerage | F95: Improvements / Compliance | G95: Corporate | H95: Capital Programs / Allocation | J95: Straight line | K95: Ongoing | L95: 10 | M95: 10 | Q95: 0.585271 | R95: 0.585271 | S95: 0.585271 | T95: 0.585271 | U95: 0.585271 | V95: 0.551552 | W95: 0.551552 | X95: 0.551552 | Y95: 0.551552 | Z95: 0.551552 | AX95: 0.585271 | AY95: 0.585271 | AZ95: 0.585271 | BA95: 0.585271 | BB95: 0.585271 | BC95: 0.551552 | BD95: 0.551552 | BE95: 0.551552 | BF95: 0.551552 | BG95: 0.551552 | BI95: 0.02926355 | BJ95: 0.08779065 | BK95: 0.14631775 | BL95: 0.20484485 | BM95: 0.26337195 | BN95: 0.3202131 | BO95: 0.3753683 | BP95: 0.4305235 | BQ95: 0.4856787 | BR95: 0.5408339 | BT95: =+IF($K95="Ongoing",AX95,IF(RIGHT($K95,2)=RIGHT(BT$39,2),SUM($AX95:AX95),0)+IF(RIGHT(BT$39,2)>RIGHT($K95,2),AX95,0)) -> 0.585271 | BU95: =+IF($K95="Ongoing",AY95,IF(RIGHT($K95,2)=RIGHT(BU$39,2),SUM($AX95:AY95),0)+IF(RIGHT(BU$39,2)>RIGHT($K95,2),AY95,0)) -> 0.585271 | BV95: =+IF($K95="Ongoing",AZ95,IF(RIGHT($K95,2)=RIGHT(BV$39,2),SUM($AX95:AZ95),0)+IF(RIGHT(BV$39,2)>RIGHT($K95,2),AZ95,0)) -> 0.585271 | BW95: =+IF($K95="Ongoing",BA95,IF(RIGHT($K95,2)=RIGHT(BW$39,2),SUM($AX95:BA95),0)+IF(RIGHT(BW$39,2)>RIGHT($K95,2),BA95,0)) -> 0.585271 | BX95: =+IF($K95="Ongoing",BB95,IF(RIGHT($K95,2)=RIGHT(BX$39,2),SUM($AX95:BB95),0)+IF(RIGHT(BX$39,2)>RIGHT($K95,2),BB95,0)) -> 0.585271 | BY95: =+IF($K95="Ongoing",BC95,IF(RIGHT($K95,2)=RIGHT(BY$39,2),SUM($AX95:BC95),0)+IF(RIGHT(BY$39,2)>RIGHT($K95,2),BC95,0)) -> 0.551552 | BZ95: =+IF($K95="Ongoing",BD95,IF(RIGHT($K95,2)=RIGHT(BZ$39,2),SUM($AX95:BD95),0)+IF(RIGHT(BZ$39,2)>RIGHT($K95,2),BD95,0)) -> 0.551552 | CA95: =+IF($K95="Ongoing",BE95,IF(RIGHT($K95,2)=RIGHT(CA$39,2),SUM($AX95:BE95),0)+IF(RIGHT(CA$39,2)>RIGHT($K95,2),BE95,0)) -> 0.551552 | CB95: =+IF($K95="Ongoing",BF95,IF(RIGHT($K95,2)=RIGHT(CB$39,2),SUM($AX95:BF95),0)+IF(RIGHT(CB$39,2)>RIGHT($K95,2),BF95,0)) -> 0.551552 | CC95: =+IF($K95="Ongoing",BG95,IF(RIGHT($K95,2)=RIGHT(CC$39,2),SUM($AX95:BG95),0)+IF(RIGHT(CC$39,2)>RIGHT($K95,2),BG95,0)) -> 0.551552 | CE95: =+Q95*KeyAssumptionsPriceControl_FO!AC$15 -> 0.60282913 | CF95: =+R95*KeyAssumptionsPriceControl_FO!AD$15 -> 0.6209140039 | CG95: =+S95*KeyAssumptionsPriceControl_FO!AE$15 -> 0.639541424 | CH95: =+T95*KeyAssumptionsPriceControl_FO!AF$15 -> 0.6587276667 | CI95: =+U95*KeyAssumptionsPriceControl_FO!AG$15 -> 0.6784894967 | CJ95: =+V95*KeyAssumptionsPriceControl_FO!AH$15 -> 0.6585819323 | CK95: =+W95*KeyAssumptionsPriceControl_FO!AI$15 -> 0.6783393902 | CL95: =+X95*KeyAssumptionsPriceControl_FO!AJ$15 -> 0.6986895719 | CM95: =+Y95*KeyAssumptionsPriceControl_FO!AK$15 -> 0.7196502591 | CN95: =+Z95*KeyAssumptionsPriceControl_FO!AL$15 -> 0.7412397669 | CP95: 0.0301414565 | CQ95: 0.0913286132 | CR95: 0.1543513846 | CS95: 0.2192648391 | CT95: 0.2861256973 | CU95: 0.3529792688 | CV95: 0.4198253349 | CW95: 0.488676783 | CX95: 0.5595937745 | CY95: 0.6326382758
C96: SCADA and Realtime Systems | E96: Water | F96: Improvements / Compliance | G96: Corporate | H96: Capital Programs / Allocation | J96: Straight line | K96: Ongoing | L96: 10 | M96: 10 | Q96: 0.287423 | R96: 0.287423 | S96: 0.287423 | T96: 0.287423 | U96: 0.287423 | V96: 0.306278 | W96: 0.306278 | X96: 0.306278 | Y96: 0.306278 | Z96: 0.306278 | AX96: 0.287423 | AY96: 0.287423 | AZ96: 0.287423 | BA96: 0.287423 | BB96: 0.287423 | BC96: 0.306278 | BD96: 0.306278 | BE96: 0.306278 | BF96: 0.306278 | BG96: 0.306278 | BI96: 0.01437115 | BJ96: 0.04311345 | BK96: 0.07185575 | BL96: 0.10059805 | BM96: 0.12934035 | BN96: 0.1590254 | BO96: 0.1896532 | BP96: 0.220281 | BQ96: 0.2509088 | BR96: 0.2815366 | BT96: =+IF($K96="Ongoing",AX96,IF(RIGHT($K96,2)=RIGHT(BT$39,2),SUM($AX96:AX96),0)+IF(RIGHT(BT$39,2)>RIGHT($K96,2),AX96,0)) -> 0.287423 | BU96: =+IF($K96="Ongoing",AY96,IF(RIGHT($K96,2)=RIGHT(BU$39,2),SUM($AX96:AY96),0)+IF(RIGHT(BU$39,2)>RIGHT($K96,2),AY96,0)) -> 0.287423 | BV96: =+IF($K96="Ongoing",AZ96,IF(RIGHT($K96,2)=RIGHT(BV$39,2),SUM($AX96:AZ96),0)+IF(RIGHT(BV$39,2)>RIGHT($K96,2),AZ96,0)) -> 0.287423 | BW96: =+IF($K96="Ongoing",BA96,IF(RIGHT($K96,2)=RIGHT(BW$39,2),SUM($AX96:BA96),0)+IF(RIGHT(BW$39,2)>RIGHT($K96,2),BA96,0)) -> 0.287423 | BX96: =+IF($K96="Ongoing",BB96,IF(RIGHT($K96,2)=RIGHT(BX$39,2),SUM($AX96:BB96),0)+IF(RIGHT(BX$39,2)>RIGHT($K96,2),BB96,0)) -> 0.287423 | BY96: =+IF($K96="Ongoing",BC96,IF(RIGHT($K96,2)=RIGHT(BY$39,2),SUM($AX96:BC96),0)+IF(RIGHT(BY$39,2)>RIGHT($K96,2),BC96,0)) -> 0.306278 | BZ96: =+IF($K96="Ongoing",BD96,IF(RIGHT($K96,2)=RIGHT(BZ$39,2),SUM($AX96:BD96),0)+IF(RIGHT(BZ$39,2)>RIGHT($K96,2),BD96,0)) -> 0.306278 | CA96: =+IF($K96="Ongoing",BE96,IF(RIGHT($K96,2)=RIGHT(CA$39,2),SUM($AX96:BE96),0)+IF(RIGHT(CA$39,2)>RIGHT($K96,2),BE96,0)) -> 0.306278 | CB96: =+IF($K96="Ongoing",BF96,IF(RIGHT($K96,2)=RIGHT(CB$39,2),SUM($AX96:BF96),0)+IF(RIGHT(CB$39,2)>RIGHT($K96,2),BF96,0)) -> 0.306278 | CC96: =+IF($K96="Ongoing",BG96,IF(RIGHT($K96,2)=RIGHT(CC$39,2),SUM($AX96:BG96),0)+IF(RIGHT(CC$39,2)>RIGHT($K96,2),BG96,0)) -> 0.306278 | CE96: =+Q96*KeyAssumptionsPriceControl_FO!AC$15 -> 0.29604569 | CF96: =+R96*KeyAssumptionsPriceControl_FO!AD$15 -> 0.3049270607 | CG96: =+S96*KeyAssumptionsPriceControl_FO!AE$15 -> 0.3140748725 | CH96: =+T96*KeyAssumptionsPriceControl_FO!AF$15 -> 0.3234971187 | CI96: =+U96*KeyAssumptionsPriceControl_FO!AG$15 -> 0.3332020323 | CJ96: =+V96*KeyAssumptionsPriceControl_FO!AH$15 -> 0.3657119493 | CK96: =+W96*KeyAssumptionsPriceControl_FO!AI$15 -> 0.3766833078 | CL96: =+X96*KeyAssumptionsPriceControl_FO!AJ$15 -> 0.387983807 | CM96: =+Y96*KeyAssumptionsPriceControl_FO!AK$15 -> 0.3996233212 | CN96: =+Z96*KeyAssumptionsPriceControl_FO!AL$15 -> 0.4116120208 | CP96: 0.0148022845 | CQ96: 0.04485092203 | CR96: 0.0758010187 | CS96: 0.1076796183 | CT96: 0.1405145758 | CU96: 0.1754602749 | CV96: 0.2125800377 | CW96: 0.2508133935 | CX96: 0.2901937499 | CY96: 0.330755517
C97: SCADA and Realtime Systems | E97: Sewerage | F97: Improvements / Compliance | G97: Pipelines/network | H97: Capital Programs / Allocation | J97: Straight line | K97: Ongoing | L97: 10 | M97: 10 | Q97: 0.92058 | R97: 1.245305 | S97: 1.245305 | T97: 1.245305 | U97: 1.245305 | V97: 1.028822 | W97: 1.028822 | X97: 1.028822 | Y97: 1.028822 | Z97: 1.028822 | AX97: 0.92058 | AY97: 1.245305 | AZ97: 1.245305 | BA97: 1.245305 | BB97: 1.245305 | BC97: 1.028822 | BD97: 1.028822 | BE97: 1.028822 | BF97: 1.028822 | BG97: 1.028822 | BI97: 0.046029 | BJ97: 0.15432325 | BK97: 0.27885375 | BL97: 0.40338425 | BM97: 0.52791475 | BN97: 0.6416211 | BO97: 0.7445033 | BP97: 0.8473855 | BQ97: 0.9502677 | BR97: 1.0531499 | BT97: =+IF($K97="Ongoing",AX97,IF(RIGHT($K97,2)=RIGHT(BT$39,2),SUM($AX97:AX97),0)+IF(RIGHT(BT$39,2)>RIGHT($K97,2),AX97,0)) -> 0.92058 | BU97: =+IF($K97="Ongoing",AY97,IF(RIGHT($K97,2)=RIGHT(BU$39,2),SUM($AX97:AY97),0)+IF(RIGHT(BU$39,2)>RIGHT($K97,2),AY97,0)) -> 1.245305 | BV97: =+IF($K97="Ongoing",AZ97,IF(RIGHT($K97,2)=RIGHT(BV$39,2),SUM($AX97:AZ97),0)+IF(RIGHT(BV$39,2)>RIGHT($K97,2),AZ97,0)) -> 1.245305 | BW97: =+IF($K97="Ongoing",BA97,IF(RIGHT($K97,2)=RIGHT(BW$39,2),SUM($AX97:BA97),0)+IF(RIGHT(BW$39,2)>RIGHT($K97,2),BA97,0)) -> 1.245305 | BX97: =+IF($K97="Ongoing",BB97,IF(RIGHT($K97,2)=RIGHT(BX$39,2),SUM($AX97:BB97),0)+IF(RIGHT(BX$39,2)>RIGHT($K97,2),BB97,0)) -> 1.245305 | BY97: =+IF($K97="Ongoing",BC97,IF(RIGHT($K97,2)=RIGHT(BY$39,2),SUM($AX97:BC97),0)+IF(RIGHT(BY$39,2)>RIGHT($K97,2),BC97,0)) -> 1.028822 | BZ97: =+IF($K97="Ongoing",BD97,IF(RIGHT($K97,2)=RIGHT(BZ$39,2),SUM($AX97:BD97),0)+IF(RIGHT(BZ$39,2)>RIGHT($K97,2),BD97,0)) -> 1.028822 | CA97: =+IF($K97="Ongoing",BE97,IF(RIGHT($K97,2)=RIGHT(CA$39,2),SUM($AX97:BE97),0)+IF(RIGHT(CA$39,2)>RIGHT($K97,2),BE97,0)) -> 1.028822 | CB97: =+IF($K97="Ongoing",BF97,IF(RIGHT($K97,2)=RIGHT(CB$39,2),SUM($AX97:BF97),0)+IF(RIGHT(CB$39,2)>RIGHT($K97,2),BF97,0)) -> 1.028822 | CC97: =+IF($K97="Ongoing",BG97,IF(RIGHT($K97,2)=RIGHT(CC$39,2),SUM($AX97:BG97),0)+IF(RIGHT(CC$39,2)>RIGHT($K97,2),BG97,0)) -> 1.028822 | CE97: =+Q97*KeyAssumptionsPriceControl_FO!AC$15 -> 0.9481974 | CF97: =+R97*KeyAssumptionsPriceControl_FO!AD$15 -> 1.321144075 | CG97: =+S97*KeyAssumptionsPriceControl_FO!AE$15 -> 1.360778397 | CH97: =+T97*KeyAssumptionsPriceControl_FO!AF$15 -> 1.401601749 | CI97: =+U97*KeyAssumptionsPriceControl_FO!AG$15 -> 1.443649801 | CJ97: =+V97*KeyAssumptionsPriceControl_FO!AH$15 -> 1.228467272 | CK97: =+W97*KeyAssumptionsPriceControl_FO!AI$15 -> 1.26532129 | CL97: =+X97*KeyAssumptionsPriceControl_FO!AJ$15 -> 1.303280929 | CM97: =+Y97*KeyAssumptionsPriceControl_FO!AK$15 -> 1.342379357 | CN97: =+Z97*KeyAssumptionsPriceControl_FO!AL$15 -> 1.382650737 | CP97: 0.04740987 | CQ97: 0.1608769437 | CR97: 0.2949730673 | CS97: 0.4330920746 | CT97: 0.575354652 | CU97: 0.7089605057 | CV97: 0.8336499338 | CW97: 0.9620800447 | CX97: 1.094363059 | CY97: 1.230614564
